Workbook

Sheet Inputs
A1: Multi-Index Mutual Fund Rolling Returns Analyzer Version 6.0 April 2019 | O1: =INDEX(L2:M7000,MATCH(AB3,L2:L7000,0),2) -> 102000 | Q1: wrt cat avg | R1: =IF(VALUE(B13)>#REF!,1,0) ->  | S1: =IF(VALUE(E9)>#REF!,1,0) ->  | T1: =IF(VALUE(D9)>#REF!,1,0) ->  | U1: =IF(VALUE(#REF!)>#REF!,1,0) ->  | V1: =IF(VALUE(F9)>#REF!,1,0) ->  | X1: =SUM(R1:V1) ->  | AA1: =COUNTIF(Z2:Z6000,"?*") -> 4 | AD1: =INDEX($L$2:$M$7000,MATCH(E4,$L$2:$L$7000,0),2) -> 102000 | AE1: =CONCATENATE(AD2,"-",AD3,"-",AD4,"&todate=",AD5,"-",AD6,"-",AD7,"&mf=",AD8,"&scm=",AD1) -> 3-Apr-2006&todate=25-Apr-2019&mf=9&scm=102000 | AF1: =INDEX(AP1:AQ80,MATCH(C6,AP1:AP80,0),2) ->  | AP1: BSE SENSEX | AQ1: =CONCATENATE("http://ichart.finance.yahoo.com/table.csv?s=%5EBSESN&a=03&b=3&c=2006&d=",AF15,"&e=",AF14,"&f=",YEAR(TODAY()),"&g=d&ignore=.csv") -> http://ichart.finance.yahoo.com/table.csv?s=%5EBSESN&a=03&b=3&c=2006&d=3&e=25&f=2019&g=d&ignore=.csv | AR1: BSE30 | AS1: table.csv | AT1: =INDEX(AP1:AR80,MATCH(C6,AP1:AP80,0),3) ->  | AU1: =INDEX(AP1:AS80,MATCH(C6,AP1:AP80,0),3) ->  | AV1: Select end-date for analysis from this list of last few days | BA1: Historical Index price downloader | BI1: 1 | BJ1: =CONCATENATE(0,1) -> 01 | BK1: =CONCATENATE(0,1) -> 01 | BL1: 2000 | BM1: daily | BN1: 1 | BO1: =ROUND((250*(BN3-BN2)/365)/500,0)+2 -> 9 | BU1: =INDEX(BV1:BW54,MATCH(C6,BV1:BV54,0),2) -> 0 | BV1: BSE Sensex | BW1: 4
A2: Step 1: Type first few letters of the MF scheme you need here | D2: HDFC top 100 | E2: UTI - Equity | K2: =IF(ISNUMBER(SEARCH($D$2,L2)),MAX($K$1:K1)+1,0) -> 0 | L2: Aditya Birla Sun Life Active Debt Multi Manager FoF Scheme - Direct Plan - Dividend Option | M2: 131897 | N2: 3 | O2: =COUNTA(L2:L7000)+1 -> 5946 | Q2: wrt sensex | R2: =IF(VALUE(B13)>#REF!,1,0) ->  | S2: =IF(VALUE(E9)>#REF!,1,0) ->  | T2: =IF(VALUE(D9)>#REF!,1,0) ->  | U2: =IF(VALUE(#REF!)>#REF!,1,0) ->  | V2: =IF(VALUE(F9)>#REF!,1,0) ->  | X2: =SUM(R2:V2) ->  | Z2: =IFERROR(VLOOKUP(ROWS($Z$2:Z2),K2:$L$7000,2,0),"") -> HDFC Top 100 Fund - Dividend Option | AA2: =OFFSET(Z2,,,COUNTIF($Z$2:$Z$7000,"?*"),) -> HDFC Top 100 Fund - Dividend Option | AD2: 3 | AF2: =INDEX(AP1:AS80,MATCH(C6,AP1:AP80,0),4) ->  | AJ2: drop-down list | AP2: CNX NIFTY | AQ2: =CONCATENATE("http://real-chart.finance.yahoo.com/table.csv?s=%5ENSEI&a=09&b=3&c=2013&d=",AF15,"&e=",AF14,"&f=",YEAR(TODAY()),"&g=d&ignore=.csv") -> http://real-chart.finance.yahoo.com/table.csv?s=%5ENSEI&a=09&b=3&c=2013&d=3&e=25&f=2019&g=d&ignore=.csv | AR2: 0 | AS2: table.csv | AV2: 42235 | AW2: If there is an error in retrieving index data, | BI2: 2 | BJ2: =CONCATENATE(0,2) -> 02 | BK2: =CONCATENATE(0,2) -> 02 | BL2: =BL1+1 -> 2001 | BM2: monthly | BN2: =DATE(BD7,BC7,BB7) -> 38810 | BV2: BSE 100 | BW2: 1 | BZ2: BSE Small Cap | CA2: 26
K3: =IF(ISNUMBER(SEARCH($D$2,L3)),MAX($K$1:K2)+1,0) -> 0 | L3: Aditya Birla Sun Life Active Debt Multi Manager FoF Scheme - Direct Plan - Growth Option | M3: 131898 | N3: 3 | Q3: wrt Nifty | R3: =IF(VALUE(B13)>B20,1,0) -> 0 | S3: =IF(VALUE(E9)>#REF!,1,0) ->  | T3: =IF(VALUE(D9)>#REF!,1,0) ->  | U3: =IF(VALUE(#REF!)>#REF!,1,0) ->  | V3: =IF(VALUE(F9)>#REF!,1,0) ->  | X3: =SUM(R3:V3) ->  | Z3: =IFERROR(VLOOKUP(ROWS($Z$2:Z3),K3:$L$7000,2,0),"") -> HDFC Top 100 Fund - Growth Option | AB3: =E4 -> HDFC Top 100 Fund - Growth Option | AD3: Apr | AE3: =TODAY() -> 43580 | AP3: CNX MIDCAP 50 | AQ3: =CONCATENATE("http://real-chart.finance.yahoo.com/table.csv?s=%5ENSEMDCP50&a=09&b=3&c=2013&d=",AF15,"&e=",AF14,"&f=",YEAR(TODAY()),"&g=d&ignore=.csv") -> http://real-chart.finance.yahoo.com/table.csv?s=%5ENSEMDCP50&a=09&b=3&c=2013&d=3&e=25&f=2019&g=d&ignore=.csv | AR3: 0 | AS3: table.csv | AV3: change this date until the error resolves | BA3: Choose the index | BB3: BSE Oil and Gas | BI3: 3 | BJ3: =CONCATENATE(0,3) -> 03 | BK3: =CONCATENATE(0,3) -> 03 | BL3: =BL2+1 -> 2002 | BM3: yearly | BN3: =DATE(BD9,BC9,BB9) -> 43580 | BV3: BSE 200 | BW3: 2 | BZ3: BSE Mid cap | CA3: 25
A4: Step 2: Then select the scheme you need from this drop-down list | E4: HDFC Top 100 Fund - Growth Option | K4: =IF(ISNUMBER(SEARCH($D$2,L4)),MAX($K$1:K3)+1,0) -> 0 | L4: Aditya Birla Sun Life Active Debt Multi Manager FoF Scheme - Regular Plan - Dividend Option | M4: 131895 | N4: 3 | R4: =SUM(R1:R3) ->  | S4: =SUM(S1:S3) ->  | T4: =SUM(T1:T3) ->  | U4: =SUM(U1:U3) ->  | V4: =SUM(V1:V3) ->  | Z4: =IFERROR(VLOOKUP(ROWS($Z$2:Z4),K4:$L$7000,2,0),"") -> HDFC Top 100 Fund -Direct Plan - Dividend Option | AD4: 2006 | AE4: =AE3-(365*AF4) -> 43215 | AF4: 1 | AG4: 365 | AH4: BSE SENSEX | AJ4: BSESN | AO4: CNX 500 | AP4: CNX 500 | AQ4: =CONCATENATE("http://real-chart.finance.yahoo.com/table.csv?s=%5ECRSLDX&a=09&b=3&c=2013&d=",AF15,"&e=",AF14,"&f=",YEAR(TODAY()),"&g=d&ignore=.csv") -> http://real-chart.finance.yahoo.com/table.csv?s=%5ECRSLDX&a=09&b=3&c=2013&d=3&e=25&f=2019&g=d&ignore=.csv | AR4: 0 | AS4: table.csv | BI4: 4 | BJ4: =CONCATENATE(0,4) -> 04 | BK4: =CONCATENATE(0,4) -> 04 | BL4: 2003 | BN4: =CONCATENATE(BD7,"-",BC7,"-",BB7) -> 2006-04-03 | BV4: BSE 500 | BW4: 12
K5: =IF(ISNUMBER(SEARCH($D$2,L5)),MAX($K$1:K4)+1,0) -> 0 | L5: Aditya Birla Sun Life Active Debt Multi Manager FoF Scheme - Regular Plan - Growth Option | M5: 131896 | N5: 3 | Z5: =IFERROR(VLOOKUP(ROWS($Z$2:Z5),K5:$L$7000,2,0),"") -> HDFC Top 100 Fund -Direct Plan - Growth Option | AD5: =DAY(TODAY()) -> 25 | AE5: =AE4-(365*AF5) -> 42120 | AF5: 3 | AH5: CNX NIFTY | AJ5: NSEI | AO5: CNX 100 | AP5: CNX 100 | AQ5: https://real-chart.finance.yahoo.com/table.csv?s=%5ECNX100&a=09&b=3&c=2013&d=03&e=3&f=2014&g=d&ignore=.csv | AR5: 0 | AS5: table.csv | BA5: Enter interval | BC5: Daily data will take about 30 secs to download. | BI5: 5 | BJ5: =CONCATENATE(0,5) -> 05 | BK5: =CONCATENATE(0,5) -> 05 | BL5: 2004 | BN5: =CONCATENATE(BD9,"-",BC9,"-",BB9) -> 2019-04-25 | BV5: NIFTY 50 TRI
A6: Step 3: Select Index for comparison | C6: NIFTY 500 TRI | K6: =IF(ISNUMBER(SEARCH($D$2,L6)),MAX($K$1:K5)+1,0) -> 0 | L6: Aditya Birla Sun Life Arbitrage Fund - Dividend - Direct Plan | M6: 119525 | N6: 3 | Z6: =IFERROR(VLOOKUP(ROWS($Z$2:Z6),K6:$L$7000,2,0),"") ->  | AD6: =TEXT(TODAY(),"mmm") -> Apr | AE6: =AE5-(365*AF6) -> 40295 | AF6: 5 | AH6: CNX MIDCAP 50 | AJ6: CRSMID | AP6: BSE MID CAP | AQ6: =CONCATENATE("http://www.bseindia.com/stockinfo/indices_main_excel.aspx?ind=",AR6,"%20&fromDate=",4,"-",3,"-",2006,"&toDate=",$AG$15,"-",$AG$14,"-",$AG$16,"&DMY=D") -> http://www.bseindia.com/stockinfo/indices_main_excel.aspx?ind=MIDCAP%20&fromDate=4-3-2006&toDate=04-25-2019&DMY=D | AR6: MIDCAP | AS6: indices_main_excel.aspx | BB6: Day | BC6: Month | BD6: Year | BI6: 6 | BJ6: =CONCATENATE(0,6) -> 06 | BK6: =CONCATENATE(0,6) -> 06 | BL6: 2005 | BN6: =CONCATENATE("http://www.moneycontrol.com/stocks/hist_index_result.php?indian_indices=",BU1,"&pno=1&hdn=daily&fdt=",BN4,"&todt=",BN4) -> http://www.moneycontrol.com/stocks/hist_index_result.php?indian_indices=0&pno=1&hdn=daily&fdt=2006-04-03&todt=2006-04-03 | BV6: NIFTY NEXT 50 TRI
K7: =IF(ISNUMBER(SEARCH($D$2,L7)),MAX($K$1:K6)+1,0) -> 0 | L7: Aditya Birla Sun Life Arbitrage Fund - Growth - Direct Plan | M7: 119526 | N7: 3 | Z7: =IFERROR(VLOOKUP(ROWS($Z$2:Z7),K7:$L$7000,2,0),"") ->  | AD7: =YEAR(TODAY()) -> 2019 | AE7: =AE6-(365*AF7) -> 37740 | AF7: 7 | AH7: CNX SMALLCAP | AP7: BSE SMALL CAP | AQ7: http://www.bseindia.com/stockinfo/indices_main_excel.aspx?ind=SMLCAP%20&fromDate=4-3-2006&toDate=04-25-2019&DMY=D | AR7: SMLCAP | AS7: indices_main_excel.aspx | BA7: Choose start date | BB7: 03 | BC7: 04 | BD7: 2006 | BI7: 7 | BJ7: =CONCATENATE(0,7) -> 07 | BK7: =CONCATENATE(0,7) -> 07 | BL7: 2006 | BV7: NIFTY100 LIQ 15 TRI
A8: Convert years to days (if you need to!) | K8: =IF(ISNUMBER(SEARCH($D$2,L8)),MAX($K$1:K7)+1,0) -> 0 | L8: Aditya BIRLA SUN LIFE ARBITRAGE FUND - REGULAR PLAN - GROWTH | M8: 112088 | N8: 3 | Z8: =IFERROR(VLOOKUP(ROWS($Z$2:Z8),K8:$L$7000,2,0),"") ->  | AD8: =INDEX($L$1:$N$7000,MATCH(E4,$L$1:$L$7000,0),3) -> 9 | AE8: =AE7-(365*AF8) -> 34090 | AF8: 10 | AH8: CNX 500 | AP8: BSE-100 | AQ8: http://www.bseindia.com/stockinfo/indices_main_excel.aspx?ind=BSE100%20&fromDate=4-3-2006&toDate=04-25-2019&DMY=D | AR8: BSE100 | AS8: indices_main_excel.aspx | BB8: Day | BC8: Month | BD8: Year | BI8: 8 | BJ8: =CONCATENATE(0,8) -> 08 | BK8: =CONCATENATE(0,8) -> 08 | BL8: 2007 | BN8: http://www.moneycontrol.com/stocks/hist_index_result.php?indian_indices=4&pno=1&hdn=daily&fdt=2000-01-01&todt=2016-01-01 | BV8: NIFTY MID LIQ 15 TRI
A9: Enter years | B9: 5 | K9: =IF(ISNUMBER(SEARCH($D$2,L9)),MAX($K$1:K8)+1,0) -> 0 | L9: Aditya Birla Sun Life Arbitrage Fund Dividend Regular Plan | M9: 112087 | N9: 3 | Z9: =IFERROR(VLOOKUP(ROWS($Z$2:Z9),K9:$L$7000,2,0),"") ->  | AF9: CNX NIFTY30-09-2013-01-10-2013.csv | AH9: CNX 100 | AJ9: =AJ10-1 -> 43576 | AP9: BSE-200 | AQ9: http://www.bseindia.com/stockinfo/indices_main_excel.aspx?ind=BSE200%20&fromDate=4-3-2006&toDate=04-25-2019&DMY=D | AR9: BSE200 | AS9: indices_main_excel.aspx | BA9: Choose end date | BB9: =INDEX(BI1:BK31,MATCH(DAY(TODAY()),BI1:BI31,0),3) -> 25 | BC9: =INDEX(BI1:BK31,MATCH(MONTH(TODAY()),BI1:BI31,0),2) -> 04 | BD9: =YEAR(TODAY()) -> 2019 | BI9: 9 | BJ9: =CONCATENATE(0,9) -> 09 | BK9: =CONCATENATE(0,9) -> 09 | BL9: 2008 | BV9: NIFTY 100 TRI
A10: Days | B10: =B9*365 -> 1825 | K10: =IF(ISNUMBER(SEARCH($D$2,L10)),MAX($K$1:K9)+1,0) -> 0 | L10: Aditya Birla Sun Life Asset Allocator Multi Manager FoF Scheme - Direct Plan - Dividend Option | M10: 131866 | N10: 3 | Z10: =IFERROR(VLOOKUP(ROWS($Z$2:Z10),K10:$L$7000,2,0),"") ->  | AF10: =CONCATENATE("0",AD2,"-","0",4,"-",2006,"-",AF14,"-",AF15,"-",YEAR(TODAY()),".csv") -> 03-04-2006-25-3-2019.csv | AH10: =IF(C6=AH5,"CNX%20NIFTY",IF(C6=AH6,"CNX%20MIDCAP",IF(C6=AH7,"CNX%20SMALLCAP",0))) -> 0 | AJ10: =AJ11-1 -> 43577 | AP10: BSE-500 | AQ10: http://www.bseindia.com/stockinfo/indices_main_excel.aspx?ind=BSE500%20&fromDate=4-3-2006&toDate=04-25-2019&DMY=D | AR10: BSE500 | AS10: indices_main_excel.aspx | BI10: 10 | BJ10: 10 | BK10: 10 | BL10: 2009 | BV10: NIFTY 200 TRI
K11: =IF(ISNUMBER(SEARCH($D$2,L11)),MAX($K$1:K10)+1,0) -> 0 | L11: Aditya Birla Sun Life Asset Allocator Multi Manager FoF Scheme - Direct Plan - Growth Option | M11: 131865 | N11: 3 | Z11: =IFERROR(VLOOKUP(ROWS($Z$2:Z11),K11:$L$7000,2,0),"") ->  | AF11: 30-09-2013-01-10-2013.csv | AJ11: =AJ12-1 -> 43578 | AP11: BSE IPO | AQ11: http://www.bseindia.com/stockinfo/indices_main_excel.aspx?ind=BSEIPO%20&fromDate=4-3-2006&toDate=04-25-2019&DMY=D | AR11: BSEIPO | AS11: indices_main_excel.aspx | BI11: 11 | BJ11: 11 | BK11: 11 | BL11: 2010 | BV11: NIFTY 500 TRI
K12: =IF(ISNUMBER(SEARCH($D$2,L12)),MAX($K$1:K11)+1,0) -> 0 | L12: Aditya Birla Sun Life Asset Allocator Multi Manager FoF Scheme - Regular Plan - Dividend Option | M12: 131863 | N12: 3 | Z12: =IFERROR(VLOOKUP(ROWS($Z$2:Z12),K12:$L$7000,2,0),"") ->  | AF12: =DATE(AD4,4,AD2) -> 38810 | AH12: =IF(C6=AH5,"CNX%20NIFTY",IF(C6=AH6,"CNX%20MIDCAP",IF(C6=AH7,"CNX%20SMALLCAP",0))) -> 0 | AJ12: =AJ13-1 -> 43579 | AP12: BSE AUTO | AQ12: http://www.bseindia.com/stockinfo/indices_main_excel.aspx?ind=AUTO%20&fromDate=4-3-2006&toDate=04-25-2019&DMY=D | AR12: AUTO | AS12: indices_main_excel.aspx | BI12: 12 | BJ12: 12 | BK12: 12 | BL12: 2011 | BV12: NIFTY MIDCAP 150 TRI
A13: Step 6: Enter the interval over which you need the rolling returns to be calculated in days (365/90/30 etc.) | H13: 1825 | K13: =IF(ISNUMBER(SEARCH($D$2,L13)),MAX($K$1:K12)+1,0) -> 0 | L13: Aditya Birla Sun Life Asset Allocator Multi Manager FoF Scheme - Regular Plan - Growth Option | M13: 131864 | N13: 3 | Z13: =IFERROR(VLOOKUP(ROWS($Z$2:Z13),K13:$L$7000,2,0),"") ->  | AF13: =TODAY() -> 43580 | AJ13: =TODAY() -> 43580 | AP13: BSE BANKEX | AQ13: http://www.bseindia.com/stockinfo/indices_main_excel.aspx?ind=BANKEX%20&fromDate=4-3-2006&toDate=04-25-2019&DMY=D | AR13: BANKEX | AS13: indices_main_excel.aspx | BI13: =BI12+1 -> 13 | BK13: =BK12+1 -> 13 | BL13: 2012 | BV13: NIFTY MIDCAP 50 TRI
A14: Step 7: Start date of rolling returns analysis (must be present in both nav and index history; not before 03-04-2006)) | H14: 2006-04-03 | K14: =IF(ISNUMBER(SEARCH($D$2,L14)),MAX($K$1:K13)+1,0) -> 0 | L14: ADITYA BIRLA SUN LIFE BAL BHAVISHYA YOJNA WEALTH PLAN DIRECT DIVIDEND | M14: 146408 | N14: 3 | Z14: =IFERROR(VLOOKUP(ROWS($Z$2:Z14),K14:$L$7000,2,0),"") ->  | AB14: http://real-chart.finance.yahoo.com/table.csv?s=%5ENSEI&d=0&e=31&f=2016&g=d&a=8&b=17&c=2007&ignore=.csv | AF14: =DAY(TODAY()) -> 25 | AG14: =IF(DAY(TODAY())<10,CONCATENATE(0,DAY(TODAY())),DAY(TODAY())) -> 25 | AP14: BSE Consumer Durables | AQ14: http://www.bseindia.com/stockinfo/indices_main_excel.aspx?ind=BSECD%20&fromDate=4-3-2006&toDate=04-25-2019&DMY=D | AR14: BSECD | AS14: indices_main_excel.aspx | BI14: =BI13+1 -> 14 | BK14: 14 | BL14: 2013 | BV14: NIFTY FULL MIDCAP 100 TRI
A15: Steps 6 and 7 can be implemented independent of other steps once the fund NAV and index data are downloaded | H15: =IF(ISERROR(INDEX(Fund!A10:B5003,MATCH(Inputs!H14,Fund!A10:A5003,0),1)),"Please choose another date", IF(ISERROR(INDEX(Benchmark!A10:B2021,MATCH(H14,Benchmark!A10:A2021,0),1)),"Please Choose another date","")) ->  | K15: =IF(ISNUMBER(SEARCH($D$2,L15)),MAX($K$1:K14)+1,0) -> 0 | L15: ADITYA BIRLA SUN LIFE BAL BHAVISHYA YOJNA WEALTH PLAN DIRECT GROWTH | M15: 146407 | N15: 3 | Z15: =IFERROR(VLOOKUP(ROWS($Z$2:Z15),K15:$L$7000,2,0),"") ->  | AF15: =MONTH(TODAY())-1 -> 3 | AG15: =IF(MONTH(TODAY())<10,CONCATENATE(0,MONTH(TODAY())),MONTH(TODAY())) -> 04 | AP15: BSE Capital Goods | AQ15: http://www.bseindia.com/stockinfo/indices_main_excel.aspx?ind=BSECG%20&fromDate=4-3-2006&toDate=04-25-2019&DMY=D | AR15: BSECG | AS15: indices_main_excel.aspx | BI15: 15 | BK15: 15 | BL15: 2014 | BV15: NIFTY MID100 FREE TRI
H16: =IF(ISERROR(INDEX(Fund!A10:B5003,MATCH(Inputs!H14,Fund!A10:A5003,0),1)),"Not before", IF(ISERROR(INDEX(Benchmark!A10:B2021,MATCH(H14,Benchmark!A10:A2021,0),1)),"Not before","")) ->  | I16: =IF(ISERROR(INDEX(Fund!A10:B5003,MATCH(Inputs!H14,Fund!A10:A5003,0),1)),MIN(Fund!A10:A5000), IF(ISERROR(INDEX(Benchmark!A10:B2021,MATCH(H14,Benchmark!A10:A2021,0),1)),MIN(Benchmark!A10:A5000),"")) ->  | K16: =IF(ISNUMBER(SEARCH($D$2,L16)),MAX($K$1:K15)+1,0) -> 0 | L16: ADITYA BIRLA SUN LIFE BAL BHAVISHYA YOJNA WEALTH PLAN REGULAR DIVIDEND | M16: 146405 | N16: 3 | Z16: =IFERROR(VLOOKUP(ROWS($Z$2:Z16),K16:$L$7000,2,0),"") ->  | AG16: =YEAR(TODAY()) -> 2019 | AP16: BSE FMCG | AQ16: http://www.bseindia.com/stockinfo/indices_main_excel.aspx?ind=BSEFMCG%20&fromDate=4-3-2006&toDate=04-25-2019&DMY=D | AR16: BSEFMCG | AS16: indices_main_excel.aspx | BI16: 16 | BK16: 16 | BL16: 2015 | BV16: NIFTY SMALLCAP 250 TRI
K17: =IF(ISNUMBER(SEARCH($D$2,L17)),MAX($K$1:K16)+1,0) -> 0 | L17: ADITYA BIRLA SUN LIFE BAL BHAVISHYA YOJNA WEALTH PLAN REGULAR GROWTH | M17: 146409 | N17: 3 | Z17: =IFERROR(VLOOKUP(ROWS($Z$2:Z17),K17:$L$7000,2,0),"") ->  | AP17: BSE Health CARE | AQ17: http://www.bseindia.com/stockinfo/indices_main_excel.aspx?ind=BSEHC%20&fromDate=4-3-2006&toDate=04-25-2019&DMY=D | AR17: BSEHC | AS17: indices_main_excel.aspx | BI17: 17 | BK17: 17 | BL17: 2016 | BV17: NIFTY SMALLCAP 50 TRI
A18: Follow steps 1 to 7 sequentially (fill only green cells) After you download NAV and Index data once, you can change them independently. Do not change any forumulae. Do not change cells in any tab esp red ones | K18: =IF(ISNUMBER(SEARCH($D$2,L18)),MAX($K$1:K17)+1,0) -> 0 | L18: Aditya Birla Sun Life Balanced Advantage Fund - Direct Plan - Dividend Option | M18: 131671 | N18: 3 | Z18: =IFERROR(VLOOKUP(ROWS($Z$2:Z18),K18:$L$7000,2,0),"") ->  | AF18: =CONCATENATE("http://www.nseindia.com/content/indices/histdata/",AH10,CONCATENATE(30),"-",CONCATENATE(0,9),"-",2013,"-",AG14,"-",AG15,"-",YEAR(AV2),".csv") -> http://www.nseindia.com/content/indices/histdata/030-09-2013-25-04-2015.csv | AP18: BSE IT | AQ18: http://www.bseindia.com/stockinfo/indices_main_excel.aspx?ind=BSEIT%20&fromDate=4-3-2006&toDate=04-25-2019&DMY=D | AR18: BSEIT | AS18: indices_main_excel.aspx | BI18: 18 | BK18: 18 | BL18: 2017 | BV18: NIFTY FULL SMALLCAP 100 TRI
K19: =IF(ISNUMBER(SEARCH($D$2,L19)),MAX($K$1:K18)+1,0) -> 0 | L19: Aditya Birla Sun Life Balanced Advantage Fund - Direct Plan - Growth Option | M19: 131670 | N19: 3 | Z19: =IFERROR(VLOOKUP(ROWS($Z$2:Z19),K19:$L$7000,2,0),"") ->  | AF19: =CONCATENATE(C6,CONCATENATE(30),"-",CONCATENATE(0,9),"-",2013,"-",AG14,"-",AG15,"-",YEAR(TODAY()),".csv") -> NIFTY 500 TRI30-09-2013-25-04-2019.csv | AP19: BSE METAL | AQ19: http://www.bseindia.com/stockinfo/indices_main_excel.aspx?ind=METAL%20&fromDate=4-3-2006&toDate=04-25-2019&DMY=D | AR19: METAL | AS19: indices_main_excel.aspx | BI19: 19 | BK19: 19 | BL19: 2018 | BV19: NIFTY SML100 FREE TRI
K20: =IF(ISNUMBER(SEARCH($D$2,L20)),MAX($K$1:K19)+1,0) -> 0 | L20: Aditya Birla Sun Life Balanced Advantage Fund - Regular Plan - Dividend Option | M20: 131665 | N20: 3 | Z20: =IFERROR(VLOOKUP(ROWS($Z$2:Z20),K20:$L$7000,2,0),"") ->  | AF20: =CONCATENATE("http://ichart.finance.yahoo.com/table.csv?s=%5EBSESN&a=03&b=3&c=2006&d=",AF15,"&e=",AF14,"&f=",YEAR(TODAY()),"&g=d&ignore=.csv") -> http://ichart.finance.yahoo.com/table.csv?s=%5EBSESN&a=03&b=3&c=2006&d=3&e=25&f=2019&g=d&ignore=.csv | AP20: BSE OIL & GAS | AQ20: http://www.bseindia.com/stockinfo/indices_main_excel.aspx?ind=OILGAS%20&fromDate=4-3-2006&toDate=04-25-2019&DMY=D | AR20: OILGAS | AS20: indices_main_excel.aspx | BI20: 20 | BK20: 20 | BL20: 2019 | BV20: NIFTY MIDSMALLCAP 400 TRI
K21: =IF(ISNUMBER(SEARCH($D$2,L21)),MAX($K$1:K20)+1,0) -> 0 | L21: Aditya Birla Sun Life Balanced Advantage Fund - Regular Plan - Growth Option | M21: 131666 | N21: 3 | Z21: =IFERROR(VLOOKUP(ROWS($Z$2:Z21),K21:$L$7000,2,0),"") ->  | AF21: table.csv | AP21: BSE POWER | AQ21: http://www.bseindia.com/stockinfo/indices_main_excel.aspx?ind=POWER%20&fromDate=4-3-2006&toDate=04-25-2019&DMY=D | AR21: POWER | AS21: indices_main_excel.aspx | BI21: 21 | BK21: 21 | BL21: 2020 | BV21: NIFTY AUTO TRI
K22: =IF(ISNUMBER(SEARCH($D$2,L22)),MAX($K$1:K21)+1,0) -> 0 | L22: Aditya Birla Sun Life Banking & PSU Debt Fund - Direct Plan-Dividend | M22: 119551 | N22: 3 | Z22: =IFERROR(VLOOKUP(ROWS($Z$2:Z22),K22:$L$7000,2,0),"") ->  | AP22: BSE PSU | AQ22: http://www.bseindia.com/stockinfo/indices_main_excel.aspx?ind=BSEPSU%20&fromDate=4-3-2006&toDate=04-25-2019&DMY=D | AR22: BSEPSU | AS22: indices_main_excel.aspx | BI22: 22 | BK22: 22 | BL22: 2021 | BV22: NIFTY BANK TRI
K23: =IF(ISNUMBER(SEARCH($D$2,L23)),MAX($K$1:K22)+1,0) -> 0 | L23: Aditya Birla Sun Life Banking & PSU Debt Fund - Direct Plan-Monthly Dividend | M23: 119552 | N23: 3 | Z23: =IFERROR(VLOOKUP(ROWS($Z$2:Z23),K23:$L$7000,2,0),"") ->  | AF23: http://www.nseindia.com/content/indices/histdata/CNX%20MIDCAP03-04-2006-01-10-2013.csv | AP23: BSE REALTY | AQ23: http://www.bseindia.com/stockinfo/indices_main_excel.aspx?ind=REALTY%20&fromDate=4-3-2006&toDate=04-25-2019&DMY=D | AR23: REALTY | AS23: indices_main_excel.aspx | BI23: 23 | BK23: 23 | BL23: 2022 | BV23: NIFTY ENERGY TRI
K24: =IF(ISNUMBER(SEARCH($D$2,L24)),MAX($K$1:K23)+1,0) -> 0 | L24: Aditya Birla Sun Life Banking & PSU Debt Fund - Direct Plan-Quarterly Dividend | M24: 119553 | N24: 3 | Z24: =IFERROR(VLOOKUP(ROWS($Z$2:Z24),K24:$L$7000,2,0),"") ->  | AF24: http://ichart.finance.yahoo.com/table.csv?s=%5EBSESN&a=03&b=3&c=2006&d=09&e=2&f=2013&g=d&ignore=.csv | AP24: BSE TECk | AQ24: http://www.bseindia.com/stockinfo/indices_main_excel.aspx?ind=TECK%20&fromDate=4-3-2006&toDate=04-25-2019&DMY=D | AR24: TECK | AS24: indices_main_excel.aspx | BI24: 24 | BK24: 24 | BL24: 2023 | BV24: NIFTY FIN SERVICE TRI
K25: =IF(ISNUMBER(SEARCH($D$2,L25)),MAX($K$1:K24)+1,0) -> 0 | L25: Aditya Birla Sun Life Banking & PSU Debt Fund - Regular Plan-Dividend | M25: 108272 | N25: 3 | Z25: =IFERROR(VLOOKUP(ROWS($Z$2:Z25),K25:$L$7000,2,0),"") ->  | AF25: http://www.nseindia.com/content/indices/histdata/CNX%20MIDCAP03-04-2006-01-10-2013.csv | AP25: BSE DOLLEX-30 | AQ25: http://www.bseindia.com/stockinfo/indices_main_excel.aspx?ind=DOL30%20&fromDate=4-3-2006&toDate=04-25-2019&DMY=D | AR25: DOL30 | AS25: indices_main_excel.aspx | BI25: 25 | BK25: 25 | BL25: 2024 | BV25: NIFTY FMCG TRI
K26: =IF(ISNUMBER(SEARCH($D$2,L26)),MAX($K$1:K25)+1,0) -> 0 | L26: Aditya Birla Sun Life Banking & PSU Debt Fund - Regular Plan-Growth | M26: 108273 | N26: 3 | Z26: =IFERROR(VLOOKUP(ROWS($Z$2:Z26),K26:$L$7000,2,0),"") ->  | AP26: BSE DOLLEX-100 | AQ26: http://www.bseindia.com/stockinfo/indices_main_excel.aspx?ind=DOL100%20&fromDate=4-3-2006&toDate=04-25-2019&DMY=D | AR26: DOL100 | AS26: indices_main_excel.aspx | BI26: 26 | BK26: 26 | BL26: 2025 | BV26: NIFTY IT TRI
K27: =IF(ISNUMBER(SEARCH($D$2,L27)),MAX($K$1:K26)+1,0) -> 0 | L27: Aditya Birla Sun Life Banking & PSU Debt Fund - Regular Plan-Monthly Dividend | M27: 110282 | N27: 3 | Z27: =IFERROR(VLOOKUP(ROWS($Z$2:Z27),K27:$L$7000,2,0),"") ->  | AP27: BSE DOLLEX-200 | AQ27: http://www.bseindia.com/stockinfo/indices_main_excel.aspx?ind=DOL200%20&fromDate=4-3-2006&toDate=04-25-2019&DMY=D | AR27: DOL200 | AS27: indices_main_excel.aspx | BI27: 27 | BK27: 27 | BL27: 2026 | BV27: NIFTY MEDIA TRI
K28: =IF(ISNUMBER(SEARCH($D$2,L28)),MAX($K$1:K27)+1,0) -> 0 | L28: Aditya Birla Sun Life Banking & PSU Debt Fund - Regular Plan-Quarterly Dividend | M28: 108274 | N28: 3 | Z28: =IFERROR(VLOOKUP(ROWS($Z$2:Z28),K28:$L$7000,2,0),"") ->  | AP28: BSE SHARIAH | AQ28: http://www.bseindia.com/stockinfo/indices_main_excel.aspx?ind=SHA50%20&fromDate=4-3-2006&toDate=04-25-2019&DMY=D | AR28: SHA50 | AS28: indices_main_excel.aspx | BI28: 28 | BK28: 28 | BL28: 2027 | BV28: NIFTY METAL TRI
K29: =IF(ISNUMBER(SEARCH($D$2,L29)),MAX($K$1:K28)+1,0) -> 0 | L29: Aditya Birla Sun Life Banking & PSU Debt Fund - Retail Plan-Growth | M29: 103176 | N29: 3 | Z29: =IFERROR(VLOOKUP(ROWS($Z$2:Z29),K29:$L$7000,2,0),"") ->  | AP29: BSE Greenex | AQ29: http://www.bseindia.com/stockinfo/indices_main_excel.aspx?ind=Greenx%20&fromDate=4-3-2006&toDate=04-25-2019&DMY=D | AR29: Greenx | AS29: indices_main_excel.aspx | BI29: 29 | BK29: 29 | BL29: 2028 | BV29: NIFTY PHARMA TRI
K30: =IF(ISNUMBER(SEARCH($D$2,L30)),MAX($K$1:K29)+1,0) -> 0 | L30: Aditya Birla Sun Life Banking & PSU Debt Fund - Retail Plan-Monthly Dividend | M30: 110490 | N30: 3 | Z30: =IFERROR(VLOOKUP(ROWS($Z$2:Z30),K30:$L$7000,2,0),"") ->  | AP30: BSE SME IPO | AQ30: http://www.bseindia.com/stockinfo/indices_main_excel.aspx?ind=SMEIPO %20&fromDate=4-3-2006&toDate=04-25-2019&DMY=D | AR30: SMEIPO | AS30: indices_main_excel.aspx | BI30: 30 | BK30: 30 | BL30: 2029 | BV30: NIFTY PVT BANK TRI
K31: =IF(ISNUMBER(SEARCH($D$2,L31)),MAX($K$1:K30)+1,0) -> 0 | L31: Aditya Birla Sun Life Banking & PSU Debt Fund - Retail Plan-Quarterly Dividend | M31: 106157 | N31: 3 | Z31: =IFERROR(VLOOKUP(ROWS($Z$2:Z31),K31:$L$7000,2,0),"") ->  | AP31: BSE Carbonex | AQ31: http://www.bseindia.com/stockinfo/indices_main_excel.aspx?ind=Carbon%20&fromDate=4-3-2006&toDate=04-25-2019&DMY=D | AR31: Carbon | AS31: indices_main_excel.aspx | BI31: 31 | BK31: 31 | BL31: 2030 | BV31: NIFTY PSU BANK TRI
K32: =IF(ISNUMBER(SEARCH($D$2,L32)),MAX($K$1:K31)+1,0) -> 0 | L32: Aditya Birla Sun Life Banking & PSU Debt Fund- Direct Plan-Growth | M32: 119550 | N32: 3 | Z32: =IFERROR(VLOOKUP(ROWS($Z$2:Z32),K32:$L$7000,2,0),"") ->  | AP32: BSE SENSEX | AQ32: =CONCATENATE("http://www.bseindia.com/stockinfo/indices_main_excel.aspx?ind=",AR32,"%20&fromDate=",4,"-",3,"-",2006,"&toDate=",$AG$15,"-",$AG$14,"-",$AG$16,"&DMY=D") -> http://www.bseindia.com/stockinfo/indices_main_excel.aspx?ind=BSE30%20&fromDate=4-3-2006&toDate=04-25-2019&DMY=D | AR32: BSE30 | AS32: indices_main_excel.aspx | BL32: 2031 | BV32: NIFTY REALTY TRI
K33: =IF(ISNUMBER(SEARCH($D$2,L33)),MAX($K$1:K32)+1,0) -> 0 | L33: Aditya Birla Sun Life Banking and Financial Services Fund - Direct Plan - Dividend | M33: 125598 | N33: 3 | Z33: =IFERROR(VLOOKUP(ROWS($Z$2:Z33),K33:$L$7000,2,0),"") ->  | BL33: 2032 | BV33: NIFTY COMMODITIES TRI
K34: =IF(ISNUMBER(SEARCH($D$2,L34)),MAX($K$1:K33)+1,0) -> 0 | L34: Aditya Birla Sun Life Banking and Financial Services Fund - Direct Plan - Growth | M34: 125597 | N34: 3 | Z34: =IFERROR(VLOOKUP(ROWS($Z$2:Z34),K34:$L$7000,2,0),"") ->  | BL34: 2033 | BV34: NIFTY CONSUMPTION TRI
K35: =IF(ISNUMBER(SEARCH($D$2,L35)),MAX($K$1:K34)+1,0) -> 0 | L35: Aditya Birla Sun Life Banking and Financial Services Fund - Regular Plan - Dividend | M35: 125596 | N35: 3 | Z35: =IFERROR(VLOOKUP(ROWS($Z$2:Z35),K35:$L$7000,2,0),"") ->  | BL35: 2034 | BV35: NIFTY CPSE TRI
K36: =IF(ISNUMBER(SEARCH($D$2,L36)),MAX($K$1:K35)+1,0) -> 0 | L36: Aditya Birla Sun Life Banking and Financial Services Fund - Regular Plan - Growth | M36: 125595 | N36: 3 | Z36: =IFERROR(VLOOKUP(ROWS($Z$2:Z36),K36:$L$7000,2,0),"") ->  | BL36: 2035 | BV36: NIFTY INFRA TRI
K37: =IF(ISNUMBER(SEARCH($D$2,L37)),MAX($K$1:K36)+1,0) -> 0 | L37: Aditya Birla Sun Life Commodity Equities Fund - Global Agri Plan - Dividend - Direct Plan | M37: 119575 | N37: 3 | Z37: =IFERROR(VLOOKUP(ROWS($Z$2:Z37),K37:$L$7000,2,0),"") ->  | BL37: 2036 | BV37: NIFTY MNC TRI
K38: =IF(ISNUMBER(SEARCH($D$2,L38)),MAX($K$1:K37)+1,0) -> 0 | L38: Aditya Birla Sun Life Commodity Equities Fund - Global Agri Plan - Dividend - Regular Plan | M38: 111348 | N38: 3 | Z38: =IFERROR(VLOOKUP(ROWS($Z$2:Z38),K38:$L$7000,2,0),"") ->  | BL38: 2037 | BV38: NIFTY PSE TRI
K39: =IF(ISNUMBER(SEARCH($D$2,L39)),MAX($K$1:K38)+1,0) -> 0 | L39: Aditya Birla Sun Life Commodity Equities Fund - Global Agri Plan - Growth - Direct Plan | M39: 119576 | N39: 3 | Z39: =IFERROR(VLOOKUP(ROWS($Z$2:Z39),K39:$L$7000,2,0),"") ->  | BL39: 2038 | BV39: NIFTY SERV SECTOR TRI
K40: =IF(ISNUMBER(SEARCH($D$2,L40)),MAX($K$1:K39)+1,0) -> 0 | L40: Aditya Birla Sun Life Commodity Equities Fund - Global Agri Plan - Growth - Regular Plan | M40: 111349 | N40: 3 | Z40: =IFERROR(VLOOKUP(ROWS($Z$2:Z40),K40:$L$7000,2,0),"") ->  | BL40: 2039 | BV40: NIFTY SHARIAH 25 TRI
K41: =IF(ISNUMBER(SEARCH($D$2,L41)),MAX($K$1:K40)+1,0) -> 0 | L41: Aditya Birla Sun Life Corporate Bond Fund - Dividend - Direct Plan | M41: 124832 | N41: 3 | Z41: =IFERROR(VLOOKUP(ROWS($Z$2:Z41),K41:$L$7000,2,0),"") ->  | BL41: 2040 | BV41: NIFTY50 SHARIAH TRI
K42: =IF(ISNUMBER(SEARCH($D$2,L42)),MAX($K$1:K41)+1,0) -> 0 | L42: Aditya Birla Sun Life Corporate Bond Fund - Dividend - Regular Plan | M42: 124833 | N42: 3 | Z42: =IFERROR(VLOOKUP(ROWS($Z$2:Z42),K42:$L$7000,2,0),"") ->  | BL42: 2041 | BV42: NIFTY500 SHARIAH TRI
K43: =IF(ISNUMBER(SEARCH($D$2,L43)),MAX($K$1:K42)+1,0) -> 0 | L43: Aditya Birla Sun Life Corporate Bond Fund - Growth - Direct Plan | M43: 119533 | N43: 3 | Z43: =IFERROR(VLOOKUP(ROWS($Z$2:Z43),K43:$L$7000,2,0),"") ->  | BL43: 2042 | BV43: NIFTY ADITYA BIRLA GROUP TRI
K44: =IF(ISNUMBER(SEARCH($D$2,L44)),MAX($K$1:K43)+1,0) -> 0 | L44: Aditya Birla Sun Life Corporate Bond Fund - Growth - Regular Plan | M44: 103178 | N44: 3 | Z44: =IFERROR(VLOOKUP(ROWS($Z$2:Z44),K44:$L$7000,2,0),"") ->  | BV44: NIFTY MAHINDRA GROUP TRI
K45: =IF(ISNUMBER(SEARCH($D$2,L45)),MAX($K$1:K44)+1,0) -> 0 | L45: Aditya Birla Sun Life Corporate Bond Fund - Monthly Dividend - Direct Plan | M45: 119532 | N45: 3 | Z45: =IFERROR(VLOOKUP(ROWS($Z$2:Z45),K45:$L$7000,2,0),"") ->  | BV45: NIFTY TATA GROUP TRI
K46: =IF(ISNUMBER(SEARCH($D$2,L46)),MAX($K$1:K45)+1,0) -> 0 | L46: Aditya Birla Sun Life Corporate Bond Fund - Monthly Dividend - Regular Plan | M46: 103183 | N46: 3 | Z46: =IFERROR(VLOOKUP(ROWS($Z$2:Z46),K46:$L$7000,2,0),"") ->  | BV46: NIFTY TATA GROUP 25% CAP TRI
K47: =IF(ISNUMBER(SEARCH($D$2,L47)),MAX($K$1:K46)+1,0) -> 0 | L47: Aditya Birla Sun Life Credit Risk Fund - Direct Plan - Bonus | M47: 134388 | N47: 3 | Z47: =IFERROR(VLOOKUP(ROWS($Z$2:Z47),K47:$L$7000,2,0),"") ->  | BV47: NIFTY100 EQUAL WEIGHT TRI
K48: =IF(ISNUMBER(SEARCH($D$2,L48)),MAX($K$1:K47)+1,0) -> 0 | L48: Aditya Birla Sun Life Credit Risk Fund - Direct Plan - Dividend | M48: 134385 | N48: 3 | Z48: =IFERROR(VLOOKUP(ROWS($Z$2:Z48),K48:$L$7000,2,0),"") ->  | BV48: NIFTY50 DIV POINT TRI
K49: =IF(ISNUMBER(SEARCH($D$2,L49)),MAX($K$1:K48)+1,0) -> 0 | L49: Aditya Birla Sun Life Credit Risk Fund - Direct Plan - Growth | M49: 134387 | N49: 3 | Z49: =IFERROR(VLOOKUP(ROWS($Z$2:Z49),K49:$L$7000,2,0),"") ->  | BV49: NIFTY DIV OPPS 50 TRI
K50: =IF(ISNUMBER(SEARCH($D$2,L50)),MAX($K$1:K49)+1,0) -> 0 | L50: Aditya Birla Sun Life Credit Risk Fund - Regular Plan - Bonus | M50: 134384 | N50: 3 | Z50: =IFERROR(VLOOKUP(ROWS($Z$2:Z50),K50:$L$7000,2,0),"") ->  | BV50: NIFTY ALPHA 50 TRI
K51: =IF(ISNUMBER(SEARCH($D$2,L51)),MAX($K$1:K50)+1,0) -> 0 | L51: Aditya Birla Sun Life Credit Risk Fund - Regular Plan - Dividend | M51: 134386 | N51: 3 | Z51: =IFERROR(VLOOKUP(ROWS($Z$2:Z51),K51:$L$7000,2,0),"") ->  | BV51: NIFTY HIGH BETA 50 TRI
K52: =IF(ISNUMBER(SEARCH($D$2,L52)),MAX($K$1:K51)+1,0) -> 0 | L52: Aditya Birla Sun Life Credit Risk Fund - Regular Plan - Growth | M52: 134383 | N52: 3 | Z52: =IFERROR(VLOOKUP(ROWS($Z$2:Z52),K52:$L$7000,2,0),"") ->  | BV52: NIFTY LOW VOLATILITY 50 TRI
K53: =IF(ISNUMBER(SEARCH($D$2,L53)),MAX($K$1:K52)+1,0) -> 0 | L53: Aditya Birla Sun Life Digital India Fund - Dividend - Direct Plan | M53: 120538 | N53: 3 | Z53: =IFERROR(VLOOKUP(ROWS($Z$2:Z53),K53:$L$7000,2,0),"") ->  | BV53: NIFTY QUALITY 30 TRI
K54: =IF(ISNUMBER(SEARCH($D$2,L54)),MAX($K$1:K53)+1,0) -> 0 | L54: Aditya Birla Sun Life Digital India Fund - Dividend - Regular Plan | M54: 103167 | N54: 3 | Z54: =IFERROR(VLOOKUP(ROWS($Z$2:Z54),K54:$L$7000,2,0),"") ->  | BV54: NIFTY50 VALUE 20 TRI
K55: =IF(ISNUMBER(SEARCH($D$2,L55)),MAX($K$1:K54)+1,0) -> 0 | L55: Aditya Birla Sun Life Digital India Fund - Growth - Direct Plan | M55: 120539 | N55: 3 | Z55: =IFERROR(VLOOKUP(ROWS($Z$2:Z55),K55:$L$7000,2,0),"") ->  | BV55: NIFTY GROWSECT 15 TRI
K56: =IF(ISNUMBER(SEARCH($D$2,L56)),MAX($K$1:K55)+1,0) -> 0 | L56: Aditya Birla Sun Life Digital India Fund - Growth - Regular Plan | M56: 103168 | N56: 3 | Z56: =IFERROR(VLOOKUP(ROWS($Z$2:Z56),K56:$L$7000,2,0),"") ->  | BV56: NIFTY DIVIDEND OPPORTUNITIES 50 TRI
K57: =IF(ISNUMBER(SEARCH($D$2,L57)),MAX($K$1:K56)+1,0) -> 0 | L57: Aditya Birla Sun Life Dividend Yield Fund - Dividend - Direct Plan | M57: 119506 | N57: 3 | Z57: =IFERROR(VLOOKUP(ROWS($Z$2:Z57),K57:$L$7000,2,0),"") ->  | BV57: NIFTY100 LOW VOLATILITY 30 TRI
K58: =IF(ISNUMBER(SEARCH($D$2,L58)),MAX($K$1:K57)+1,0) -> 0 | L58: Aditya Birla Sun Life Dividend Yield Fund - Dividend - Regular Plan | M58: 101737 | N58: 3 | Z58: =IFERROR(VLOOKUP(ROWS($Z$2:Z58),K58:$L$7000,2,0),"") ->  | BV58: BSE Bankex | BW58: 18
K59: =IF(ISNUMBER(SEARCH($D$2,L59)),MAX($K$1:K58)+1,0) -> 0 | L59: Aditya Birla Sun Life Dividend Yield Fund - Growth - Direct Plan | M59: 119507 | N59: 3 | Z59: =IFERROR(VLOOKUP(ROWS($Z$2:Z59),K59:$L$7000,2,0),"") ->  | BV59: BSE Capital Goods | BW59: 13
K60: =IF(ISNUMBER(SEARCH($D$2,L60)),MAX($K$1:K59)+1,0) -> 0 | L60: Aditya Birla Sun Life Dividend Yield Fund - Growth - Regular Plan | M60: 101738 | N60: 3 | Z60: =IFERROR(VLOOKUP(ROWS($Z$2:Z60),K60:$L$7000,2,0),"") ->  | BV60: BSE Oil and Gas | BW60: 22
K61: =IF(ISNUMBER(SEARCH($D$2,L61)),MAX($K$1:K60)+1,0) -> 0 | L61: Aditya Birla Sun Life Dynamic Bond Fund - Direct Plan - Dividend | M61: 132918 | N61: 3 | Z61: =IFERROR(VLOOKUP(ROWS($Z$2:Z61),K61:$L$7000,2,0),"") ->  | BV61: BSE Metals | BW61: 21
K62: =IF(ISNUMBER(SEARCH($D$2,L62)),MAX($K$1:K61)+1,0) -> 0 | L62: Aditya Birla Sun Life Dynamic Bond Fund - Growth - Direct Plan | M62: 119505 | N62: 3 | Z62: =IFERROR(VLOOKUP(ROWS($Z$2:Z62),K62:$L$7000,2,0),"") ->  | BV62: BSE IT | BW62: 17
K63: =IF(ISNUMBER(SEARCH($D$2,L63)),MAX($K$1:K62)+1,0) -> 0 | L63: Aditya Birla Sun Life Dynamic Bond Fund - Growth - Regular Plan | M63: 102767 | N63: 3 | Z63: =IFERROR(VLOOKUP(ROWS($Z$2:Z63),K63:$L$7000,2,0),"") ->  | BV63: BSE Auto | BW63: 20
K64: =IF(ISNUMBER(SEARCH($D$2,L64)),MAX($K$1:K63)+1,0) -> 0 | L64: Aditya Birla Sun Life Dynamic Bond Fund - Monthly Dividend - Direct Plan | M64: 119503 | N64: 3 | Z64: =IFERROR(VLOOKUP(ROWS($Z$2:Z64),K64:$L$7000,2,0),"") ->  | BV64: BSE Healthcare | BW64: 15
K65: =IF(ISNUMBER(SEARCH($D$2,L65)),MAX($K$1:K64)+1,0) -> 0 | L65: Aditya Birla Sun Life Dynamic Bond Fund - Monthly Dividend - Regular Plan | M65: 111521 | N65: 3 | Z65: =IFERROR(VLOOKUP(ROWS($Z$2:Z65),K65:$L$7000,2,0),"") ->  | BV65: BSE FMCG | BW65: 14
K66: =IF(ISNUMBER(SEARCH($D$2,L66)),MAX($K$1:K65)+1,0) -> 0 | L66: Aditya Birla Sun Life Dynamic Bond Fund - Quarterly Dividend - Direct Plan | M66: 119502 | N66: 3 | Z66: =IFERROR(VLOOKUP(ROWS($Z$2:Z66),K66:$L$7000,2,0),"") ->  | BV66: BSE Realty | BW66: 29
K67: =IF(ISNUMBER(SEARCH($D$2,L67)),MAX($K$1:K66)+1,0) -> 0 | L67: Aditya Birla Sun Life Dynamic Bond Fund - Quarterly Dividend - Regular Plan | M67: 102766 | N67: 3 | Z67: =IFERROR(VLOOKUP(ROWS($Z$2:Z67),K67:$L$7000,2,0),"") ->  | BV67: BSE TECk | BW67: 10
K68: =IF(ISNUMBER(SEARCH($D$2,L68)),MAX($K$1:K67)+1,0) -> 0 | L68: Aditya Birla Sun Life Dynamic Bond Fund - Regular Plan - Dividend | M68: 132917 | N68: 3 | Z68: =IFERROR(VLOOKUP(ROWS($Z$2:Z68),K68:$L$7000,2,0),"") ->  | BV68: BSE PSU | BW68: 11
K69: =IF(ISNUMBER(SEARCH($D$2,L69)),MAX($K$1:K68)+1,0) -> 0 | L69: Aditya Birla Sun Life Dynamic Bond Fund-Discipline Advantage Plan-Growth | M69: 111848 | N69: 3 | Z69: =IFERROR(VLOOKUP(ROWS($Z$2:Z69),K69:$L$7000,2,0),"") ->  | BV69: BSE Consumer Durables | BW69: 16
K70: =IF(ISNUMBER(SEARCH($D$2,L70)),MAX($K$1:K69)+1,0) -> 0 | L70: Aditya Birla Sun Life Equity Advantage Fund - Dividend - Direct Plan | M70: 119433 | N70: 3 | Z70: =IFERROR(VLOOKUP(ROWS($Z$2:Z70),K70:$L$7000,2,0),"") ->  | BV70: BSE Power | BW70: 30
K71: =IF(ISNUMBER(SEARCH($D$2,L71)),MAX($K$1:K70)+1,0) -> 0 | L71: Aditya Birla Sun Life Equity Advantage Fund - Growth - Direct Plan | M71: 119436 | N71: 3 | Z71: =IFERROR(VLOOKUP(ROWS($Z$2:Z71),K71:$L$7000,2,0),"") ->  | BV71: BSE Shariah | BW71: 37
K72: =IF(ISNUMBER(SEARCH($D$2,L72)),MAX($K$1:K71)+1,0) -> 0 | L72: Aditya Birla Sun Life Equity Advantage Fund - Regular Growth | M72: 100033 | N72: 3 | Z72: =IFERROR(VLOOKUP(ROWS($Z$2:Z72),K72:$L$7000,2,0),"") ->  | BV72: BSE IPO | BW72: 33
K73: =IF(ISNUMBER(SEARCH($D$2,L73)),MAX($K$1:K72)+1,0) -> 0 | L73: Aditya Birla Sun Life Equity Advantage Fund -Regular Dividend | M73: 100034 | N73: 3 | Z73: =IFERROR(VLOOKUP(ROWS($Z$2:Z73),K73:$L$7000,2,0),"") -> 
K74: =IF(ISNUMBER(SEARCH($D$2,L74)),MAX($K$1:K73)+1,0) -> 0 | L74: Aditya Birla Sun Life Equity Fund - Dividend - Direct Plan | M74: 120565 | N74: 3 | Z74: =IFERROR(VLOOKUP(ROWS($Z$2:Z74),K74:$L$7000,2,0),"") -> 
K75: =IF(ISNUMBER(SEARCH($D$2,L75)),MAX($K$1:K74)+1,0) -> 0 | L75: Aditya Birla Sun Life Equity Fund - Dividend - Regular Plan | M75: 103165 | N75: 3 | Z75: =IFERROR(VLOOKUP(ROWS($Z$2:Z75),K75:$L$7000,2,0),"") -> 
K76: =IF(ISNUMBER(SEARCH($D$2,L76)),MAX($K$1:K75)+1,0) -> 0 | L76: Aditya Birla Sun Life Equity Fund - Growth - Direct Plan | M76: 120564 | N76: 3 | Z76: =IFERROR(VLOOKUP(ROWS($Z$2:Z76),K76:$L$7000,2,0),"") -> 
K77: =IF(ISNUMBER(SEARCH($D$2,L77)),MAX($K$1:K76)+1,0) -> 0 | L77: Aditya Birla Sun Life Equity Fund - Growth - Regular Plan | M77: 103166 | N77: 3 | Z77: =IFERROR(VLOOKUP(ROWS($Z$2:Z77),K77:$L$7000,2,0),"") -> 
K78: =IF(ISNUMBER(SEARCH($D$2,L78)),MAX($K$1:K77)+1,0) -> 0 | L78: Aditya Birla Sun Life Equity Hybrid'95 Fund - Direct Plan-Dividend | M78: 120518 | N78: 3 | Z78: =IFERROR(VLOOKUP(ROWS($Z$2:Z78),K78:$L$7000,2,0),"") -> 
K79: =IF(ISNUMBER(SEARCH($D$2,L79)),MAX($K$1:K78)+1,0) -> 0 | L79: Aditya Birla Sun Life Equity Hybrid'95 Fund - Direct Plan-Growth | M79: 120517 | N79: 3 | Z79: =IFERROR(VLOOKUP(ROWS($Z$2:Z79),K79:$L$7000,2,0),"") -> 
K80: =IF(ISNUMBER(SEARCH($D$2,L80)),MAX($K$1:K79)+1,0) -> 0 | L80: Aditya Birla Sun Life Equity Hybrid'95 Fund - Regular Plan-Dividend | M80: 103154 | N80: 3 | Z80: =IFERROR(VLOOKUP(ROWS($Z$2:Z80),K80:$L$7000,2,0),"") -> 
K81: =IF(ISNUMBER(SEARCH($D$2,L81)),MAX($K$1:K80)+1,0) -> 0 | L81: Aditya Birla Sun Life Equity Hybrid'95 Fund - Regular Plan-Growth | M81: 103155 | N81: 3 | Z81: =IFERROR(VLOOKUP(ROWS($Z$2:Z81),K81:$L$7000,2,0),"") -> 
K82: =IF(ISNUMBER(SEARCH($D$2,L82)),MAX($K$1:K81)+1,0) -> 0 | L82: Aditya Birla Sun Life Equity Savings Fund - Direct Plan - Dividend | M82: 132996 | N82: 3 | Z82: =IFERROR(VLOOKUP(ROWS($Z$2:Z82),K82:$L$7000,2,0),"") -> 
K83: =IF(ISNUMBER(SEARCH($D$2,L83)),MAX($K$1:K82)+1,0) -> 0 | L83: Aditya Birla Sun Life Equity Savings Fund - Direct Plan - Growth | M83: 132995 | N83: 3 | Z83: =IFERROR(VLOOKUP(ROWS($Z$2:Z83),K83:$L$7000,2,0),"") -> 
K84: =IF(ISNUMBER(SEARCH($D$2,L84)),MAX($K$1:K83)+1,0) -> 0 | L84: Aditya Birla Sun Life Equity Savings Fund - Regular Plan - Dividend | M84: 132997 | N84: 3 | Z84: =IFERROR(VLOOKUP(ROWS($Z$2:Z84),K84:$L$7000,2,0),"") -> 
K85: =IF(ISNUMBER(SEARCH($D$2,L85)),MAX($K$1:K84)+1,0) -> 0 | L85: Aditya Birla Sun Life Equity Savings Fund - Regular Plan - Growth | M85: 132998 | N85: 3 | Z85: =IFERROR(VLOOKUP(ROWS($Z$2:Z85),K85:$L$7000,2,0),"") -> 
K86: =IF(ISNUMBER(SEARCH($D$2,L86)),MAX($K$1:K85)+1,0) -> 0 | L86: Aditya Birla Sun Life Financial Planning Fund - Aggressive Plan - Direct Plan - Dividend Option | M86: 132187 | N86: 3 | Z86: =IFERROR(VLOOKUP(ROWS($Z$2:Z86),K86:$L$7000,2,0),"") -> 
K87: =IF(ISNUMBER(SEARCH($D$2,L87)),MAX($K$1:K86)+1,0) -> 0 | L87: Aditya Birla Sun Life Financial Planning Fund - Aggressive Plan - Direct Plan - Growth Option | M87: 132186 | N87: 3 | Z87: =IFERROR(VLOOKUP(ROWS($Z$2:Z87),K87:$L$7000,2,0),"") -> 
K88: =IF(ISNUMBER(SEARCH($D$2,L88)),MAX($K$1:K87)+1,0) -> 0 | L88: Aditya Birla Sun Life Financial Planning Fund - Aggressive Plan - Regular Plan - Dividend Option | M88: 132181 | N88: 3 | Z88: =IFERROR(VLOOKUP(ROWS($Z$2:Z88),K88:$L$7000,2,0),"") -> 
K89: =IF(ISNUMBER(SEARCH($D$2,L89)),MAX($K$1:K88)+1,0) -> 0 | L89: Aditya Birla Sun Life Financial Planning Fund - Aggressive Plan - Regular Plan - Growth Option | M89: 132180 | N89: 3 | Z89: =IFERROR(VLOOKUP(ROWS($Z$2:Z89),K89:$L$7000,2,0),"") -> 
K90: =IF(ISNUMBER(SEARCH($D$2,L90)),MAX($K$1:K89)+1,0) -> 0 | L90: Aditya Birla Sun Life Financial Planning Fund - Conservative Plan - Direct Plan - Dividend Option | M90: 132184 | N90: 3 | Z90: =IFERROR(VLOOKUP(ROWS($Z$2:Z90),K90:$L$7000,2,0),"") -> 
K91: =IF(ISNUMBER(SEARCH($D$2,L91)),MAX($K$1:K90)+1,0) -> 0 | L91: Aditya Birla Sun Life Financial Planning Fund - Conservative Plan - Direct Plan - Growth Option | M91: 132183 | N91: 3 | Z91: =IFERROR(VLOOKUP(ROWS($Z$2:Z91),K91:$L$7000,2,0),"") -> 
K92: =IF(ISNUMBER(SEARCH($D$2,L92)),MAX($K$1:K91)+1,0) -> 0 | L92: Aditya Birla Sun Life Financial Planning Fund - Conservative Plan - Regular Plan - Dividend Option | M92: 132179 | N92: 3 | Z92: =IFERROR(VLOOKUP(ROWS($Z$2:Z92),K92:$L$7000,2,0),"") -> 
K93: =IF(ISNUMBER(SEARCH($D$2,L93)),MAX($K$1:K92)+1,0) -> 0 | L93: Aditya Birla Sun life Financial Planning Fund - Conservative Plan - Regular Plan - Growth Option | M93: 132178 | N93: 3 | Z93: =IFERROR(VLOOKUP(ROWS($Z$2:Z93),K93:$L$7000,2,0),"") -> 
K94: =IF(ISNUMBER(SEARCH($D$2,L94)),MAX($K$1:K93)+1,0) -> 0 | L94: Aditya Birla Sun Life Financial Planning Fund - Prudent Plan - Direct Plan - Dividend Option | M94: 132189 | N94: 3 | Z94: =IFERROR(VLOOKUP(ROWS($Z$2:Z94),K94:$L$7000,2,0),"") -> 
K95: =IF(ISNUMBER(SEARCH($D$2,L95)),MAX($K$1:K94)+1,0) -> 0 | L95: Aditya Birla Sun Life Financial Planning Fund - Prudent Plan - Direct Plan - Growth Option | M95: 132185 | N95: 3 | Z95: =IFERROR(VLOOKUP(ROWS($Z$2:Z95),K95:$L$7000,2,0),"") -> 
K96: =IF(ISNUMBER(SEARCH($D$2,L96)),MAX($K$1:K95)+1,0) -> 0 | L96: Aditya Birla Sun Life Financial Planning Fund - Prudent Plan - Regular Plan - Dividend Option | M96: 132175 | N96: 3 | Z96: =IFERROR(VLOOKUP(ROWS($Z$2:Z96),K96:$L$7000,2,0),"") -> 
K97: =IF(ISNUMBER(SEARCH($D$2,L97)),MAX($K$1:K96)+1,0) -> 0 | L97: Aditya Birla Sun Life Financial Planning Fund - Prudent Plan - Regular Plan - Growth Option | M97: 132174 | N97: 3 | Z97: =IFERROR(VLOOKUP(ROWS($Z$2:Z97),K97:$L$7000,2,0),"") -> 
K98: =IF(ISNUMBER(SEARCH($D$2,L98)),MAX($K$1:K97)+1,0) -> 0 | L98: Aditya Birla Sun Life Floating Rate Fund-Direct Plan-Daily Dividend | M98: 122645 | N98: 3 | Z98: =IFERROR(VLOOKUP(ROWS($Z$2:Z98),K98:$L$7000,2,0),"") -> 
K99: =IF(ISNUMBER(SEARCH($D$2,L99)),MAX($K$1:K98)+1,0) -> 0 | L99: Aditya Birla Sun Life Floating Rate Fund-Direct Plan-Growth | M99: 122646 | N99: 3 | Z99: =IFERROR(VLOOKUP(ROWS($Z$2:Z99),K99:$L$7000,2,0),"") -> 
K100: =IF(ISNUMBER(SEARCH($D$2,L100)),MAX($K$1:K99)+1,0) -> 0 | L100: Aditya Birla Sun Life Floating Rate Fund-Direct Plan-Weekly Dividend | M100: 122648 | N100: 3 | Z100: =IFERROR(VLOOKUP(ROWS($Z$2:Z100),K100:$L$7000,2,0),"") -> 
K101: =IF(ISNUMBER(SEARCH($D$2,L101)),MAX($K$1:K100)+1,0) -> 0 | L101: Aditya Birla Sun Life Floating Rate Fund-Regular Plan-Daily Dividend | M101: 122643 | N101: 3 | Z101: =IFERROR(VLOOKUP(ROWS($Z$2:Z101),K101:$L$7000,2,0),"") -> 
K102: =IF(ISNUMBER(SEARCH($D$2,L102)),MAX($K$1:K101)+1,0) -> 0 | L102: Aditya Birla Sun Life Floating Rate Fund-Regular Plan-Growth | M102: 122644 | N102: 3 | Z102: =IFERROR(VLOOKUP(ROWS($Z$2:Z102),K102:$L$7000,2,0),"") -> 
K103: =IF(ISNUMBER(SEARCH($D$2,L103)),MAX($K$1:K102)+1,0) -> 0 | L103: Aditya Birla Sun Life Floating Rate Fund-Regular Plan-Weekly Dividend | M103: 122647 | N103: 3 | Z103: =IFERROR(VLOOKUP(ROWS($Z$2:Z103),K103:$L$7000,2,0),"") -> 
K104: =IF(ISNUMBER(SEARCH($D$2,L104)),MAX($K$1:K103)+1,0) -> 0 | L104: Aditya Birla Sun Life Floating Rate Fund-Retail Plan-Growth | M104: 122650 | N104: 3 | Z104: =IFERROR(VLOOKUP(ROWS($Z$2:Z104),K104:$L$7000,2,0),"") -> 
K105: =IF(ISNUMBER(SEARCH($D$2,L105)),MAX($K$1:K104)+1,0) -> 0 | L105: Aditya Birla Sun Life Floating Rate Fund-Retail Plan-Weekly Dividend | M105: 122649 | N105: 3 | Z105: =IFERROR(VLOOKUP(ROWS($Z$2:Z105),K105:$L$7000,2,0),"") -> 
K106: =IF(ISNUMBER(SEARCH($D$2,L106)),MAX($K$1:K105)+1,0) -> 0 | L106: Aditya Birla Sun Life Focused Equity Fund - Dividend - Direct Plan | M106: 119563 | N106: 3 | Z106: =IFERROR(VLOOKUP(ROWS($Z$2:Z106),K106:$L$7000,2,0),"") -> 
K107: =IF(ISNUMBER(SEARCH($D$2,L107)),MAX($K$1:K106)+1,0) -> 0 | L107: Aditya Birla Sun Life Focused Equity Fund - Growth - Direct Plan | M107: 119564 | N107: 3 | Z107: =IFERROR(VLOOKUP(ROWS($Z$2:Z107),K107:$L$7000,2,0),"") -> 
K108: =IF(ISNUMBER(SEARCH($D$2,L108)),MAX($K$1:K107)+1,0) -> 0 | L108: Aditya Birla Sun Life Focused Equity Fund -Dividend Option | M108: 103308 | N108: 3 | Z108: =IFERROR(VLOOKUP(ROWS($Z$2:Z108),K108:$L$7000,2,0),"") -> 
K109: =IF(ISNUMBER(SEARCH($D$2,L109)),MAX($K$1:K108)+1,0) -> 0 | L109: Aditya Birla Sun Life Focused Equity Fund -Growth Option | M109: 103309 | N109: 3 | Z109: =IFERROR(VLOOKUP(ROWS($Z$2:Z109),K109:$L$7000,2,0),"") -> 
K110: =IF(ISNUMBER(SEARCH($D$2,L110)),MAX($K$1:K109)+1,0) -> 0 | L110: Aditya Birla Sun Life Frontline Equity Fund - Dividend - Direct Plan | M110: 119527 | N110: 3 | Z110: =IFERROR(VLOOKUP(ROWS($Z$2:Z110),K110:$L$7000,2,0),"") -> 
K111: =IF(ISNUMBER(SEARCH($D$2,L111)),MAX($K$1:K110)+1,0) -> 0 | L111: Aditya Birla Sun Life Frontline Equity Fund - Growth - Direct Plan | M111: 119528 | N111: 3 | Z111: =IFERROR(VLOOKUP(ROWS($Z$2:Z111),K111:$L$7000,2,0),"") -> 
K112: =IF(ISNUMBER(SEARCH($D$2,L112)),MAX($K$1:K111)+1,0) -> 0 | L112: Aditya Birla Sun Life Frontline Equity Fund-Dividend | M112: 103173 | N112: 3 | Z112: =IFERROR(VLOOKUP(ROWS($Z$2:Z112),K112:$L$7000,2,0),"") -> 
K113: =IF(ISNUMBER(SEARCH($D$2,L113)),MAX($K$1:K112)+1,0) -> 0 | L113: Aditya Birla Sun Life Frontline Equity Fund-Growth | M113: 103174 | N113: 3 | Z113: =IFERROR(VLOOKUP(ROWS($Z$2:Z113),K113:$L$7000,2,0),"") -> 
K114: =IF(ISNUMBER(SEARCH($D$2,L114)),MAX($K$1:K113)+1,0) -> 0 | L114: Aditya Birla Sun Life Gilt Plus-Regular Plan (Annual Dividend) | M114: 100062 | N114: 3 | Z114: =IFERROR(VLOOKUP(ROWS($Z$2:Z114),K114:$L$7000,2,0),"") -> 
K115: =IF(ISNUMBER(SEARCH($D$2,L115)),MAX($K$1:K114)+1,0) -> 0 | L115: Aditya Birla Sun Life Global Commodities Fund - Direct Plan - Dividend Option | M115: 132141 | N115: 3 | Z115: =IFERROR(VLOOKUP(ROWS($Z$2:Z115),K115:$L$7000,2,0),"") -> 
K116: =IF(ISNUMBER(SEARCH($D$2,L116)),MAX($K$1:K115)+1,0) -> 0 | L116: Aditya Birla Sun Life Global Commodities Fund - Direct plan - Growth Option | M116: 132140 | N116: 3 | Z116: =IFERROR(VLOOKUP(ROWS($Z$2:Z116),K116:$L$7000,2,0),"") -> 
K117: =IF(ISNUMBER(SEARCH($D$2,L117)),MAX($K$1:K116)+1,0) -> 0 | L117: Aditya Birla Sun Life Global Commodities Fund - Regular Plan - Dividend Option | M117: 132139 | N117: 3 | Z117: =IFERROR(VLOOKUP(ROWS($Z$2:Z117),K117:$L$7000,2,0),"") -> 
K118: =IF(ISNUMBER(SEARCH($D$2,L118)),MAX($K$1:K117)+1,0) -> 0 | L118: Aditya Birla SUn Life Global Commodities Fund - Regular Plan - Growth Option | M118: 132138 | N118: 3 | Z118: =IFERROR(VLOOKUP(ROWS($Z$2:Z118),K118:$L$7000,2,0),"") -> 
K119: =IF(ISNUMBER(SEARCH($D$2,L119)),MAX($K$1:K118)+1,0) -> 0 | L119: Aditya Birla Sun Life Global Real Estate Fund - Retail Plan - Direct Plan - Dividend Option | M119: 132010 | N119: 3 | Z119: =IFERROR(VLOOKUP(ROWS($Z$2:Z119),K119:$L$7000,2,0),"") -> 
K120: =IF(ISNUMBER(SEARCH($D$2,L120)),MAX($K$1:K119)+1,0) -> 0 | L120: Aditya Birla Sun Life Global Real Estate Fund - Retail Plan - Direct Plan - Growth Option | M120: 132009 | N120: 3 | Z120: =IFERROR(VLOOKUP(ROWS($Z$2:Z120),K120:$L$7000,2,0),"") -> 
K121: =IF(ISNUMBER(SEARCH($D$2,L121)),MAX($K$1:K120)+1,0) -> 0 | L121: Aditya Birla Sun Life Global Real Estate Fund - Retail Plan - Regular Plan - Dividend Option | M121: 132003 | N121: 3 | Z121: =IFERROR(VLOOKUP(ROWS($Z$2:Z121),K121:$L$7000,2,0),"") -> 
K122: =IF(ISNUMBER(SEARCH($D$2,L122)),MAX($K$1:K121)+1,0) -> 0 | L122: Aditya Birla Sun Life Global Real Estate Fund - Retail Plan - Regular Plan - Growth Option | M122: 132005 | N122: 3 | Z122: =IFERROR(VLOOKUP(ROWS($Z$2:Z122),K122:$L$7000,2,0),"") -> 
K123: =IF(ISNUMBER(SEARCH($D$2,L123)),MAX($K$1:K122)+1,0) -> 0 | L123: Aditya Birla Sun Life Gold ETF | M123: 115127 | N123: 3 | Z123: =IFERROR(VLOOKUP(ROWS($Z$2:Z123),K123:$L$7000,2,0),"") -> 
K124: =IF(ISNUMBER(SEARCH($D$2,L124)),MAX($K$1:K123)+1,0) -> 0 | L124: Aditya Birla Sun Life Gold Fund - Dividend - Direct Plan | M124: 120545 | N124: 3 | Z124: =IFERROR(VLOOKUP(ROWS($Z$2:Z124),K124:$L$7000,2,0),"") -> 
K125: =IF(ISNUMBER(SEARCH($D$2,L125)),MAX($K$1:K124)+1,0) -> 0 | L125: Aditya Birla Sun Life Gold Fund - Growth - Direct Plan | M125: 120546 | N125: 3 | Z125: =IFERROR(VLOOKUP(ROWS($Z$2:Z125),K125:$L$7000,2,0),"") -> 
K126: =IF(ISNUMBER(SEARCH($D$2,L126)),MAX($K$1:K125)+1,0) -> 0 | L126: Aditya Birla Sun Life Gold Fund-Dividend | M126: 116795 | N126: 3 | Z126: =IFERROR(VLOOKUP(ROWS($Z$2:Z126),K126:$L$7000,2,0),"") -> 
K127: =IF(ISNUMBER(SEARCH($D$2,L127)),MAX($K$1:K126)+1,0) -> 0 | L127: Aditya Birla Sun Life Gold Fund-Growth | M127: 116796 | N127: 3 | Z127: =IFERROR(VLOOKUP(ROWS($Z$2:Z127),K127:$L$7000,2,0),"") -> 
K128: =IF(ISNUMBER(SEARCH($D$2,L128)),MAX($K$1:K127)+1,0) -> 0 | L128: Aditya Birla Sun Life Govenment Securities Fund - Quarterly Dividend - Direct Plan | M128: 119606 | N128: 3 | Z128: =IFERROR(VLOOKUP(ROWS($Z$2:Z128),K128:$L$7000,2,0),"") -> 
K129: =IF(ISNUMBER(SEARCH($D$2,L129)),MAX($K$1:K128)+1,0) -> 0 | L129: Aditya Birla Sun Life Government Securities Fund - Growth - Regular Plan | M129: 100058 | N129: 3 | Z129: =IFERROR(VLOOKUP(ROWS($Z$2:Z129),K129:$L$7000,2,0),"") -> 
K130: =IF(ISNUMBER(SEARCH($D$2,L130)),MAX($K$1:K129)+1,0) -> 0 | L130: Aditya Birla Sun Life Government Securities Fund - Growth - Direct Plan | M130: 119605 | N130: 3 | Z130: =IFERROR(VLOOKUP(ROWS($Z$2:Z130),K130:$L$7000,2,0),"") -> 
K131: =IF(ISNUMBER(SEARCH($D$2,L131)),MAX($K$1:K130)+1,0) -> 0 | L131: Aditya Birla Sun Life Government Securities Fund - Quarterly Dividend - Regular Plan | M131: 100057 | N131: 3 | Z131: =IFERROR(VLOOKUP(ROWS($Z$2:Z131),K131:$L$7000,2,0),"") -> 
K132: =IF(ISNUMBER(SEARCH($D$2,L132)),MAX($K$1:K131)+1,0) -> 0 | L132: Aditya Birla Sun Life Income Fund - Dividend - Direct Plan | M132: 133446 | N132: 3 | Z132: =IFERROR(VLOOKUP(ROWS($Z$2:Z132),K132:$L$7000,2,0),"") -> 
K133: =IF(ISNUMBER(SEARCH($D$2,L133)),MAX($K$1:K132)+1,0) -> 0 | L133: Aditya Birla Sun Life Income Fund - Dividend - Regular Plan | M133: 133445 | N133: 3 | Z133: =IFERROR(VLOOKUP(ROWS($Z$2:Z133),K133:$L$7000,2,0),"") -> 
K134: =IF(ISNUMBER(SEARCH($D$2,L134)),MAX($K$1:K133)+1,0) -> 0 | L134: Aditya Birla Sun Life Income Fund - Growth - Direct Plan | M134: 119657 | N134: 3 | Z134: =IFERROR(VLOOKUP(ROWS($Z$2:Z134),K134:$L$7000,2,0),"") -> 
K135: =IF(ISNUMBER(SEARCH($D$2,L135)),MAX($K$1:K134)+1,0) -> 0 | L135: Aditya Birla Sun Life Income Fund - Growth - Regular Plan | M135: 100038 | N135: 3 | Z135: =IFERROR(VLOOKUP(ROWS($Z$2:Z135),K135:$L$7000,2,0),"") -> 
K136: =IF(ISNUMBER(SEARCH($D$2,L136)),MAX($K$1:K135)+1,0) -> 0 | L136: Aditya Birla Sun Life Income Fund - Quarterly Dividend - Direct Plan | M136: 119655 | N136: 3 | Z136: =IFERROR(VLOOKUP(ROWS($Z$2:Z136),K136:$L$7000,2,0),"") -> 
K137: =IF(ISNUMBER(SEARCH($D$2,L137)),MAX($K$1:K136)+1,0) -> 0 | L137: Aditya Birla Sun Life Income Fund - Quarterly Dividend - Regular Plan | M137: 100037 | N137: 3 | Z137: =IFERROR(VLOOKUP(ROWS($Z$2:Z137),K137:$L$7000,2,0),"") -> 
K138: =IF(ISNUMBER(SEARCH($D$2,L138)),MAX($K$1:K137)+1,0) -> 0 | L138: Aditya Birla Sun Life Income Fund (Discipline Advantage Plan) | M138: 111777 | N138: 3 | Z138: =IFERROR(VLOOKUP(ROWS($Z$2:Z138),K138:$L$7000,2,0),"") -> 
K139: =IF(ISNUMBER(SEARCH($D$2,L139)),MAX($K$1:K138)+1,0) -> 0 | L139: Aditya Birla Sun Life Income Fund-Plan A(Dividend) | M139: 103177 | N139: 3 | Z139: =IFERROR(VLOOKUP(ROWS($Z$2:Z139),K139:$L$7000,2,0),"") -> 
K140: =IF(ISNUMBER(SEARCH($D$2,L140)),MAX($K$1:K139)+1,0) -> 0 | L140: Aditya Birla Sun Life Income Fund-Plan D(54EA Dividend) | M140: 103179 | N140: 3 | Z140: =IFERROR(VLOOKUP(ROWS($Z$2:Z140),K140:$L$7000,2,0),"") -> 
K141: =IF(ISNUMBER(SEARCH($D$2,L141)),MAX($K$1:K140)+1,0) -> 0 | L141: Aditya Birla Sun Life Income Fund-Plan E(54EA Growth) | M141: 103180 | N141: 3 | Z141: =IFERROR(VLOOKUP(ROWS($Z$2:Z141),K141:$L$7000,2,0),"") -> 
K142: =IF(ISNUMBER(SEARCH($D$2,L142)),MAX($K$1:K141)+1,0) -> 0 | L142: Aditya Birla Sun Life Income Fund-PLan F(54EB Dividend) | M142: 103181 | N142: 3 | Z142: =IFERROR(VLOOKUP(ROWS($Z$2:Z142),K142:$L$7000,2,0),"") -> 
K143: =IF(ISNUMBER(SEARCH($D$2,L143)),MAX($K$1:K142)+1,0) -> 0 | L143: Aditya Birla Sun Life Income Fund-Plan G(54EB Growth) | M143: 103182 | N143: 3 | Z143: =IFERROR(VLOOKUP(ROWS($Z$2:Z143),K143:$L$7000,2,0),"") -> 
K144: =IF(ISNUMBER(SEARCH($D$2,L144)),MAX($K$1:K143)+1,0) -> 0 | L144: Aditya Birla Sun Life Index Fund - Dividend - Direct Plan | M144: 119649 | N144: 3 | Z144: =IFERROR(VLOOKUP(ROWS($Z$2:Z144),K144:$L$7000,2,0),"") -> 
K145: =IF(ISNUMBER(SEARCH($D$2,L145)),MAX($K$1:K144)+1,0) -> 0 | L145: Aditya Birla Sun Life Index Fund - Dividend - Regular Plan | M145: 101313 | N145: 3 | Z145: =IFERROR(VLOOKUP(ROWS($Z$2:Z145),K145:$L$7000,2,0),"") -> 
K146: =IF(ISNUMBER(SEARCH($D$2,L146)),MAX($K$1:K145)+1,0) -> 0 | L146: Aditya Birla Sun Life Index Fund - Growth - Direct Plan | M146: 119648 | N146: 3 | Z146: =IFERROR(VLOOKUP(ROWS($Z$2:Z146),K146:$L$7000,2,0),"") -> 
K147: =IF(ISNUMBER(SEARCH($D$2,L147)),MAX($K$1:K146)+1,0) -> 0 | L147: Aditya Birla Sun Life Index Fund - Growth - Regular Plan | M147: 101314 | N147: 3 | Z147: =IFERROR(VLOOKUP(ROWS($Z$2:Z147),K147:$L$7000,2,0),"") -> 
K148: =IF(ISNUMBER(SEARCH($D$2,L148)),MAX($K$1:K147)+1,0) -> 0 | L148: Aditya Birla Sun Life India Gennext Fund - Dividend - Direct Plan | M148: 119590 | N148: 3 | Z148: =IFERROR(VLOOKUP(ROWS($Z$2:Z148),K148:$L$7000,2,0),"") -> 
K149: =IF(ISNUMBER(SEARCH($D$2,L149)),MAX($K$1:K148)+1,0) -> 0 | L149: Aditya Birla Sun Life India Gennext Fund - Growth - Direct Plan | M149: 119591 | N149: 3 | Z149: =IFERROR(VLOOKUP(ROWS($Z$2:Z149),K149:$L$7000,2,0),"") -> 
K150: =IF(ISNUMBER(SEARCH($D$2,L150)),MAX($K$1:K149)+1,0) -> 0 | L150: Aditya Birla Sun Life India Gennext Fund-Dividend Option | M150: 103110 | N150: 3 | Z150: =IFERROR(VLOOKUP(ROWS($Z$2:Z150),K150:$L$7000,2,0),"") -> 
K151: =IF(ISNUMBER(SEARCH($D$2,L151)),MAX($K$1:K150)+1,0) -> 0 | L151: Aditya Birla Sun Life India Gennext Fund-Growth Option | M151: 103111 | N151: 3 | Z151: =IFERROR(VLOOKUP(ROWS($Z$2:Z151),K151:$L$7000,2,0),"") -> 
K152: =IF(ISNUMBER(SEARCH($D$2,L152)),MAX($K$1:K151)+1,0) -> 0 | L152: Aditya Birla Sun Life Infrastructure Fund - Dividend - Direct Plan | M152: 119515 | N152: 3 | Z152: =IFERROR(VLOOKUP(ROWS($Z$2:Z152),K152:$L$7000,2,0),"") -> 
K153: =IF(ISNUMBER(SEARCH($D$2,L153)),MAX($K$1:K152)+1,0) -> 0 | L153: Aditya Birla Sun Life Infrastructure Fund - Growth - Direct Plan | M153: 119514 | N153: 3 | Z153: =IFERROR(VLOOKUP(ROWS($Z$2:Z153),K153:$L$7000,2,0),"") -> 
K154: =IF(ISNUMBER(SEARCH($D$2,L154)),MAX($K$1:K153)+1,0) -> 0 | L154: Aditya Birla Sun Life Infrastructure Fund-Dividend | M154: 103475 | N154: 3 | Z154: =IFERROR(VLOOKUP(ROWS($Z$2:Z154),K154:$L$7000,2,0),"") -> 
K155: =IF(ISNUMBER(SEARCH($D$2,L155)),MAX($K$1:K154)+1,0) -> 0 | L155: Aditya Birla Sun Life Infrastructure Fund-Growth | M155: 103476 | N155: 3 | Z155: =IFERROR(VLOOKUP(ROWS($Z$2:Z155),K155:$L$7000,2,0),"") -> 
K156: =IF(ISNUMBER(SEARCH($D$2,L156)),MAX($K$1:K155)+1,0) -> 0 | L156: Aditya Birla Sun Life International Equity Fund - Plan A - Dividend - Direct Plan | M156: 119516 | N156: 3 | Z156: =IFERROR(VLOOKUP(ROWS($Z$2:Z156),K156:$L$7000,2,0),"") -> 
K157: =IF(ISNUMBER(SEARCH($D$2,L157)),MAX($K$1:K156)+1,0) -> 0 | L157: Aditya Birla Sun Life International Equity Fund - Plan A - Dividend - Regular Plan | M157: 106872 | N157: 3 | Z157: =IFERROR(VLOOKUP(ROWS($Z$2:Z157),K157:$L$7000,2,0),"") -> 
K158: =IF(ISNUMBER(SEARCH($D$2,L158)),MAX($K$1:K157)+1,0) -> 0 | L158: Aditya Birla Sun Life International Equity Fund - Plan A - Growth - Direct Plan | M158: 119517 | N158: 3 | Z158: =IFERROR(VLOOKUP(ROWS($Z$2:Z158),K158:$L$7000,2,0),"") -> 
K159: =IF(ISNUMBER(SEARCH($D$2,L159)),MAX($K$1:K158)+1,0) -> 0 | L159: Aditya Birla Sun Life International Equity Fund - Plan A - Growth - Regular Plan | M159: 106873 | N159: 3 | Z159: =IFERROR(VLOOKUP(ROWS($Z$2:Z159),K159:$L$7000,2,0),"") -> 
K160: =IF(ISNUMBER(SEARCH($D$2,L160)),MAX($K$1:K159)+1,0) -> 0 | L160: Aditya Birla Sun Life International Equity Fund - Plan B - Dividend - Direct Plan | M160: 119519 | N160: 3 | Z160: =IFERROR(VLOOKUP(ROWS($Z$2:Z160),K160:$L$7000,2,0),"") -> 
K161: =IF(ISNUMBER(SEARCH($D$2,L161)),MAX($K$1:K160)+1,0) -> 0 | L161: Aditya Birla Sun Life International Equity Fund - Plan B - Dividend - Regular Plan | M161: 106875 | N161: 3 | Z161: =IFERROR(VLOOKUP(ROWS($Z$2:Z161),K161:$L$7000,2,0),"") -> 
K162: =IF(ISNUMBER(SEARCH($D$2,L162)),MAX($K$1:K161)+1,0) -> 0 | L162: Aditya Birla Sun Life International Equity Fund - Plan B - Growth - Direct Plan | M162: 119518 | N162: 3 | Z162: =IFERROR(VLOOKUP(ROWS($Z$2:Z162),K162:$L$7000,2,0),"") -> 
K163: =IF(ISNUMBER(SEARCH($D$2,L163)),MAX($K$1:K162)+1,0) -> 0 | L163: Aditya Birla Sun Life International Equity Fund - Plan B - Growth - Regular Plan | M163: 106876 | N163: 3 | Z163: =IFERROR(VLOOKUP(ROWS($Z$2:Z163),K163:$L$7000,2,0),"") -> 
K164: =IF(ISNUMBER(SEARCH($D$2,L164)),MAX($K$1:K163)+1,0) -> 0 | L164: Aditya Birla Sun Life Liquid Fund - Daily Dividend | M164: 100046 | N164: 3 | Z164: =IFERROR(VLOOKUP(ROWS($Z$2:Z164),K164:$L$7000,2,0),"") -> 
K165: =IF(ISNUMBER(SEARCH($D$2,L165)),MAX($K$1:K164)+1,0) -> 0 | L165: Aditya Birla Sun Life Liquid Fund - Daily Dividend - Direct Plan | M165: 119569 | N165: 3 | Z165: =IFERROR(VLOOKUP(ROWS($Z$2:Z165),K165:$L$7000,2,0),"") -> 
K166: =IF(ISNUMBER(SEARCH($D$2,L166)),MAX($K$1:K165)+1,0) -> 0 | L166: Aditya Birla Sun Life Liquid Fund - Dividend | M166: 103885 | N166: 3 | Z166: =IFERROR(VLOOKUP(ROWS($Z$2:Z166),K166:$L$7000,2,0),"") -> 
K167: =IF(ISNUMBER(SEARCH($D$2,L167)),MAX($K$1:K166)+1,0) -> 0 | L167: Aditya Birla Sun Life Liquid Fund - Dividend - Direct Plan | M167: 119571 | N167: 3 | Z167: =IFERROR(VLOOKUP(ROWS($Z$2:Z167),K167:$L$7000,2,0),"") -> 
K168: =IF(ISNUMBER(SEARCH($D$2,L168)),MAX($K$1:K167)+1,0) -> 0 | L168: Aditya Birla Sun Life Liquid Fund - Growth | M168: 100047 | N168: 3 | Z168: =IFERROR(VLOOKUP(ROWS($Z$2:Z168),K168:$L$7000,2,0),"") -> 
K169: =IF(ISNUMBER(SEARCH($D$2,L169)),MAX($K$1:K168)+1,0) -> 0 | L169: Aditya Birla Sun Life Liquid Fund - Growth - Direct Plan | M169: 119568 | N169: 3 | Z169: =IFERROR(VLOOKUP(ROWS($Z$2:Z169),K169:$L$7000,2,0),"") -> 
K170: =IF(ISNUMBER(SEARCH($D$2,L170)),MAX($K$1:K169)+1,0) -> 0 | L170: Aditya Birla Sun Life Liquid Fund - Institutional Dividend | M170: 100041 | N170: 3 | Z170: =IFERROR(VLOOKUP(ROWS($Z$2:Z170),K170:$L$7000,2,0),"") -> 
K171: =IF(ISNUMBER(SEARCH($D$2,L171)),MAX($K$1:K170)+1,0) -> 0 | L171: Aditya Birla Sun Life Liquid Fund - Weekly Dividend | M171: 100051 | N171: 3 | Z171: =IFERROR(VLOOKUP(ROWS($Z$2:Z171),K171:$L$7000,2,0),"") -> 
K172: =IF(ISNUMBER(SEARCH($D$2,L172)),MAX($K$1:K171)+1,0) -> 0 | L172: Aditya Birla Sun Life Liquid Fund - Weekly Dividend - Direct Plan | M172: 119570 | N172: 3 | Z172: =IFERROR(VLOOKUP(ROWS($Z$2:Z172),K172:$L$7000,2,0),"") -> 
K173: =IF(ISNUMBER(SEARCH($D$2,L173)),MAX($K$1:K172)+1,0) -> 0 | L173: Aditya Birla Sun Life Liquid Fund- Discipline Advantage Plan | M173: 112014 | N173: 3 | Z173: =IFERROR(VLOOKUP(ROWS($Z$2:Z173),K173:$L$7000,2,0),"") -> 
K174: =IF(ISNUMBER(SEARCH($D$2,L174)),MAX($K$1:K173)+1,0) -> 0 | L174: Aditya Birla Sun Life Liquid Fund-Institutional - Weekly Dividend | M174: 100048 | N174: 3 | Z174: =IFERROR(VLOOKUP(ROWS($Z$2:Z174),K174:$L$7000,2,0),"") -> 
K175: =IF(ISNUMBER(SEARCH($D$2,L175)),MAX($K$1:K174)+1,0) -> 0 | L175: Aditya Birla Sun Life Liquid Fund-Institutional (Growth) | M175: 100043 | N175: 3 | Z175: =IFERROR(VLOOKUP(ROWS($Z$2:Z175),K175:$L$7000,2,0),"") -> 
K176: =IF(ISNUMBER(SEARCH($D$2,L176)),MAX($K$1:K175)+1,0) -> 0 | L176: Aditya Birla Sun Life Liquid Fund-Retail (Dividend) | M176: 100044 | N176: 3 | Z176: =IFERROR(VLOOKUP(ROWS($Z$2:Z176),K176:$L$7000,2,0),"") -> 
K177: =IF(ISNUMBER(SEARCH($D$2,L177)),MAX($K$1:K176)+1,0) -> 0 | L177: Aditya Birla Sun Life Liquid Fund-Retail (Growth) | M177: 100042 | N177: 3 | Z177: =IFERROR(VLOOKUP(ROWS($Z$2:Z177),K177:$L$7000,2,0),"") -> 
K178: =IF(ISNUMBER(SEARCH($D$2,L178)),MAX($K$1:K177)+1,0) -> 0 | L178: Aditya Birla Sun Life Low duration Fund - Daily Dividend - Direct Plan | M178: 119524 | N178: 3 | Z178: =IFERROR(VLOOKUP(ROWS($Z$2:Z178),K178:$L$7000,2,0),"") -> 
K179: =IF(ISNUMBER(SEARCH($D$2,L179)),MAX($K$1:K178)+1,0) -> 0 | L179: Aditya Birla Sun Life Low Duration Fund - Daily Dividend - Regular Plan | M179: 113307 | N179: 3 | Z179: =IFERROR(VLOOKUP(ROWS($Z$2:Z179),K179:$L$7000,2,0),"") -> 
K180: =IF(ISNUMBER(SEARCH($D$2,L180)),MAX($K$1:K179)+1,0) -> 0 | L180: Aditya Birla Sun Life Low duration Fund - Growth - Direct Plan | M180: 119523 | N180: 3 | Z180: =IFERROR(VLOOKUP(ROWS($Z$2:Z180),K180:$L$7000,2,0),"") -> 
K181: =IF(ISNUMBER(SEARCH($D$2,L181)),MAX($K$1:K180)+1,0) -> 0 | L181: Aditya Birla Sun Life Low Duration Fund - Growth Plan | M181: 103192 | N181: 3 | Z181: =IFERROR(VLOOKUP(ROWS($Z$2:Z181),K181:$L$7000,2,0),"") -> 
K182: =IF(ISNUMBER(SEARCH($D$2,L182)),MAX($K$1:K181)+1,0) -> 0 | L182: Aditya Birla Sun Life Low Duration Fund - Institutional Plan - Daily Dividend | M182: 103191 | N182: 3 | Z182: =IFERROR(VLOOKUP(ROWS($Z$2:Z182),K182:$L$7000,2,0),"") -> 
K183: =IF(ISNUMBER(SEARCH($D$2,L183)),MAX($K$1:K182)+1,0) -> 0 | L183: Aditya Birla Sun Life Low Duration Fund - Institutional Plan - Growth | M183: 103195 | N183: 3 | Z183: =IFERROR(VLOOKUP(ROWS($Z$2:Z183),K183:$L$7000,2,0),"") -> 
K184: =IF(ISNUMBER(SEARCH($D$2,L184)),MAX($K$1:K183)+1,0) -> 0 | L184: Aditya Birla Sun Life Low Duration Fund - Institutional Plan - Weekly Dividend | M184: 103194 | N184: 3 | Z184: =IFERROR(VLOOKUP(ROWS($Z$2:Z184),K184:$L$7000,2,0),"") -> 
K185: =IF(ISNUMBER(SEARCH($D$2,L185)),MAX($K$1:K184)+1,0) -> 0 | L185: Aditya Birla Sun Life Low Duration Fund - Weekly Dividend - Direct Plan | M185: 119522 | N185: 3 | Z185: =IFERROR(VLOOKUP(ROWS($Z$2:Z185),K185:$L$7000,2,0),"") -> 
K186: =IF(ISNUMBER(SEARCH($D$2,L186)),MAX($K$1:K185)+1,0) -> 0 | L186: Aditya Birla Sun Life Low duration Fund - Weekly Dividend - Regular Plan | M186: 103193 | N186: 3 | Z186: =IFERROR(VLOOKUP(ROWS($Z$2:Z186),K186:$L$7000,2,0),"") -> 
K187: =IF(ISNUMBER(SEARCH($D$2,L187)),MAX($K$1:K186)+1,0) -> 0 | L187: Aditya Birla Sun Life Manufacturing Equity Fund - Direct Plan - Dividend | M187: 133514 | N187: 3 | Z187: =IFERROR(VLOOKUP(ROWS($Z$2:Z187),K187:$L$7000,2,0),"") -> 
K188: =IF(ISNUMBER(SEARCH($D$2,L188)),MAX($K$1:K187)+1,0) -> 0 | L188: Aditya Birla Sun Life Manufacturing Equity Fund - Direct Plan - Growth | M188: 133516 | N188: 3 | Z188: =IFERROR(VLOOKUP(ROWS($Z$2:Z188),K188:$L$7000,2,0),"") -> 
K189: =IF(ISNUMBER(SEARCH($D$2,L189)),MAX($K$1:K188)+1,0) -> 0 | L189: Aditya Birla Sun Life Manufacturing Equity Fund - Regular Plan - Dividend | M189: 133515 | N189: 3 | Z189: =IFERROR(VLOOKUP(ROWS($Z$2:Z189),K189:$L$7000,2,0),"") -> 
K190: =IF(ISNUMBER(SEARCH($D$2,L190)),MAX($K$1:K189)+1,0) -> 0 | L190: Aditya Birla Sun Life Manufacturing Equity Fund - Regular Plan - Growth | M190: 133513 | N190: 3 | Z190: =IFERROR(VLOOKUP(ROWS($Z$2:Z190),K190:$L$7000,2,0),"") -> 
K191: =IF(ISNUMBER(SEARCH($D$2,L191)),MAX($K$1:K190)+1,0) -> 0 | L191: Aditya Birla Sun Life Medium Term Plan - Dividend - Direct Plan | M191: 119538 | N191: 3 | Z191: =IFERROR(VLOOKUP(ROWS($Z$2:Z191),K191:$L$7000,2,0),"") -> 
K192: =IF(ISNUMBER(SEARCH($D$2,L192)),MAX($K$1:K191)+1,0) -> 0 | L192: Aditya Birla Sun Life Medium Term Plan - Dividend - Regular Plan | M192: 111812 | N192: 3 | Z192: =IFERROR(VLOOKUP(ROWS($Z$2:Z192),K192:$L$7000,2,0),"") -> 
K193: =IF(ISNUMBER(SEARCH($D$2,L193)),MAX($K$1:K192)+1,0) -> 0 | L193: Aditya Birla Sun Life Medium Term Plan - Growth - Direct Plan | M193: 119539 | N193: 3 | Z193: =IFERROR(VLOOKUP(ROWS($Z$2:Z193),K193:$L$7000,2,0),"") -> 
K194: =IF(ISNUMBER(SEARCH($D$2,L194)),MAX($K$1:K193)+1,0) -> 0 | L194: Aditya Birla Sun Life Medium Term Plan - Growth - Regular Plan | M194: 111803 | N194: 3 | Z194: =IFERROR(VLOOKUP(ROWS($Z$2:Z194),K194:$L$7000,2,0),"") -> 
K195: =IF(ISNUMBER(SEARCH($D$2,L195)),MAX($K$1:K194)+1,0) -> 0 | L195: Aditya Birla Sun Life Medium Term Plan - Half Yearly Dividend - Direct Plan | M195: 119540 | N195: 3 | Z195: =IFERROR(VLOOKUP(ROWS($Z$2:Z195),K195:$L$7000,2,0),"") -> 
K196: =IF(ISNUMBER(SEARCH($D$2,L196)),MAX($K$1:K195)+1,0) -> 0 | L196: Aditya Birla Sun Life Medium Term Plan - Half Yearly Dividend - Regular Plan | M196: 111811 | N196: 3 | Z196: =IFERROR(VLOOKUP(ROWS($Z$2:Z196),K196:$L$7000,2,0),"") -> 
K197: =IF(ISNUMBER(SEARCH($D$2,L197)),MAX($K$1:K196)+1,0) -> 0 | L197: Aditya Birla Sun Life Medium Term Plan - Institutional - Growth Plan | M197: 111804 | N197: 3 | Z197: =IFERROR(VLOOKUP(ROWS($Z$2:Z197),K197:$L$7000,2,0),"") -> 
K198: =IF(ISNUMBER(SEARCH($D$2,L198)),MAX($K$1:K197)+1,0) -> 0 | L198: Aditya Birla Sun Life Medium Term Plan - Quarterly Dividend - Direct Plan | M198: 119541 | N198: 3 | Z198: =IFERROR(VLOOKUP(ROWS($Z$2:Z198),K198:$L$7000,2,0),"") -> 
K199: =IF(ISNUMBER(SEARCH($D$2,L199)),MAX($K$1:K198)+1,0) -> 0 | L199: Aditya Birla Sun Life Medium Term Plan - Quarterly Dividend - Regular Plan | M199: 111809 | N199: 3 | Z199: =IFERROR(VLOOKUP(ROWS($Z$2:Z199),K199:$L$7000,2,0),"") -> 
K200: =IF(ISNUMBER(SEARCH($D$2,L200)),MAX($K$1:K199)+1,0) -> 0 | L200: Aditya Birla Sun Life Midcap Fund - Dividend - Direct Plan | M200: 119619 | N200: 3 | Z200: =IFERROR(VLOOKUP(ROWS($Z$2:Z200),K200:$L$7000,2,0),"") -> 
... 2050 more rows

Sheet Analysis
A1: Compare the performance of the fund with its benchmark | J1: Date | K1: =Inputs!E4 -> HDFC Top 100 Fund - Growth Option | L1: Date | M1: =Inputs!C6 -> NIFTY 500 TRI | O1: Rolling fund | Q1: Rolling index | T1: Rolling fund | V1: Rolling index | X1: Rolling fund | Z1: Rolling index | AB1: rolling risk index
B2: Fund | C2: Benchmark | J2: =IF(Fund!A10="",NA(),IF(Fund!A10<startdate,NA(),Fund!A10)) -> 38810 | K2: =IF(J2=0,NA(),Fund!B10/fundnorm) -> 1 | L2: =IF(Benchmark!A10="",NA(),IF(Benchmark!A10<startdate,NA(),Benchmark!A10)) -> 38810 | M2: =IF(L2=0,NA(),Benchmark!B10/benchnorm) -> 1 | N2: =IF(ISERROR(O2),NA(),Fund!L10) -> 40637 | O2: =IF(Fund!I10="",NA(),Fund!I10) -> 1.204932681 | P2: =IF(ISERROR(Q2),NA(),Benchmark!L10) -> 40637 | Q2: =IF(Benchmark!I10="",NA(),Benchmark!I10) -> 0.6873866504 | R2: =IF(ISERROR(Q2+O2),0,IF(O2>Q2,1,0)) -> 1 | S2: =IF(ISERROR(O2),NA(),Fund!L10) -> 40637 | T2: =IF(Fund!O10="",NA(),Fund!O10) -> 0.1711267054 | U2: =IF(ISERROR(Q2),NA(),Benchmark!L10) -> 40637 | V2: =IF(Benchmark!O10="",NA(),Benchmark!O10) -> 0.1101794302 | W2: =IF(ISERROR(T2+V2),0,IF(T2>V2,1,0)) -> 1 | X2: =IF(ISERROR(O2),NA(),S2-interval) -> 38812 | Y2: =IF(Fund!O10="",NA(),Fund!O10) -> 0.1711267054 | Z2: =IF(ISERROR(Q2),NA(), U2-interval) -> 38812 | AA2: =IF(Benchmark!O10="",NA(),Benchmark!O10) -> 0.1101794302
A3: interval over rolling returns are calculated (days) | B3: =interval -> 1825 | C3: =Benchmark!interval -> 1825 | D3: must be same! | J3: =IF(Fund!A11="",NA(),IF(Fund!A11<startdate,NA(),Fund!A11)) -> 38811 | K3: =IF(J3=0,NA(),Fund!B11/fundnorm) -> 1.004244258 | L3: =IF(Benchmark!A11="",NA(),IF(Benchmark!A11<startdate,NA(),Benchmark!A11)) -> 38811 | M3: =IF(L3=0,NA(),Benchmark!B11/benchnorm) -> 1.006356847 | N3: =IF(ISERROR(O3),NA(),Fund!L11) -> 40637 | O3: =IF(Fund!I11="",NA(),Fund!I11) -> 1.195613929 | P3: =IF(ISERROR(Q3),NA(),Benchmark!L11) -> 40637 | Q3: =IF(Benchmark!I11="",NA(),Benchmark!I11) -> 0.6767279481 | R3: 1 | S3: =IF(ISERROR(O3),NA(),Fund!L11) -> 40637 | T3: =IF(Fund!O11="",NA(),Fund!O11) -> 0.1702368915 | U3: =IF(ISERROR(Q3),NA(),Benchmark!L11) -> 40637 | V3: =IF(Benchmark!O11="",NA(),Benchmark!O11) -> 0.1088375747 | W3: =IF(ISERROR(T3+V3),0,IF(T3>V3,1,0)) -> 1 | X3: 38812 | Y3: =IF(Fund!O11="",NA(),Fund!O11) -> 0.1702368915 | Z3: 38812 | AA3: =IF(Benchmark!O11="",NA(),Benchmark!O11) -> 0.1088375747 | AB3: =Benchmark!Y11 -> 0.3108621768
A4: Last date in NAV history | B4: =Fund!R6 -> 2019-04-23 | C4: =Benchmark!R3 -> 2019-04-24 | D4: must be close enough | J4: =IF(Fund!A12="",NA(),IF(Fund!A12<startdate,NA(),Fund!A12)) -> 38812 | K4: =IF(J4=0,NA(),Fund!B12/fundnorm) -> 1.010590338 | L4: =IF(Benchmark!A12="",NA(),IF(Benchmark!A12<startdate,NA(),Benchmark!A12)) -> 38812 | M4: =IF(L4=0,NA(),Benchmark!B12/benchnorm) -> 1.016213798 | N4: =IF(ISERROR(O4),NA(),Fund!L12) -> 40637 | O4: =IF(Fund!I12="",NA(),Fund!I12) -> 1.181826402 | P4: =IF(ISERROR(Q4),NA(),Benchmark!L12) -> 40637 | Q4: =IF(Benchmark!I12="",NA(),Benchmark!I12) -> 0.6604642196 | R4: 1 | S4: =IF(ISERROR(O4),NA(),Fund!L12) -> 40637 | T4: =IF(Fund!O12="",NA(),Fund!O12) -> 0.1688641489 | U4: =IF(ISERROR(Q4),NA(),Benchmark!L12) -> 40637 | V4: =IF(Benchmark!O12="",NA(),Benchmark!O12) -> 0.1067407548 | W4: 1 | X4: 38812 | Y4: =IF(Fund!O12="",NA(),Fund!O12) -> 0.1688641489 | Z4: 38812 | AA4: =IF(Benchmark!O12="",NA(),Benchmark!O12) -> 0.1067407548 | AB4: =Benchmark!Y12 -> 0.3108619527
A5: Total number of rolling return entries | B5: =Fund!R9 -> 1987 | C5: =Benchmark!R7 -> 1935 | D5: must be close enough | J5: =IF(Fund!A13="",NA(),IF(Fund!A13<startdate,NA(),Fund!A13)) -> 38814 | K5: =IF(J5=0,NA(),Fund!B13/fundnorm) -> 0.9972280324 | L5: =IF(Benchmark!A13="",NA(),IF(Benchmark!A13<startdate,NA(),Benchmark!A13)) -> 38814 | M5: =IF(L5=0,NA(),Benchmark!B13/benchnorm) -> 1.001159641 | N5: =IF(ISERROR(O5),NA(),Fund!L13) -> 40639 | O5: =IF(Fund!I13="",NA(),Fund!I13) -> 1.218840683 | P5: =IF(ISERROR(Q5),NA(),Benchmark!L13) -> 40639 | Q5: =IF(Benchmark!I13="",NA(),Benchmark!I13) -> 0.6895205757 | R5: 1 | S5: =IF(ISERROR(O5),NA(),Fund!L13) -> 40639 | T5: =IF(Fund!O13="",NA(),Fund!O13) -> 0.1728034198 | U5: =IF(ISERROR(Q5),NA(),Benchmark!L13) -> 40639 | V5: =IF(Benchmark!O13="",NA(),Benchmark!O13) -> 0.110587281 | W5: 1 | X5: 38814 | Y5: =IF(Fund!O13="",NA(),Fund!O13) -> 0.1728034198 | Z5: 38814 | AA5: =IF(Benchmark!O13="",NA(),Benchmark!O13) -> 0.110587281 | AB5: =Benchmark!Y13 -> 0.310832117
A6: Arithemetic average of rolling returns (same as IRR) | B6: =Fund!R10 -> 0.9106712354 | C6: =Benchmark!R8 -> 0.7358412235 | D6: should be higher for the fund | J6: =IF(Fund!A14="",NA(),IF(Fund!A14<startdate,NA(),Fund!A14)) -> 38817 | K6: =IF(J6=0,NA(),Fund!B14/fundnorm) -> 1.000497533 | L6: =IF(Benchmark!A14="",NA(),IF(Benchmark!A14<startdate,NA(),Benchmark!A14)) -> 38817 | M6: =IF(L6=0,NA(),Benchmark!B14/benchnorm) -> 1.006828116 | N6: =IF(ISERROR(O6),NA(),Fund!L14) -> 40644 | O6: =IF(Fund!I14="",NA(),Fund!I14) -> 1.179408332 | P6: =IF(ISERROR(Q6),NA(),Benchmark!L14) -> 40644 | Q6: =IF(Benchmark!I14="",NA(),Benchmark!I14) -> 0.6531363567 | R6: 1 | S6: =IF(ISERROR(O6),NA(),Fund!L14) -> 40644 | T6: =IF(Fund!O14="",NA(),Fund!O14) -> 0.1684056461 | U6: =IF(ISERROR(Q6),NA(),Benchmark!L14) -> 40644 | V6: =IF(Benchmark!O14="",NA(),Benchmark!O14) -> 0.1056405008 | W6: 1 | X6: 38819 | Y6: =IF(Fund!O14="",NA(),Fund!O14) -> 0.1684056461 | Z6: 38819 | AA6: =IF(Benchmark!O14="",NA(),Benchmark!O14) -> 0.1056405008 | AB6: =Benchmark!Y14 -> 0.3108319773
A7: Standard deviation of rolling returns | B7: =Fund!R11 -> 0.3288601386 | C7: =Benchmark!R9 -> 0.3828184718 | J7: =IF(Fund!A15="",NA(),IF(Fund!A15<startdate,NA(),Fund!A15)) -> 38819 | K7: =IF(J7=0,NA(),Fund!B15/fundnorm) -> 0.974818756 | L7: =IF(Benchmark!A15="",NA(),IF(Benchmark!A15<startdate,NA(),Benchmark!A15)) -> 38819 | M7: =IF(L7=0,NA(),Benchmark!B15/benchnorm) -> 0.983293752 | N7: =IF(ISERROR(O7),NA(),Fund!L15) -> 40644 | O7: =IF(Fund!I15="",NA(),Fund!I15) -> 1.236818532 | P7: =IF(ISERROR(Q7),NA(),Benchmark!L15) -> 40644 | Q7: =IF(Benchmark!I15="",NA(),Benchmark!I15) -> 0.6927028781 | R7: 1 | S7: =IF(ISERROR(O7),NA(),Fund!L15) -> 40644 | T7: =IF(Fund!O15="",NA(),Fund!O15) -> 0.1746977866 | U7: =IF(ISERROR(Q7),NA(),Benchmark!L15) -> 40644 | V7: =IF(Benchmark!O15="",NA(),Benchmark!O15) -> 0.111005336 | W7: 1 | X7: 38819 | Y7: =IF(Fund!O15="",NA(),Fund!O15) -> 0.1746977866 | Z7: 38819 | AA7: =IF(Benchmark!O15="",NA(),Benchmark!O15) -> 0.111005336 | AB7: =Benchmark!Y15 -> 0.3108232368
A8: Approximate volatility measure (Higher the value, higher the volatility) | B8: =Fund!R12 -> 0.361118399 | C8: =Benchmark!R10 -> 0.5202460253 | D8: should be lower for the fund | J8: =IF(Fund!A16="",NA(),IF(Fund!A16<startdate,NA(),Fund!A16)) -> 38820 | K8: =IF(J8=0,NA(),Fund!B16/fundnorm) -> 0.9637004244 | L8: =IF(Benchmark!A16="",NA(),IF(Benchmark!A16<startdate,NA(),Benchmark!A16)) -> 38820 | M8: =IF(L8=0,NA(),Benchmark!B16/benchnorm) -> 0.9699075729 | N8: =IF(ISERROR(O8),NA(),Fund!L16) -> 40646 | O8: =IF(Fund!I16="",NA(),Fund!I16) -> 1.301556195 | P8: =IF(ISERROR(Q8),NA(),Benchmark!L16) -> 40646 | Q8: =IF(Benchmark!I16="",NA(),Benchmark!I16) -> 0.7483683057 | R8: 1 | S8: =IF(ISERROR(O8),NA(),Fund!L16) -> 40646 | T8: =IF(Fund!O16="",NA(),Fund!O16) -> 0.1813121378 | U8: =IF(ISERROR(Q8),NA(),Benchmark!L16) -> 40646 | V8: =IF(Benchmark!O16="",NA(),Benchmark!O16) -> 0.1181498468 | W8: 1 | X8: 38821 | Y8: =IF(Fund!O16="",NA(),Fund!O16) -> 0.1813121378 | Z8: 38821 | AA8: =IF(Benchmark!O16="",NA(),Benchmark!O16) -> 0.1181498468 | AB8: =Benchmark!Y16 -> 0.3106177979
A9: In general when the standard deviation is more the the average, the volatility is pretty high | J9: =IF(Fund!A17="",NA(),IF(Fund!A17<startdate,NA(),Fund!A17)) -> 38824 | K9: =IF(J9=0,NA(),Fund!B17/fundnorm) -> 0.9825558963 | L9: =IF(Benchmark!A17="",NA(),IF(Benchmark!A17<startdate,NA(),Benchmark!A17)) -> 38824 | M9: =IF(L9=0,NA(),Benchmark!B17/benchnorm) -> 0.9899153568 | N9: =IF(ISERROR(O9),NA(),Fund!L17) -> 40651 | O9: =IF(Fund!I17="",NA(),Fund!I17) -> 1.205460483 | P9: =IF(ISERROR(Q9),NA(),Benchmark!L17) -> 40651 | Q9: =IF(Benchmark!I17="",NA(),Benchmark!I17) -> 0.6690345392 | R9: 1 | S9: =IF(ISERROR(O9),NA(),Fund!L17) -> 40651 | T9: =IF(Fund!O17="",NA(),Fund!O17) -> 0.1711827099 | U9: =IF(ISERROR(Q9),NA(),Benchmark!L17) -> 40651 | V9: =IF(Benchmark!O17="",NA(),Benchmark!O17) -> 0.1077566326 | W9: 1 | X9: 38826 | Y9: =IF(Fund!O17="",NA(),Fund!O17) -> 0.1711827099 | Z9: 38826 | AA9: =IF(Benchmark!O17="",NA(),Benchmark!O17) -> 0.1077566326 | AB9: =Benchmark!Y17 -> 0.3106313952
A10: This is typical for all equity funds. | J10: =IF(Fund!A18="",NA(),IF(Fund!A18<startdate,NA(),Fund!A18)) -> 38825 | K10: =IF(J10=0,NA(),Fund!B18/fundnorm) -> 1.003066426 | L10: =IF(Benchmark!A18="",NA(),IF(Benchmark!A18<startdate,NA(),Benchmark!A18)) -> 38825 | M10: =IF(L10=0,NA(),Benchmark!B18/benchnorm) -> 1.010749187 | N10: =IF(ISERROR(O10),NA(),Fund!L18) -> 40651 | O10: =IF(Fund!I18="",NA(),Fund!I18) -> 1.160363607 | P10: =IF(ISERROR(Q10),NA(),Benchmark!L18) -> 40651 | Q10: =IF(Benchmark!I18="",NA(),Benchmark!I18) -> 0.6346319575 | R10: 1 | S10: =IF(ISERROR(O10),NA(),Fund!L18) -> 40651 | T10: =IF(Fund!O18="",NA(),Fund!O18) -> 0.1664569914 | U10: =IF(ISERROR(Q10),NA(),Benchmark!L18) -> 40651 | V10: =IF(Benchmark!O18="",NA(),Benchmark!O18) -> 0.1032161772 | W10: 1 | X10: 38826 | Y10: =IF(Fund!O18="",NA(),Fund!O18) -> 0.1664569914 | Z10: 38826 | AA10: =IF(Benchmark!O18="",NA(),Benchmark!O18) -> 0.1032161772 | AB10: =Benchmark!Y18 -> 0.3104907728
A11: What matters is, if the volatility is lower than the funds benchmark | J11: =IF(Fund!A19="",NA(),IF(Fund!A19<startdate,NA(),Fund!A19)) -> 38826 | K11: =IF(J11=0,NA(),Fund!B19/fundnorm) -> 1.000781837 | L11: =IF(Benchmark!A19="",NA(),IF(Benchmark!A19<startdate,NA(),Benchmark!A19)) -> 38826 | M11: =IF(L11=0,NA(),Benchmark!B19/benchnorm) -> 1.014717913 | N11: =IF(ISERROR(O11),NA(),Fund!L19) -> 40651 | O11: =IF(Fund!I19="",NA(),Fund!I19) -> 1.165295293 | P11: =IF(ISERROR(Q11),NA(),Benchmark!L19) -> 40651 | Q11: =IF(Benchmark!I19="",NA(),Benchmark!I19) -> 0.6282386461 | R11: 1 | S11: =IF(ISERROR(O11),NA(),Fund!L19) -> 40651 | T11: =IF(Fund!O19="",NA(),Fund!O19) -> 0.1670875251 | U11: =IF(ISERROR(Q11),NA(),Benchmark!L19) -> 40651 | V11: =IF(Benchmark!O19="",NA(),Benchmark!O19) -> 0.1024111927 | W11: 1 | X11: 38826 | Y11: =IF(Fund!O19="",NA(),Fund!O19) -> 0.1670875251 | Z11: 38826 | AA11: =IF(Benchmark!O19="",NA(),Benchmark!O19) -> 0.1024111927 | AB11: =Benchmark!Y19 -> 0.3103415816
A12: Maximum rolling return | B12: =Fund!R16 -> 2.110074674 | C12: =Benchmark!R14 -> 1.714187605 | D12: does not matter if fund | J12: =IF(Fund!A20="",NA(),IF(Fund!A20<startdate,NA(),Fund!A20)) -> 38827 | K12: =IF(J12=0,NA(),Fund!B20/fundnorm) -> 1.008508824 | L12: =IF(Benchmark!A20="",NA(),IF(Benchmark!A20<startdate,NA(),Benchmark!A20)) -> 38827 | M12: =IF(L12=0,NA(),Benchmark!B20/benchnorm) -> 1.021659876 | N12: =IF(ISERROR(O12),NA(),Fund!L20) -> 40652 | O12: =IF(Fund!I20="",NA(),Fund!I20) -> 1.153719141 | P12: =IF(ISERROR(Q12),NA(),Benchmark!L20) -> 40652 | Q12: =IF(Benchmark!I20="",NA(),Benchmark!I20) -> 0.6202382063 | R12: 1 | S12: =IF(ISERROR(O12),NA(),Fund!L20) -> 40652 | T12: =IF(Fund!O20="",NA(),Fund!O20) -> 0.1658369482 | U12: =IF(ISERROR(Q12),NA(),Benchmark!L20) -> 40652 | V12: =IF(Benchmark!O20="",NA(),Benchmark!O20) -> 0.1013256967 | W12: 1 | X12: 38827 | Y12: =IF(Fund!O20="",NA(),Fund!O20) -> 0.1658369482 | Z12: 38827 | AA12: =IF(Benchmark!O20="",NA(),Benchmark!O20) -> 0.1013256967 | AB12: =Benchmark!Y20 -> 0.3104063488
A13: Minimum rolling return | B13: =Fund!R17 -> 0.2833012471 | C13: =Benchmark!R15 -> -0.07451813907 | D13: outperforms benchmark | J13: =IF(Fund!A21="",NA(),IF(Fund!A21<startdate,NA(),Fund!A21)) -> 38828 | K13: =IF(J13=0,NA(),Fund!B21/fundnorm) -> 1.008437747 | L13: =IF(Benchmark!A21="",NA(),IF(Benchmark!A21<startdate,NA(),Benchmark!A21)) -> 38828 | M13: =IF(L13=0,NA(),Benchmark!B21/benchnorm) -> 1.020471111 | N13: =IF(ISERROR(O13),NA(),Fund!L21) -> 40653 | O13: =IF(Fund!I21="",NA(),Fund!I21) -> 1.19232357 | P13: =IF(ISERROR(Q13),NA(),Benchmark!L21) -> 40653 | Q13: =IF(Benchmark!I21="",NA(),Benchmark!I21) -> 0.6494947267 | R13: 1 | S13: =IF(ISERROR(O13),NA(),Fund!L21) -> 40653 | T13: =IF(Fund!O21="",NA(),Fund!O21) -> 0.1699867189 | U13: =IF(ISERROR(Q13),NA(),Benchmark!L21) -> 40653 | V13: =IF(Benchmark!O21="",NA(),Benchmark!O21) -> 0.1052745879 | W13: 1 | X13: 38828 | Y13: =IF(Fund!O21="",NA(),Fund!O21) -> 0.1699867189 | Z13: 38828 | AA13: =IF(Benchmark!O21="",NA(),Benchmark!O21) -> 0.1052745879 | AB13: =Benchmark!Y21 -> 0.3105663622
J14: =IF(Fund!A22="",NA(),IF(Fund!A22<startdate,NA(),Fund!A22)) -> 38831 | K14: =IF(J14=0,NA(),Fund!B22/fundnorm) -> 1.004680868 | L14: =IF(Benchmark!A22="",NA(),IF(Benchmark!A22<startdate,NA(),Benchmark!A22)) -> 38831 | M14: =IF(L14=0,NA(),Benchmark!B22/benchnorm) -> 1.017158985 | N14: =IF(ISERROR(O14),NA(),Fund!L22) -> 40658 | O14: =IF(Fund!I22="",NA(),Fund!I22) -> 1.210597593 | P14: =IF(ISERROR(Q14),NA(),Benchmark!L22) -> 40659 | Q14: =IF(Benchmark!I22="",NA(),Benchmark!I22) -> 0.6584761468 | R14: 1 | S14: =IF(ISERROR(O14),NA(),Fund!L22) -> 40658 | T14: =IF(Fund!O22="",NA(),Fund!O22) -> 0.1717271984 | U14: =IF(ISERROR(Q14),NA(),Benchmark!L22) -> 40659 | V14: =IF(Benchmark!O22="",NA(),Benchmark!O22) -> 0.1062918961 | W14: 1 | X14: 38833 | Y14: =IF(Fund!O22="",NA(),Fund!O22) -> 0.1717271984 | Z14: 38834 | AA14: =IF(Benchmark!O22="",NA(),Benchmark!O22) -> 0.1062918961 | AB14: =Benchmark!Y22 -> 0.3105758519
A15: Average of XIRR values obtained from each rolling return | B15: =Fund!R18 -> 0.135517163 | C15: =Benchmark!R16 -> 0.1119642429 | D15: should be higher for the fund | J15: =IF(Fund!A23="",NA(),IF(Fund!A23<startdate,NA(),Fund!A23)) -> 38832 | K15: =IF(J15=0,NA(),Fund!B23/fundnorm) -> 0.9842617225 | L15: =IF(Benchmark!A23="",NA(),IF(Benchmark!A23<startdate,NA(),Benchmark!A23)) -> 38832 | M15: =IF(L15=0,NA(),Benchmark!B23/benchnorm) -> 0.9954911663 | N15: =IF(ISERROR(O15),NA(),Fund!L23) -> 40658 | O15: =IF(Fund!I23="",NA(),Fund!I23) -> 1.256457869 | P15: =IF(ISERROR(Q15),NA(),Benchmark!L23) -> 40659 | Q15: =IF(Benchmark!I23="",NA(),Benchmark!I23) -> 0.6945744681 | R15: 1 | S15: =IF(ISERROR(O15),NA(),Fund!L23) -> 40658 | T15: =IF(Fund!O23="",NA(),Fund!O23) -> 0.1766484678 | U15: =IF(ISERROR(Q15),NA(),Benchmark!L23) -> 40659 | V15: =IF(Benchmark!O23="",NA(),Benchmark!O23) -> 0.1111226022 | W15: 1 | X15: 38833 | Y15: =IF(Fund!O23="",NA(),Fund!O23) -> 0.1766484678 | Z15: 38834 | AA15: =IF(Benchmark!O23="",NA(),Benchmark!O23) -> 0.1111226022 | AB15: =Benchmark!Y23 -> 0.3107472568
A16: Effective CAGR of average IRR (approximately same as average XIRR) | B16: =Fund!R19 -> 0.138248779 | C16: =Benchmark!R17 -> 0.1166112512 | D16: should be higher for the fund | J16: =IF(Fund!A24="",NA(),IF(Fund!A24<startdate,NA(),Fund!A24)) -> 38833 | K16: =IF(J16=0,NA(),Fund!B24/fundnorm) -> 1.005564243 | L16: =IF(Benchmark!A24="",NA(),IF(Benchmark!A24<startdate,NA(),Benchmark!A24)) -> 38833 | M16: =IF(L16=0,NA(),Benchmark!B24/benchnorm) -> 1.019682131 | N16: =IF(ISERROR(O16),NA(),Fund!L24) -> 40658 | O16: =IF(Fund!I24="",NA(),Fund!I24) -> 1.208655613 | P16: =IF(ISERROR(Q16),NA(),Benchmark!L24) -> 40659 | Q16: =IF(Benchmark!I24="",NA(),Benchmark!I24) -> 0.6543723402 | R16: 1 | S16: =IF(ISERROR(O16),NA(),Fund!L24) -> 40658 | T16: =IF(Fund!O24="",NA(),Fund!O24) -> 0.1717247427 | U16: =IF(ISERROR(Q16),NA(),Benchmark!L24) -> 40659 | V16: =IF(Benchmark!O24="",NA(),Benchmark!O24) -> 0.1058665097 | W16: 1 | X16: 38833 | Y16: =IF(Fund!O24="",NA(),Fund!O24) -> 0.1717247427 | Z16: 38834 | AA16: =IF(Benchmark!O24="",NA(),Benchmark!O24) -> 0.1058665097 | AB16: =Benchmark!Y24 -> 0.310567696
J17: =IF(Fund!A25="",NA(),IF(Fund!A25<startdate,NA(),Fund!A25)) -> 38834 | K17: =IF(J17=0,NA(),Fund!B25/fundnorm) -> 0.9990760108 | L17: =IF(Benchmark!A25="",NA(),IF(Benchmark!A25<startdate,NA(),Benchmark!A25)) -> 38834 | M17: =IF(L17=0,NA(),Benchmark!B25/benchnorm) -> 1.010675054 | N17: =IF(ISERROR(O17),NA(),Fund!L25) -> 40659 | O17: =IF(Fund!I25="",NA(),Fund!I25) -> 1.22203364 | P17: =IF(ISERROR(Q17),NA(),Benchmark!L25) -> 40659 | Q17: =IF(Benchmark!I25="",NA(),Benchmark!I25) -> 0.6691160098 | R17: 1 | S17: =IF(ISERROR(O17),NA(),Fund!L25) -> 40659 | T17: =IF(Fund!O25="",NA(),Fund!O25) -> 0.1731407702 | U17: =IF(ISERROR(Q17),NA(),Benchmark!L25) -> 40659 | V17: =IF(Benchmark!O25="",NA(),Benchmark!O25) -> 0.1078916848 | W17: 1 | X17: 38834 | Y17: =IF(Fund!O25="",NA(),Fund!O25) -> 0.1731407702 | Z17: 38834 | AA17: =IF(Benchmark!O25="",NA(),Benchmark!O25) -> 0.1078916848 | AB17: =Benchmark!Y25 -> 0.3104922533
A18: Number of times fund has outperformed index (rolling return) | B18: =CONCATENATE(SUM(R2:R5001)," out of ",B5," times") -> 1360 out of 1987 times | D18: Note: these results make | J18: =IF(Fund!A26="",NA(),IF(Fund!A26<startdate,NA(),Fund!A26)) -> 38835 | K18: =IF(J18=0,NA(),Fund!B26/fundnorm) -> 1.000487379 | L18: =IF(Benchmark!A26="",NA(),IF(Benchmark!A26<startdate,NA(),Benchmark!A26)) -> 38835 | M18: =IF(L18=0,NA(),Benchmark!B26/benchnorm) -> 1.013838916 | N18: =IF(ISERROR(O18),NA(),Fund!L26) -> 40660 | O18: =IF(Fund!I26="",NA(),Fund!I26) -> 1.216311121 | P18: =IF(ISERROR(Q18),NA(),Benchmark!L26) -> 40660 | Q18: =IF(Benchmark!I26="",NA(),Benchmark!I26) -> 0.6579557621 | R18: 1 | S18: =IF(ISERROR(O18),NA(),Fund!L26) -> 40660 | T18: =IF(Fund!O26="",NA(),Fund!O26) -> 0.1725358903 | U18: =IF(ISERROR(Q18),NA(),Benchmark!L26) -> 40660 | V18: =IF(Benchmark!O26="",NA(),Benchmark!O26) -> 0.1064061701 | W18: 1 | X18: 38835 | Y18: =IF(Fund!O26="",NA(),Fund!O26) -> 0.1725358903 | Z18: 38835 | AA18: =IF(Benchmark!O26="",NA(),Benchmark!O26) -> 0.1064061701 | AB18: =Benchmark!Y26 -> 0.3105671379
A19: Number of times fund has outperformed index (XIRR rolling return) | B19: =CONCATENATE(SUM(W2:W5001)," out of ",B5," times") -> 1360 out of 1987 times | D19: sense only if the numbe of | J19: =IF(Fund!A27="",NA(),IF(Fund!A27<startdate,NA(),Fund!A27)) -> 38839 | K19: =IF(J19=0,NA(),Fund!B27/fundnorm) -> 1.029892574 | L19: =IF(Benchmark!A27="",NA(),IF(Benchmark!A27<startdate,NA(),Benchmark!A27)) -> 38836 | M19: =IF(L19=0,NA(),Benchmark!B27/benchnorm) -> 1.030857579 | N19: =IF(ISERROR(O19),NA(),Fund!L27) -> 40665 | O19: =IF(Fund!I27="",NA(),Fund!I27) -> 1.100690131 | P19: =IF(ISERROR(Q19),NA(),Benchmark!L27) -> 40661 | Q19: =IF(Benchmark!I27="",NA(),Benchmark!I27) -> 0.6175268005 | R19: 1 | S19: =IF(ISERROR(O19),NA(),Fund!L27) -> 40665 | T19: =IF(Fund!O27="",NA(),Fund!O27) -> 0.1599441826 | U19: =IF(ISERROR(Q19),NA(),Benchmark!L27) -> 40661 | V19: =IF(Benchmark!O27="",NA(),Benchmark!O27) -> 0.1009568512 | W19: 1 | X19: 38840 | Y19: =IF(Fund!O27="",NA(),Fund!O27) -> 0.1599441826 | Z19: 38836 | AA19: =IF(Benchmark!O27="",NA(),Benchmark!O27) -> 0.1009568512 | AB19: =Benchmark!Y27 -> 0.3106257603
D20: rolling return entires for | J20: =IF(Fund!A28="",NA(),IF(Fund!A28<startdate,NA(),Fund!A28)) -> 38840 | K20: =IF(J20=0,NA(),Fund!B28/fundnorm) -> 1.037284487 | L20: =IF(Benchmark!A28="",NA(),IF(Benchmark!A28<startdate,NA(),Benchmark!A28)) -> 38839 | M20: =IF(L20=0,NA(),Benchmark!B28/benchnorm) -> 1.042967623 | N20: =IF(ISERROR(O20),NA(),Fund!L28) -> 40665 | O20: =IF(Fund!I28="",NA(),Fund!I28) -> 1.085720159 | P20: =IF(ISERROR(Q20),NA(),Benchmark!L28) -> 40665 | Q20: =IF(Benchmark!I28="",NA(),Benchmark!I28) -> 0.5723652813 | R20: 1 | S20: =IF(ISERROR(O20),NA(),Fund!L28) -> 40665 | T20: =IF(Fund!O28="",NA(),Fund!O28) -> 0.158380419 | U20: =IF(ISERROR(Q20),NA(),Benchmark!L28) -> 40665 | V20: =IF(Benchmark!O28="",NA(),Benchmark!O28) -> 0.09468498528 | W20: 1 | X20: 38840 | Y20: =IF(Fund!O28="",NA(),Fund!O28) -> 0.158380419 | Z20: 38840 | AA20: =IF(Benchmark!O28="",NA(),Benchmark!O28) -> 0.09468498528 | AB20: =Benchmark!Y28 -> 0.3105879877
A21: Consistency of fund beating index (with rolling return data) | B21: =SUM(R2:R5001)/B5 -> 0.684448918 | D21: both fund and benchmark | J21: =IF(Fund!A29="",NA(),IF(Fund!A29<startdate,NA(),Fund!A29)) -> 38841 | K21: =IF(J21=0,NA(),Fund!B29/fundnorm) -> 1.039792458 | L21: =IF(Benchmark!A29="",NA(),IF(Benchmark!A29<startdate,NA(),Benchmark!A29)) -> 38840 | M21: =IF(L21=0,NA(),Benchmark!B29/benchnorm) -> 1.050870658 | N21: =IF(ISERROR(O21),NA(),Fund!L29) -> 40666 | O21: =IF(Fund!I29="",NA(),Fund!I29) -> 1.032371466 | P21: =IF(ISERROR(Q21),NA(),Benchmark!L29) -> 40665 | Q21: =IF(Benchmark!I29="",NA(),Benchmark!I29) -> 0.5605403649 | R21: 1 | S21: =IF(ISERROR(O21),NA(),Fund!L29) -> 40666 | T21: =IF(Fund!O29="",NA(),Fund!O29) -> 0.1523930132 | U21: =IF(ISERROR(Q21),NA(),Benchmark!L29) -> 40665 | V21: =IF(Benchmark!O29="",NA(),Benchmark!O29) -> 0.09308768213 | W21: 1 | X21: 38841 | Y21: =IF(Fund!O29="",NA(),Fund!O29) -> 0.1523930132 | Z21: 38840 | AA21: =IF(Benchmark!O29="",NA(),Benchmark!O29) -> 0.09308768213 | AB21: =Benchmark!Y29 -> 0.3106427929
A22: Consistency of fund beating index (with rolling XIRR data) | B22: =SUM(W2:W5001)/B5 -> 0.684448918 | D22: are nearly the same | J22: =IF(Fund!A30="",NA(),IF(Fund!A30<startdate,NA(),Fund!A30)) -> 38842 | K22: =IF(J22=0,NA(),Fund!B30/fundnorm) -> 1.04105152 | L22: =IF(Benchmark!A30="",NA(),IF(Benchmark!A30<startdate,NA(),Benchmark!A30)) -> 38841 | M22: =IF(L22=0,NA(),Benchmark!B30/benchnorm) -> 1.053960387 | N22: =IF(ISERROR(O22),NA(),Fund!L30) -> 40667 | O22: =IF(Fund!I30="",NA(),Fund!I30) -> 1.028684567 | P22: =IF(ISERROR(Q22),NA(),Benchmark!L30) -> 40666 | Q22: =IF(Benchmark!I30="",NA(),Benchmark!I30) -> 0.5213723737 | R22: 1 | S22: =IF(ISERROR(O22),NA(),Fund!L30) -> 40667 | T22: =IF(Fund!O30="",NA(),Fund!O30) -> 0.1519746006 | U22: =IF(ISERROR(Q22),NA(),Benchmark!L30) -> 40666 | V22: =IF(Benchmark!O30="",NA(),Benchmark!O30) -> 0.0875446707 | W22: 1 | X22: 38842 | Y22: =IF(Fund!O30="",NA(),Fund!O30) -> 0.1519746006 | Z22: 38841 | AA22: =IF(Benchmark!O30="",NA(),Benchmark!O30) -> 0.0875446707 | AB22: =Benchmark!Y30 -> 0.3107018202
J23: =IF(Fund!A31="",NA(),IF(Fund!A31<startdate,NA(),Fund!A31)) -> 38845 | K23: =IF(J23=0,NA(),Fund!B31/fundnorm) -> 1.049682188 | L23: =IF(Benchmark!A31="",NA(),IF(Benchmark!A31<startdate,NA(),Benchmark!A31)) -> 38842 | M23: =IF(L23=0,NA(),Benchmark!B31/benchnorm) -> 1.057314874 | N23: =IF(ISERROR(O23),NA(),Fund!L31) -> 40672 | O23: =IF(Fund!I31="",NA(),Fund!I31) -> 1.026427031 | P23: =IF(ISERROR(Q23),NA(),Benchmark!L31) -> 40667 | Q23: =IF(Benchmark!I31="",NA(),Benchmark!I31) -> 0.5086252445 | R23: 1 | S23: =IF(ISERROR(O23),NA(),Fund!L31) -> 40672 | T23: =IF(Fund!O31="",NA(),Fund!O31) -> 0.1515400231 | U23: =IF(ISERROR(Q23),NA(),Benchmark!L31) -> 40667 | V23: =IF(Benchmark!O31="",NA(),Benchmark!O31) -> 0.08571608961 | W23: 1 | X23: 38847 | Y23: =IF(Fund!O31="",NA(),Fund!O31) -> 0.1515400231 | Z23: 38842 | AA23: =IF(Benchmark!O31="",NA(),Benchmark!O31) -> 0.08571608961 | AB23: =Benchmark!Y31 -> 0.3107530287
J24: =IF(Fund!A32="",NA(),IF(Fund!A32<startdate,NA(),Fund!A32)) -> 38846 | K24: =IF(J24=0,NA(),Fund!B32/fundnorm) -> 1.057632557 | L24: =IF(Benchmark!A32="",NA(),IF(Benchmark!A32<startdate,NA(),Benchmark!A32)) -> 38845 | M24: =IF(L24=0,NA(),Benchmark!B32/benchnorm) -> 1.064092687 | N24: =IF(ISERROR(O24),NA(),Fund!L32) -> 40672 | O24: =IF(Fund!I32="",NA(),Fund!I32) -> 1.011194101 | P24: =IF(ISERROR(Q24),NA(),Benchmark!L32) -> 40672 | Q24: =IF(Benchmark!I32="",NA(),Benchmark!I32) -> 0.5048306715 | R24: 1 | S24: =IF(ISERROR(O24),NA(),Fund!L32) -> 40672 | T24: =IF(Fund!O32="",NA(),Fund!O32) -> 0.1498933494 | U24: =IF(ISERROR(Q24),NA(),Benchmark!L32) -> 40672 | V24: =IF(Benchmark!O32="",NA(),Benchmark!O32) -> 0.085072276 | W24: 1 | X24: 38847 | Y24: =IF(Fund!O32="",NA(),Fund!O32) -> 0.1498933494 | Z24: 38847 | AA24: =IF(Benchmark!O32="",NA(),Benchmark!O32) -> 0.085072276 | AB24: =Benchmark!Y32 -> 0.3107797468
J25: =IF(Fund!A33="",NA(),IF(Fund!A33<startdate,NA(),Fund!A33)) -> 38847 | K25: =IF(J25=0,NA(),Fund!B33/fundnorm) -> 1.060465447 | L25: =IF(Benchmark!A33="",NA(),IF(Benchmark!A33<startdate,NA(),Benchmark!A33)) -> 38846 | M25: =IF(L25=0,NA(),Benchmark!B33/benchnorm) -> 1.06932431 | N25: =IF(ISERROR(O25),NA(),Fund!L33) -> 40672 | O25: =IF(Fund!I33="",NA(),Fund!I33) -> 1.005821469 | P25: =IF(ISERROR(Q25),NA(),Benchmark!L33) -> 40672 | Q25: =IF(Benchmark!I33="",NA(),Benchmark!I33) -> 0.4974683513 | R25: 1 | S25: =IF(ISERROR(O25),NA(),Fund!L33) -> 40672 | T25: =IF(Fund!O33="",NA(),Fund!O33) -> 0.1493662894 | U25: =IF(ISERROR(Q25),NA(),Benchmark!L33) -> 40672 | V25: =IF(Benchmark!O33="",NA(),Benchmark!O33) -> 0.08405751288 | W25: 1 | X25: 38847 | Y25: =IF(Fund!O33="",NA(),Fund!O33) -> 0.1493662894 | Z25: 38847 | AA25: =IF(Benchmark!O33="",NA(),Benchmark!O33) -> 0.08405751288 | AB25: =Benchmark!Y33 -> 0.3109042043
J26: =IF(Fund!A34="",NA(),IF(Fund!A34<startdate,NA(),Fund!A34)) -> 38848 | K26: =IF(J26=0,NA(),Fund!B34/fundnorm) -> 1.045793311 | L26: =IF(Benchmark!A34="",NA(),IF(Benchmark!A34<startdate,NA(),Benchmark!A34)) -> 38847 | M26: =IF(L26=0,NA(),Benchmark!B34/benchnorm) -> 1.079432782 | N26: =IF(ISERROR(O26),NA(),Fund!L34) -> 40673 | O26: =IF(Fund!I34="",NA(),Fund!I34) -> 1.03389452 | P26: =IF(ISERROR(Q26),NA(),Benchmark!L34) -> 40672 | Q26: =IF(Benchmark!I34="",NA(),Benchmark!I34) -> 0.483445138 | R26: 1 | S26: =IF(ISERROR(O26),NA(),Fund!L34) -> 40673 | T26: =IF(Fund!O34="",NA(),Fund!O34) -> 0.1525656879 | U26: =IF(ISERROR(Q26),NA(),Benchmark!L34) -> 40672 | V26: =IF(Benchmark!O34="",NA(),Benchmark!O34) -> 0.08206736147 | W26: 1 | X26: 38848 | Y26: =IF(Fund!O34="",NA(),Fund!O34) -> 0.1525656879 | Z26: 38847 | AA26: =IF(Benchmark!O34="",NA(),Benchmark!O34) -> 0.08206736147 | AB26: =Benchmark!Y34 -> 0.3109184938
J27: =IF(Fund!A35="",NA(),IF(Fund!A35<startdate,NA(),Fund!A35)) -> 38849 | K27: =IF(J27=0,NA(),Fund!B35/fundnorm) -> 1.033354995 | L27: =IF(Benchmark!A35="",NA(),IF(Benchmark!A35<startdate,NA(),Benchmark!A35)) -> 38848 | M27: =IF(L27=0,NA(),Benchmark!B35/benchnorm) -> 1.066046603 | N27: =IF(ISERROR(O27),NA(),Fund!L35) -> 40674 | O27: =IF(Fund!I35="",NA(),Fund!I35) -> 1.067013196 | P27: =IF(ISERROR(Q27),NA(),Benchmark!L35) -> 40673 | Q27: =IF(Benchmark!I35="",NA(),Benchmark!I35) -> 0.5001254194 | R27: 1 | S27: =IF(ISERROR(O27),NA(),Fund!L35) -> 40674 | T27: =IF(Fund!O35="",NA(),Fund!O35) -> 0.1562950075 | U27: =IF(ISERROR(Q27),NA(),Benchmark!L35) -> 40673 | V27: =IF(Benchmark!O35="",NA(),Benchmark!O35) -> 0.08448990285 | W27: 1 | X27: 38849 | Y27: =IF(Fund!O35="",NA(),Fund!O35) -> 0.1562950075 | Z27: 38848 | AA27: =IF(Benchmark!O35="",NA(),Benchmark!O35) -> 0.08448990285 | AB27: =Benchmark!Y35 -> 0.3109187859
J28: =IF(Fund!A36="",NA(),IF(Fund!A36<startdate,NA(),Fund!A36)) -> 38852 | K28: =IF(J28=0,NA(),Fund!B36/fundnorm) -> 0.9977052576 | L28: =IF(Benchmark!A36="",NA(),IF(Benchmark!A36<startdate,NA(),Benchmark!A36)) -> 38849 | M28: =IF(L28=0,NA(),Benchmark!B36/benchnorm) -> 1.053920673 | N28: =IF(ISERROR(O28),NA(),Fund!L36) -> 40679 | O28: =IF(Fund!I36="",NA(),Fund!I36) -> 1.128170161 | P28: =IF(ISERROR(Q28),NA(),Benchmark!L36) -> 40674 | Q28: =IF(Benchmark!I36="",NA(),Benchmark!I36) -> 0.5250371167 | R28: 1 | S28: =IF(ISERROR(O28),NA(),Fund!L36) -> 40679 | T28: =IF(Fund!O36="",NA(),Fund!O36) -> 0.1628654182 | U28: =IF(ISERROR(Q28),NA(),Benchmark!L36) -> 40674 | V28: =IF(Benchmark!O36="",NA(),Benchmark!O36) -> 0.08806811273 | W28: 1 | X28: 38854 | Y28: =IF(Fund!O36="",NA(),Fund!O36) -> 0.1628654182 | Z28: 38849 | AA28: =IF(Benchmark!O36="",NA(),Benchmark!O36) -> 0.08806811273 | AB28: =Benchmark!Y36 -> 0.3108579724
J29: =IF(Fund!A37="",NA(),IF(Fund!A37<startdate,NA(),Fund!A37)) -> 38853 | K29: =IF(J29=0,NA(),Fund!B37/fundnorm) -> 0.9973295697 | L29: =IF(Benchmark!A37="",NA(),IF(Benchmark!A37<startdate,NA(),Benchmark!A37)) -> 38852 | M29: =IF(L29=0,NA(),Benchmark!B37/benchnorm) -> 1.012033264 | N29: =IF(ISERROR(O29),NA(),Fund!L37) -> 40679 | O29: =IF(Fund!I37="",NA(),Fund!I37) -> 1.128971829 | P29: =IF(ISERROR(Q29),NA(),Benchmark!L37) -> 40679 | Q29: =IF(Benchmark!I37="",NA(),Benchmark!I37) -> 0.5724320337 | R29: 1 | S29: =IF(ISERROR(O29),NA(),Fund!L37) -> 40679 | T29: =IF(Fund!O37="",NA(),Fund!O37) -> 0.163049072 | U29: =IF(ISERROR(Q29),NA(),Benchmark!L37) -> 40679 | V29: =IF(Benchmark!O37="",NA(),Benchmark!O37) -> 0.09464006722 | W29: 1 | X29: 38854 | Y29: =IF(Fund!O37="",NA(),Fund!O37) -> 0.163049072 | Z29: 38854 | AA29: =IF(Benchmark!O37="",NA(),Benchmark!O37) -> 0.09464006722 | AB29: =Benchmark!Y37 -> 0.3108152426
J30: =IF(Fund!A38="",NA(),IF(Fund!A38<startdate,NA(),Fund!A38)) -> 38854 | K30: =IF(J30=0,NA(),Fund!B38/fundnorm) -> 1.026409845 | L30: =IF(Benchmark!A38="",NA(),IF(Benchmark!A38<startdate,NA(),Benchmark!A38)) -> 38853 | M30: =IF(L30=0,NA(),Benchmark!B38/benchnorm) -> 1.013457664 | N30: =IF(ISERROR(O30),NA(),Fund!L38) -> 40679 | O30: =IF(Fund!I38="",NA(),Fund!I38) -> 1.068653734 | P30: =IF(ISERROR(Q30),NA(),Benchmark!L38) -> 40679 | Q30: =IF(Benchmark!I38="",NA(),Benchmark!I38) -> 0.5702220039 | R30: 1 | S30: =IF(ISERROR(O30),NA(),Fund!L38) -> 40679 | T30: =IF(Fund!O38="",NA(),Fund!O38) -> 0.1564784944 | U30: =IF(ISERROR(Q30),NA(),Benchmark!L38) -> 40679 | V30: =IF(Benchmark!O38="",NA(),Benchmark!O38) -> 0.09438655078 | W30: 1 | X30: 38854 | Y30: =IF(Fund!O38="",NA(),Fund!O38) -> 0.1564784944 | Z30: 38854 | AA30: =IF(Benchmark!O38="",NA(),Benchmark!O38) -> 0.09438655078 | AB30: =Benchmark!Y38 -> 0.310293624
J31: =IF(Fund!A39="",NA(),IF(Fund!A39<startdate,NA(),Fund!A39)) -> 38855 | K31: =IF(J31=0,NA(),Fund!B39/fundnorm) -> 0.9598826229 | L31: =IF(Benchmark!A39="",NA(),IF(Benchmark!A39<startdate,NA(),Benchmark!A39)) -> 38854 | M31: =IF(L31=0,NA(),Benchmark!B39/benchnorm) -> 1.043052345 | N31: =IF(ISERROR(O31),NA(),Fund!L39) -> 40680 | O31: =IF(Fund!I39="",NA(),Fund!I39) -> 1.181213307 | P31: =IF(ISERROR(Q31),NA(),Benchmark!L39) -> 40679 | Q31: =IF(Benchmark!I39="",NA(),Benchmark!I39) -> 0.5256698582 | R31: 1 | S31: =IF(ISERROR(O31),NA(),Fund!L39) -> 40680 | T31: =IF(Fund!O39="",NA(),Fund!O39) -> 0.1687984526 | U31: =IF(ISERROR(Q31),NA(),Benchmark!L39) -> 40679 | V31: =IF(Benchmark!O39="",NA(),Benchmark!O39) -> 0.08815838397 | W31: 1 | X31: 38855 | Y31: =IF(Fund!O39="",NA(),Fund!O39) -> 0.1687984526 | Z31: 38854 | AA31: =IF(Benchmark!O39="",NA(),Benchmark!O39) -> 0.08815838397 | AB31: =Benchmark!Y39 -> 0.3106054022
J32: =IF(Fund!A40="",NA(),IF(Fund!A40<startdate,NA(),Fund!A40)) -> 38856 | K32: =IF(J32=0,NA(),Fund!B40/fundnorm) -> 0.9246796499 | L32: =IF(Benchmark!A40="",NA(),IF(Benchmark!A40<startdate,NA(),Benchmark!A40)) -> 38855 | M32: =IF(L32=0,NA(),Benchmark!B40/benchnorm) -> 0.9721871417 | N32: =IF(ISERROR(O32),NA(),Fund!L40) -> 40681 | O32: =IF(Fund!I40="",NA(),Fund!I40) -> 1.24304915 | P32: =IF(ISERROR(Q32),NA(),Benchmark!L40) -> 40680 | Q32: =IF(Benchmark!I40="",NA(),Benchmark!I40) -> 0.622056765 | R32: 1 | S32: =IF(ISERROR(O32),NA(),Fund!L40) -> 40681 | T32: =IF(Fund!O40="",NA(),Fund!O40) -> 0.1753514826 | U32: =IF(ISERROR(Q32),NA(),Benchmark!L40) -> 40680 | V32: =IF(Benchmark!O40="",NA(),Benchmark!O40) -> 0.1015728176 | W32: 1 | X32: 38856 | Y32: =IF(Fund!O40="",NA(),Fund!O40) -> 0.1753514826 | Z32: 38855 | AA32: =IF(Benchmark!O40="",NA(),Benchmark!O40) -> 0.1015728176 | AB32: =Benchmark!Y40 -> 0.3103901457
J33: =IF(Fund!A41="",NA(),IF(Fund!A41<startdate,NA(),Fund!A41)) -> 38859 | K33: =IF(J33=0,NA(),Fund!B41/fundnorm) -> 0.8814856934 | L33: =IF(Benchmark!A41="",NA(),IF(Benchmark!A41<startdate,NA(),Benchmark!A41)) -> 38856 | M33: =IF(L33=0,NA(),Benchmark!B41/benchnorm) -> 0.9313799467 | N33: =IF(ISERROR(O33),NA(),Fund!L41) -> 40686 | O33: =IF(Fund!I41="",NA(),Fund!I41) -> 1.331098671 | P33: =IF(ISERROR(Q33),NA(),Benchmark!L41) -> 40681 | Q33: =IF(Benchmark!I41="",NA(),Benchmark!I41) -> 0.6851770257 | R33: 1 | S33: =IF(ISERROR(O33),NA(),Fund!L41) -> 40686 | T33: =IF(Fund!O41="",NA(),Fund!O41) -> 0.1842179954 | U33: =IF(ISERROR(Q33),NA(),Benchmark!L41) -> 40681 | V33: =IF(Benchmark!O41="",NA(),Benchmark!O41) -> 0.1100156605 | W33: 1 | X33: 38861 | Y33: =IF(Fund!O41="",NA(),Fund!O41) -> 0.1842179954 | Z33: 38856 | AA33: =IF(Benchmark!O41="",NA(),Benchmark!O41) -> 0.1100156605 | AB33: =Benchmark!Y41 -> 0.3086793555
J34: =IF(Fund!A42="",NA(),IF(Fund!A42<startdate,NA(),Fund!A42)) -> 38860 | K34: =IF(J34=0,NA(),Fund!B42/fundnorm) -> 0.8943403123 | L34: =IF(Benchmark!A42="",NA(),IF(Benchmark!A42<startdate,NA(),Benchmark!A42)) -> 38859 | M34: =IF(L34=0,NA(),Benchmark!B42/benchnorm) -> 0.8787327609 | N34: =IF(ISERROR(O34),NA(),Fund!L42) -> 40686 | O34: =IF(Fund!I42="",NA(),Fund!I42) -> 1.297593097 | P34: =IF(ISERROR(Q34),NA(),Benchmark!L42) -> 40686 | Q34: =IF(Benchmark!I42="",NA(),Benchmark!I42) -> 0.7714432058 | R34: 1 | S34: =IF(ISERROR(O34),NA(),Fund!L42) -> 40686 | T34: =IF(Fund!O42="",NA(),Fund!O42) -> 0.1809052527 | U34: =IF(ISERROR(Q34),NA(),Benchmark!L42) -> 40686 | V34: =IF(Benchmark!O42="",NA(),Benchmark!O42) -> 0.1210141122 | W34: 1 | X34: 38861 | Y34: =IF(Fund!O42="",NA(),Fund!O42) -> 0.1809052527 | Z34: 38861 | AA34: =IF(Benchmark!O42="",NA(),Benchmark!O42) -> 0.1210141122 | AB34: =Benchmark!Y42 -> 0.3080243301
J35: =IF(Fund!A43="",NA(),IF(Fund!A43<startdate,NA(),Fund!A43)) -> 38861 | K35: =IF(J35=0,NA(),Fund!B43/fundnorm) -> 0.8943403123 | L35: =IF(Benchmark!A43="",NA(),IF(Benchmark!A43<startdate,NA(),Benchmark!A43)) -> 38860 | M35: =IF(L35=0,NA(),Benchmark!B43/benchnorm) -> 0.9127383156 | N35: =IF(ISERROR(O35),NA(),Fund!L43) -> 40686 | O35: =IF(Fund!I43="",NA(),Fund!I43) -> 1.297593097 | P35: =IF(ISERROR(Q35),NA(),Benchmark!L43) -> 40686 | Q35: =IF(Benchmark!I43="",NA(),Benchmark!I43) -> 0.7054451999 | R35: 1 | S35: =IF(ISERROR(O35),NA(),Fund!L43) -> 40686 | T35: =IF(Fund!O43="",NA(),Fund!O43) -> 0.181012851 | U35: =IF(ISERROR(Q35),NA(),Benchmark!L43) -> 40686 | V35: =IF(Benchmark!O43="",NA(),Benchmark!O43) -> 0.11260795 | W35: 1 | X35: 38861 | Y35: =IF(Fund!O43="",NA(),Fund!O43) -> 0.181012851 | Z35: 38861 | AA35: =IF(Benchmark!O43="",NA(),Benchmark!O43) -> 0.11260795 | AB35: =Benchmark!Y43 -> 0.3068386253
J36: =IF(Fund!A44="",NA(),IF(Fund!A44<startdate,NA(),Fund!A44)) -> 38862 | K36: =IF(J36=0,NA(),Fund!B44/fundnorm) -> 0.9086164531 | L36: =IF(Benchmark!A44="",NA(),IF(Benchmark!A44<startdate,NA(),Benchmark!A44)) -> 38861 | M36: =IF(L36=0,NA(),Benchmark!B44/benchnorm) -> 0.8960108869 | N36: =IF(ISERROR(O36),NA(),Fund!L44) -> 40687 | O36: =IF(Fund!I44="",NA(),Fund!I44) -> 1.264611224 | P36: =IF(ISERROR(Q36),NA(),Benchmark!L44) -> 40686 | Q36: =IF(Benchmark!I44="",NA(),Benchmark!I44) -> 0.7372837784 | R36: 1 | S36: =IF(ISERROR(O36),NA(),Fund!L44) -> 40687 | T36: =IF(Fund!O44="",NA(),Fund!O44) -> 0.1776025355 | U36: =IF(ISERROR(Q36),NA(),Benchmark!L44) -> 40686 | V36: =IF(Benchmark!O44="",NA(),Benchmark!O44) -> 0.1167967737 | W36: 1 | X36: 38862 | Y36: =IF(Fund!O44="",NA(),Fund!O44) -> 0.1776025355 | Z36: 38861 | AA36: =IF(Benchmark!O44="",NA(),Benchmark!O44) -> 0.1167967737 | AB36: =Benchmark!Y44 -> 0.3063142496
J37: =IF(Fund!A45="",NA(),IF(Fund!A45<startdate,NA(),Fund!A45)) -> 38863 | K37: =IF(J37=0,NA(),Fund!B45/fundnorm) -> 0.9161708263 | L37: =IF(Benchmark!A45="",NA(),IF(Benchmark!A45<startdate,NA(),Benchmark!A45)) -> 38862 | M37: =IF(L37=0,NA(),Benchmark!B45/benchnorm) -> 0.903855675 | N37: =IF(ISERROR(O37),NA(),Fund!L45) -> 40688 | O37: =IF(Fund!I45="",NA(),Fund!I45) -> 1.23179652 | P37: =IF(ISERROR(Q37),NA(),Benchmark!L45) -> 40687 | Q37: =IF(Benchmark!I45="",NA(),Benchmark!I45) -> 0.7257703089 | R37: 1 | S37: =IF(ISERROR(O37),NA(),Fund!L45) -> 40688 | T37: =IF(Fund!O45="",NA(),Fund!O45) -> 0.1741698325 | U37: =IF(ISERROR(Q37),NA(),Benchmark!L45) -> 40687 | V37: =IF(Benchmark!O45="",NA(),Benchmark!O45) -> 0.1153125703 | W37: 1 | X37: 38863 | Y37: =IF(Fund!O45="",NA(),Fund!O45) -> 0.1741698325 | Z37: 38862 | AA37: =IF(Benchmark!O45="",NA(),Benchmark!O45) -> 0.1153125703 | AB37: =Benchmark!Y45 -> 0.3061774035
J38: =IF(Fund!A46="",NA(),IF(Fund!A46<startdate,NA(),Fund!A46)) -> 38866 | K38: =IF(J38=0,NA(),Fund!B46/fundnorm) -> 0.9180492659 | L38: =IF(Benchmark!A46="",NA(),IF(Benchmark!A46<startdate,NA(),Benchmark!A46)) -> 38863 | M38: =IF(L38=0,NA(),Benchmark!B46/benchnorm) -> 0.9182161646 | N38: =IF(ISERROR(O38),NA(),Fund!L46) -> 40693 | O38: =IF(Fund!I46="",NA(),Fund!I46) -> 1.276436432 | P38: =IF(ISERROR(Q38),NA(),Benchmark!L46) -> 40688 | Q38: =IF(Benchmark!I46="",NA(),Benchmark!I46) -> 0.6873329431 | R38: 1 | S38: =IF(ISERROR(O38),NA(),Fund!L46) -> 40693 | T38: =IF(Fund!O46="",NA(),Fund!O46) -> 0.1786175072 | U38: =IF(ISERROR(Q38),NA(),Benchmark!L46) -> 40688 | V38: =IF(Benchmark!O46="",NA(),Benchmark!O46) -> 0.1102995336 | W38: 1 | X38: 38868 | Y38: =IF(Fund!O46="",NA(),Fund!O46) -> 0.1786175072 | Z38: 38863 | AA38: =IF(Benchmark!O46="",NA(),Benchmark!O46) -> 0.1102995336 | AB38: =Benchmark!Y46 -> 0.3061774757
J39: =IF(Fund!A47="",NA(),IF(Fund!A47<startdate,NA(),Fund!A47)) -> 38867 | K39: =IF(J39=0,NA(),Fund!B47/fundnorm) -> 0.8867554779 | L39: =IF(Benchmark!A47="",NA(),IF(Benchmark!A47<startdate,NA(),Benchmark!A47)) -> 38866 | M39: =IF(L39=0,NA(),Benchmark!B47/benchnorm) -> 0.9219545516 | N39: =IF(ISERROR(O39),NA(),Fund!L47) -> 40693 | O39: =IF(Fund!I47="",NA(),Fund!I47) -> 1.356772354 | P39: =IF(ISERROR(Q39),NA(),Benchmark!L47) -> 40693 | Q39: =IF(Benchmark!I47="",NA(),Benchmark!I47) -> 0.721389906 | R39: 1 | S39: =IF(ISERROR(O39),NA(),Fund!L47) -> 40693 | T39: =IF(Fund!O47="",NA(),Fund!O47) -> 0.1869235575 | U39: =IF(ISERROR(Q39),NA(),Benchmark!L47) -> 40693 | V39: =IF(Benchmark!O47="",NA(),Benchmark!O47) -> 0.1146132648 | W39: 1 | X39: 38868 | Y39: =IF(Fund!O47="",NA(),Fund!O47) -> 0.1869235575 | Z39: 38868 | AA39: =IF(Benchmark!O47="",NA(),Benchmark!O47) -> 0.1146132648 | AB39: =Benchmark!Y47 -> 0.3060933811
J40: =IF(Fund!A48="",NA(),IF(Fund!A48<startdate,NA(),Fund!A48)) -> 38868 | K40: =IF(J40=0,NA(),Fund!B48/fundnorm) -> 0.8867554779 | L40: =IF(Benchmark!A48="",NA(),IF(Benchmark!A48<startdate,NA(),Benchmark!A48)) -> 38867 | M40: =IF(L40=0,NA(),Benchmark!B48/benchnorm) -> 0.9166567382 | N40: =IF(ISERROR(O40),NA(),Fund!L48) -> 40693 | O40: =IF(Fund!I48="",NA(),Fund!I48) -> 1.356772354 | P40: =IF(ISERROR(Q40),NA(),Benchmark!L48) -> 40693 | Q40: =IF(Benchmark!I48="",NA(),Benchmark!I48) -> 0.7313386709 | R40: 1 | S40: =IF(ISERROR(O40),NA(),Fund!L48) -> 40693 | T40: =IF(Fund!O48="",NA(),Fund!O48) -> 0.1870350063 | U40: =IF(ISERROR(Q40),NA(),Benchmark!L48) -> 40693 | V40: =IF(Benchmark!O48="",NA(),Benchmark!O48) -> 0.1159642875 | W40: 1 | X40: 38868 | Y40: =IF(Fund!O48="",NA(),Fund!O48) -> 0.1870350063 | Z40: 38868 | AA40: =IF(Benchmark!O48="",NA(),Benchmark!O48) -> 0.1159642875 | AB40: =Benchmark!Y48 -> 0.3060909396
J41: =IF(Fund!A49="",NA(),IF(Fund!A49<startdate,NA(),Fund!A49)) -> 38869 | K41: =IF(J41=0,NA(),Fund!B49/fundnorm) -> 0.8621022277 | L41: =IF(Benchmark!A49="",NA(),IF(Benchmark!A49<startdate,NA(),Benchmark!A49)) -> 38868 | M41: =IF(L41=0,NA(),Benchmark!B49/benchnorm) -> 0.8875200885 | N41: =IF(ISERROR(O41),NA(),Fund!L49) -> 40694 | O41: =IF(Fund!I49="",NA(),Fund!I49) -> 1.46550851 | P41: =IF(ISERROR(Q41),NA(),Benchmark!L49) -> 40693 | Q41: =IF(Benchmark!I49="",NA(),Benchmark!I49) -> 0.7881772811 | R41: 1 | S41: =IF(ISERROR(O41),NA(),Fund!L49) -> 40694 | T41: =IF(Fund!O49="",NA(),Fund!O49) -> 0.1977917016 | U41: =IF(ISERROR(Q41),NA(),Benchmark!L49) -> 40693 | V41: =IF(Benchmark!O49="",NA(),Benchmark!O49) -> 0.1232647121 | W41: 1 | X41: 38869 | Y41: =IF(Fund!O49="",NA(),Fund!O49) -> 0.1977917016 | Z41: 38868 | AA41: =IF(Benchmark!O49="",NA(),Benchmark!O49) -> 0.1232647121 | AB41: =Benchmark!Y49 -> 0.3060786689
J42: =IF(Fund!A50="",NA(),IF(Fund!A50<startdate,NA(),Fund!A50)) -> 38870 | K42: =IF(J42=0,NA(),Fund!B50/fundnorm) -> 0.8864204049 | L42: =IF(Benchmark!A50="",NA(),IF(Benchmark!A50<startdate,NA(),Benchmark!A50)) -> 38869 | M42: =IF(L42=0,NA(),Benchmark!B50/benchnorm) -> 0.8588176424 | N42: =IF(ISERROR(O42),NA(),Fund!L50) -> 40695 | O42: =IF(Fund!I50="",NA(),Fund!I50) -> 1.410504009 | P42: =IF(ISERROR(Q42),NA(),Benchmark!L50) -> 40694 | Q42: =IF(Benchmark!I50="",NA(),Benchmark!I50) -> 0.8777105722 | R42: 1 | S42: =IF(ISERROR(O42),NA(),Fund!L50) -> 40695 | T42: =IF(Fund!O50="",NA(),Fund!O50) -> 0.1923989117 | U42: =IF(ISERROR(Q42),NA(),Benchmark!L50) -> 40694 | V42: =IF(Benchmark!O50="",NA(),Benchmark!O50) -> 0.1342942536 | W42: 1 | X42: 38870 | Y42: =IF(Fund!O50="",NA(),Fund!O50) -> 0.1923989117 | Z42: 38869 | AA42: =IF(Benchmark!O50="",NA(),Benchmark!O50) -> 0.1342942536 | AB42: =Benchmark!Y50 -> 0.3056832902
J43: =IF(Fund!A51="",NA(),IF(Fund!A51<startdate,NA(),Fund!A51)) -> 38873 | K43: =IF(J43=0,NA(),Fund!B51/fundnorm) -> 0.86671202 | L43: =IF(Benchmark!A51="",NA(),IF(Benchmark!A51<startdate,NA(),Benchmark!A51)) -> 38870 | M43: =IF(L43=0,NA(),Benchmark!B51/benchnorm) -> 0.881531256 | N43: =IF(ISERROR(O43),NA(),Fund!L51) -> 40700 | O43: =IF(Fund!I51="",NA(),Fund!I51) -> 1.4382549 | P43: =IF(ISERROR(Q43),NA(),Benchmark!L51) -> 40695 | Q43: =IF(Benchmark!I51="",NA(),Benchmark!I51) -> 0.8394807738 | R43: 1 | S43: =IF(ISERROR(O43),NA(),Fund!L51) -> 40700 | T43: =IF(Fund!O51="",NA(),Fund!O51) -> 0.194898659 | U43: =IF(ISERROR(Q43),NA(),Benchmark!L51) -> 40695 | V43: =IF(Benchmark!O51="",NA(),Benchmark!O51) -> 0.1296373665 | W43: 1 | X43: 38875 | Y43: =IF(Fund!O51="",NA(),Fund!O51) -> 0.194898659 | Z43: 38870 | AA43: =IF(Benchmark!O51="",NA(),Benchmark!O51) -> 0.1296373665 | AB43: =Benchmark!Y51 -> 0.305269293
J44: =IF(Fund!A52="",NA(),IF(Fund!A52<startdate,NA(),Fund!A52)) -> 38874 | K44: =IF(J44=0,NA(),Fund!B52/fundnorm) -> 0.8456125744 | L44: =IF(Benchmark!A52="",NA(),IF(Benchmark!A52<startdate,NA(),Benchmark!A52)) -> 38873 | M44: =IF(L44=0,NA(),Benchmark!B52/benchnorm) -> 0.8625930956 | N44: =IF(ISERROR(O44),NA(),Fund!L52) -> 40700 | O44: =IF(Fund!I52="",NA(),Fund!I52) -> 1.499093431 | P44: =IF(ISERROR(Q44),NA(),Benchmark!L52) -> 40700 | Q44: =IF(Benchmark!I52="",NA(),Benchmark!I52) -> 0.8593295355 | R44: 1 | S44: =IF(ISERROR(O44),NA(),Fund!L52) -> 40700 | T44: =IF(Fund!O52="",NA(),Fund!O52) -> 0.2009168208 | U44: =IF(ISERROR(Q44),NA(),Benchmark!L52) -> 40700 | V44: =IF(Benchmark!O52="",NA(),Benchmark!O52) -> 0.1319110572 | W44: 1 | X44: 38875 | Y44: =IF(Fund!O52="",NA(),Fund!O52) -> 0.2009168208 | Z44: 38875 | AA44: =IF(Benchmark!O52="",NA(),Benchmark!O52) -> 0.1319110572 | AB44: =Benchmark!Y52 -> 0.3050499854
J45: =IF(Fund!A53="",NA(),IF(Fund!A53<startdate,NA(),Fund!A53)) -> 38875 | K45: =IF(J45=0,NA(),Fund!B53/fundnorm) -> 0.8184005849 | L45: =IF(Benchmark!A53="",NA(),IF(Benchmark!A53<startdate,NA(),Benchmark!A53)) -> 38874 | M45: =IF(L45=0,NA(),Benchmark!B53/benchnorm) -> 0.8380791257 | N45: =IF(ISERROR(O45),NA(),Fund!L53) -> 40700 | O45: =IF(Fund!I53="",NA(),Fund!I53) -> 1.582188807 | P45: =IF(ISERROR(Q45),NA(),Benchmark!L53) -> 40700 | Q45: =IF(Benchmark!I53="",NA(),Benchmark!I53) -> 0.9137152696 | R45: 1 | S45: =IF(ISERROR(O45),NA(),Fund!L53) -> 40700 | T45: =IF(Fund!O53="",NA(),Fund!O53) -> 0.2089201033 | U45: =IF(ISERROR(Q45),NA(),Benchmark!L53) -> 40700 | V45: =IF(Benchmark!O53="",NA(),Benchmark!O53) -> 0.1385302961 | W45: 1 | X45: 38875 | Y45: =IF(Fund!O53="",NA(),Fund!O53) -> 0.2089201033 | Z45: 38875 | AA45: =IF(Benchmark!O53="",NA(),Benchmark!O53) -> 0.1385302961 | AB45: =Benchmark!Y53 -> 0.3048737824
J46: =IF(Fund!A54="",NA(),IF(Fund!A54<startdate,NA(),Fund!A54)) -> 38876 | K46: =IF(J46=0,NA(),Fund!B54/fundnorm) -> 0.7784456674 | L46: =IF(Benchmark!A54="",NA(),IF(Benchmark!A54<startdate,NA(),Benchmark!A54)) -> 38875 | M46: =IF(L46=0,NA(),Benchmark!B54/benchnorm) -> 0.8037585087 | N46: =IF(ISERROR(O46),NA(),Fund!L54) -> 40701 | O46: =IF(Fund!I54="",NA(),Fund!I54) -> 1.73089766 | P46: =IF(ISERROR(Q46),NA(),Benchmark!L54) -> 40700 | Q46: =IF(Benchmark!I54="",NA(),Benchmark!I54) -> 0.9954312179 | R46: 1 | S46: =IF(ISERROR(O46),NA(),Fund!L54) -> 40701 | T46: =IF(Fund!O54="",NA(),Fund!O54) -> 0.2225343883 | U46: =IF(ISERROR(Q46),NA(),Benchmark!L54) -> 40700 | V46: =IF(Benchmark!O54="",NA(),Benchmark!O54) -> 0.148173064 | W46: 1 | X46: 38876 | Y46: =IF(Fund!O54="",NA(),Fund!O54) -> 0.2225343883 | Z46: 38875 | AA46: =IF(Benchmark!O54="",NA(),Benchmark!O54) -> 0.148173064 | AB46: =Benchmark!Y54 -> 0.3045662286
J47: =IF(Fund!A55="",NA(),IF(Fund!A55<startdate,NA(),Fund!A55)) -> 38877 | K47: =IF(J47=0,NA(),Fund!B55/fundnorm) -> 0.8150498548 | L47: =IF(Benchmark!A55="",NA(),IF(Benchmark!A55<startdate,NA(),Benchmark!A55)) -> 38876 | M47: =IF(L47=0,NA(),Benchmark!B55/benchnorm) -> 0.7579685626 | N47: =IF(ISERROR(O47),NA(),Fund!L55) -> 40702 | O47: =IF(Fund!I55="",NA(),Fund!I55) -> 1.602010689 | P47: =IF(ISERROR(Q47),NA(),Benchmark!L55) -> 40701 | Q47: =IF(Benchmark!I55="",NA(),Benchmark!I55) -> 1.12756779 | R47: 1 | S47: =IF(ISERROR(O47),NA(),Fund!L55) -> 40702 | T47: =IF(Fund!O55="",NA(),Fund!O55) -> 0.210770458 | U47: =IF(ISERROR(Q47),NA(),Benchmark!L55) -> 40701 | V47: =IF(Benchmark!O55="",NA(),Benchmark!O55) -> 0.1629918754 | W47: 1 | X47: 38877 | Y47: =IF(Fund!O55="",NA(),Fund!O55) -> 0.210770458 | Z47: 38876 | AA47: =IF(Benchmark!O55="",NA(),Benchmark!O55) -> 0.1629918754 | AB47: =Benchmark!Y55 -> 0.3039111053
J48: =IF(Fund!A56="",NA(),IF(Fund!A56<startdate,NA(),Fund!A56)) -> 38880 | K48: =IF(J48=0,NA(),Fund!B56/fundnorm) -> 0.7958288488 | L48: =IF(Benchmark!A56="",NA(),IF(Benchmark!A56<startdate,NA(),Benchmark!A56)) -> 38877 | M48: =IF(L48=0,NA(),Benchmark!B56/benchnorm) -> 0.8009441281 | N48: =IF(ISERROR(O48),NA(),Fund!L56) -> 40707 | O48: =IF(Fund!I56="",NA(),Fund!I56) -> 1.65482661 | P48: =IF(ISERROR(Q48),NA(),Benchmark!L56) -> 40702 | Q48: =IF(Benchmark!I56="",NA(),Benchmark!I56) -> 1.006386376 | R48: 1 | S48: =IF(ISERROR(O48),NA(),Fund!L56) -> 40707 | T48: =IF(Fund!O56="",NA(),Fund!O56) -> 0.2153864682 | U48: =IF(ISERROR(Q48),NA(),Benchmark!L56) -> 40702 | V48: =IF(Benchmark!O56="",NA(),Benchmark!O56) -> 0.14943102 | W48: 1 | X48: 38882 | Y48: =IF(Fund!O56="",NA(),Fund!O56) -> 0.2153864682 | Z48: 38877 | AA48: =IF(Benchmark!O56="",NA(),Benchmark!O56) -> 0.14943102 | AB48: =Benchmark!Y56 -> 0.3026412283
J49: =IF(Fund!A57="",NA(),IF(Fund!A57<startdate,NA(),Fund!A57)) -> 38881 | K49: =IF(J49=0,NA(),Fund!B57/fundnorm) -> 0.7626566212 | L49: =IF(Benchmark!A57="",NA(),IF(Benchmark!A57<startdate,NA(),Benchmark!A57)) -> 38880 | M49: =IF(L49=0,NA(),Benchmark!B57/benchnorm) -> 0.7788685819 | N49: =IF(ISERROR(O49),NA(),Fund!L57) -> 40707 | O49: =IF(Fund!I57="",NA(),Fund!I57) -> 1.770299956 | P49: =IF(ISERROR(Q49),NA(),Benchmark!L57) -> 40707 | Q49: =IF(Benchmark!I57="",NA(),Benchmark!I57) -> 1.051549896 | R49: 1 | S49: =IF(ISERROR(O49),NA(),Fund!L57) -> 40707 | T49: =IF(Fund!O57="",NA(),Fund!O57) -> 0.2259052098 | U49: =IF(ISERROR(Q49),NA(),Benchmark!L57) -> 40707 | V49: =IF(Benchmark!O57="",NA(),Benchmark!O57) -> 0.154378134 | W49: 1 | X49: 38882 | Y49: =IF(Fund!O57="",NA(),Fund!O57) -> 0.2259052098 | Z49: 38882 | AA49: =IF(Benchmark!O57="",NA(),Benchmark!O57) -> 0.154378134 | AB49: =Benchmark!Y57 -> 0.3015085853
J50: =IF(Fund!A58="",NA(),IF(Fund!A58<startdate,NA(),Fund!A58)) -> 38882 | K50: =IF(J50=0,NA(),Fund!B58/fundnorm) -> 0.7495481591 | L50: =IF(Benchmark!A58="",NA(),IF(Benchmark!A58<startdate,NA(),Benchmark!A58)) -> 38881 | M50: =IF(L50=0,NA(),Benchmark!B58/benchnorm) -> 0.7420327612 | N50: =IF(ISERROR(O50),NA(),Fund!L58) -> 40707 | O50: =IF(Fund!I58="",NA(),Fund!I58) -> 1.818748307 | P50: =IF(ISERROR(Q50),NA(),Benchmark!L58) -> 40707 | Q50: =IF(Benchmark!I58="",NA(),Benchmark!I58) -> 1.153392467 | R50: 1 | S50: =IF(ISERROR(O50),NA(),Fund!L58) -> 40707 | T50: =IF(Fund!O58="",NA(),Fund!O58) -> 0.2303006709 | U50: =IF(ISERROR(Q50),NA(),Benchmark!L58) -> 40707 | V50: =IF(Benchmark!O58="",NA(),Benchmark!O58) -> 0.1657036364 | W50: 1 | X50: 38882 | Y50: =IF(Fund!O58="",NA(),Fund!O58) -> 0.2303006709 | Z50: 38882 | AA50: =IF(Benchmark!O58="",NA(),Benchmark!O58) -> 0.1657036364 | AB50: =Benchmark!Y58 -> 0.3012275515
J51: =IF(Fund!A59="",NA(),IF(Fund!A59<startdate,NA(),Fund!A59)) -> 38883 | K51: =IF(J51=0,NA(),Fund!B59/fundnorm) -> 0.7916252056 | L51: =IF(Benchmark!A59="",NA(),IF(Benchmark!A59<startdate,NA(),Benchmark!A59)) -> 38882 | M51: =IF(L51=0,NA(),Benchmark!B59/benchnorm) -> 0.7295282272 | N51: =IF(ISERROR(O51),NA(),Fund!L59) -> 40708 | O51: =IF(Fund!I59="",NA(),Fund!I59) -> 1.673503155 | P51: =IF(ISERROR(Q51),NA(),Benchmark!L59) -> 40707 | Q51: =IF(Benchmark!I59="",NA(),Benchmark!I59) -> 1.190302854 | R51: 1 | S51: =IF(ISERROR(O51),NA(),Fund!L59) -> 40708 | T51: =IF(Fund!O59="",NA(),Fund!O59) -> 0.2173519075 | U51: =IF(ISERROR(Q51),NA(),Benchmark!L59) -> 40707 | V51: =IF(Benchmark!O59="",NA(),Benchmark!O59) -> 0.1697709501 | W51: 1 | X51: 38883 | Y51: =IF(Fund!O59="",NA(),Fund!O59) -> 0.2173519075 | Z51: 38882 | AA51: =IF(Benchmark!O59="",NA(),Benchmark!O59) -> 0.1697709501 | AB51: =Benchmark!Y59 -> 0.300565785
J52: =IF(Fund!A60="",NA(),IF(Fund!A60<startdate,NA(),Fund!A60)) -> 38884 | K52: =IF(J52=0,NA(),Fund!B60/fundnorm) -> 0.8202688707 | L52: =IF(Benchmark!A60="",NA(),IF(Benchmark!A60<startdate,NA(),Benchmark!A60)) -> 38883 | M52: =IF(L52=0,NA(),Benchmark!B60/benchnorm) -> 0.7753499443 | N52: =IF(ISERROR(O52),NA(),Fund!L60) -> 40709 | O52: =IF(Fund!I60="",NA(),Fund!I60) -> 1.558853748 | P52: =IF(ISERROR(Q52),NA(),Benchmark!L60) -> 40708 | Q52: =IF(Benchmark!I60="",NA(),Benchmark!I60) -> 1.068454373 | R52: 1 | S52: =IF(ISERROR(O52),NA(),Fund!L60) -> 40709 | T52: =IF(Fund!O60="",NA(),Fund!O60) -> 0.2067271769 | U52: =IF(ISERROR(Q52),NA(),Benchmark!L60) -> 40708 | V52: =IF(Benchmark!O60="",NA(),Benchmark!O60) -> 0.1564562023 | W52: 1 | X52: 38884 | Y52: =IF(Fund!O60="",NA(),Fund!O60) -> 0.2067271769 | Z52: 38883 | AA52: =IF(Benchmark!O60="",NA(),Benchmark!O60) -> 0.1564562023 | AB52: =Benchmark!Y60 -> 0.3006848523
J53: =IF(Fund!A61="",NA(),IF(Fund!A61<startdate,NA(),Fund!A61)) -> 38887 | K53: =IF(J53=0,NA(),Fund!B61/fundnorm) -> 0.8288487704 | L53: =IF(Benchmark!A61="",NA(),IF(Benchmark!A61<startdate,NA(),Benchmark!A61)) -> 38884 | M53: =IF(L53=0,NA(),Benchmark!B61/benchnorm) -> 0.8047778281 | N53: =IF(ISERROR(O53),NA(),Fund!L61) -> 40714 | O53: =IF(Fund!I61="",NA(),Fund!I61) -> 1.468736984 | P53: =IF(ISERROR(Q53),NA(),Benchmark!L61) -> 40709 | Q53: =IF(Benchmark!I61="",NA(),Benchmark!I61) -> 0.976181625 | R53: 1 | S53: =IF(ISERROR(O53),NA(),Fund!L61) -> 40714 | T53: =IF(Fund!O61="",NA(),Fund!O61) -> 0.1978681982 | U53: =IF(ISERROR(Q53),NA(),Benchmark!L61) -> 40709 | V53: =IF(Benchmark!O61="",NA(),Benchmark!O61) -> 0.1459492147 | W53: 1 | X53: 38889 | Y53: =IF(Fund!O61="",NA(),Fund!O61) -> 0.1978681982 | Z53: 38884 | AA53: =IF(Benchmark!O61="",NA(),Benchmark!O61) -> 0.1459492147 | AB53: =Benchmark!Y61 -> 0.2992173908
J54: =IF(Fund!A62="",NA(),IF(Fund!A62<startdate,NA(),Fund!A62)) -> 38888 | K54: =IF(J54=0,NA(),Fund!B62/fundnorm) -> 0.817537518 | L54: =IF(Benchmark!A62="",NA(),IF(Benchmark!A62<startdate,NA(),Benchmark!A62)) -> 38887 | M54: =IF(L54=0,NA(),Benchmark!B62/benchnorm) -> 0.816019465 | N54: =IF(ISERROR(O54),NA(),Fund!L62) -> 40714 | O54: =IF(Fund!I62="",NA(),Fund!I62) -> 1.502893835 | P54: =IF(ISERROR(Q54),NA(),Benchmark!L62) -> 40714 | Q54: =IF(Benchmark!I62="",NA(),Benchmark!I62) -> 0.879161489 | R54: 1 | S54: =IF(ISERROR(O54),NA(),Fund!L62) -> 40714 | T54: =IF(Fund!O62="",NA(),Fund!O62) -> 0.2012816489 | U54: =IF(ISERROR(Q54),NA(),Benchmark!L62) -> 40714 | V54: =IF(Benchmark!O62="",NA(),Benchmark!O62) -> 0.1343128145 | W54: 1 | X54: 38889 | Y54: =IF(Fund!O62="",NA(),Fund!O62) -> 0.2012816489 | Z54: 38889 | AA54: =IF(Benchmark!O62="",NA(),Benchmark!O62) -> 0.1343128145 | AB54: =Benchmark!Y62 -> 0.2988053243
J55: =IF(Fund!A63="",NA(),IF(Fund!A63<startdate,NA(),Fund!A63)) -> 38889 | K55: =IF(J55=0,NA(),Fund!B63/fundnorm) -> 0.8341997847 | L55: =IF(Benchmark!A63="",NA(),IF(Benchmark!A63<startdate,NA(),Benchmark!A63)) -> 38888 | M55: =IF(L55=0,NA(),Benchmark!B63/benchnorm) -> 0.8059665928 | N55: =IF(ISERROR(O55),NA(),Fund!L63) -> 40714 | O55: =IF(Fund!I63="",NA(),Fund!I63) -> 1.452901153 | P55: =IF(ISERROR(Q55),NA(),Benchmark!L63) -> 40714 | Q55: =IF(Benchmark!I63="",NA(),Benchmark!I63) -> 0.9026003889 | R55: 1 | S55: =IF(ISERROR(O55),NA(),Fund!L63) -> 40714 | T55: =IF(Fund!O63="",NA(),Fund!O63) -> 0.1965642154 | U55: =IF(ISERROR(Q55),NA(),Benchmark!L63) -> 40714 | V55: =IF(Benchmark!O63="",NA(),Benchmark!O63) -> 0.137205416 | W55: 1 | X55: 38889 | Y55: =IF(Fund!O63="",NA(),Fund!O63) -> 0.1965642154 | Z55: 38889 | AA55: =IF(Benchmark!O63="",NA(),Benchmark!O63) -> 0.137205416 | AB55: =Benchmark!Y63 -> 0.2988339657
J56: =IF(Fund!A64="",NA(),IF(Fund!A64<startdate,NA(),Fund!A64)) -> 38890 | K56: =IF(J56=0,NA(),Fund!B64/fundnorm) -> 0.8502528278 | L56: =IF(Benchmark!A64="",NA(),IF(Benchmark!A64<startdate,NA(),Benchmark!A64)) -> 38889 | M56: =IF(L56=0,NA(),Benchmark!B64/benchnorm) -> 0.8242640381 | N56: =IF(ISERROR(O56),NA(),Fund!L64) -> 40715 | O56: =IF(Fund!I64="",NA(),Fund!I64) -> 1.405968616 | P56: =IF(ISERROR(Q56),NA(),Benchmark!L64) -> 40714 | Q56: =IF(Benchmark!I64="",NA(),Benchmark!I64) -> 0.8603654678 | R56: 1 | S56: =IF(ISERROR(O56),NA(),Fund!L64) -> 40715 | T56: =IF(Fund!O64="",NA(),Fund!O64) -> 0.1919498742 | U56: =IF(ISERROR(Q56),NA(),Benchmark!L64) -> 40714 | V56: =IF(Benchmark!O64="",NA(),Benchmark!O64) -> 0.1321908891 | W56: 1 | X56: 38890 | Y56: =IF(Fund!O64="",NA(),Fund!O64) -> 0.1919498742 | Z56: 38889 | AA56: =IF(Benchmark!O64="",NA(),Benchmark!O64) -> 0.1321908891 | AB56: =Benchmark!Y64 -> 0.2988732006
J57: =IF(Fund!A65="",NA(),IF(Fund!A65<startdate,NA(),Fund!A65)) -> 38891 | K57: =IF(J57=0,NA(),Fund!B65/fundnorm) -> 0.8583859635 | L57: =IF(Benchmark!A65="",NA(),IF(Benchmark!A65<startdate,NA(),Benchmark!A65)) -> 38893 | M57: =IF(L57=0,NA(),Benchmark!B65/benchnorm) -> 0.8572290927 | N57: =IF(ISERROR(O57),NA(),Fund!L65) -> 40716 | O57: =IF(Fund!I65="",NA(),Fund!I65) -> 1.375921172 | P57: =IF(ISERROR(Q57),NA(),Benchmark!L65) -> 40718 | Q57: =IF(Benchmark!I65="",NA(),Benchmark!I65) -> 0.8438312671 | R57: 1 | S57: =IF(ISERROR(O57),NA(),Fund!L65) -> 40716 | T57: =IF(Fund!O65="",NA(),Fund!O65) -> 0.1889577091 | U57: =IF(ISERROR(Q57),NA(),Benchmark!L65) -> 40718 | V57: =IF(Benchmark!O65="",NA(),Benchmark!O65) -> 0.1301711977 | W57: 1 | X57: 38891 | Y57: =IF(Fund!O65="",NA(),Fund!O65) -> 0.1889577091 | Z57: 38893 | AA57: =IF(Benchmark!O65="",NA(),Benchmark!O65) -> 0.1301711977 | AB57: =Benchmark!Y65 -> 0.2986936819
J58: =IF(Fund!A66="",NA(),IF(Fund!A66<startdate,NA(),Fund!A66)) -> 38894 | K58: =IF(J58=0,NA(),Fund!B66/fundnorm) -> 0.82901123 | L58: =IF(Benchmark!A66="",NA(),IF(Benchmark!A66<startdate,NA(),Benchmark!A66)) -> 38894 | M58: =IF(L58=0,NA(),Benchmark!B66/benchnorm) -> 0.8239383855 | N58: =IF(ISERROR(O58),NA(),Fund!L66) -> 40721 | O58: =IF(Fund!I66="",NA(),Fund!I66) -> 1.568025378 | P58: =IF(ISERROR(Q58),NA(),Benchmark!L66) -> 40721 | Q58: =IF(Benchmark!I66="",NA(),Benchmark!I66) -> 0.9389307335 | R58: 1 | S58: =IF(ISERROR(O58),NA(),Fund!L66) -> 40721 | T58: =IF(Fund!O66="",NA(),Fund!O66) -> 0.2073416531 | U58: =IF(ISERROR(Q58),NA(),Benchmark!L66) -> 40721 | V58: =IF(Benchmark!O66="",NA(),Benchmark!O66) -> 0.1414305747 | W58: 1 | X58: 38896 | Y58: =IF(Fund!O66="",NA(),Fund!O66) -> 0.2073416531 | Z58: 38896 | AA58: =IF(Benchmark!O66="",NA(),Benchmark!O66) -> 0.1414305747 | AB58: =Benchmark!Y66 -> 0.2981321164
J59: =IF(Fund!A67="",NA(),IF(Fund!A67<startdate,NA(),Fund!A67)) -> 38895 | K59: =IF(J59=0,NA(),Fund!B67/fundnorm) -> 0.8349511606 | L59: =IF(Benchmark!A67="",NA(),IF(Benchmark!A67<startdate,NA(),Benchmark!A67)) -> 38895 | M59: =IF(L59=0,NA(),Benchmark!B67/benchnorm) -> 0.8291567713 | N59: =IF(ISERROR(O59),NA(),Fund!L67) -> 40721 | O59: =IF(Fund!I67="",NA(),Fund!I67) -> 1.549756175 | P59: =IF(ISERROR(Q59),NA(),Benchmark!L67) -> 40721 | Q59: =IF(Benchmark!I67="",NA(),Benchmark!I67) -> 0.9267278678 | R59: 1 | S59: =IF(ISERROR(O59),NA(),Fund!L67) -> 40721 | T59: =IF(Fund!O67="",NA(),Fund!O67) -> 0.2057442725 | U59: =IF(ISERROR(Q59),NA(),Benchmark!L67) -> 40721 | V59: =IF(Benchmark!O67="",NA(),Benchmark!O67) -> 0.1400735795 | W59: 1 | X59: 38896 | Y59: =IF(Fund!O67="",NA(),Fund!O67) -> 0.2057442725 | Z59: 38896 | AA59: =IF(Benchmark!O67="",NA(),Benchmark!O67) -> 0.1400735795 | AB59: =Benchmark!Y67 -> 0.2975309826
J60: =IF(Fund!A68="",NA(),IF(Fund!A68<startdate,NA(),Fund!A68)) -> 38896 | K60: =IF(J60=0,NA(),Fund!B68/fundnorm) -> 0.8352151575 | L60: =IF(Benchmark!A68="",NA(),IF(Benchmark!A68<startdate,NA(),Benchmark!A68)) -> 38896 | M60: =IF(L60=0,NA(),Benchmark!B68/benchnorm) -> 0.8278726936 | N60: =IF(ISERROR(O60),NA(),Fund!L68) -> 40721 | O60: =IF(Fund!I68="",NA(),Fund!I68) -> 1.548950241 | P60: =IF(ISERROR(Q60),NA(),Benchmark!L68) -> 40721 | Q60: =IF(Benchmark!I68="",NA(),Benchmark!I68) -> 0.9297163325 | R60: 1 | S60: =IF(ISERROR(O60),NA(),Fund!L68) -> 40721 | T60: =IF(Fund!O68="",NA(),Fund!O68) -> 0.2057916462 | U60: =IF(ISERROR(Q60),NA(),Benchmark!L68) -> 40721 | V60: =IF(Benchmark!O68="",NA(),Benchmark!O68) -> 0.1405089438 | W60: 1 | X60: 38896 | Y60: =IF(Fund!O68="",NA(),Fund!O68) -> 0.2057916462 | Z60: 38896 | AA60: =IF(Benchmark!O68="",NA(),Benchmark!O68) -> 0.1405089438 | AB60: =Benchmark!Y68 -> 0.2975210605
J61: =IF(Fund!A69="",NA(),IF(Fund!A69<startdate,NA(),Fund!A69)) -> 38897 | K61: =IF(J61=0,NA(),Fund!B69/fundnorm) -> 0.8394695693 | L61: =IF(Benchmark!A69="",NA(),IF(Benchmark!A69<startdate,NA(),Benchmark!A69)) -> 38897 | M61: =IF(L61=0,NA(),Benchmark!B69/benchnorm) -> 0.8321670731 | N61: =IF(ISERROR(O61),NA(),Fund!L69) -> 40722 | O61: =IF(Fund!I69="",NA(),Fund!I69) -> 1.537604625 | P61: =IF(ISERROR(Q61),NA(),Benchmark!L69) -> 40722 | Q61: =IF(Benchmark!I69="",NA(),Benchmark!I69) -> 0.9262516226 | R61: 1 | S61: =IF(ISERROR(O61),NA(),Fund!L69) -> 40722 | T61: =IF(Fund!O69="",NA(),Fund!O69) -> 0.2047163188 | U61: =IF(ISERROR(Q61),NA(),Benchmark!L69) -> 40722 | V61: =IF(Benchmark!O69="",NA(),Benchmark!O69) -> 0.1400991023 | W61: 1 | X61: 38897 | Y61: =IF(Fund!O69="",NA(),Fund!O69) -> 0.2047163188 | Z61: 38897 | AA61: =IF(Benchmark!O69="",NA(),Benchmark!O69) -> 0.1400991023 | AB61: =Benchmark!Y69 -> 0.2975202572
J62: =IF(Fund!A70="",NA(),IF(Fund!A70<startdate,NA(),Fund!A70)) -> 38898 | K62: =IF(J62=0,NA(),Fund!B70/fundnorm) -> 0.8715350405 | L62: =IF(Benchmark!A70="",NA(),IF(Benchmark!A70<startdate,NA(),Benchmark!A70)) -> 38898 | M62: =IF(L62=0,NA(),Benchmark!B70/benchnorm) -> 0.8658866887 | N62: =IF(ISERROR(O62),NA(),Fund!L70) -> 40723 | O62: =IF(Fund!I70="",NA(),Fund!I70) -> 1.460784771 | P62: =IF(ISERROR(Q62),NA(),Benchmark!L70) -> 40723 | Q62: =IF(Benchmark!I70="",NA(),Benchmark!I70) -> 0.8677288961 | R62: 1 | S62: =IF(ISERROR(O62),NA(),Fund!L70) -> 40723 | T62: =IF(Fund!O70="",NA(),Fund!O70) -> 0.1973323762 | U62: =IF(ISERROR(Q62),NA(),Benchmark!L70) -> 40723 | V62: =IF(Benchmark!O70="",NA(),Benchmark!O70) -> 0.1330857217 | W62: 1 | X62: 38898 | Y62: =IF(Fund!O70="",NA(),Fund!O70) -> 0.1973323762 | Z62: 38898 | AA62: =IF(Benchmark!O70="",NA(),Benchmark!O70) -> 0.1330857217 | AB62: =Benchmark!Y70 -> 0.2975320041
J63: =IF(Fund!A71="",NA(),IF(Fund!A71<startdate,NA(),Fund!A71)) -> 38901 | K63: =IF(J63=0,NA(),Fund!B71/fundnorm) -> 0.8762666775 | L63: =IF(Benchmark!A71="",NA(),IF(Benchmark!A71<startdate,NA(),Benchmark!A71)) -> 38901 | M63: =IF(L63=0,NA(),Benchmark!B71/benchnorm) -> 0.870861497 | N63: =IF(ISERROR(O63),NA(),Fund!L71) -> 40728 | O63: =IF(Fund!I71="",NA(),Fund!I71) -> 1.471552723 | P63: =IF(ISERROR(Q63),NA(),Benchmark!L71) -> 40728 | Q63: =IF(Benchmark!I71="",NA(),Benchmark!I71) -> 0.8813262517 | R63: 1 | S63: =IF(ISERROR(O63),NA(),Fund!L71) -> 40728 | T63: =IF(Fund!O71="",NA(),Fund!O71) -> 0.1981410325 | U63: =IF(ISERROR(Q63),NA(),Benchmark!L71) -> 40728 | V63: =IF(Benchmark!O71="",NA(),Benchmark!O71) -> 0.1345737517 | W63: 1 | X63: 38903 | Y63: =IF(Fund!O71="",NA(),Fund!O71) -> 0.1981410325 | Z63: 38903 | AA63: =IF(Benchmark!O71="",NA(),Benchmark!O71) -> 0.1345737517 | AB63: =Benchmark!Y71 -> 0.2969532484
J64: =IF(Fund!A72="",NA(),IF(Fund!A72<startdate,NA(),Fund!A72)) -> 38902 | K64: =IF(J64=0,NA(),Fund!B72/fundnorm) -> 0.8747842333 | L64: =IF(Benchmark!A72="",NA(),IF(Benchmark!A72<startdate,NA(),Benchmark!A72)) -> 38902 | M64: =IF(L64=0,NA(),Benchmark!B72/benchnorm) -> 0.8698792437 | N64: =IF(ISERROR(O64),NA(),Fund!L72) -> 40728 | O64: =IF(Fund!I72="",NA(),Fund!I72) -> 1.475741115 | P64: =IF(ISERROR(Q64),NA(),Benchmark!L72) -> 40728 | Q64: =IF(Benchmark!I72="",NA(),Benchmark!I72) -> 0.8834506142 | R64: 1 | S64: =IF(ISERROR(O64),NA(),Fund!L72) -> 40728 | T64: =IF(Fund!O72="",NA(),Fund!O72) -> 0.1986652792 | U64: =IF(ISERROR(Q64),NA(),Benchmark!L72) -> 40728 | V64: =IF(Benchmark!O72="",NA(),Benchmark!O72) -> 0.1349081933 | W64: 1 | X64: 38903 | Y64: =IF(Fund!O72="",NA(),Fund!O72) -> 0.1986652792 | Z64: 38903 | AA64: =IF(Benchmark!O72="",NA(),Benchmark!O72) -> 0.1349081933 | AB64: =Benchmark!Y72 -> 0.2974623301
J65: =IF(Fund!A73="",NA(),IF(Fund!A73<startdate,NA(),Fund!A73)) -> 38903 | K65: =IF(J65=0,NA(),Fund!B73/fundnorm) -> 0.8891619113 | L65: =IF(Benchmark!A73="",NA(),IF(Benchmark!A73<startdate,NA(),Benchmark!A73)) -> 38903 | M65: =IF(L65=0,NA(),Benchmark!B73/benchnorm) -> 0.8843323987 | N65: =IF(ISERROR(O65),NA(),Fund!L73) -> 40728 | O65: =IF(Fund!I73="",NA(),Fund!I73) -> 1.435708576 | P65: =IF(ISERROR(Q65),NA(),Benchmark!L73) -> 40728 | Q65: =IF(Benchmark!I73="",NA(),Benchmark!I73) -> 0.8526682933 | R65: 1 | S65: =IF(ISERROR(O65),NA(),Fund!L73) -> 40728 | T65: =IF(Fund!O73="",NA(),Fund!O73) -> 0.1948821247 | U65: =IF(ISERROR(Q65),NA(),Benchmark!L73) -> 40728 | V65: =IF(Benchmark!O73="",NA(),Benchmark!O73) -> 0.1312524498 | W65: 1 | X65: 38903 | Y65: =IF(Fund!O73="",NA(),Fund!O73) -> 0.1948821247 | Z65: 38903 | AA65: =IF(Benchmark!O73="",NA(),Benchmark!O73) -> 0.1312524498 | AB65: =Benchmark!Y73 -> 0.2975740067
J66: =IF(Fund!A74="",NA(),IF(Fund!A74<startdate,NA(),Fund!A74)) -> 38904 | K66: =IF(J66=0,NA(),Fund!B74/fundnorm) -> 0.8822269155 | L66: =IF(Benchmark!A74="",NA(),IF(Benchmark!A74<startdate,NA(),Benchmark!A74)) -> 38904 | M66: =IF(L66=0,NA(),Benchmark!B74/benchnorm) -> 0.8762228523 | N66: =IF(ISERROR(O66),NA(),Fund!L74) -> 40729 | O66: =IF(Fund!I74="",NA(),Fund!I74) -> 1.450378077 | P66: =IF(ISERROR(Q66),NA(),Benchmark!L74) -> 40729 | Q66: =IF(Benchmark!I74="",NA(),Benchmark!I74) -> 0.8648958157 | R66: =IF(ISERROR(Q66+O66),0,IF(O66>Q66,1,0)) -> 1 | S66: =IF(ISERROR(O66),NA(),Fund!L74) -> 40729 | T66: =IF(Fund!O74="",NA(),Fund!O74) -> 0.1963179529 | U66: =IF(ISERROR(Q66),NA(),Benchmark!L74) -> 40729 | V66: =IF(Benchmark!O74="",NA(),Benchmark!O74) -> 0.1327417672 | W66: 1 | X66: =IF(ISERROR(O66),NA(),S66-interval) -> 38904 | Y66: =IF(Fund!O74="",NA(),Fund!O74) -> 0.1963179529 | Z66: =IF(ISERROR(Q66),NA(), U66-interval) -> 38904 | AA66: =IF(Benchmark!O74="",NA(),Benchmark!O74) -> 0.1327417672 | AB66: =Benchmark!Y74 -> 0.2974770449
J67: =IF(Fund!A75="",NA(),IF(Fund!A75<startdate,NA(),Fund!A75)) -> 38905 | K67: =IF(J67=0,NA(),Fund!B75/fundnorm) -> 0.8642243568 | L67: =IF(Benchmark!A75="",NA(),IF(Benchmark!A75<startdate,NA(),Benchmark!A75)) -> 38905 | M67: =IF(L67=0,NA(),Benchmark!B75/benchnorm) -> 0.8568928497 | N67: =IF(ISERROR(O67),NA(),Fund!L75) -> 40730 | O67: =IF(Fund!I75="",NA(),Fund!I75) -> 1.495300421 | P67: =IF(ISERROR(Q67),NA(),Benchmark!L75) -> 40730 | Q67: =IF(Benchmark!I75="",NA(),Benchmark!I75) -> 0.9063033947 | R67: 1 | S67: =IF(ISERROR(O67),NA(),Fund!L75) -> 40730 | T67: =IF(Fund!O75="",NA(),Fund!O75) -> 0.2006725132 | U67: =IF(ISERROR(Q67),NA(),Benchmark!L75) -> 40730 | V67: =IF(Benchmark!O75="",NA(),Benchmark!O75) -> 0.1377278864 | W67: =IF(ISERROR(T67+V67),0,IF(T67>V67,1,0)) -> 1 | X67: 38905 | Y67: =IF(Fund!O75="",NA(),Fund!O75) -> 0.2006725132 | Z67: 38905 | AA67: =IF(Benchmark!O75="",NA(),Benchmark!O75) -> 0.1377278864 | AB67: =Benchmark!Y75 -> 0.2975240268
J68: =IF(Fund!A76="",NA(),IF(Fund!A76<startdate,NA(),Fund!A76)) -> 38908 | K68: =IF(J68=0,NA(),Fund!B76/fundnorm) -> 0.879414333 | L68: =IF(Benchmark!A76="",NA(),IF(Benchmark!A76<startdate,NA(),Benchmark!A76)) -> 38908 | M68: =IF(L68=0,NA(),Benchmark!B76/benchnorm) -> 0.8706841089 | N68: =IF(ISERROR(O68),NA(),Fund!L76) -> 40735 | O68: =IF(Fund!I76="",NA(),Fund!I76) -> 1.44442905 | P68: =IF(ISERROR(Q68),NA(),Benchmark!L76) -> 40735 | Q68: =IF(Benchmark!I76="",NA(),Benchmark!I76) -> 0.8716992033 | R68: 1 | S68: =IF(ISERROR(O68),NA(),Fund!L76) -> 40735 | T68: =IF(Fund!O76="",NA(),Fund!O76) -> 0.1955025375 | U68: =IF(ISERROR(Q68),NA(),Benchmark!L76) -> 40735 | V68: =IF(Benchmark!O76="",NA(),Benchmark!O76) -> 0.133411485 | W68: 1 | X68: 38910 | Y68: =IF(Fund!O76="",NA(),Fund!O76) -> 0.1955025375 | Z68: 38910 | AA68: =IF(Benchmark!O76="",NA(),Benchmark!O76) -> 0.133411485 | AB68: =Benchmark!Y76 -> 0.2974936817
J69: =IF(Fund!A77="",NA(),IF(Fund!A77<startdate,NA(),Fund!A77)) -> 38909 | K69: =IF(J69=0,NA(),Fund!B77/fundnorm) -> 0.8752208436 | L69: =IF(Benchmark!A77="",NA(),IF(Benchmark!A77<startdate,NA(),Benchmark!A77)) -> 38909 | M69: =IF(L69=0,NA(),Benchmark!B77/benchnorm) -> 0.8659449356 | N69: =IF(ISERROR(O69),NA(),Fund!L77) -> 40735 | O69: =IF(Fund!I77="",NA(),Fund!I77) -> 1.456141165 | P69: =IF(ISERROR(Q69),NA(),Benchmark!L77) -> 40735 | Q69: =IF(Benchmark!I77="",NA(),Benchmark!I77) -> 0.8819427034 | R69: 1 | S69: =IF(ISERROR(O69),NA(),Fund!L77) -> 40735 | T69: =IF(Fund!O77="",NA(),Fund!O77) -> 0.1967623532 | U69: =IF(ISERROR(Q69),NA(),Benchmark!L77) -> 40735 | V69: =IF(Benchmark!O77="",NA(),Benchmark!O77) -> 0.1347265065 | W69: 1 | X69: 38910 | Y69: =IF(Fund!O77="",NA(),Fund!O77) -> 0.1967623532 | Z69: 38910 | AA69: =IF(Benchmark!O77="",NA(),Benchmark!O77) -> 0.1347265065 | AB69: =Benchmark!Y77 -> 0.2974042899
J70: =IF(Fund!A78="",NA(),IF(Fund!A78<startdate,NA(),Fund!A78)) -> 38910 | K70: =IF(J70=0,NA(),Fund!B78/fundnorm) -> 0.8919643401 | L70: =IF(Benchmark!A78="",NA(),IF(Benchmark!A78<startdate,NA(),Benchmark!A78)) -> 38910 | M70: =IF(L70=0,NA(),Benchmark!B78/benchnorm) -> 0.8819681072 | N70: =IF(ISERROR(O70),NA(),Fund!L78) -> 40735 | O70: =IF(Fund!I78="",NA(),Fund!I78) -> 1.410035744 | P70: =IF(ISERROR(Q70),NA(),Benchmark!L78) -> 40735 | Q70: =IF(Benchmark!I78="",NA(),Benchmark!I78) -> 0.8477524751 | R70: 1 | S70: =IF(ISERROR(O70),NA(),Fund!L78) -> 40735 | T70: =IF(Fund!O78="",NA(),Fund!O78) -> 0.192352587 | U70: =IF(ISERROR(Q70),NA(),Benchmark!L78) -> 40735 | V70: =IF(Benchmark!O78="",NA(),Benchmark!O78) -> 0.1306514919 | W70: 1 | X70: 38910 | Y70: =IF(Fund!O78="",NA(),Fund!O78) -> 0.192352587 | Z70: 38910 | AA70: =IF(Benchmark!O78="",NA(),Benchmark!O78) -> 0.1306514919 | AB70: =Benchmark!Y78 -> 0.2975196842
J71: =IF(Fund!A79="",NA(),IF(Fund!A79<startdate,NA(),Fund!A79)) -> 38911 | K71: =IF(J71=0,NA(),Fund!B79/fundnorm) -> 0.8858314887 | L71: =IF(Benchmark!A79="",NA(),IF(Benchmark!A79<startdate,NA(),Benchmark!A79)) -> 38911 | M71: =IF(L71=0,NA(),Benchmark!B79/benchnorm) -> 0.8766146946 | N71: =IF(ISERROR(O71),NA(),Fund!L79) -> 40736 | O71: =IF(Fund!I79="",NA(),Fund!I79) -> 1.399005066 | P71: =IF(ISERROR(Q71),NA(),Benchmark!L79) -> 40736 | Q71: =IF(Benchmark!I79="",NA(),Benchmark!I79) -> 0.8328450619 | R71: 1 | S71: =IF(ISERROR(O71),NA(),Fund!L79) -> 40736 | T71: =IF(Fund!O79="",NA(),Fund!O79) -> 0.191259104 | U71: =IF(ISERROR(Q71),NA(),Benchmark!L79) -> 40736 | V71: =IF(Benchmark!O79="",NA(),Benchmark!O79) -> 0.1288211882 | W71: 1 | X71: 38911 | Y71: =IF(Fund!O79="",NA(),Fund!O79) -> 0.191259104 | Z71: 38911 | AA71: =IF(Benchmark!O79="",NA(),Benchmark!O79) -> 0.1288211882 | AB71: =Benchmark!Y79 -> 0.2975343292
J72: =IF(Fund!A80="",NA(),IF(Fund!A80<startdate,NA(),Fund!A80)) -> 38912 | K72: =IF(J72=0,NA(),Fund!B80/fundnorm) -> 0.8774343562 | L72: =IF(Benchmark!A80="",NA(),IF(Benchmark!A80<startdate,NA(),Benchmark!A80)) -> 38912 | M72: =IF(L72=0,NA(),Benchmark!B80/benchnorm) -> 0.8664215005 | N72: =IF(ISERROR(O72),NA(),Fund!L80) -> 40737 | O72: =IF(Fund!I80="",NA(),Fund!I80) -> 1.445420355 | P72: =IF(ISERROR(Q72),NA(),Benchmark!L80) -> 40737 | Q72: =IF(Benchmark!I80="",NA(),Benchmark!I80) -> 0.8748601986 | R72: 1 | S72: =IF(ISERROR(O72),NA(),Fund!L80) -> 40737 | T72: =IF(Fund!O80="",NA(),Fund!O80) -> 0.1958334744 | U72: =IF(ISERROR(Q72),NA(),Benchmark!L80) -> 40737 | V72: =IF(Benchmark!O80="",NA(),Benchmark!O80) -> 0.1339496672 | W72: 1 | X72: 38912 | Y72: =IF(Fund!O80="",NA(),Fund!O80) -> 0.1958334744 | Z72: 38912 | AA72: =IF(Benchmark!O80="",NA(),Benchmark!O80) -> 0.1339496672 | AB72: =Benchmark!Y80 -> 0.2975228386
J73: =IF(Fund!A81="",NA(),IF(Fund!A81<startdate,NA(),Fund!A81)) -> 38915 | K73: =IF(J73=0,NA(),Fund!B81/fundnorm) -> 0.8507706679 | L73: =IF(Benchmark!A81="",NA(),IF(Benchmark!A81<startdate,NA(),Benchmark!A81)) -> 38915 | M73: =IF(L73=0,NA(),Benchmark!B81/benchnorm) -> 0.8364243864 | N73: =IF(ISERROR(O73),NA(),Fund!L81) -> 40742 | O73: =IF(Fund!I81="",NA(),Fund!I81) -> 1.519053814 | P73: =IF(ISERROR(Q73),NA(),Benchmark!L81) -> 40742 | Q73: =IF(Benchmark!I81="",NA(),Benchmark!I81) -> 0.9434223854 | R73: 1 | S73: =IF(ISERROR(O73),NA(),Fund!L81) -> 40742 | T73: =IF(Fund!O81="",NA(),Fund!O81) -> 0.2027064621 | U73: =IF(ISERROR(Q73),NA(),Benchmark!L81) -> 40742 | V73: =IF(Benchmark!O81="",NA(),Benchmark!O81) -> 0.141958338 | W73: 1 | X73: 38917 | Y73: =IF(Fund!O81="",NA(),Fund!O81) -> 0.2027064621 | Z73: 38917 | AA73: =IF(Benchmark!O81="",NA(),Benchmark!O81) -> 0.141958338 | AB73: =Benchmark!Y81 -> 0.2975859108
J74: =IF(Fund!A82="",NA(),IF(Fund!A82<startdate,NA(),Fund!A82)) -> 38916 | K74: =IF(J74=0,NA(),Fund!B82/fundnorm) -> 0.8464857949 | L74: =IF(Benchmark!A82="",NA(),IF(Benchmark!A82<startdate,NA(),Benchmark!A82)) -> 38916 | M74: =IF(L74=0,NA(),Benchmark!B82/benchnorm) -> 0.8292388464 | N74: =IF(ISERROR(O74),NA(),Fund!L82) -> 40742 | O74: =IF(Fund!I82="",NA(),Fund!I82) -> 1.531805151 | P74: =IF(ISERROR(Q74),NA(),Benchmark!L82) -> 40742 | Q74: =IF(Benchmark!I82="",NA(),Benchmark!I82) -> 0.9602625748 | R74: 1 | S74: =IF(ISERROR(O74),NA(),Fund!L82) -> 40742 | T74: =IF(Fund!O82="",NA(),Fund!O82) -> 0.2040426433 | U74: =IF(ISERROR(Q74),NA(),Benchmark!L82) -> 40742 | V74: =IF(Benchmark!O82="",NA(),Benchmark!O82) -> 0.1440126717 | W74: 1 | X74: 38917 | Y74: =IF(Fund!O82="",NA(),Fund!O82) -> 0.2040426433 | Z74: 38917 | AA74: =IF(Benchmark!O82="",NA(),Benchmark!O82) -> 0.1440126717 | AB74: =Benchmark!Y82 -> 0.297424493
J75: =IF(Fund!A83="",NA(),IF(Fund!A83<startdate,NA(),Fund!A83)) -> 38917 | K75: =IF(J75=0,NA(),Fund!B83/fundnorm) -> 0.8284426213 | L75: =IF(Benchmark!A83="",NA(),IF(Benchmark!A83<startdate,NA(),Benchmark!A83)) -> 38917 | M75: =IF(L75=0,NA(),Benchmark!B83/benchnorm) -> 0.8098161783 | N75: =IF(ISERROR(O75),NA(),Fund!L83) -> 40742 | O75: =IF(Fund!I83="",NA(),Fund!I83) -> 1.58694693 | P75: =IF(ISERROR(Q75),NA(),Benchmark!L83) -> 40742 | Q75: =IF(Benchmark!I83="",NA(),Benchmark!I83) -> 1.007277602 | R75: 1 | S75: =IF(ISERROR(O75),NA(),Fund!L83) -> 40742 | T75: =IF(Fund!O83="",NA(),Fund!O83) -> 0.2093653023 | U75: =IF(ISERROR(Q75),NA(),Benchmark!L83) -> 40742 | V75: =IF(Benchmark!O83="",NA(),Benchmark!O83) -> 0.1495331228 | W75: 1 | X75: 38917 | Y75: =IF(Fund!O83="",NA(),Fund!O83) -> 0.2093653023 | Z75: 38917 | AA75: =IF(Benchmark!O83="",NA(),Benchmark!O83) -> 0.1495331228 | AB75: =Benchmark!Y83 -> 0.2973955933
J76: =IF(Fund!A84="",NA(),IF(Fund!A84<startdate,NA(),Fund!A84)) -> 38918 | K76: =IF(J76=0,NA(),Fund!B84/fundnorm) -> 0.8495725281 | L76: =IF(Benchmark!A84="",NA(),IF(Benchmark!A84<startdate,NA(),Benchmark!A84)) -> 38918 | M76: =IF(L76=0,NA(),Benchmark!B84/benchnorm) -> 0.8312615997 | N76: =IF(ISERROR(O76),NA(),Fund!L84) -> 40743 | O76: =IF(Fund!I84="",NA(),Fund!I84) -> 1.53918323 | P76: =IF(ISERROR(Q76),NA(),Benchmark!L84) -> 40743 | Q76: =IF(Benchmark!I84="",NA(),Benchmark!I84) -> 0.9685638755 | R76: 1 | S76: =IF(ISERROR(O76),NA(),Fund!L84) -> 40743 | T76: =IF(Fund!O84="",NA(),Fund!O84) -> 0.2048661649 | U76: =IF(ISERROR(Q76),NA(),Benchmark!L84) -> 40743 | V76: =IF(Benchmark!O84="",NA(),Benchmark!O84) -> 0.1450643718 | W76: 1 | X76: 38918 | Y76: =IF(Fund!O84="",NA(),Fund!O84) -> 0.2048661649 | Z76: 38918 | AA76: =IF(Benchmark!O84="",NA(),Benchmark!O84) -> 0.1450643718 | AB76: =Benchmark!Y84 -> 0.297169087
J77: =IF(Fund!A85="",NA(),IF(Fund!A85<startdate,NA(),Fund!A85)) -> 38919 | K77: =IF(J77=0,NA(),Fund!B85/fundnorm) -> 0.8323518063 | L77: =IF(Benchmark!A85="",NA(),IF(Benchmark!A85<startdate,NA(),Benchmark!A85)) -> 38919 | M77: =IF(L77=0,NA(),Benchmark!B85/benchnorm) -> 0.8097261605 | N77: =IF(ISERROR(O77),NA(),Fund!L85) -> 40744 | O77: =IF(Fund!I85="",NA(),Fund!I85) -> 1.565855444 | P77: =IF(ISERROR(Q77),NA(),Benchmark!L85) -> 40744 | Q77: =IF(Benchmark!I85="",NA(),Benchmark!I85) -> 1.002877359 | R77: 1 | S77: =IF(ISERROR(O77),NA(),Fund!L85) -> 40744 | T77: =IF(Fund!O85="",NA(),Fund!O85) -> 0.2073868334 | U77: =IF(ISERROR(Q77),NA(),Benchmark!L85) -> 40744 | V77: =IF(Benchmark!O85="",NA(),Benchmark!O85) -> 0.1490286887 | W77: 1 | X77: 38919 | Y77: =IF(Fund!O85="",NA(),Fund!O85) -> 0.2073868334 | Z77: 38919 | AA77: =IF(Benchmark!O85="",NA(),Benchmark!O85) -> 0.1490286887 | AB77: =Benchmark!Y85 -> 0.2969540711
J78: =IF(Fund!A86="",NA(),IF(Fund!A86<startdate,NA(),Fund!A86)) -> 38922 | K78: =IF(J78=0,NA(),Fund!B86/fundnorm) -> 0.8393274171 | L78: =IF(Benchmark!A86="",NA(),IF(Benchmark!A86<startdate,NA(),Benchmark!A86)) -> 38922 | M78: =IF(L78=0,NA(),Benchmark!B86/benchnorm) -> 0.8161121304 | N78: =IF(ISERROR(O78),NA(),Fund!L86) -> 40749 | O78: =IF(Fund!I86="",NA(),Fund!I86) -> 1.59091239 | P78: =IF(ISERROR(Q78),NA(),Benchmark!L86) -> 40749 | Q78: =IF(Benchmark!I86="",NA(),Benchmark!I86) -> 1.022734941 | R78: 1 | S78: =IF(ISERROR(O78),NA(),Fund!L86) -> 40749 | T78: =IF(Fund!O86="",NA(),Fund!O86) -> 0.2094837129 | U78: =IF(ISERROR(Q78),NA(),Benchmark!L86) -> 40749 | V78: =IF(Benchmark!O86="",NA(),Benchmark!O86) -> 0.1511205614 | W78: 1 | X78: 38924 | Y78: =IF(Fund!O86="",NA(),Fund!O86) -> 0.2094837129 | Z78: 38924 | AA78: =IF(Benchmark!O86="",NA(),Benchmark!O86) -> 0.1511205614 | AB78: =Benchmark!Y86 -> 0.2967980934
J79: =IF(Fund!A87="",NA(),IF(Fund!A87<startdate,NA(),Fund!A87)) -> 38923 | K79: =IF(J79=0,NA(),Fund!B87/fundnorm) -> 0.853522328 | L79: =IF(Benchmark!A87="",NA(),IF(Benchmark!A87<startdate,NA(),Benchmark!A87)) -> 38923 | M79: =IF(L79=0,NA(),Benchmark!B87/benchnorm) -> 0.8335808823 | N79: =IF(ISERROR(O79),NA(),Fund!L87) -> 40749 | O79: =IF(Fund!I87="",NA(),Fund!I87) -> 1.547822984 | P79: =IF(ISERROR(Q79),NA(),Benchmark!L87) -> 40749 | Q79: =IF(Benchmark!I87="",NA(),Benchmark!I87) -> 0.9803459469 | R79: 1 | S79: =IF(ISERROR(O79),NA(),Fund!L87) -> 40749 | T79: =IF(Fund!O87="",NA(),Fund!O87) -> 0.2055614769 | U79: =IF(ISERROR(Q79),NA(),Benchmark!L87) -> 40749 | V79: =IF(Benchmark!O87="",NA(),Benchmark!O87) -> 0.146345979 | W79: 1 | X79: 38924 | Y79: =IF(Fund!O87="",NA(),Fund!O87) -> 0.2055614769 | Z79: 38924 | AA79: =IF(Benchmark!O87="",NA(),Benchmark!O87) -> 0.146345979 | AB79: =Benchmark!Y87 -> 0.2968027156
J80: =IF(Fund!A88="",NA(),IF(Fund!A88<startdate,NA(),Fund!A88)) -> 38924 | K80: =IF(J80=0,NA(),Fund!B88/fundnorm) -> 0.8737180919 | L80: =IF(Benchmark!A88="",NA(),IF(Benchmark!A88<startdate,NA(),Benchmark!A88)) -> 38924 | M80: =IF(L80=0,NA(),Benchmark!B88/benchnorm) -> 0.8518968608 | N80: =IF(ISERROR(O80),NA(),Fund!L88) -> 40749 | O80: =IF(Fund!I88="",NA(),Fund!I88) -> 1.488930726 | P80: =IF(ISERROR(Q80),NA(),Benchmark!L88) -> 40749 | Q80: =IF(Benchmark!I88="",NA(),Benchmark!I88) -> 0.9377680536 | R80: 1 | S80: =IF(ISERROR(O80),NA(),Fund!L88) -> 40749 | T80: =IF(Fund!O88="",NA(),Fund!O88) -> 0.2000588953 | U80: =IF(ISERROR(Q80),NA(),Benchmark!L88) -> 40749 | V80: =IF(Benchmark!O88="",NA(),Benchmark!O88) -> 0.1414591134 | W80: 1 | X80: 38924 | Y80: =IF(Fund!O88="",NA(),Fund!O88) -> 0.2000588953 | Z80: 38924 | AA80: =IF(Benchmark!O88="",NA(),Benchmark!O88) -> 0.1414591134 | AB80: =Benchmark!Y88 -> 0.2966745149
J81: =IF(Fund!A89="",NA(),IF(Fund!A89<startdate,NA(),Fund!A89)) -> 38925 | K81: =IF(J81=0,NA(),Fund!B89/fundnorm) -> 0.8847247324 | L81: =IF(Benchmark!A89="",NA(),IF(Benchmark!A89<startdate,NA(),Benchmark!A89)) -> 38925 | M81: =IF(L81=0,NA(),Benchmark!B89/benchnorm) -> 0.8630431847 | N81: =IF(ISERROR(O81),NA(),Fund!L89) -> 40750 | O81: =IF(Fund!I89="",NA(),Fund!I89) -> 1.418647355 | P81: =IF(ISERROR(Q81),NA(),Benchmark!L89) -> 40750 | Q81: =IF(Benchmark!I89="",NA(),Benchmark!I89) -> 0.8823126998 | R81: 1 | S81: =IF(ISERROR(O81),NA(),Fund!L89) -> 40750 | T81: =IF(Fund!O89="",NA(),Fund!O89) -> 0.1932034791 | U81: =IF(ISERROR(Q81),NA(),Benchmark!L89) -> 40750 | V81: =IF(Benchmark!O89="",NA(),Benchmark!O89) -> 0.1348497212 | W81: 1 | X81: 38925 | Y81: =IF(Fund!O89="",NA(),Fund!O89) -> 0.1932034791 | Z81: 38925 | AA81: =IF(Benchmark!O89="",NA(),Benchmark!O89) -> 0.1348497212 | AB81: =Benchmark!Y89 -> 0.2965152577
J82: =IF(Fund!A90="",NA(),IF(Fund!A90<startdate,NA(),Fund!A90)) -> 38926 | K82: =IF(J82=0,NA(),Fund!B90/fundnorm) -> 0.8800540178 | L82: =IF(Benchmark!A90="",NA(),IF(Benchmark!A90<startdate,NA(),Benchmark!A90)) -> 38926 | M82: =IF(L82=0,NA(),Benchmark!B90/benchnorm) -> 0.8619709137 | N82: =IF(ISERROR(O82),NA(),Fund!L90) -> 40751 | O82: =IF(Fund!I90="",NA(),Fund!I90) -> 1.424711271 | P82: =IF(ISERROR(Q82),NA(),Benchmark!L90) -> 40751 | Q82: =IF(Benchmark!I90="",NA(),Benchmark!I90) -> 0.8790609671 | R82: 1 | S82: =IF(ISERROR(O82),NA(),Fund!L90) -> 40751 | T82: =IF(Fund!O90="",NA(),Fund!O90) -> 0.1938011825 | U82: =IF(ISERROR(Q82),NA(),Benchmark!L90) -> 40751 | V82: =IF(Benchmark!O90="",NA(),Benchmark!O90) -> 0.1344573557 | W82: 1 | X82: 38926 | Y82: =IF(Fund!O90="",NA(),Fund!O90) -> 0.1938011825 | Z82: 38926 | AA82: =IF(Benchmark!O90="",NA(),Benchmark!O90) -> 0.1344573557 | AB82: =Benchmark!Y90 -> 0.2968629235
J83: =IF(Fund!A91="",NA(),IF(Fund!A91<startdate,NA(),Fund!A91)) -> 38929 | K83: =IF(J83=0,NA(),Fund!B91/fundnorm) -> 0.8878520805 | L83: =IF(Benchmark!A91="",NA(),IF(Benchmark!A91<startdate,NA(),Benchmark!A91)) -> 38929 | M83: =IF(L83=0,NA(),Benchmark!B91/benchnorm) -> 0.8677108734 | N83: =IF(ISERROR(O83),NA(),Fund!L91) -> 40756 | O83: =IF(Fund!I91="",NA(),Fund!I91) -> 1.388170309 | P83: =IF(ISERROR(Q83),NA(),Benchmark!L91) -> 40756 | Q83: =IF(Benchmark!I91="",NA(),Benchmark!I91) -> 0.8459435462 | R83: 1 | S83: =IF(ISERROR(O83),NA(),Fund!L91) -> 40756 | T83: =IF(Fund!O91="",NA(),Fund!O91) -> 0.1899543107 | U83: =IF(ISERROR(Q83),NA(),Benchmark!L91) -> 40756 | V83: =IF(Benchmark!O91="",NA(),Benchmark!O91) -> 0.1302783191 | W83: 1 | X83: 38931 | Y83: =IF(Fund!O91="",NA(),Fund!O91) -> 0.1899543107 | Z83: 38931 | AA83: =IF(Benchmark!O91="",NA(),Benchmark!O91) -> 0.1302783191 | AB83: =Benchmark!Y91 -> 0.2968727861
J84: =IF(Fund!A92="",NA(),IF(Fund!A92<startdate,NA(),Fund!A92)) -> 38930 | K84: =IF(J84=0,NA(),Fund!B92/fundnorm) -> 0.8863696363 | L84: =IF(Benchmark!A92="",NA(),IF(Benchmark!A92<startdate,NA(),Benchmark!A92)) -> 38930 | M84: =IF(L84=0,NA(),Benchmark!B92/benchnorm) -> 0.8667286201 | N84: =IF(ISERROR(O84),NA(),Fund!L92) -> 40756 | O84: =IF(Fund!I92="",NA(),Fund!I92) -> 1.3921645 | P84: =IF(ISERROR(Q84),NA(),Benchmark!L92) -> 40756 | Q84: =IF(Benchmark!I92="",NA(),Benchmark!I92) -> 0.8480355321 | R84: 1 | S84: =IF(ISERROR(O84),NA(),Fund!L92) -> 40756 | T84: =IF(Fund!O92="",NA(),Fund!O92) -> 0.1904652417 | U84: =IF(ISERROR(Q84),NA(),Benchmark!L92) -> 40756 | V84: =IF(Benchmark!O92="",NA(),Benchmark!O92) -> 0.1306100786 | W84: 1 | X84: 38931 | Y84: =IF(Fund!O92="",NA(),Fund!O92) -> 0.1904652417 | Z84: 38931 | AA84: =IF(Benchmark!O92="",NA(),Benchmark!O92) -> 0.1306100786 | AB84: =Benchmark!Y92 -> 0.2968655961
J85: =IF(Fund!A93="",NA(),IF(Fund!A93<startdate,NA(),Fund!A93)) -> 38931 | K85: =IF(J85=0,NA(),Fund!B93/fundnorm) -> 0.8948175375 | L85: =IF(Benchmark!A93="",NA(),IF(Benchmark!A93<startdate,NA(),Benchmark!A93)) -> 38931 | M85: =IF(L85=0,NA(),Benchmark!B93/benchnorm) -> 0.8779252481 | N85: =IF(ISERROR(O85),NA(),Fund!L93) -> 40756 | O85: =IF(Fund!I93="",NA(),Fund!I93) -> 1.369580265 | P85: =IF(ISERROR(Q85),NA(),Benchmark!L93) -> 40756 | Q85: =IF(Benchmark!I93="",NA(),Benchmark!I93) -> 0.8244665933 | R85: 1 | S85: =IF(ISERROR(O85),NA(),Fund!L93) -> 40756 | T85: =IF(Fund!O93="",NA(),Fund!O93) -> 0.188322407 | U85: =IF(ISERROR(Q85),NA(),Benchmark!L93) -> 40756 | V85: =IF(Benchmark!O93="",NA(),Benchmark!O93) -> 0.1277872622 | W85: 1 | X85: 38931 | Y85: =IF(Fund!O93="",NA(),Fund!O93) -> 0.188322407 | Z85: 38931 | AA85: =IF(Benchmark!O93="",NA(),Benchmark!O93) -> 0.1277872622 | AB85: =Benchmark!Y93 -> 0.2972953559
J86: =IF(Fund!A94="",NA(),IF(Fund!A94<startdate,NA(),Fund!A94)) -> 38932 | K86: =IF(J86=0,NA(),Fund!B94/fundnorm) -> 0.8977215036 | L86: =IF(Benchmark!A94="",NA(),IF(Benchmark!A94<startdate,NA(),Benchmark!A94)) -> 38932 | M86: =IF(L86=0,NA(),Benchmark!B94/benchnorm) -> 0.8808455321 | N86: =IF(ISERROR(O86),NA(),Fund!L94) -> 40757 | O86: =IF(Fund!I94="",NA(),Fund!I94) -> 1.338423083 | P86: =IF(ISERROR(Q86),NA(),Benchmark!L94) -> 40757 | Q86: =IF(Benchmark!I94="",NA(),Benchmark!I94) -> 0.7989377754 | R86: 1 | S86: =IF(ISERROR(O86),NA(),Fund!L94) -> 40757 | T86: =IF(Fund!O94="",NA(),Fund!O94) -> 0.185180825 | U86: =IF(ISERROR(Q86),NA(),Benchmark!L94) -> 40757 | V86: =IF(Benchmark!O94="",NA(),Benchmark!O94) -> 0.1246133387 | W86: 1 | X86: 38932 | Y86: =IF(Fund!O94="",NA(),Fund!O94) -> 0.185180825 | Z86: 38932 | AA86: =IF(Benchmark!O94="",NA(),Benchmark!O94) -> 0.1246133387 | AB86: =Benchmark!Y94 -> 0.2972383189
J87: =IF(Fund!A95="",NA(),IF(Fund!A95<startdate,NA(),Fund!A95)) -> 38933 | K87: =IF(J87=0,NA(),Fund!B95/fundnorm) -> 0.892786792 | L87: =IF(Benchmark!A95="",NA(),IF(Benchmark!A95<startdate,NA(),Benchmark!A95)) -> 38933 | M87: =IF(L87=0,NA(),Benchmark!B95/benchnorm) -> 0.8765034961 | N87: =IF(ISERROR(O87),NA(),Fund!L95) -> 40758 | O87: =IF(Fund!I95="",NA(),Fund!I95) -> 1.335858155 | P87: =IF(ISERROR(Q87),NA(),Benchmark!L95) -> 40758 | Q87: =IF(Benchmark!I95="",NA(),Benchmark!I95) -> 0.7940753584 | R87: 1 | S87: =IF(ISERROR(O87),NA(),Fund!L95) -> 40758 | T87: =IF(Fund!O95="",NA(),Fund!O95) -> 0.1849207222 | U87: =IF(ISERROR(Q87),NA(),Benchmark!L95) -> 40758 | V87: =IF(Benchmark!O95="",NA(),Benchmark!O95) -> 0.1240047276 | W87: 1 | X87: 38933 | Y87: =IF(Fund!O95="",NA(),Fund!O95) -> 0.1849207222 | Z87: 38933 | AA87: =IF(Benchmark!O95="",NA(),Benchmark!O95) -> 0.1240047276 | AB87: =Benchmark!Y95 -> 0.2972356627
J88: =IF(Fund!A96="",NA(),IF(Fund!A96<startdate,NA(),Fund!A96)) -> 38936 | K88: =IF(J88=0,NA(),Fund!B96/fundnorm) -> 0.8895883679 | L88: =IF(Benchmark!A96="",NA(),IF(Benchmark!A96<startdate,NA(),Benchmark!A96)) -> 38936 | M88: =IF(L88=0,NA(),Benchmark!B96/benchnorm) -> 0.8724950556 | N88: =IF(ISERROR(O88),NA(),Fund!L96) -> 40763 | O88: =IF(Fund!I96="",NA(),Fund!I96) -> 1.251951787 | P88: =IF(ISERROR(Q88),NA(),Benchmark!L96) -> 40763 | Q88: =IF(Benchmark!I96="",NA(),Benchmark!I96) -> 0.7161380574 | R88: 1 | S88: =IF(ISERROR(O88),NA(),Fund!L96) -> 40763 | T88: =IF(Fund!O96="",NA(),Fund!O96) -> 0.1760739505 | U88: =IF(ISERROR(Q88),NA(),Benchmark!L96) -> 40763 | V88: =IF(Benchmark!O96="",NA(),Benchmark!O96) -> 0.1139330566 | W88: 1 | X88: 38938 | Y88: =IF(Fund!O96="",NA(),Fund!O96) -> 0.1760739505 | Z88: 38938 | AA88: =IF(Benchmark!O96="",NA(),Benchmark!O96) -> 0.1139330566 | AB88: =Benchmark!Y96 -> 0.2972958624
J89: =IF(Fund!A97="",NA(),IF(Fund!A97<startdate,NA(),Fund!A97)) -> 38937 | K89: =IF(J89=0,NA(),Fund!B97/fundnorm) -> 0.9036512804 | L89: =IF(Benchmark!A97="",NA(),IF(Benchmark!A97<startdate,NA(),Benchmark!A97)) -> 38937 | M89: =IF(L89=0,NA(),Benchmark!B97/benchnorm) -> 0.8876074588 | N89: =IF(ISERROR(O89),NA(),Fund!L97) -> 40763 | O89: =IF(Fund!I97="",NA(),Fund!I97) -> 1.216906188 | P89: =IF(ISERROR(Q89),NA(),Benchmark!L97) -> 40763 | Q89: =IF(Benchmark!I97="",NA(),Benchmark!I97) -> 0.6869190937 | R89: 1 | S89: =IF(ISERROR(O89),NA(),Fund!L97) -> 40763 | T89: =IF(Fund!O97="",NA(),Fund!O97) -> 0.172496599 | U89: =IF(ISERROR(Q89),NA(),Benchmark!L97) -> 40763 | V89: =IF(Benchmark!O97="",NA(),Benchmark!O97) -> 0.1101814806 | W89: 1 | X89: 38938 | Y89: =IF(Fund!O97="",NA(),Fund!O97) -> 0.172496599 | Z89: 38938 | AA89: =IF(Benchmark!O97="",NA(),Benchmark!O97) -> 0.1101814806 | AB89: =Benchmark!Y97 -> 0.297319581
J90: =IF(Fund!A98="",NA(),IF(Fund!A98<startdate,NA(),Fund!A98)) -> 38938 | K90: =IF(J90=0,NA(),Fund!B98/fundnorm) -> 0.9167902037 | L90: =IF(Benchmark!A98="",NA(),IF(Benchmark!A98<startdate,NA(),Benchmark!A98)) -> 38938 | M90: =IF(L90=0,NA(),Benchmark!B98/benchnorm) -> 0.8998445869 | N90: =IF(ISERROR(O90),NA(),Fund!L98) -> 40763 | O90: =IF(Fund!I98="",NA(),Fund!I98) -> 1.185134731 | P90: =IF(ISERROR(Q90),NA(),Benchmark!L98) -> 40763 | Q90: =IF(Benchmark!I98="",NA(),Benchmark!I98) -> 0.6639784155 | R90: 1 | S90: =IF(ISERROR(O90),NA(),Fund!L98) -> 40763 | T90: =IF(Fund!O98="",NA(),Fund!O98) -> 0.1692184031 | U90: =IF(ISERROR(Q90),NA(),Benchmark!L98) -> 40763 | V90: =IF(Benchmark!O98="",NA(),Benchmark!O98) -> 0.1072088182 | W90: 1 | X90: 38938 | Y90: =IF(Fund!O98="",NA(),Fund!O98) -> 0.1692184031 | Z90: 38938 | AA90: =IF(Benchmark!O98="",NA(),Benchmark!O98) -> 0.1072088182 | AB90: =Benchmark!Y98 -> 0.2972148991
J91: =IF(Fund!A99="",NA(),IF(Fund!A99<startdate,NA(),Fund!A99)) -> 38939 | K91: =IF(J91=0,NA(),Fund!B99/fundnorm) -> 0.9195317101 | L91: =IF(Benchmark!A99="",NA(),IF(Benchmark!A99<startdate,NA(),Benchmark!A99)) -> 38939 | M91: =IF(L91=0,NA(),Benchmark!B99/benchnorm) -> 0.9060213978 | N91: =IF(ISERROR(O91),NA(),Fund!L99) -> 40764 | O91: =IF(Fund!I99="",NA(),Fund!I99) -> 1.152714745 | P91: =IF(ISERROR(Q91),NA(),Benchmark!L99) -> 40764 | Q91: =IF(Benchmark!I99="",NA(),Benchmark!I99) -> 0.6356561964 | R91: 1 | S91: =IF(ISERROR(O91),NA(),Fund!L99) -> 40764 | T91: =IF(Fund!O99="",NA(),Fund!O99) -> 0.1657281816 | U91: =IF(ISERROR(Q91),NA(),Benchmark!L99) -> 40764 | V91: =IF(Benchmark!O99="",NA(),Benchmark!O99) -> 0.1034137785 | W91: 1 | X91: 38939 | Y91: =IF(Fund!O99="",NA(),Fund!O99) -> 0.1657281816 | Z91: 38939 | AA91: =IF(Benchmark!O99="",NA(),Benchmark!O99) -> 0.1034137785 | AB91: =Benchmark!Y99 -> 0.2971610338
J92: =IF(Fund!A100="",NA(),IF(Fund!A100<startdate,NA(),Fund!A100)) -> 38940 | K92: =IF(J92=0,NA(),Fund!B100/fundnorm) -> 0.9229129013 | L92: =IF(Benchmark!A100="",NA(),IF(Benchmark!A100<startdate,NA(),Benchmark!A100)) -> 38940 | M92: =IF(L92=0,NA(),Benchmark!B100/benchnorm) -> 0.9124206056 | N92: =IF(ISERROR(O92),NA(),Fund!L100) -> 40765 | O92: =IF(Fund!I100="",NA(),Fund!I100) -> 1.17668933 | P92: =IF(ISERROR(Q92),NA(),Benchmark!L100) -> 40765 | Q92: =IF(Benchmark!I100="",NA(),Benchmark!I100) -> 0.6539097683 | R92: 1 | S92: =IF(ISERROR(O92),NA(),Fund!L100) -> 40765 | T92: =IF(Fund!O100="",NA(),Fund!O100) -> 0.1683132112 | U92: =IF(ISERROR(Q92),NA(),Benchmark!L100) -> 40765 | V92: =IF(Benchmark!O100="",NA(),Benchmark!O100) -> 0.1058656394 | W92: 1 | X92: 38940 | Y92: =IF(Fund!O100="",NA(),Fund!O100) -> 0.1683132112 | Z92: 38940 | AA92: =IF(Benchmark!O100="",NA(),Benchmark!O100) -> 0.1058656394 | AB92: =Benchmark!Y100 -> 0.2971793698
J93: =IF(Fund!A101="",NA(),IF(Fund!A101<startdate,NA(),Fund!A101)) -> 38943 | K93: =IF(J93=0,NA(),Fund!B101/fundnorm) -> 0.9354629084 | L93: =IF(Benchmark!A101="",NA(),IF(Benchmark!A101<startdate,NA(),Benchmark!A101)) -> 38943 | M93: =IF(L93=0,NA(),Benchmark!B101/benchnorm) -> 0.9253831714 | N93: =IF(ISERROR(O93),NA(),Fund!L101) -> 40771 | O93: =IF(Fund!I101="",NA(),Fund!I101) -> 1.091794204 | P93: =IF(ISERROR(Q93),NA(),Benchmark!L101) -> 40771 | Q93: =IF(Benchmark!I101="",NA(),Benchmark!I101) -> 0.5914311055 | R93: 1 | S93: =IF(ISERROR(O93),NA(),Fund!L101) -> 40771 | T93: =IF(Fund!O101="",NA(),Fund!O101) -> 0.1587735832 | U93: =IF(ISERROR(Q93),NA(),Benchmark!L101) -> 40771 | V93: =IF(Benchmark!O101="",NA(),Benchmark!O101) -> 0.0972139895 | W93: 1 | X93: 38946 | Y93: =IF(Fund!O101="",NA(),Fund!O101) -> 0.1587735832 | Z93: 38946 | AA93: =IF(Benchmark!O101="",NA(),Benchmark!O101) -> 0.0972139895 | AB93: =Benchmark!Y101 -> 0.2972229285
J94: =IF(Fund!A102="",NA(),IF(Fund!A102<startdate,NA(),Fund!A102)) -> 38945 | K94: =IF(J94=0,NA(),Fund!B102/fundnorm) -> 0.9483276811 | L94: =IF(Benchmark!A102="",NA(),IF(Benchmark!A102<startdate,NA(),Benchmark!A102)) -> 38945 | M94: =IF(L94=0,NA(),Benchmark!B102/benchnorm) -> 0.9384622309 | N94: =IF(ISERROR(O94),NA(),Fund!L102) -> 40771 | O94: =IF(Fund!I102="",NA(),Fund!I102) -> 1.063417455 | P94: =IF(ISERROR(Q94),NA(),Benchmark!L102) -> 40771 | Q94: =IF(Benchmark!I102="",NA(),Benchmark!I102) -> 0.5692518197 | R94: 1 | S94: =IF(ISERROR(O94),NA(),Fund!L102) -> 40771 | T94: =IF(Fund!O102="",NA(),Fund!O102) -> 0.15580073 | U94: =IF(ISERROR(Q94),NA(),Benchmark!L102) -> 40771 | V94: =IF(Benchmark!O102="",NA(),Benchmark!O102) -> 0.09425135553 | W94: 1 | X94: 38946 | Y94: =IF(Fund!O102="",NA(),Fund!O102) -> 0.15580073 | Z94: 38946 | AA94: =IF(Benchmark!O102="",NA(),Benchmark!O102) -> 0.09425135553 | AB94: =Benchmark!Y102 -> 0.2972439659
J95: =IF(Fund!A103="",NA(),IF(Fund!A103<startdate,NA(),Fund!A103)) -> 38946 | K95: =IF(J95=0,NA(),Fund!B103/fundnorm) -> 0.9475661515 | L95: =IF(Benchmark!A103="",NA(),IF(Benchmark!A103<startdate,NA(),Benchmark!A103)) -> 38946 | M95: =IF(L95=0,NA(),Benchmark!B103/benchnorm) -> 0.9357881722 | N95: =IF(ISERROR(O95),NA(),Fund!L103) -> 40771 | O95: =IF(Fund!I103="",NA(),Fund!I103) -> 1.065075759 | P95: =IF(ISERROR(Q95),NA(),Benchmark!L103) -> 40771 | Q95: =IF(Benchmark!I103="",NA(),Benchmark!I103) -> 0.5737360306 | R95: 1 | S95: =IF(ISERROR(O95),NA(),Fund!L103) -> 40771 | T95: =IF(Fund!O103="",NA(),Fund!O103) -> 0.1560781658 | U95: =IF(ISERROR(Q95),NA(),Benchmark!L103) -> 40771 | V95: =IF(Benchmark!O103="",NA(),Benchmark!O103) -> 0.09493005574 | W95: 1 | X95: 38946 | Y95: =IF(Fund!O103="",NA(),Fund!O103) -> 0.1560781658 | Z95: 38946 | AA95: =IF(Benchmark!O103="",NA(),Benchmark!O103) -> 0.09493005574 | AB95: =Benchmark!Y103 -> 0.2972228768
J96: =IF(Fund!A104="",NA(),IF(Fund!A104<startdate,NA(),Fund!A104)) -> 38947 | K96: =IF(J96=0,NA(),Fund!B104/fundnorm) -> 0.9496984343 | L96: =IF(Benchmark!A104="",NA(),IF(Benchmark!A104<startdate,NA(),Benchmark!A104)) -> 38947 | M96: =IF(L96=0,NA(),Benchmark!B104/benchnorm) -> 0.9383139663 | N96: =IF(ISERROR(O96),NA(),Fund!L104) -> 40772 | O96: =IF(Fund!I104="",NA(),Fund!I104) -> 1.060685113 | P96: =IF(ISERROR(Q96),NA(),Benchmark!L104) -> 40772 | Q96: =IF(Benchmark!I104="",NA(),Benchmark!I104) -> 0.570092324 | R96: 1 | S96: =IF(ISERROR(O96),NA(),Fund!L104) -> 40772 | T96: =IF(Fund!O104="",NA(),Fund!O104) -> 0.1555861413 | U96: =IF(ISERROR(Q96),NA(),Benchmark!L104) -> 40772 | V96: =IF(Benchmark!O104="",NA(),Benchmark!O104) -> 0.09442256391 | W96: 1 | X96: 38947 | Y96: =IF(Fund!O104="",NA(),Fund!O104) -> 0.1555861413 | Z96: 38947 | AA96: =IF(Benchmark!O104="",NA(),Benchmark!O104) -> 0.09442256391 | AB96: =Benchmark!Y104 -> 0.2972534402
J97: =IF(Fund!A105="",NA(),IF(Fund!A105<startdate,NA(),Fund!A105)) -> 38950 | K97: =IF(J97=0,NA(),Fund!B105/fundnorm) -> 0.9542879191 | L97: =IF(Benchmark!A105="",NA(),IF(Benchmark!A105<startdate,NA(),Benchmark!A105)) -> 38950 | M97: =IF(L97=0,NA(),Benchmark!B105/benchnorm) -> 0.9425606892 | N97: =IF(ISERROR(O97),NA(),Fund!L105) -> 40777 | O97: =IF(Fund!I105="",NA(),Fund!I105) -> 0.9924668029 | P97: =IF(ISERROR(Q97),NA(),Benchmark!L105) -> 40777 | Q97: =IF(Benchmark!I105="",NA(),Benchmark!I105) -> 0.5206765017 | R97: 1 | S97: =IF(ISERROR(O97),NA(),Fund!L105) -> 40777 | T97: =IF(Fund!O105="",NA(),Fund!O105) -> 0.1476584852 | U97: =IF(ISERROR(Q97),NA(),Benchmark!L105) -> 40777 | V97: =IF(Benchmark!O105="",NA(),Benchmark!O105) -> 0.08734537661 | W97: 1 | X97: 38952 | Y97: =IF(Fund!O105="",NA(),Fund!O105) -> 0.1476584852 | Z97: 38952 | AA97: =IF(Benchmark!O105="",NA(),Benchmark!O105) -> 0.08734537661 | AB97: =Benchmark!Y105 -> 0.2973032775
J98: =IF(Fund!A106="",NA(),IF(Fund!A106<startdate,NA(),Fund!A106)) -> 38951 | K98: =IF(J98=0,NA(),Fund!B106/fundnorm) -> 0.9499928924 | L98: =IF(Benchmark!A106="",NA(),IF(Benchmark!A106<startdate,NA(),Benchmark!A106)) -> 38951 | M98: =IF(L98=0,NA(),Benchmark!B106/benchnorm) -> 0.9411918889 | N98: =IF(ISERROR(O98),NA(),Fund!L106) -> 40777 | O98: =IF(Fund!I106="",NA(),Fund!I106) -> 1.001474974 | P98: =IF(ISERROR(Q98),NA(),Benchmark!L106) -> 40777 | Q98: =IF(Benchmark!I106="",NA(),Benchmark!I106) -> 0.5228880619 | R98: 1 | S98: =IF(ISERROR(O98),NA(),Fund!L106) -> 40777 | T98: =IF(Fund!O106="",NA(),Fund!O106) -> 0.1487804234 | U98: =IF(ISERROR(Q98),NA(),Benchmark!L106) -> 40777 | V98: =IF(Benchmark!O106="",NA(),Benchmark!O106) -> 0.08771117032 | W98: 1 | X98: 38952 | Y98: =IF(Fund!O106="",NA(),Fund!O106) -> 0.1487804234 | Z98: 38952 | AA98: =IF(Benchmark!O106="",NA(),Benchmark!O106) -> 0.08771117032 | AB98: =Benchmark!Y106 -> 0.297300165
J99: =IF(Fund!A107="",NA(),IF(Fund!A107<startdate,NA(),Fund!A107)) -> 38952 | K99: =IF(J99=0,NA(),Fund!B107/fundnorm) -> 0.9441240379 | L99: =IF(Benchmark!A107="",NA(),IF(Benchmark!A107<startdate,NA(),Benchmark!A107)) -> 38952 | M99: =IF(L99=0,NA(),Benchmark!B107/benchnorm) -> 0.9326613768 | N99: =IF(ISERROR(O99),NA(),Fund!L107) -> 40777 | O99: =IF(Fund!I107="",NA(),Fund!I107) -> 1.013916522 | P99: =IF(ISERROR(Q99),NA(),Benchmark!L107) -> 40777 | Q99: =IF(Benchmark!I107="",NA(),Benchmark!I107) -> 0.5368170347 | R99: 1 | S99: =IF(ISERROR(O99),NA(),Fund!L107) -> 40777 | T99: =IF(Fund!O107="",NA(),Fund!O107) -> 0.1502925098 | U99: =IF(ISERROR(Q99),NA(),Benchmark!L107) -> 40777 | V99: =IF(Benchmark!O107="",NA(),Benchmark!O107) -> 0.08974386752 | W99: 1 | X99: 38952 | Y99: =IF(Fund!O107="",NA(),Fund!O107) -> 0.1502925098 | Z99: 38952 | AA99: =IF(Benchmark!O107="",NA(),Benchmark!O107) -> 0.08974386752 | AB99: =Benchmark!Y107 -> 0.297323623
J100: =IF(Fund!A108="",NA(),IF(Fund!A108<startdate,NA(),Fund!A108)) -> 38953 | K100: =IF(J100=0,NA(),Fund!B108/fundnorm) -> 0.9529476271 | L100: =IF(Benchmark!A108="",NA(),IF(Benchmark!A108<startdate,NA(),Benchmark!A108)) -> 38953 | M100: =IF(L100=0,NA(),Benchmark!B108/benchnorm) -> 0.9413613342 | N100: =IF(ISERROR(O100),NA(),Fund!L108) -> 40778 | O100: =IF(Fund!I108="",NA(),Fund!I108) -> 1.012647573 | P100: =IF(ISERROR(Q100),NA(),Benchmark!L108) -> 40778 | Q100: =IF(Benchmark!I108="",NA(),Benchmark!I108) -> 0.5380855283 | R100: 1 | S100: =IF(ISERROR(O100),NA(),Fund!L108) -> 40778 | T100: =IF(Fund!O108="",NA(),Fund!O108) -> 0.1501475155 | U100: =IF(ISERROR(Q100),NA(),Benchmark!L108) -> 40778 | V100: =IF(Benchmark!O108="",NA(),Benchmark!O108) -> 0.08992370069 | W100: 1 | X100: 38953 | Y100: =IF(Fund!O108="",NA(),Fund!O108) -> 0.1501475155 | Z100: 38953 | AA100: =IF(Benchmark!O108="",NA(),Benchmark!O108) -> 0.08992370069 | AB100: =Benchmark!Y108 -> 0.2973273761
J101: =IF(Fund!A109="",NA(),IF(Fund!A109<startdate,NA(),Fund!A109)) -> 38954 | K101: =IF(J101=0,NA(),Fund!B109/fundnorm) -> 0.9597201633 | L101: =IF(Benchmark!A109="",NA(),IF(Benchmark!A109<startdate,NA(),Benchmark!A109)) -> 38954 | M101: =IF(L101=0,NA(),Benchmark!B109/benchnorm) -> 0.9473448715 | N101: =IF(ISERROR(O101),NA(),Fund!L109) -> 40779 | O101: =IF(Fund!I109="",NA(),Fund!I109) -> 0.9753700314 | P101: =IF(ISERROR(Q101),NA(),Benchmark!L109) -> 40779 | Q101: =IF(Benchmark!I109="",NA(),Benchmark!I109) -> 0.5129689924 | R101: 1 | S101: =IF(ISERROR(O101),NA(),Fund!L109) -> 40779 | T101: =IF(Fund!O109="",NA(),Fund!O109) -> 0.1458550751 | U101: =IF(ISERROR(Q101),NA(),Benchmark!L109) -> 40779 | V101: =IF(Benchmark!O109="",NA(),Benchmark!O109) -> 0.08634058535 | W101: 1 | X101: 38954 | Y101: =IF(Fund!O109="",NA(),Fund!O109) -> 0.1458550751 | Z101: 38954 | AA101: =IF(Benchmark!O109="",NA(),Benchmark!O109) -> 0.08634058535 | AB101: =Benchmark!Y109 -> 0.2973170147
J102: =IF(Fund!A110="",NA(),IF(Fund!A110<startdate,NA(),Fund!A110)) -> 38957 | K102: =IF(J102=0,NA(),Fund!B110/fundnorm) -> 0.9629287411 | L102: =IF(Benchmark!A110="",NA(),IF(Benchmark!A110<startdate,NA(),Benchmark!A110)) -> 38957 | M102: =IF(L102=0,NA(),Benchmark!B110/benchnorm) -> 0.9518060487 | N102: =IF(ISERROR(O102),NA(),Fund!L110) -> 40784 | O102: =IF(Fund!I110="",NA(),Fund!I110) -> 0.9669636737 | P102: =IF(ISERROR(Q102),NA(),Benchmark!L110) -> 40784 | Q102: =IF(Benchmark!I110="",NA(),Benchmark!I110) -> 0.5089235049 | R102: 1 | S102: =IF(ISERROR(O102),NA(),Fund!L110) -> 40784 | T102: =IF(Fund!O110="",NA(),Fund!O110) -> 0.1447085917 | U102: =IF(ISERROR(Q102),NA(),Benchmark!L110) -> 40784 | V102: =IF(Benchmark!O110="",NA(),Benchmark!O110) -> 0.08566122949 | W102: 1 | X102: 38959 | Y102: =IF(Fund!O110="",NA(),Fund!O110) -> 0.1447085917 | Z102: 38959 | AA102: =IF(Benchmark!O110="",NA(),Benchmark!O110) -> 0.08566122949 | AB102: =Benchmark!Y110 -> 0.297444476
J103: =IF(Fund!A111="",NA(),IF(Fund!A111<startdate,NA(),Fund!A111)) -> 38958 | K103: =IF(J103=0,NA(),Fund!B111/fundnorm) -> 0.9710618768 | L103: =IF(Benchmark!A111="",NA(),IF(Benchmark!A111<startdate,NA(),Benchmark!A111)) -> 38958 | M103: =IF(L103=0,NA(),Benchmark!B111/benchnorm) -> 0.9584541293 | N103: =IF(ISERROR(O103),NA(),Fund!L111) -> 40784 | O103: =IF(Fund!I111="",NA(),Fund!I111) -> 0.9504893555 | P103: =IF(ISERROR(Q103),NA(),Benchmark!L111) -> 40784 | Q103: =IF(Benchmark!I111="",NA(),Benchmark!I111) -> 0.4984572292 | R103: 1 | S103: =IF(ISERROR(O103),NA(),Fund!L111) -> 40784 | T103: =IF(Fund!O111="",NA(),Fund!O111) -> 0.1428702772 | U103: =IF(ISERROR(Q103),NA(),Benchmark!L111) -> 40784 | V103: =IF(Benchmark!O111="",NA(),Benchmark!O111) -> 0.08420056999 | W103: 1 | X103: 38959 | Y103: =IF(Fund!O111="",NA(),Fund!O111) -> 0.1428702772 | Z103: 38959 | AA103: =IF(Benchmark!O111="",NA(),Benchmark!O111) -> 0.08420056999 | AB103: =Benchmark!Y111 -> 0.2974474226
J104: =IF(Fund!A112="",NA(),IF(Fund!A112<startdate,NA(),Fund!A112)) -> 38959 | K104: =IF(J104=0,NA(),Fund!B112/fundnorm) -> 0.9756513616 | L104: =IF(Benchmark!A112="",NA(),IF(Benchmark!A112<startdate,NA(),Benchmark!A112)) -> 38959 | M104: =IF(L104=0,NA(),Benchmark!B112/benchnorm) -> 0.9585229665 | N104: =IF(ISERROR(O104),NA(),Fund!L112) -> 40784 | O104: =IF(Fund!I112="",NA(),Fund!I112) -> 0.941314212 | P104: =IF(ISERROR(Q104),NA(),Benchmark!L112) -> 40784 | Q104: =IF(Benchmark!I112="",NA(),Benchmark!I112) -> 0.4983496162 | R104: 1 | S104: =IF(ISERROR(O104),NA(),Fund!L112) -> 40784 | T104: =IF(Fund!O112="",NA(),Fund!O112) -> 0.1418765843 | U104: =IF(ISERROR(Q104),NA(),Benchmark!L112) -> 40784 | V104: =IF(Benchmark!O112="",NA(),Benchmark!O112) -> 0.08423302472 | W104: 1 | X104: 38959 | Y104: =IF(Fund!O112="",NA(),Fund!O112) -> 0.1418765843 | Z104: 38959 | AA104: =IF(Benchmark!O112="",NA(),Benchmark!O112) -> 0.08423302472 | AB104: =Benchmark!Y112 -> 0.2974468235
J105: =IF(Fund!A113="",NA(),IF(Fund!A113<startdate,NA(),Fund!A113)) -> 38960 | K105: =IF(J105=0,NA(),Fund!B113/fundnorm) -> 0.9704018845 | L105: =IF(Benchmark!A113="",NA(),IF(Benchmark!A113<startdate,NA(),Benchmark!A113)) -> 38960 | M105: =IF(L105=0,NA(),Benchmark!B113/benchnorm) -> 0.9524361734 | N105: =IF(ISERROR(O105),NA(),Fund!L113) -> 40785 | O105: =IF(Fund!I113="",NA(),Fund!I113) -> 0.9761120005 | P105: =IF(ISERROR(Q105),NA(),Benchmark!L113) -> 40785 | Q105: =IF(Benchmark!I113="",NA(),Benchmark!I113) -> 0.5312004848 | R105: 1 | S105: =IF(ISERROR(O105),NA(),Fund!L113) -> 40785 | T105: =IF(Fund!O113="",NA(),Fund!O113) -> 0.1459411442 | U105: =IF(ISERROR(Q105),NA(),Benchmark!L113) -> 40785 | V105: =IF(Benchmark!O113="",NA(),Benchmark!O113) -> 0.08894616663 | W105: 1 | X105: 38960 | Y105: =IF(Fund!O113="",NA(),Fund!O113) -> 0.1459411442 | Z105: 38960 | AA105: =IF(Benchmark!O113="",NA(),Benchmark!O113) -> 0.08894616663 | AB105: =Benchmark!Y113 -> 0.2974871229
J106: =IF(Fund!A114="",NA(),IF(Fund!A114<startdate,NA(),Fund!A114)) -> 38961 | K106: =IF(J106=0,NA(),Fund!B114/fundnorm) -> 0.9778648742 | L106: =IF(Benchmark!A114="",NA(),IF(Benchmark!A114<startdate,NA(),Benchmark!A114)) -> 38961 | M106: =IF(L106=0,NA(),Benchmark!B114/benchnorm) -> 0.9594125543 | N106: =IF(ISERROR(O106),NA(),Fund!L114) -> 40788 | O106: =IF(Fund!I114="",NA(),Fund!I114) -> 0.9809150001 | P106: =IF(ISERROR(Q106),NA(),Benchmark!L114) -> 40788 | Q106: =IF(Benchmark!I114="",NA(),Benchmark!I114) -> 0.5325148397 | R106: 1 | S106: =IF(ISERROR(O106),NA(),Fund!L114) -> 40788 | T106: =IF(Fund!O114="",NA(),Fund!O114) -> 0.1463260829 | U106: =IF(ISERROR(Q106),NA(),Benchmark!L114) -> 40788 | V106: =IF(Benchmark!O114="",NA(),Benchmark!O114) -> 0.08903125823 | W106: 1 | X106: 38963 | Y106: =IF(Fund!O114="",NA(),Fund!O114) -> 0.1463260829 | Z106: 38963 | AA106: =IF(Benchmark!O114="",NA(),Benchmark!O114) -> 0.08903125823 | AB106: =Benchmark!Y114 -> 0.2974793864
J107: =IF(Fund!A115="",NA(),IF(Fund!A115<startdate,NA(),Fund!A115)) -> 38964 | K107: =IF(J107=0,NA(),Fund!B115/fundnorm) -> 0.9900188859 | L107: =IF(Benchmark!A115="",NA(),IF(Benchmark!A115<startdate,NA(),Benchmark!A115)) -> 38964 | M107: =IF(L107=0,NA(),Benchmark!B115/benchnorm) -> 0.9722003797 | N107: =IF(ISERROR(O107),NA(),Fund!L115) -> 40791 | O107: =IF(Fund!I115="",NA(),Fund!I115) -> 0.954719342 | P107: =IF(ISERROR(Q107),NA(),Benchmark!L115) -> 40791 | Q107: =IF(Benchmark!I115="",NA(),Benchmark!I115) -> 0.5096091263 | R107: 1 | S107: =IF(ISERROR(O107),NA(),Fund!L115) -> 40791 | T107: =IF(Fund!O115="",NA(),Fund!O115) -> 0.1432814419 | U107: =IF(ISERROR(Q107),NA(),Benchmark!L115) -> 40791 | V107: =IF(Benchmark!O115="",NA(),Benchmark!O115) -> 0.08575976193 | W107: 1 | X107: 38966 | Y107: =IF(Fund!O115="",NA(),Fund!O115) -> 0.1432814419 | Z107: 38966 | AA107: =IF(Benchmark!O115="",NA(),Benchmark!O115) -> 0.08575976193 | AB107: =Benchmark!Y115 -> 0.2974642665
J108: =IF(Fund!A116="",NA(),IF(Fund!A116<startdate,NA(),Fund!A116)) -> 38965 | K108: =IF(J108=0,NA(),Fund!B116/fundnorm) -> 0.9910037975 | L108: =IF(Benchmark!A116="",NA(),IF(Benchmark!A116<startdate,NA(),Benchmark!A116)) -> 38965 | M108: =IF(L108=0,NA(),Benchmark!B116/benchnorm) -> 0.9742204854 | N108: =IF(ISERROR(O108),NA(),Fund!L116) -> 40791 | O108: =IF(Fund!I116="",NA(),Fund!I116) -> 0.9527766393 | P108: =IF(ISERROR(Q108),NA(),Benchmark!L116) -> 40791 | Q108: =IF(Benchmark!I116="",NA(),Benchmark!I116) -> 0.5064788595 | R108: 1 | S108: =IF(ISERROR(O108),NA(),Fund!L116) -> 40791 | T108: =IF(Fund!O116="",NA(),Fund!O116) -> 0.1431380451 | U108: =IF(ISERROR(Q108),NA(),Benchmark!L116) -> 40791 | V108: =IF(Benchmark!O116="",NA(),Benchmark!O116) -> 0.08535825908 | W108: 1 | X108: 38966 | Y108: =IF(Fund!O116="",NA(),Fund!O116) -> 0.1431380451 | Z108: 38966 | AA108: =IF(Benchmark!O116="",NA(),Benchmark!O116) -> 0.08535825908 | AB108: =Benchmark!Y116 -> 0.2974759388
J109: =IF(Fund!A117="",NA(),IF(Fund!A117<startdate,NA(),Fund!A117)) -> 38966 | K109: =IF(J109=0,NA(),Fund!B117/fundnorm) -> 0.9946794468 | L109: =IF(Benchmark!A117="",NA(),IF(Benchmark!A117<startdate,NA(),Benchmark!A117)) -> 38966 | M109: =IF(L109=0,NA(),Benchmark!B117/benchnorm) -> 0.9790390863 | N109: =IF(ISERROR(O109),NA(),Fund!L117) -> 40791 | O109: =IF(Fund!I117="",NA(),Fund!I117) -> 0.9455605235 | P109: =IF(ISERROR(Q109),NA(),Benchmark!L117) -> 40791 | Q109: =IF(Benchmark!I117="",NA(),Benchmark!I117) -> 0.4990643237 | R109: 1 | S109: =IF(ISERROR(O109),NA(),Fund!L117) -> 40791 | T109: =IF(Fund!O117="",NA(),Fund!O117) -> 0.1423756778 | U109: =IF(ISERROR(Q109),NA(),Benchmark!L117) -> 40791 | V109: =IF(Benchmark!O117="",NA(),Benchmark!O117) -> 0.08433644474 | W109: 1 | X109: 38966 | Y109: =IF(Fund!O117="",NA(),Fund!O117) -> 0.1423756778 | Z109: 38966 | AA109: =IF(Benchmark!O117="",NA(),Benchmark!O117) -> 0.08433644474 | AB109: =Benchmark!Y117 -> 0.297477904
J110: =IF(Fund!A118="",NA(),IF(Fund!A118<startdate,NA(),Fund!A118)) -> 38967 | K110: =IF(J110=0,NA(),Fund!B118/fundnorm) -> 0.9894299697 | L110: =IF(Benchmark!A118="",NA(),IF(Benchmark!A118<startdate,NA(),Benchmark!A118)) -> 38967 | M110: =IF(L110=0,NA(),Benchmark!B118/benchnorm) -> 0.9740166215 | N110: =IF(ISERROR(O110),NA(),Fund!L118) -> 40792 | O110: =IF(Fund!I118="",NA(),Fund!I118) -> 0.9651085228 | P110: =IF(ISERROR(Q110),NA(),Benchmark!L118) -> 40792 | Q110: =IF(Benchmark!I118="",NA(),Benchmark!I118) -> 0.5181128003 | R110: 1 | S110: =IF(ISERROR(O110),NA(),Fund!L118) -> 40792 | T110: =IF(Fund!O118="",NA(),Fund!O118) -> 0.144662112 | U110: =IF(ISERROR(Q110),NA(),Benchmark!L118) -> 40792 | V110: =IF(Benchmark!O118="",NA(),Benchmark!O118) -> 0.08707825243 | W110: 1 | X110: 38967 | Y110: =IF(Fund!O118="",NA(),Fund!O118) -> 0.144662112 | Z110: 38967 | AA110: =IF(Benchmark!O118="",NA(),Benchmark!O118) -> 0.08707825243 | AB110: =Benchmark!Y118 -> 0.2974718147
J111: =IF(Fund!A119="",NA(),IF(Fund!A119<startdate,NA(),Fund!A119)) -> 38968 | K111: =IF(J111=0,NA(),Fund!B119/fundnorm) -> 0.9966695774 | L111: =IF(Benchmark!A119="",NA(),IF(Benchmark!A119<startdate,NA(),Benchmark!A119)) -> 38968 | M111: =IF(L111=0,NA(),Benchmark!B119/benchnorm) -> 0.9801696042 | N111: =IF(ISERROR(O111),NA(),Fund!L119) -> 40793 | O111: =IF(Fund!I119="",NA(),Fund!I119) -> 0.9751013672 | P111: =IF(ISERROR(Q111),NA(),Benchmark!L119) -> 40793 | Q111: =IF(Benchmark!I119="",NA(),Benchmark!I119) -> 0.528187827 | R111: 1 | S111: =IF(ISERROR(O111),NA(),Fund!L119) -> 40793 | T111: =IF(Fund!O119="",NA(),Fund!O119) -> 0.1458239019 | U111: =IF(ISERROR(Q111),NA(),Benchmark!L119) -> 40793 | V111: =IF(Benchmark!O119="",NA(),Benchmark!O119) -> 0.0885173291 | W111: 1 | X111: 38968 | Y111: =IF(Fund!O119="",NA(),Fund!O119) -> 0.1458239019 | Z111: 38968 | AA111: =IF(Benchmark!O119="",NA(),Benchmark!O119) -> 0.0885173291 | AB111: =Benchmark!Y119 -> 0.2974592912
J112: =IF(Fund!A120="",NA(),IF(Fund!A120<startdate,NA(),Fund!A120)) -> 38971 | K112: =IF(J112=0,NA(),Fund!B120/fundnorm) -> 0.971985866 | L112: =IF(Benchmark!A120="",NA(),IF(Benchmark!A120<startdate,NA(),Benchmark!A120)) -> 38971 | M112: =IF(L112=0,NA(),Benchmark!B120/benchnorm) -> 0.9497594671 | N112: =IF(ISERROR(O112),NA(),Fund!L120) -> 40798 | O112: =IF(Fund!I120="",NA(),Fund!I120) -> 0.9549970228 | P112: =IF(ISERROR(Q112),NA(),Benchmark!L120) -> 40798 | Q112: =IF(Benchmark!I120="",NA(),Benchmark!I120) -> 0.5258176831 | R112: 1 | S112: =IF(ISERROR(O112),NA(),Fund!L120) -> 40798 | T112: =IF(Fund!O120="",NA(),Fund!O120) -> 0.1433138788 | U112: =IF(ISERROR(Q112),NA(),Benchmark!L120) -> 40798 | V112: =IF(Benchmark!O120="",NA(),Benchmark!O120) -> 0.08807881176 | W112: 1 | X112: 38973 | Y112: =IF(Fund!O120="",NA(),Fund!O120) -> 0.1433138788 | Z112: 38973 | AA112: =IF(Benchmark!O120="",NA(),Benchmark!O120) -> 0.08807881176 | AB112: =Benchmark!Y120 -> 0.2974836823
J113: =IF(Fund!A121="",NA(),IF(Fund!A121<startdate,NA(),Fund!A121)) -> 38972 | K113: =IF(J113=0,NA(),Fund!B121/fundnorm) -> 0.9802306927 | L113: =IF(Benchmark!A121="",NA(),IF(Benchmark!A121<startdate,NA(),Benchmark!A121)) -> 38972 | M113: =IF(L113=0,NA(),Benchmark!B121/benchnorm) -> 0.9584806051 | N113: =IF(ISERROR(O113),NA(),Fund!L121) -> 40798 | O113: =IF(Fund!I121="",NA(),Fund!I121) -> 0.9385533308 | P113: =IF(ISERROR(Q113),NA(),Benchmark!L121) -> 40798 | Q113: =IF(Benchmark!I121="",NA(),Benchmark!I121) -> 0.5119343905 | R113: 1 | S113: =IF(ISERROR(O113),NA(),Fund!L121) -> 40798 | T113: =IF(Fund!O121="",NA(),Fund!O121) -> 0.1414688528 | U113: =IF(ISERROR(Q113),NA(),Benchmark!L121) -> 40798 | V113: =IF(Benchmark!O121="",NA(),Benchmark!O121) -> 0.0861427933 | W113: 1 | X113: 38973 | Y113: =IF(Fund!O121="",NA(),Fund!O121) -> 0.1414688528 | Z113: 38973 | AA113: =IF(Benchmark!O121="",NA(),Benchmark!O121) -> 0.0861427933 | AB113: =Benchmark!Y121 -> 0.2971293684
J114: =IF(Fund!A122="",NA(),IF(Fund!A122<startdate,NA(),Fund!A122)) -> 38973 | K114: =IF(J114=0,NA(),Fund!B122/fundnorm) -> 0.9970249579 | L114: =IF(Benchmark!A122="",NA(),IF(Benchmark!A122<startdate,NA(),Benchmark!A122)) -> 38973 | M114: =IF(L114=0,NA(),Benchmark!B122/benchnorm) -> 0.9781071371 | N114: =IF(ISERROR(O114),NA(),Fund!L122) -> 40798 | O114: =IF(Fund!I122="",NA(),Fund!I122) -> 0.9058996059 | P114: =IF(ISERROR(Q114),NA(),Benchmark!L122) -> 40798 | Q114: =IF(Benchmark!I122="",NA(),Benchmark!I122) -> 0.4815961714 | R114: 1 | S114: =IF(ISERROR(O114),NA(),Fund!L122) -> 40798 | T114: =IF(Fund!O122="",NA(),Fund!O122) -> 0.1376796901 | U114: =IF(ISERROR(Q114),NA(),Benchmark!L122) -> 40798 | V114: =IF(Benchmark!O122="",NA(),Benchmark!O122) -> 0.08179748952 | W114: 1 | X114: 38973 | Y114: =IF(Fund!O122="",NA(),Fund!O122) -> 0.1376796901 | Z114: 38973 | AA114: =IF(Benchmark!O122="",NA(),Benchmark!O122) -> 0.08179748952 | AB114: =Benchmark!Y122 -> 0.2972288529
J115: =IF(Fund!A123="",NA(),IF(Fund!A123<startdate,NA(),Fund!A123)) -> 38974 | K115: =IF(J115=0,NA(),Fund!B123/fundnorm) -> 1.001756595 | L115: =IF(Benchmark!A123="",NA(),IF(Benchmark!A123<startdate,NA(),Benchmark!A123)) -> 38978 | M115: =IF(L115=0,NA(),Benchmark!B123/benchnorm) -> 0.989634713 | N115: =IF(ISERROR(O115),NA(),Fund!L123) -> 40799 | O115: =IF(Fund!I123="",NA(),Fund!I123) -> 0.8901671414 | P115: =IF(ISERROR(Q115),NA(),Benchmark!L123) -> 40805 | Q115: =IF(Benchmark!I123="",NA(),Benchmark!I123) -> 0.4872976126 | R115: 1 | S115: =IF(ISERROR(O115),NA(),Fund!L123) -> 40799 | T115: =IF(Fund!O123="",NA(),Fund!O123) -> 0.1357952297 | U115: =IF(ISERROR(Q115),NA(),Benchmark!L123) -> 40805 | V115: =IF(Benchmark!O123="",NA(),Benchmark!O123) -> 0.08253471553 | W115: 1 | X115: 38974 | Y115: =IF(Fund!O123="",NA(),Fund!O123) -> 0.1357952297 | Z115: 38980 | AA115: =IF(Benchmark!O123="",NA(),Benchmark!O123) -> 0.08253471553 | AB115: =Benchmark!Y123 -> 0.2971273329
J116: =IF(Fund!A124="",NA(),IF(Fund!A124<startdate,NA(),Fund!A124)) -> 38975 | K116: =IF(J116=0,NA(),Fund!B124/fundnorm) -> 1.004142721 | L116: =IF(Benchmark!A124="",NA(),IF(Benchmark!A124<startdate,NA(),Benchmark!A124)) -> 38979 | M116: =IF(L116=0,NA(),Benchmark!B124/benchnorm) -> 0.9785625213 | N116: =IF(ISERROR(O116),NA(),Fund!L124) -> 40800 | O116: =IF(Fund!I124="",NA(),Fund!I124) -> 0.9098529739 | P116: =IF(ISERROR(Q116),NA(),Benchmark!L124) -> 40805 | Q116: =IF(Benchmark!I124="",NA(),Benchmark!I124) -> 0.5041260153 | R116: 1 | S116: =IF(ISERROR(O116),NA(),Fund!L124) -> 40800 | T116: =IF(Fund!O124="",NA(),Fund!O124) -> 0.1381512702 | U116: =IF(ISERROR(Q116),NA(),Benchmark!L124) -> 40805 | V116: =IF(Benchmark!O124="",NA(),Benchmark!O124) -> 0.08501920998 | W116: 1 | X116: 38975 | Y116: =IF(Fund!O124="",NA(),Fund!O124) -> 0.1381512702 | Z116: 38980 | AA116: =IF(Benchmark!O124="",NA(),Benchmark!O124) -> 0.08501920998 | AB116: =Benchmark!Y124 -> 0.2971758978
J117: =IF(Fund!A125="",NA(),IF(Fund!A125<startdate,NA(),Fund!A125)) -> 38978 | K117: =IF(J117=0,NA(),Fund!B125/fundnorm) -> 1.007107609 | L117: =IF(Benchmark!A125="",NA(),IF(Benchmark!A125<startdate,NA(),Benchmark!A125)) -> 38980 | M117: =IF(L117=0,NA(),Benchmark!B125/benchnorm) -> 0.9892058046 | N117: =IF(ISERROR(O117),NA(),Fund!L125) -> 40805 | O117: =IF(Fund!I125="",NA(),Fund!I125) -> 0.9213497873 | P117: =IF(ISERROR(Q117),NA(),Benchmark!L125) -> 40805 | Q117: =IF(Benchmark!I125="",NA(),Benchmark!I125) -> 0.4879424879 | R117: 1 | S117: =IF(ISERROR(O117),NA(),Fund!L125) -> 40805 | T117: =IF(Fund!O125="",NA(),Fund!O125) -> 0.1393553436 | U117: =IF(ISERROR(Q117),NA(),Benchmark!L125) -> 40805 | V117: =IF(Benchmark!O125="",NA(),Benchmark!O125) -> 0.08272266686 | W117: 1 | X117: 38980 | Y117: =IF(Fund!O125="",NA(),Fund!O125) -> 0.1393553436 | Z117: 38980 | AA117: =IF(Benchmark!O125="",NA(),Benchmark!O125) -> 0.08272266686 | AB117: =Benchmark!Y125 -> 0.2971221901
J118: =IF(Fund!A126="",NA(),IF(Fund!A126<startdate,NA(),Fund!A126)) -> 38979 | K118: =IF(J118=0,NA(),Fund!B126/fundnorm) -> 0.9956135897 | L118: =IF(Benchmark!A126="",NA(),IF(Benchmark!A126<startdate,NA(),Benchmark!A126)) -> 38981 | M118: =IF(L118=0,NA(),Benchmark!B126/benchnorm) -> 1.001109337 | N118: =IF(ISERROR(O118),NA(),Fund!L126) -> 40805 | O118: =IF(Fund!I126="",NA(),Fund!I126) -> 0.9435311155 | P118: =IF(ISERROR(Q118),NA(),Benchmark!L126) -> 40806 | Q118: =IF(Benchmark!I126="",NA(),Benchmark!I126) -> 0.4958188098 | R118: 1 | S118: =IF(ISERROR(O118),NA(),Fund!L126) -> 40805 | T118: =IF(Fund!O126="",NA(),Fund!O126) -> 0.1420541346 | U118: =IF(ISERROR(Q118),NA(),Benchmark!L126) -> 40806 | V118: =IF(Benchmark!O126="",NA(),Benchmark!O126) -> 0.0838665098 | W118: 1 | X118: 38980 | Y118: =IF(Fund!O126="",NA(),Fund!O126) -> 0.1420541346 | Z118: 38981 | AA118: =IF(Benchmark!O126="",NA(),Benchmark!O126) -> 0.0838665098 | AB118: =Benchmark!Y126 -> 0.2971836205
J119: =IF(Fund!A127="",NA(),IF(Fund!A127<startdate,NA(),Fund!A127)) -> 38980 | K119: =IF(J119=0,NA(),Fund!B127/fundnorm) -> 1.002853197 | L119: =IF(Benchmark!A127="",NA(),IF(Benchmark!A127<startdate,NA(),Benchmark!A127)) -> 38982 | M119: =IF(L119=0,NA(),Benchmark!B127/benchnorm) -> 0.9976436512 | N119: =IF(ISERROR(O119),NA(),Fund!L127) -> 40805 | O119: =IF(Fund!I127="",NA(),Fund!I127) -> 0.9295007442 | P119: =IF(ISERROR(Q119),NA(),Benchmark!L127) -> 40807 | Q119: =IF(Benchmark!I127="",NA(),Benchmark!I127) -> 0.503857351 | R119: 1 | S119: =IF(ISERROR(O119),NA(),Fund!L127) -> 40805 | T119: =IF(Fund!O127="",NA(),Fund!O127) -> 0.1404834569 | U119: =IF(ISERROR(Q119),NA(),Benchmark!L127) -> 40807 | V119: =IF(Benchmark!O127="",NA(),Benchmark!O127) -> 0.08502895534 | W119: 1 | X119: 38980 | Y119: =IF(Fund!O127="",NA(),Fund!O127) -> 0.1404834569 | Z119: 38982 | AA119: =IF(Benchmark!O127="",NA(),Benchmark!O127) -> 0.08502895534 | AB119: =Benchmark!Y127 -> 0.2971343507
J120: =IF(Fund!A128="",NA(),IF(Fund!A128<startdate,NA(),Fund!A128)) -> 38981 | K120: =IF(J120=0,NA(),Fund!B128/fundnorm) -> 1.013138923 | L120: =IF(Benchmark!A128="",NA(),IF(Benchmark!A128<startdate,NA(),Benchmark!A128)) -> 38985 | M120: =IF(L120=0,NA(),Benchmark!B128/benchnorm) -> 0.992668843 | N120: =IF(ISERROR(O120),NA(),Fund!L128) -> 40806 | O120: =IF(Fund!I128="",NA(),Fund!I128) -> 0.9444978954 | P120: =IF(ISERROR(Q120),NA(),Benchmark!L128) -> 40812 | Q120: =IF(Benchmark!I128="",NA(),Benchmark!I128) -> 0.4255762348 | R120: 1 | S120: =IF(ISERROR(O120),NA(),Fund!L128) -> 40806 | T120: =IF(Fund!O128="",NA(),Fund!O128) -> 0.1422508657 | U120: =IF(ISERROR(Q120),NA(),Benchmark!L128) -> 40812 | V120: =IF(Benchmark!O128="",NA(),Benchmark!O128) -> 0.07340687811 | W120: 1 | X120: 38981 | Y120: =IF(Fund!O128="",NA(),Fund!O128) -> 0.1422508657 | Z120: 38987 | AA120: =IF(Benchmark!O128="",NA(),Benchmark!O128) -> 0.07340687811 | AB120: =Benchmark!Y128 -> 0.2971347224
J121: =IF(Fund!A129="",NA(),IF(Fund!A129<startdate,NA(),Fund!A129)) -> 38982 | K121: =IF(J121=0,NA(),Fund!B129/fundnorm) -> 1.0104888 | L121: =IF(Benchmark!A129="",NA(),IF(Benchmark!A129<startdate,NA(),Benchmark!A129)) -> 38986 | M121: =IF(L121=0,NA(),Benchmark!B129/benchnorm) -> 1.00320887 | N121: =IF(ISERROR(O121),NA(),Fund!L129) -> 40807 | O121: =IF(Fund!I129="",NA(),Fund!I129) -> 0.9562495604 | P121: =IF(ISERROR(Q121),NA(),Benchmark!L129) -> 40812 | Q121: =IF(Benchmark!I129="",NA(),Benchmark!I129) -> 0.4105986831 | R121: 1 | S121: =IF(ISERROR(O121),NA(),Fund!L129) -> 40807 | T121: =IF(Fund!O129="",NA(),Fund!O129) -> 0.143628186 | U121: =IF(ISERROR(Q121),NA(),Benchmark!L129) -> 40812 | V121: =IF(Benchmark!O129="",NA(),Benchmark!O129) -> 0.07118462622 | W121: 1 | X121: 38982 | Y121: =IF(Fund!O129="",NA(),Fund!O129) -> 0.143628186 | Z121: 38987 | AA121: =IF(Benchmark!O129="",NA(),Benchmark!O129) -> 0.07118462622 | AB121: =Benchmark!Y129 -> 0.2971514615
J122: =IF(Fund!A130="",NA(),IF(Fund!A130<startdate,NA(),Fund!A130)) -> 38985 | K122: =IF(J122=0,NA(),Fund!B130/fundnorm) -> 1.006589769 | L122: =IF(Benchmark!A130="",NA(),IF(Benchmark!A130<startdate,NA(),Benchmark!A130)) -> 38987 | M122: =IF(L122=0,NA(),Benchmark!B130/benchnorm) -> 1.007497955 | N122: =IF(ISERROR(O122),NA(),Fund!L130) -> 40812 | O122: =IF(Fund!I130="",NA(),Fund!I130) -> 0.8667271902 | P122: =IF(ISERROR(Q122),NA(),Benchmark!L130) -> 40812 | Q122: =IF(Benchmark!I130="",NA(),Benchmark!I130) -> 0.4045935328 | R122: 1 | S122: =IF(ISERROR(O122),NA(),Fund!L130) -> 40812 | T122: =IF(Fund!O130="",NA(),Fund!O130) -> 0.132809335 | U122: =IF(ISERROR(Q122),NA(),Benchmark!L130) -> 40812 | V122: =IF(Benchmark!O130="",NA(),Benchmark!O130) -> 0.07031135261 | W122: 1 | X122: 38987 | Y122: =IF(Fund!O130="",NA(),Fund!O130) -> 0.132809335 | Z122: 38987 | AA122: =IF(Benchmark!O130="",NA(),Benchmark!O130) -> 0.07031135261 | AB122: =Benchmark!Y130 -> 0.2971389153
J123: =IF(Fund!A131="",NA(),IF(Fund!A131<startdate,NA(),Fund!A131)) -> 38986 | K123: =IF(J123=0,NA(),Fund!B131/fundnorm) -> 1.016570883 | L123: =IF(Benchmark!A131="",NA(),IF(Benchmark!A131<startdate,NA(),Benchmark!A131)) -> 38988 | M123: =IF(L123=0,NA(),Benchmark!B131/benchnorm) -> 1.00821545 | N123: =IF(ISERROR(O123),NA(),Fund!L131) -> 40812 | O123: =IF(Fund!I131="",NA(),Fund!I131) -> 0.8483988893 | P123: =IF(ISERROR(Q123),NA(),Benchmark!L131) -> 40813 | Q123: =IF(Benchmark!I131="",NA(),Benchmark!I131) -> 0.4377478296 | R123: 1 | S123: =IF(ISERROR(O123),NA(),Fund!L131) -> 40812 | T123: =IF(Fund!O131="",NA(),Fund!O131) -> 0.1306545079 | U123: =IF(ISERROR(Q123),NA(),Benchmark!L131) -> 40813 | V123: =IF(Benchmark!O131="",NA(),Benchmark!O131) -> 0.07531708181 | W123: 1 | X123: 38987 | Y123: =IF(Fund!O131="",NA(),Fund!O131) -> 0.1306545079 | Z123: 38988 | AA123: =IF(Benchmark!O131="",NA(),Benchmark!O131) -> 0.07531708181 | AB123: =Benchmark!Y131 -> 0.2971697574
J124: =IF(Fund!A132="",NA(),IF(Fund!A132<startdate,NA(),Fund!A132)) -> 38987 | K124: =IF(J124=0,NA(),Fund!B132/fundnorm) -> 1.021190829 | L124: =IF(Benchmark!A132="",NA(),IF(Benchmark!A132<startdate,NA(),Benchmark!A132)) -> 38989 | M124: =IF(L124=0,NA(),Benchmark!B132/benchnorm) -> 1.015951687 | N124: =IF(ISERROR(O124),NA(),Fund!L132) -> 40812 | O124: =IF(Fund!I132="",NA(),Fund!I132) -> 0.8400365903 | P124: =IF(ISERROR(Q124),NA(),Benchmark!L132) -> 40814 | Q124: =IF(Benchmark!I132="",NA(),Benchmark!I132) -> 0.4187705875 | R124: 1 | S124: =IF(ISERROR(O124),NA(),Fund!L132) -> 40812 | T124: =IF(Fund!O132="",NA(),Fund!O132) -> 0.1297056258 | U124: =IF(ISERROR(Q124),NA(),Benchmark!L132) -> 40814 | V124: =IF(Benchmark!O132="",NA(),Benchmark!O132) -> 0.0724632889 | W124: 1 | X124: 38987 | Y124: =IF(Fund!O132="",NA(),Fund!O132) -> 0.1297056258 | Z124: 38989 | AA124: =IF(Benchmark!O132="",NA(),Benchmark!O132) -> 0.0724632889 | AB124: =Benchmark!Y132 -> 0.2973719001
J125: =IF(Fund!A133="",NA(),IF(Fund!A133<startdate,NA(),Fund!A133)) -> 38988 | K125: =IF(J125=0,NA(),Fund!B133/fundnorm) -> 1.019353004 | L125: =IF(Benchmark!A133="",NA(),IF(Benchmark!A133<startdate,NA(),Benchmark!A133)) -> 38993 | M125: =IF(L125=0,NA(),Benchmark!B133/benchnorm) -> 1.014844997 | N125: =IF(ISERROR(O125),NA(),Fund!L133) -> 40813 | O125: =IF(Fund!I133="",NA(),Fund!I133) -> 0.8903896725 | P125: =IF(ISERROR(Q125),NA(),Benchmark!L133) -> 40819 | Q125: =IF(Benchmark!I133="",NA(),Benchmark!I133) -> 0.3903133234 | R125: 1 | S125: =IF(ISERROR(O125),NA(),Fund!L133) -> 40813 | T125: =IF(Fund!O133="",NA(),Fund!O133) -> 0.1358219802 | U125: =IF(ISERROR(Q125),NA(),Benchmark!L133) -> 40819 | V125: =IF(Benchmark!O133="",NA(),Benchmark!O133) -> 0.06808757484 | W125: 1 | X125: 38988 | Y125: =IF(Fund!O133="",NA(),Fund!O133) -> 0.1358219802 | Z125: 38994 | AA125: =IF(Benchmark!O133="",NA(),Benchmark!O133) -> 0.06808757484 | AB125: =Benchmark!Y133 -> 0.2973655834
J126: =IF(Fund!A134="",NA(),IF(Fund!A134<startdate,NA(),Fund!A134)) -> 38989 | K126: =IF(J126=0,NA(),Fund!B134/fundnorm) -> 1.024023719 | L126: =IF(Benchmark!A134="",NA(),IF(Benchmark!A134<startdate,NA(),Benchmark!A134)) -> 38994 | M126: =IF(L126=0,NA(),Benchmark!B134/benchnorm) -> 1.002539032 | N126: =IF(ISERROR(O126),NA(),Fund!L134) -> 40814 | O126: =IF(Fund!I134="",NA(),Fund!I134) -> 0.8682624043 | P126: =IF(ISERROR(Q126),NA(),Benchmark!L134) -> 40819 | Q126: =IF(Benchmark!I134="",NA(),Benchmark!I134) -> 0.4073791402 | R126: 1 | S126: =IF(ISERROR(O126),NA(),Fund!L134) -> 40814 | T126: =IF(Fund!O134="",NA(),Fund!O134) -> 0.1331504524 | U126: =IF(ISERROR(Q126),NA(),Benchmark!L134) -> 40819 | V126: =IF(Benchmark!O134="",NA(),Benchmark!O134) -> 0.07073554695 | W126: 1 | X126: 38989 | Y126: =IF(Fund!O134="",NA(),Fund!O134) -> 0.1331504524 | Z126: 38994 | AA126: =IF(Benchmark!O134="",NA(),Benchmark!O134) -> 0.07073554695 | AB126: =Benchmark!Y134 -> 0.2974320969
J127: =IF(Fund!A135="",NA(),IF(Fund!A135<startdate,NA(),Fund!A135)) -> 38993 | K127: =IF(J127=0,NA(),Fund!B135/fundnorm) -> 1.017586256 | L127: =IF(Benchmark!A135="",NA(),IF(Benchmark!A135<startdate,NA(),Benchmark!A135)) -> 38995 | M127: =IF(L127=0,NA(),Benchmark!B135/benchnorm) -> 1.017685854 | N127: =IF(ISERROR(O127),NA(),Fund!L135) -> 40819 | O127: =IF(Fund!I135="",NA(),Fund!I135) -> 0.8406074757 | P127: =IF(ISERROR(Q127),NA(),Benchmark!L135) -> 40820 | Q127: =IF(Benchmark!I135="",NA(),Benchmark!I135) -> 0.3652919094 | R127: 1 | S127: =IF(ISERROR(O127),NA(),Fund!L135) -> 40819 | T127: =IF(Fund!O135="",NA(),Fund!O135) -> 0.1297002256 | U127: =IF(ISERROR(Q127),NA(),Benchmark!L135) -> 40820 | V127: =IF(Benchmark!O135="",NA(),Benchmark!O135) -> 0.06425354183 | W127: 1 | X127: 38994 | Y127: =IF(Fund!O135="",NA(),Fund!O135) -> 0.1297002256 | Z127: 38995 | AA127: =IF(Benchmark!O135="",NA(),Benchmark!O135) -> 0.06425354183 | AB127: =Benchmark!Y135 -> 0.2974603356
J128: =IF(Fund!A136="",NA(),IF(Fund!A136<startdate,NA(),Fund!A136)) -> 38994 | K128: =IF(J128=0,NA(),Fund!B136/fundnorm) -> 1.006934996 | L128: =IF(Benchmark!A136="",NA(),IF(Benchmark!A136<startdate,NA(),Benchmark!A136)) -> 38996 | M128: =IF(L128=0,NA(),Benchmark!B136/benchnorm) -> 1.020849715 | N128: =IF(ISERROR(O128),NA(),Fund!L136) -> 40819 | O128: =IF(Fund!I136="",NA(),Fund!I136) -> 0.8600772419 | P128: =IF(ISERROR(Q128),NA(),Benchmark!L136) -> 40821 | Q128: =IF(Benchmark!I136="",NA(),Benchmark!I136) -> 0.3533396615 | R128: 1 | S128: =IF(ISERROR(O128),NA(),Fund!L136) -> 40819 | T128: =IF(Fund!O136="",NA(),Fund!O136) -> 0.1321558058 | U128: =IF(ISERROR(Q128),NA(),Benchmark!L136) -> 40821 | V128: =IF(Benchmark!O136="",NA(),Benchmark!O136) -> 0.06238360703 | W128: 1 | X128: 38994 | Y128: =IF(Fund!O136="",NA(),Fund!O136) -> 0.1321558058 | Z128: 38996 | AA128: =IF(Benchmark!O136="",NA(),Benchmark!O136) -> 0.06238360703 | AB128: =Benchmark!Y136 -> 0.2973787894
J129: =IF(Fund!A137="",NA(),IF(Fund!A137<startdate,NA(),Fund!A137)) -> 38995 | K129: =IF(J129=0,NA(),Fund!B137/fundnorm) -> 1.020876064 | L129: =IF(Benchmark!A137="",NA(),IF(Benchmark!A137<startdate,NA(),Benchmark!A137)) -> 38999 | M129: =IF(L129=0,NA(),Benchmark!B137/benchnorm) -> 1.021225672 | N129: =IF(ISERROR(O129),NA(),Fund!L137) -> 40820 | O129: =IF(Fund!I137="",NA(),Fund!I137) -> 0.7989795309 | P129: =IF(ISERROR(Q129),NA(),Benchmark!L137) -> 40827 | Q129: =IF(Benchmark!I137="",NA(),Benchmark!I137) -> 0.4094913409 | R129: 1 | S129: =IF(ISERROR(O129),NA(),Fund!L137) -> 40820 | T129: =IF(Fund!O137="",NA(),Fund!O137) -> 0.1246185601 | U129: =IF(ISERROR(Q129),NA(),Benchmark!L137) -> 40827 | V129: =IF(Benchmark!O137="",NA(),Benchmark!O137) -> 0.07093609273 | W129: 1 | X129: 38995 | Y129: =IF(Fund!O137="",NA(),Fund!O137) -> 0.1246185601 | Z129: 39002 | AA129: =IF(Benchmark!O137="",NA(),Benchmark!O137) -> 0.07093609273 | AB129: =Benchmark!Y137 -> 0.2973777
J130: =IF(Fund!A138="",NA(),IF(Fund!A138<startdate,NA(),Fund!A138)) -> 38996 | K130: =IF(J130=0,NA(),Fund!B138/fundnorm) -> 1.023587109 | L130: =IF(Benchmark!A138="",NA(),IF(Benchmark!A138<startdate,NA(),Benchmark!A138)) -> 39000 | M130: =IF(L130=0,NA(),Benchmark!B138/benchnorm) -> 1.022517692 | N130: =IF(ISERROR(O130),NA(),Fund!L138) -> 40821 | O130: =IF(Fund!I138="",NA(),Fund!I138) -> 0.78441409 | P130: =IF(ISERROR(Q130),NA(),Benchmark!L138) -> 40827 | Q130: =IF(Benchmark!I138="",NA(),Benchmark!I138) -> 0.407710353 | R130: =IF(ISERROR(Q130+O130),0,IF(O130>Q130,1,0)) -> 1 | S130: =IF(ISERROR(O130),NA(),Fund!L138) -> 40821 | T130: =IF(Fund!O138="",NA(),Fund!O138) -> 0.1227915347 | U130: =IF(ISERROR(Q130),NA(),Benchmark!L138) -> 40827 | V130: =IF(Benchmark!O138="",NA(),Benchmark!O138) -> 0.07070577443 | W130: 1 | X130: =IF(ISERROR(O130),NA(),S130-interval) -> 38996 | Y130: =IF(Fund!O138="",NA(),Fund!O138) -> 0.1227915347 | Z130: =IF(ISERROR(Q130),NA(), U130-interval) -> 39002 | AA130: =IF(Benchmark!O138="",NA(),Benchmark!O138) -> 0.07070577443 | AB130: =Benchmark!Y138 -> 0.2973853704
J131: =IF(Fund!A139="",NA(),IF(Fund!A139<startdate,NA(),Fund!A139)) -> 38999 | K131: =IF(J131=0,NA(),Fund!B139/fundnorm) -> 1.027892289 | L131: =IF(Benchmark!A139="",NA(),IF(Benchmark!A139<startdate,NA(),Benchmark!A139)) -> 39001 | M131: =IF(L131=0,NA(),Benchmark!B139/benchnorm) -> 1.015668396 | N131: =IF(ISERROR(O131),NA(),Fund!L139) -> 40826 | O131: =IF(Fund!I139="",NA(),Fund!I139) -> 0.8476089813 | P131: =IF(ISERROR(Q131),NA(),Benchmark!L139) -> 40827 | Q131: =IF(Benchmark!I139="",NA(),Benchmark!I139) -> 0.4172034378 | R131: 1 | S131: =IF(ISERROR(O131),NA(),Fund!L139) -> 40826 | T131: =IF(Fund!O139="",NA(),Fund!O139) -> 0.1304819763 | U131: =IF(ISERROR(Q131),NA(),Benchmark!L139) -> 40827 | V131: =IF(Benchmark!O139="",NA(),Benchmark!O139) -> 0.07218531072 | W131: =IF(ISERROR(T131+V131),0,IF(T131>V131,1,0)) -> 1 | X131: 39001 | Y131: =IF(Fund!O139="",NA(),Fund!O139) -> 0.1304819763 | Z131: 39002 | AA131: =IF(Benchmark!O139="",NA(),Benchmark!O139) -> 0.07218531072 | AB131: =Benchmark!Y139 -> 0.297451117
J132: =IF(Fund!A140="",NA(),IF(Fund!A140<startdate,NA(),Fund!A140)) -> 39000 | K132: =IF(J132=0,NA(),Fund!B140/fundnorm) -> 1.028420283 | L132: =IF(Benchmark!A140="",NA(),IF(Benchmark!A140<startdate,NA(),Benchmark!A140)) -> 39002 | M132: =IF(L132=0,NA(),Benchmark!B140/benchnorm) -> 1.031034967 | N132: =IF(ISERROR(O132),NA(),Fund!L140) -> 40826 | O132: =IF(Fund!I140="",NA(),Fund!I140) -> 0.8466604137 | P132: =IF(ISERROR(Q132),NA(),Benchmark!L140) -> 40827 | Q132: =IF(Benchmark!I140="",NA(),Benchmark!I140) -> 0.3960814021 | R132: 1 | S132: =IF(ISERROR(O132),NA(),Fund!L140) -> 40826 | T132: =IF(Fund!O140="",NA(),Fund!O140) -> 0.1304418623 | U132: =IF(ISERROR(Q132),NA(),Benchmark!L140) -> 40827 | V132: =IF(Benchmark!O140="",NA(),Benchmark!O140) -> 0.06901093423 | W132: 1 | X132: 39001 | Y132: =IF(Fund!O140="",NA(),Fund!O140) -> 0.1304418623 | Z132: 39002 | AA132: =IF(Benchmark!O140="",NA(),Benchmark!O140) -> 0.06901093423 | AB132: =Benchmark!Y140 -> 0.2974674173
J133: =IF(Fund!A141="",NA(),IF(Fund!A141<startdate,NA(),Fund!A141)) -> 39001 | K133: =IF(J133=0,NA(),Fund!B141/fundnorm) -> 1.023252036 | L133: =IF(Benchmark!A141="",NA(),IF(Benchmark!A141<startdate,NA(),Benchmark!A141)) -> 39003 | M133: =IF(L133=0,NA(),Benchmark!B141/benchnorm) -> 1.04201714 | N133: =IF(ISERROR(O133),NA(),Fund!L141) -> 40826 | O133: =IF(Fund!I141="",NA(),Fund!I141) -> 0.8559875367 | P133: =IF(ISERROR(Q133),NA(),Benchmark!L141) -> 40828 | Q133: =IF(Benchmark!I141="",NA(),Benchmark!I141) -> 0.4114560704 | R133: 1 | S133: =IF(ISERROR(O133),NA(),Fund!L141) -> 40826 | T133: =IF(Fund!O141="",NA(),Fund!O141) -> 0.131657511 | U133: =IF(ISERROR(Q133),NA(),Benchmark!L141) -> 40828 | V133: =IF(Benchmark!O141="",NA(),Benchmark!O141) -> 0.07135517895 | W133: 1 | X133: 39001 | Y133: =IF(Fund!O141="",NA(),Fund!O141) -> 0.131657511 | Z133: 39003 | AA133: =IF(Benchmark!O141="",NA(),Benchmark!O141) -> 0.07135517895 | AB133: =Benchmark!Y141 -> 0.2974117973
J134: =IF(Fund!A142="",NA(),IF(Fund!A142<startdate,NA(),Fund!A142)) -> 39002 | K134: =IF(J134=0,NA(),Fund!B142/fundnorm) -> 1.036675263 | L134: =IF(Benchmark!A142="",NA(),IF(Benchmark!A142<startdate,NA(),Benchmark!A142)) -> 39006 | M134: =IF(L134=0,NA(),Benchmark!B142/benchnorm) -> 1.050642966 | N134: =IF(ISERROR(O134),NA(),Fund!L142) -> 40827 | O134: =IF(Fund!I142="",NA(),Fund!I142) -> 0.8333072146 | P134: =IF(ISERROR(Q134),NA(),Benchmark!L142) -> 40833 | Q134: =IF(Benchmark!I142="",NA(),Benchmark!I142) -> 0.4050943601 | R134: 1 | S134: =IF(ISERROR(O134),NA(),Fund!L142) -> 40827 | T134: =IF(Fund!O142="",NA(),Fund!O142) -> 0.1288780987 | U134: =IF(ISERROR(Q134),NA(),Benchmark!L142) -> 40833 | V134: =IF(Benchmark!O142="",NA(),Benchmark!O142) -> 0.07030797303 | W134: 1 | X134: 39002 | Y134: =IF(Fund!O142="",NA(),Fund!O142) -> 0.1288780987 | Z134: 39008 | AA134: =IF(Benchmark!O142="",NA(),Benchmark!O142) -> 0.07030797303 | AB134: =Benchmark!Y142 -> 0.2974082034
J135: =IF(Fund!A143="",NA(),IF(Fund!A143<startdate,NA(),Fund!A143)) -> 39003 | K135: =IF(J135=0,NA(),Fund!B143/fundnorm) -> 1.045651159 | L135: =IF(Benchmark!A143="",NA(),IF(Benchmark!A143<startdate,NA(),Benchmark!A143)) -> 39007 | M135: =IF(L135=0,NA(),Benchmark!B143/benchnorm) -> 1.046425366 | N135: =IF(ISERROR(O135),NA(),Fund!L143) -> 40828 | O135: =IF(Fund!I143="",NA(),Fund!I143) -> 0.8590239071 | P135: =IF(ISERROR(Q135),NA(),Benchmark!L143) -> 40833 | Q135: =IF(Benchmark!I143="",NA(),Benchmark!I143) -> 0.4107575689 | R135: 1 | S135: =IF(ISERROR(O135),NA(),Fund!L143) -> 40828 | T135: =IF(Fund!O143="",NA(),Fund!O143) -> 0.1320275486 | U135: =IF(ISERROR(Q135),NA(),Benchmark!L143) -> 40833 | V135: =IF(Benchmark!O143="",NA(),Benchmark!O143) -> 0.07120874226 | W135: 1 | X135: 39003 | Y135: =IF(Fund!O143="",NA(),Fund!O143) -> 0.1320275486 | Z135: 39008 | AA135: =IF(Benchmark!O143="",NA(),Benchmark!O143) -> 0.07120874226 | AB135: =Benchmark!Y143 -> 0.2973957016
J136: =IF(Fund!A144="",NA(),IF(Fund!A144<startdate,NA(),Fund!A144)) -> 39006 | K136: =IF(J136=0,NA(),Fund!B144/fundnorm) -> 1.054007676 | L136: =IF(Benchmark!A144="",NA(),IF(Benchmark!A144<startdate,NA(),Benchmark!A144)) -> 39008 | M136: =IF(L136=0,NA(),Benchmark!B144/benchnorm) -> 1.045813774 | N136: =IF(ISERROR(O136),NA(),Fund!L144) -> 40833 | O136: =IF(Fund!I144="",NA(),Fund!I144) -> 0.8499590578 | P136: =IF(ISERROR(Q136),NA(),Benchmark!L144) -> 40833 | Q136: =IF(Benchmark!I144="",NA(),Benchmark!I144) -> 0.4115825795 | R136: 1 | S136: =IF(ISERROR(O136),NA(),Fund!L144) -> 40833 | T136: =IF(Fund!O144="",NA(),Fund!O144) -> 0.1307691038 | U136: =IF(ISERROR(Q136),NA(),Benchmark!L144) -> 40833 | V136: =IF(Benchmark!O144="",NA(),Benchmark!O144) -> 0.07137438357 | W136: 1 | X136: 39008 | Y136: =IF(Fund!O144="",NA(),Fund!O144) -> 0.1307691038 | Z136: 39008 | AA136: =IF(Benchmark!O144="",NA(),Benchmark!O144) -> 0.07137438357 | AB136: =Benchmark!Y144 -> 0.2973882942
J137: =IF(Fund!A145="",NA(),IF(Fund!A145<startdate,NA(),Fund!A145)) -> 39007 | K137: =IF(J137=0,NA(),Fund!B145/fundnorm) -> 1.050575716 | L137: =IF(Benchmark!A145="",NA(),IF(Benchmark!A145<startdate,NA(),Benchmark!A145)) -> 39009 | M137: =IF(L137=0,NA(),Benchmark!B145/benchnorm) -> 1.037518897 | N137: =IF(ISERROR(O137),NA(),Fund!L145) -> 40833 | O137: =IF(Fund!I145="",NA(),Fund!I145) -> 0.8560023969 | P137: =IF(ISERROR(Q137),NA(),Benchmark!L145) -> 40834 | Q137: =IF(Benchmark!I145="",NA(),Benchmark!I145) -> 0.4017439279 | R137: 1 | S137: =IF(ISERROR(O137),NA(),Fund!L145) -> 40833 | T137: =IF(Fund!O145="",NA(),Fund!O145) -> 0.1315826714 | U137: =IF(ISERROR(Q137),NA(),Benchmark!L145) -> 40834 | V137: =IF(Benchmark!O145="",NA(),Benchmark!O145) -> 0.06987671554 | W137: 1 | X137: 39008 | Y137: =IF(Fund!O145="",NA(),Fund!O145) -> 0.1315826714 | Z137: 39009 | AA137: =IF(Benchmark!O145="",NA(),Benchmark!O145) -> 0.06987671554 | AB137: =Benchmark!Y145 -> 0.2974178175
J138: =IF(Fund!A146="",NA(),IF(Fund!A146<startdate,NA(),Fund!A146)) -> 39008 | K138: =IF(J138=0,NA(),Fund!B146/fundnorm) -> 1.047133603 | L138: =IF(Benchmark!A146="",NA(),IF(Benchmark!A146<startdate,NA(),Benchmark!A146)) -> 39010 | M138: =IF(L138=0,NA(),Benchmark!B146/benchnorm) -> 1.03953106 | N138: =IF(ISERROR(O138),NA(),Fund!L146) -> 40833 | O138: =IF(Fund!I146="",NA(),Fund!I146) -> 0.8621034055 | P138: =IF(ISERROR(Q138),NA(),Benchmark!L146) -> 40835 | Q138: =IF(Benchmark!I146="",NA(),Benchmark!I146) -> 0.4234961822 | R138: 1 | S138: =IF(ISERROR(O138),NA(),Fund!L146) -> 40833 | T138: =IF(Fund!O146="",NA(),Fund!O146) -> 0.1324023426 | U138: =IF(ISERROR(Q138),NA(),Benchmark!L146) -> 40835 | V138: =IF(Benchmark!O146="",NA(),Benchmark!O146) -> 0.07317676246 | W138: 1 | X138: 39008 | Y138: =IF(Fund!O146="",NA(),Fund!O146) -> 0.1324023426 | Z138: 39010 | AA138: =IF(Benchmark!O146="",NA(),Benchmark!O146) -> 0.07317676246 | AB138: =Benchmark!Y146 -> 0.2975050793
J139: =IF(Fund!A147="",NA(),IF(Fund!A147<startdate,NA(),Fund!A147)) -> 39009 | K139: =IF(J139=0,NA(),Fund!B147/fundnorm) -> 1.038096785 | L139: =IF(Benchmark!A147="",NA(),IF(Benchmark!A147<startdate,NA(),Benchmark!A147)) -> 39011 | M139: =IF(L139=0,NA(),Benchmark!B147/benchnorm) -> 1.043902219 | N139: =IF(ISERROR(O139),NA(),Fund!L147) -> 40834 | O139: =IF(Fund!I147="",NA(),Fund!I147) -> 0.8502220309 | P139: =IF(ISERROR(Q139),NA(),Benchmark!L147) -> 40836 | Q139: =IF(Benchmark!I147="",NA(),Benchmark!I147) -> 0.4053565314 | R139: 1 | S139: =IF(ISERROR(O139),NA(),Fund!L147) -> 40834 | T139: =IF(Fund!O147="",NA(),Fund!O147) -> 0.1309535563 | U139: =IF(ISERROR(Q139),NA(),Benchmark!L147) -> 40836 | V139: =IF(Benchmark!O147="",NA(),Benchmark!O147) -> 0.07042761147 | W139: 1 | X139: 39009 | Y139: =IF(Fund!O147="",NA(),Fund!O147) -> 0.1309535563 | Z139: 39011 | AA139: =IF(Benchmark!O147="",NA(),Benchmark!O147) -> 0.07042761147 | AB139: =Benchmark!Y147 -> 0.2975052267
J140: =IF(Fund!A148="",NA(),IF(Fund!A148<startdate,NA(),Fund!A148)) -> 39010 | K140: =IF(J140=0,NA(),Fund!B148/fundnorm) -> 1.040218914 | L140: =IF(Benchmark!A148="",NA(),IF(Benchmark!A148<startdate,NA(),Benchmark!A148)) -> 39013 | M140: =IF(L140=0,NA(),Benchmark!B148/benchnorm) -> 1.036579005 | N140: =IF(ISERROR(O140),NA(),Fund!L148) -> 40835 | O140: =IF(Fund!I148="",NA(),Fund!I148) -> 0.8738274425 | P140: =IF(ISERROR(Q140),NA(),Benchmark!L148) -> 40840 | Q140: =IF(Benchmark!I148="",NA(),Benchmark!I148) -> 0.4116224245 | R140: 1 | S140: =IF(ISERROR(O140),NA(),Fund!L148) -> 40835 | T140: =IF(Fund!O148="",NA(),Fund!O148) -> 0.133824712 | U140: =IF(ISERROR(Q140),NA(),Benchmark!L148) -> 40840 | V140: =IF(Benchmark!O148="",NA(),Benchmark!O148) -> 0.07129956782 | W140: 1 | X140: 39010 | Y140: =IF(Fund!O148="",NA(),Fund!O148) -> 0.133824712 | Z140: 39015 | AA140: =IF(Benchmark!O148="",NA(),Benchmark!O148) -> 0.07129956782 | AB140: =Benchmark!Y148 -> 0.2975205421
J141: =IF(Fund!A149="",NA(),IF(Fund!A149<startdate,NA(),Fund!A149)) -> 39013 | K141: =IF(J141=0,NA(),Fund!B149/fundnorm) -> 1.037457101 | L141: =IF(Benchmark!A149="",NA(),IF(Benchmark!A149<startdate,NA(),Benchmark!A149)) -> 39016 | M141: =IF(L141=0,NA(),Benchmark!B149/benchnorm) -> 1.042165405 | N141: =IF(ISERROR(O141),NA(),Fund!L149) -> 40840 | O141: =IF(Fund!I149="",NA(),Fund!I149) -> 0.86591632 | P141: =IF(ISERROR(Q141),NA(),Benchmark!L149) -> 40841 | Q141: =IF(Benchmark!I149="",NA(),Benchmark!I149) -> 0.4231700408 | R141: 1 | S141: =IF(ISERROR(O141),NA(),Fund!L149) -> 40840 | T141: =IF(Fund!O149="",NA(),Fund!O149) -> 0.1327110112 | U141: =IF(ISERROR(Q141),NA(),Benchmark!L149) -> 40841 | V141: =IF(Benchmark!O149="",NA(),Benchmark!O149) -> 0.07312758267 | W141: 1 | X141: 39015 | Y141: =IF(Fund!O149="",NA(),Fund!O149) -> 0.1327110112 | Z141: 39016 | AA141: =IF(Benchmark!O149="",NA(),Benchmark!O149) -> 0.07312758267 | AB141: =Benchmark!Y149 -> 0.2975253384
J142: =IF(Fund!A150="",NA(),IF(Fund!A150<startdate,NA(),Fund!A150)) -> 39016 | K142: =IF(J142=0,NA(),Fund!B150/fundnorm) -> 1.043254879 | L142: =IF(Benchmark!A150="",NA(),IF(Benchmark!A150<startdate,NA(),Benchmark!A150)) -> 39017 | M142: =IF(L142=0,NA(),Benchmark!B150/benchnorm) -> 1.058103854 | N142: =IF(ISERROR(O142),NA(),Fund!L150) -> 40841 | O142: =IF(Fund!I150="",NA(),Fund!I150) -> 0.8718003621 | P142: =IF(ISERROR(Q142),NA(),Benchmark!L150) -> 40842 | Q142: =IF(Benchmark!I150="",NA(),Benchmark!I150) -> 0.4077603097 | R142: 1 | S142: =IF(ISERROR(O142),NA(),Fund!L150) -> 40841 | T142: =IF(Fund!O150="",NA(),Fund!O150) -> 0.1335792959 | U142: =IF(ISERROR(Q142),NA(),Benchmark!L150) -> 40842 | V142: =IF(Benchmark!O150="",NA(),Benchmark!O150) -> 0.07079354227 | W142: 1 | X142: 39016 | Y142: =IF(Fund!O150="",NA(),Fund!O150) -> 0.1335792959 | Z142: 39017 | AA142: =IF(Benchmark!O150="",NA(),Benchmark!O150) -> 0.07079354227 | AB142: =Benchmark!Y150 -> 0.2975723807
J143: =IF(Fund!A151="",NA(),IF(Fund!A151<startdate,NA(),Fund!A151)) -> 39017 | K143: =IF(J143=0,NA(),Fund!B151/fundnorm) -> 1.062161119 | L143: =IF(Benchmark!A151="",NA(),IF(Benchmark!A151<startdate,NA(),Benchmark!A151)) -> 39020 | M143: =IF(L143=0,NA(),Benchmark!B151/benchnorm) -> 1.064685745 | N143: =IF(ISERROR(O143),NA(),Fund!L151) -> 40844 | O143: =IF(Fund!I151="",NA(),Fund!I151) -> 0.8944344601 | P143: =IF(ISERROR(Q143),NA(),Benchmark!L151) -> 40847 | Q143: =IF(Benchmark!I151="",NA(),Benchmark!I151) -> 0.4320240715 | R143: 1 | S143: =IF(ISERROR(O143),NA(),Fund!L151) -> 40844 | T143: =IF(Fund!O151="",NA(),Fund!O151) -> 0.1361486733 | U143: =IF(ISERROR(Q143),NA(),Benchmark!L151) -> 40847 | V143: =IF(Benchmark!O151="",NA(),Benchmark!O151) -> 0.07437506616 | W143: 1 | X143: 39019 | Y143: =IF(Fund!O151="",NA(),Fund!O151) -> 0.1361486733 | Z143: 39022 | AA143: =IF(Benchmark!O151="",NA(),Benchmark!O151) -> 0.07437506616 | AB143: =Benchmark!Y151 -> 0.2974900283
J144: =IF(Fund!A152="",NA(),IF(Fund!A152<startdate,NA(),Fund!A152)) -> 39020 | K144: =IF(J144=0,NA(),Fund!B152/fundnorm) -> 1.066943525 | L144: =IF(Benchmark!A152="",NA(),IF(Benchmark!A152<startdate,NA(),Benchmark!A152)) -> 39021 | M144: =IF(L144=0,NA(),Benchmark!B152/benchnorm) -> 1.059226429 | N144: =IF(ISERROR(O144),NA(),Fund!L152) -> 40847 | O144: =IF(Fund!I152="",NA(),Fund!I152) -> 0.8789862865 | P144: =IF(ISERROR(Q144),NA(),Benchmark!L152) -> 40847 | Q144: =IF(Benchmark!I152="",NA(),Benchmark!I152) -> 0.4394048086 | R144: 1 | S144: =IF(ISERROR(O144),NA(),Fund!L152) -> 40847 | T144: =IF(Fund!O152="",NA(),Fund!O152) -> 0.1342916906 | U144: =IF(ISERROR(Q144),NA(),Benchmark!L152) -> 40847 | V144: =IF(Benchmark!O152="",NA(),Benchmark!O152) -> 0.07552191317 | W144: 1 | X144: 39022 | Y144: =IF(Fund!O152="",NA(),Fund!O152) -> 0.1342916906 | Z144: 39022 | AA144: =IF(Benchmark!O152="",NA(),Benchmark!O152) -> 0.07552191317 | AB144: =Benchmark!Y152 -> 0.297571307
J145: =IF(Fund!A153="",NA(),IF(Fund!A153<startdate,NA(),Fund!A153)) -> 39021 | K145: =IF(J145=0,NA(),Fund!B153/fundnorm) -> 1.066253072 | L145: =IF(Benchmark!A153="",NA(),IF(Benchmark!A153<startdate,NA(),Benchmark!A153)) -> 39022 | M145: =IF(L145=0,NA(),Benchmark!B153/benchnorm) -> 1.064635441 | N145: =IF(ISERROR(O145),NA(),Fund!L153) -> 40847 | O145: =IF(Fund!I153="",NA(),Fund!I153) -> 0.8802030263 | P145: =IF(ISERROR(Q145),NA(),Benchmark!L153) -> 40847 | Q145: =IF(Benchmark!I153="",NA(),Benchmark!I153) -> 0.4320917347 | R145: 1 | S145: =IF(ISERROR(O145),NA(),Fund!L153) -> 40847 | T145: =IF(Fund!O153="",NA(),Fund!O153) -> 0.1345167577 | U145: =IF(ISERROR(Q145),NA(),Benchmark!L153) -> 40847 | V145: =IF(Benchmark!O153="",NA(),Benchmark!O153) -> 0.07446968853 | W145: 1 | X145: 39022 | Y145: =IF(Fund!O153="",NA(),Fund!O153) -> 0.1345167577 | Z145: 39022 | AA145: =IF(Benchmark!O153="",NA(),Benchmark!O153) -> 0.07446968853 | AB145: =Benchmark!Y153 -> 0.2975684265
J146: =IF(Fund!A154="",NA(),IF(Fund!A154<startdate,NA(),Fund!A154)) -> 39022 | K146: =IF(J146=0,NA(),Fund!B154/fundnorm) -> 1.072842841 | L146: =IF(Benchmark!A154="",NA(),IF(Benchmark!A154<startdate,NA(),Benchmark!A154)) -> 39023 | M146: =IF(L146=0,NA(),Benchmark!B154/benchnorm) -> 1.071542985 | N146: =IF(ISERROR(O146),NA(),Fund!L154) -> 40847 | O146: =IF(Fund!I154="",NA(),Fund!I154) -> 0.8686541738 | P146: =IF(ISERROR(Q146),NA(),Benchmark!L154) -> 40848 | Q146: =IF(Benchmark!I154="",NA(),Benchmark!I154) -> 0.4076372846 | R146: 1 | S146: =IF(ISERROR(O146),NA(),Fund!L154) -> 40847 | T146: =IF(Fund!O154="",NA(),Fund!O154) -> 0.1331979692 | U146: =IF(ISERROR(Q146),NA(),Benchmark!L154) -> 40848 | V146: =IF(Benchmark!O154="",NA(),Benchmark!O154) -> 0.07077482641 | W146: 1 | X146: 39022 | Y146: =IF(Fund!O154="",NA(),Fund!O154) -> 0.1331979692 | Z146: 39023 | AA146: =IF(Benchmark!O154="",NA(),Benchmark!O154) -> 0.07077482641 | AB146: =Benchmark!Y154 -> 0.2975834966
J147: =IF(Fund!A155="",NA(),IF(Fund!A155<startdate,NA(),Fund!A155)) -> 39023 | K147: =IF(J147=0,NA(),Fund!B155/fundnorm) -> 1.080295677 | L147: =IF(Benchmark!A155="",NA(),IF(Benchmark!A155<startdate,NA(),Benchmark!A155)) -> 39024 | M147: =IF(L147=0,NA(),Benchmark!B155/benchnorm) -> 1.075339619 | N147: =IF(ISERROR(O147),NA(),Fund!L155) -> 40848 | O147: =IF(Fund!I155="",NA(),Fund!I155) -> 0.8392014587 | P147: =IF(ISERROR(Q147),NA(),Benchmark!L155) -> 40849 | Q147: =IF(Benchmark!I155="",NA(),Benchmark!I155) -> 0.4028988647 | R147: 1 | S147: =IF(ISERROR(O147),NA(),Fund!L155) -> 40848 | T147: =IF(Fund!O155="",NA(),Fund!O155) -> 0.1296030581 | U147: =IF(ISERROR(Q147),NA(),Benchmark!L155) -> 40849 | V147: =IF(Benchmark!O155="",NA(),Benchmark!O155) -> 0.07005296052 | W147: 1 | X147: 39023 | Y147: =IF(Fund!O155="",NA(),Fund!O155) -> 0.1296030581 | Z147: 39024 | AA147: =IF(Benchmark!O155="",NA(),Benchmark!O155) -> 0.07005296052 | AB147: =Benchmark!Y155 -> 0.2975839431
J148: =IF(Fund!A156="",NA(),IF(Fund!A156<startdate,NA(),Fund!A156)) -> 39024 | K148: =IF(J148=0,NA(),Fund!B156/fundnorm) -> 1.083179335 | L148: =IF(Benchmark!A156="",NA(),IF(Benchmark!A156<startdate,NA(),Benchmark!A156)) -> 39027 | M148: =IF(L148=0,NA(),Benchmark!B156/benchnorm) -> 1.079332174 | N148: =IF(ISERROR(O148),NA(),Fund!L156) -> 40849 | O148: =IF(Fund!I156="",NA(),Fund!I156) -> 0.8342582351 | P148: =IF(ISERROR(Q148),NA(),Benchmark!L156) -> 40855 | Q148: =IF(Benchmark!I156="",NA(),Benchmark!I156) -> 0.4086374418 | R148: 1 | S148: =IF(ISERROR(O148),NA(),Fund!L156) -> 40849 | T148: =IF(Fund!O156="",NA(),Fund!O156) -> 0.128995198 | U148: =IF(ISERROR(Q148),NA(),Benchmark!L156) -> 40855 | V148: =IF(Benchmark!O156="",NA(),Benchmark!O156) -> 0.0708065182 | W148: 1 | X148: 39024 | Y148: =IF(Fund!O156="",NA(),Fund!O156) -> 0.128995198 | Z148: 39030 | AA148: =IF(Benchmark!O156="",NA(),Benchmark!O156) -> 0.0708065182 | AB148: =Benchmark!Y156 -> 0.2975809839
J149: =IF(Fund!A157="",NA(),IF(Fund!A157<startdate,NA(),Fund!A157)) -> 39027 | K149: =IF(J149=0,NA(),Fund!B157/fundnorm) -> 1.083788559 | L149: =IF(Benchmark!A157="",NA(),IF(Benchmark!A157<startdate,NA(),Benchmark!A157)) -> 39028 | M149: =IF(L149=0,NA(),Benchmark!B157/benchnorm) -> 1.077293535 | N149: =IF(ISERROR(O149),NA(),Fund!L157) -> 40855 | O149: =IF(Fund!I157="",NA(),Fund!I157) -> 0.8511308063 | P149: =IF(ISERROR(Q149),NA(),Benchmark!L157) -> 40855 | Q149: =IF(Benchmark!I157="",NA(),Benchmark!I157) -> 0.4113031062 | R149: 1 | S149: =IF(ISERROR(O149),NA(),Fund!L157) -> 40855 | T149: =IF(Fund!O157="",NA(),Fund!O157) -> 0.1308360398 | U149: =IF(ISERROR(Q149),NA(),Benchmark!L157) -> 40855 | V149: =IF(Benchmark!O157="",NA(),Benchmark!O157) -> 0.07125115097 | W149: 1 | X149: 39030 | Y149: =IF(Fund!O157="",NA(),Fund!O157) -> 0.1308360398 | Z149: 39030 | AA149: =IF(Benchmark!O157="",NA(),Benchmark!O157) -> 0.07125115097 | AB149: =Benchmark!Y157 -> 0.2975865205
J150: =IF(Fund!A158="",NA(),IF(Fund!A158<startdate,NA(),Fund!A158)) -> 39028 | K150: =IF(J150=0,NA(),Fund!B158/fundnorm) -> 1.081483663 | L150: =IF(Benchmark!A158="",NA(),IF(Benchmark!A158<startdate,NA(),Benchmark!A158)) -> 39029 | M150: =IF(L150=0,NA(),Benchmark!B158/benchnorm) -> 1.068569749 | N150: =IF(ISERROR(O150),NA(),Fund!L158) -> 40855 | O150: =IF(Fund!I158="",NA(),Fund!I158) -> 0.8550760015 | P150: =IF(ISERROR(Q150),NA(),Benchmark!L158) -> 40855 | Q150: =IF(Benchmark!I158="",NA(),Benchmark!I158) -> 0.4228249612 | R150: 1 | S150: =IF(ISERROR(O150),NA(),Fund!L158) -> 40855 | T150: =IF(Fund!O158="",NA(),Fund!O158) -> 0.1313932598 | U150: =IF(ISERROR(Q150),NA(),Benchmark!L158) -> 40855 | V150: =IF(Benchmark!O158="",NA(),Benchmark!O158) -> 0.07303409278 | W150: 1 | X150: 39030 | Y150: =IF(Fund!O158="",NA(),Fund!O158) -> 0.1313932598 | Z150: 39030 | AA150: =IF(Benchmark!O158="",NA(),Benchmark!O158) -> 0.07303409278 | AB150: =Benchmark!Y158 -> 0.2975905208
J151: =IF(Fund!A159="",NA(),IF(Fund!A159<startdate,NA(),Fund!A159)) -> 39029 | K151: =IF(J151=0,NA(),Fund!B159/fundnorm) -> 1.073787137 | L151: =IF(Benchmark!A159="",NA(),IF(Benchmark!A159<startdate,NA(),Benchmark!A159)) -> 39030 | M151: =IF(L151=0,NA(),Benchmark!B159/benchnorm) -> 1.073647813 | N151: =IF(ISERROR(O151),NA(),Fund!L159) -> 40855 | O151: =IF(Fund!I159="",NA(),Fund!I159) -> 0.8683725284 | P151: =IF(ISERROR(Q151),NA(),Benchmark!L159) -> 40855 | Q151: =IF(Benchmark!I159="",NA(),Benchmark!I159) -> 0.4160953837 | R151: 1 | S151: =IF(ISERROR(O151),NA(),Fund!L159) -> 40855 | T151: =IF(Fund!O159="",NA(),Fund!O159) -> 0.1330862343 | U151: =IF(ISERROR(Q151),NA(),Benchmark!L159) -> 40855 | V151: =IF(Benchmark!O159="",NA(),Benchmark!O159) -> 0.07205854356 | W151: 1 | X151: 39030 | Y151: =IF(Fund!O159="",NA(),Fund!O159) -> 0.1330862343 | Z151: 39030 | AA151: =IF(Benchmark!O159="",NA(),Benchmark!O159) -> 0.07205854356 | AB151: =Benchmark!Y159 -> 0.2975626329
J152: =IF(Fund!A160="",NA(),IF(Fund!A160<startdate,NA(),Fund!A160)) -> 39030 | K152: =IF(J152=0,NA(),Fund!B160/fundnorm) -> 1.078417237 | L152: =IF(Benchmark!A160="",NA(),IF(Benchmark!A160<startdate,NA(),Benchmark!A160)) -> 39031 | M152: =IF(L152=0,NA(),Benchmark!B160/benchnorm) -> 1.084026338 | N152: =IF(ISERROR(O152),NA(),Fund!L160) -> 40855 | O152: =IF(Fund!I160="",NA(),Fund!I160) -> 0.8603508177 | P152: =IF(ISERROR(Q152),NA(),Benchmark!L160) -> 40856 | Q152: =IF(Benchmark!I160="",NA(),Benchmark!I160) -> 0.3839048456 | R152: 1 | S152: =IF(ISERROR(O152),NA(),Fund!L160) -> 40855 | T152: =IF(Fund!O160="",NA(),Fund!O160) -> 0.132189101 | U152: =IF(ISERROR(Q152),NA(),Benchmark!L160) -> 40856 | V152: =IF(Benchmark!O160="",NA(),Benchmark!O160) -> 0.06713962257 | W152: 1 | X152: 39030 | Y152: =IF(Fund!O160="",NA(),Fund!O160) -> 0.132189101 | Z152: 39031 | AA152: =IF(Benchmark!O160="",NA(),Benchmark!O160) -> 0.06713962257 | AB152: =Benchmark!Y160 -> 0.297567589
J153: =IF(Fund!A161="",NA(),IF(Fund!A161<startdate,NA(),Fund!A161)) -> 39031 | K153: =IF(J153=0,NA(),Fund!B161/fundnorm) -> 1.086022379 | L153: =IF(Benchmark!A161="",NA(),IF(Benchmark!A161<startdate,NA(),Benchmark!A161)) -> 39034 | M153: =IF(L153=0,NA(),Benchmark!B161/benchnorm) -> 1.093793271 | N153: =IF(ISERROR(O153),NA(),Fund!L161) -> 40856 | O153: =IF(Fund!I161="",NA(),Fund!I161) -> 0.8135436339 | P153: =IF(ISERROR(Q153),NA(),Benchmark!L161) -> 40861 | Q153: =IF(Benchmark!I161="",NA(),Benchmark!I161) -> 0.34755488 | R153: 1 | S153: =IF(ISERROR(O153),NA(),Fund!L161) -> 40856 | T153: =IF(Fund!O161="",NA(),Fund!O161) -> 0.1264336169 | U153: =IF(ISERROR(Q153),NA(),Benchmark!L161) -> 40861 | V153: =IF(Benchmark!O161="",NA(),Benchmark!O161) -> 0.06140451133 | W153: 1 | X153: 39031 | Y153: =IF(Fund!O161="",NA(),Fund!O161) -> 0.1264336169 | Z153: 39036 | AA153: =IF(Benchmark!O161="",NA(),Benchmark!O161) -> 0.06140451133 | AB153: =Benchmark!Y161 -> 0.2975353132
J154: =IF(Fund!A162="",NA(),IF(Fund!A162<startdate,NA(),Fund!A162)) -> 39034 | K154: =IF(J154=0,NA(),Fund!B162/fundnorm) -> 1.094866275 | L154: =IF(Benchmark!A162="",NA(),IF(Benchmark!A162<startdate,NA(),Benchmark!A162)) -> 39035 | M154: =IF(L154=0,NA(),Benchmark!B162/benchnorm) -> 1.094293665 | N154: =IF(ISERROR(O154),NA(),Fund!L162) -> 40861 | O154: =IF(Fund!I162="",NA(),Fund!I162) -> 0.7630322084 | P154: =IF(ISERROR(Q154),NA(),Benchmark!L162) -> 40861 | Q154: =IF(Benchmark!I162="",NA(),Benchmark!I162) -> 0.3469386768 | R154: 1 | S154: =IF(ISERROR(O154),NA(),Fund!L162) -> 40861 | T154: =IF(Fund!O162="",NA(),Fund!O162) -> 0.119948715 | U154: =IF(ISERROR(Q154),NA(),Benchmark!L162) -> 40861 | V154: =IF(Benchmark!O162="",NA(),Benchmark!O162) -> 0.06134211123 | W154: 1 | X154: 39036 | Y154: =IF(Fund!O162="",NA(),Fund!O162) -> 0.119948715 | Z154: 39036 | AA154: =IF(Benchmark!O162="",NA(),Benchmark!O162) -> 0.06134211123 | AB154: =Benchmark!Y162 -> 0.2975113186
J155: =IF(Fund!A163="",NA(),IF(Fund!A163<startdate,NA(),Fund!A163)) -> 39035 | K155: =IF(J155=0,NA(),Fund!B163/fundnorm) -> 1.097364092 | L155: =IF(Benchmark!A163="",NA(),IF(Benchmark!A163<startdate,NA(),Benchmark!A163)) -> 39036 | M155: =IF(L155=0,NA(),Benchmark!B163/benchnorm) -> 1.097314557 | N155: =IF(ISERROR(O155),NA(),Fund!L163) -> 40861 | O155: =IF(Fund!I163="",NA(),Fund!I163) -> 0.7590191996 | P155: =IF(ISERROR(Q155),NA(),Benchmark!L163) -> 40861 | Q155: =IF(Benchmark!I163="",NA(),Benchmark!I163) -> 0.3432305729 | R155: 1 | S155: =IF(ISERROR(O155),NA(),Fund!L163) -> 40861 | T155: =IF(Fund!O163="",NA(),Fund!O163) -> 0.1195081294 | U155: =IF(ISERROR(Q155),NA(),Benchmark!L163) -> 40861 | V155: =IF(Benchmark!O163="",NA(),Benchmark!O163) -> 0.06079170406 | W155: 1 | X155: 39036 | Y155: =IF(Fund!O163="",NA(),Fund!O163) -> 0.1195081294 | Z155: 39036 | AA155: =IF(Benchmark!O163="",NA(),Benchmark!O163) -> 0.06079170406 | AB155: =Benchmark!Y163 -> 0.2975417665
J156: =IF(Fund!A164="",NA(),IF(Fund!A164<startdate,NA(),Fund!A164)) -> 39036 | K156: =IF(J156=0,NA(),Fund!B164/fundnorm) -> 1.098156083 | L156: =IF(Benchmark!A164="",NA(),IF(Benchmark!A164<startdate,NA(),Benchmark!A164)) -> 39037 | M156: =IF(L156=0,NA(),Benchmark!B164/benchnorm) -> 1.09772758 | N156: =IF(ISERROR(O156),NA(),Fund!L164) -> 40861 | O156: =IF(Fund!I164="",NA(),Fund!I164) -> 0.7577505941 | P156: =IF(ISERROR(Q156),NA(),Benchmark!L164) -> 40862 | Q156: =IF(Benchmark!I164="",NA(),Benchmark!I164) -> 0.3171592924 | R156: 1 | S156: =IF(ISERROR(O156),NA(),Fund!L164) -> 40861 | T156: =IF(Fund!O164="",NA(),Fund!O164) -> 0.1194158494 | U156: =IF(ISERROR(Q156),NA(),Benchmark!L164) -> 40862 | V156: =IF(Benchmark!O164="",NA(),Benchmark!O164) -> 0.05664149225 | W156: 1 | X156: 39036 | Y156: =IF(Fund!O164="",NA(),Fund!O164) -> 0.1194158494 | Z156: 39037 | AA156: =IF(Benchmark!O164="",NA(),Benchmark!O164) -> 0.05664149225 | AB156: =Benchmark!Y164 -> 0.2975705731
J157: =IF(Fund!A165="",NA(),IF(Fund!A165<startdate,NA(),Fund!A165)) -> 39037 | K157: =IF(J157=0,NA(),Fund!B165/fundnorm) -> 1.096165953 | L157: =IF(Benchmark!A165="",NA(),IF(Benchmark!A165<startdate,NA(),Benchmark!A165)) -> 39038 | M157: =IF(L157=0,NA(),Benchmark!B165/benchnorm) -> 1.08881052 | N157: =IF(ISERROR(O157),NA(),Fund!L165) -> 40862 | O157: =IF(Fund!I165="",NA(),Fund!I165) -> 0.7317079948 | P157: =IF(ISERROR(Q157),NA(),Benchmark!L165) -> 40863 | Q157: =IF(Benchmark!I165="",NA(),Benchmark!I165) -> 0.3174904619 | R157: 1 | S157: =IF(ISERROR(O157),NA(),Fund!L165) -> 40862 | T157: =IF(Fund!O165="",NA(),Fund!O165) -> 0.1160789907 | U157: =IF(ISERROR(Q157),NA(),Benchmark!L165) -> 40863 | V157: =IF(Benchmark!O165="",NA(),Benchmark!O165) -> 0.05669461787 | W157: 1 | X157: 39037 | Y157: =IF(Fund!O165="",NA(),Fund!O165) -> 0.1160789907 | Z157: 39038 | AA157: =IF(Benchmark!O165="",NA(),Benchmark!O165) -> 0.05669461787 | AB157: =Benchmark!Y165 -> 0.2975873719
J158: =IF(Fund!A166="",NA(),IF(Fund!A166<startdate,NA(),Fund!A166)) -> 39038 | K158: =IF(J158=0,NA(),Fund!B166/fundnorm) -> 1.089312187 | L158: =IF(Benchmark!A166="",NA(),IF(Benchmark!A166<startdate,NA(),Benchmark!A166)) -> 39041 | M158: =IF(L158=0,NA(),Benchmark!B166/benchnorm) -> 1.085649306 | N158: =IF(ISERROR(O158),NA(),Fund!L166) -> 40863 | O158: =IF(Fund!I166="",NA(),Fund!I166) -> 0.732331612 | P158: =IF(ISERROR(Q158),NA(),Benchmark!L166) -> 40868 | Q158: =IF(Benchmark!I166="",NA(),Benchmark!I166) -> 0.2590957754 | R158: 1 | S158: =IF(ISERROR(O158),NA(),Fund!L166) -> 40863 | T158: =IF(Fund!O166="",NA(),Fund!O166) -> 0.1161593616 | U158: =IF(ISERROR(Q158),NA(),Benchmark!L166) -> 40868 | V158: =IF(Benchmark!O166="",NA(),Benchmark!O166) -> 0.04710406959 | W158: 1 | X158: 39038 | Y158: =IF(Fund!O166="",NA(),Fund!O166) -> 0.1161593616 | Z158: 39043 | AA158: =IF(Benchmark!O166="",NA(),Benchmark!O166) -> 0.04710406959 | AB158: =Benchmark!Y166 -> 0.2977490035
J159: =IF(Fund!A167="",NA(),IF(Fund!A167<startdate,NA(),Fund!A167)) -> 39041 | K159: =IF(J159=0,NA(),Fund!B167/fundnorm) -> 1.087454054 | L159: =IF(Benchmark!A167="",NA(),IF(Benchmark!A167<startdate,NA(),Benchmark!A167)) -> 39042 | M159: =IF(L159=0,NA(),Benchmark!B167/benchnorm) -> 1.103798487 | N159: =IF(ISERROR(O159),NA(),Fund!L167) -> 40868 | O159: =IF(Fund!I167="",NA(),Fund!I167) -> 0.6579799998 | P159: =IF(ISERROR(Q159),NA(),Benchmark!L167) -> 40868 | Q159: =IF(Benchmark!I167="",NA(),Benchmark!I167) -> 0.2383931227 | R159: 1 | S159: =IF(ISERROR(O159),NA(),Fund!L167) -> 40868 | T159: =IF(Fund!O167="",NA(),Fund!O167) -> 0.106286937 | U159: =IF(ISERROR(Q159),NA(),Benchmark!L167) -> 40868 | V159: =IF(Benchmark!O167="",NA(),Benchmark!O167) -> 0.04366600215 | W159: 1 | X159: 39043 | Y159: =IF(Fund!O167="",NA(),Fund!O167) -> 0.106286937 | Z159: 39043 | AA159: =IF(Benchmark!O167="",NA(),Benchmark!O167) -> 0.04366600215 | AB159: =Benchmark!Y167 -> 0.2977447431
J160: =IF(Fund!A168="",NA(),IF(Fund!A168<startdate,NA(),Fund!A168)) -> 39042 | K160: =IF(J160=0,NA(),Fund!B168/fundnorm) -> 1.102745568 | L160: =IF(Benchmark!A168="",NA(),IF(Benchmark!A168<startdate,NA(),Benchmark!A168)) -> 39043 | M160: =IF(L160=0,NA(),Benchmark!B168/benchnorm) -> 1.113628962 | N160: =IF(ISERROR(O160),NA(),Fund!L168) -> 40868 | O160: =IF(Fund!I168="",NA(),Fund!I168) -> 0.634989181 | P160: =IF(ISERROR(Q160),NA(),Benchmark!L168) -> 40868 | Q160: =IF(Benchmark!I168="",NA(),Benchmark!I168) -> 0.2274613013 | R160: 1 | S160: =IF(ISERROR(O160),NA(),Fund!L168) -> 40868 | T160: =IF(Fund!O168="",NA(),Fund!O168) -> 0.1032643616 | U160: =IF(ISERROR(Q160),NA(),Benchmark!L168) -> 40868 | V160: =IF(Benchmark!O168="",NA(),Benchmark!O168) -> 0.04184128344 | W160: 1 | X160: 39043 | Y160: =IF(Fund!O168="",NA(),Fund!O168) -> 0.1032643616 | Z160: 39043 | AA160: =IF(Benchmark!O168="",NA(),Benchmark!O168) -> 0.04184128344 | AB160: =Benchmark!Y168 -> 0.2976450365
J161: =IF(Fund!A169="",NA(),IF(Fund!A169<startdate,NA(),Fund!A169)) -> 39043 | K161: =IF(J161=0,NA(),Fund!B169/fundnorm) -> 1.112350994 | L161: =IF(Benchmark!A169="",NA(),IF(Benchmark!A169<startdate,NA(),Benchmark!A169)) -> 39044 | M161: =IF(L161=0,NA(),Benchmark!B169/benchnorm) -> 1.11492363 | N161: =IF(ISERROR(O161),NA(),Fund!L169) -> 40868 | O161: =IF(Fund!I169="",NA(),Fund!I169) -> 0.6208706447 | P161: =IF(ISERROR(Q161),NA(),Benchmark!L169) -> 40869 | Q161: =IF(Benchmark!I169="",NA(),Benchmark!I169) -> 0.2331908527 | R161: 1 | S161: =IF(ISERROR(O161),NA(),Fund!L169) -> 40868 | T161: =IF(Fund!O169="",NA(),Fund!O169) -> 0.1014116585 | U161: =IF(ISERROR(Q161),NA(),Benchmark!L169) -> 40869 | V161: =IF(Benchmark!O169="",NA(),Benchmark!O169) -> 0.04281209409 | W161: 1 | X161: 39043 | Y161: =IF(Fund!O169="",NA(),Fund!O169) -> 0.1014116585 | Z161: 39044 | AA161: =IF(Benchmark!O169="",NA(),Benchmark!O169) -> 0.04281209409 | AB161: =Benchmark!Y169 -> 0.2976269692
J162: =IF(Fund!A170="",NA(),IF(Fund!A170<startdate,NA(),Fund!A170)) -> 39044 | K162: =IF(J162=0,NA(),Fund!B170/fundnorm) -> 1.11234084 | L162: =IF(Benchmark!A170="",NA(),IF(Benchmark!A170<startdate,NA(),Benchmark!A170)) -> 39045 | M162: =IF(L162=0,NA(),Benchmark!B170/benchnorm) -> 1.119567491 | N162: =IF(ISERROR(O162),NA(),Fund!L170) -> 40869 | O162: =IF(Fund!I170="",NA(),Fund!I170) -> 0.6317937015 | P162: =IF(ISERROR(Q162),NA(),Benchmark!L170) -> 40870 | Q162: =IF(Benchmark!I170="",NA(),Benchmark!I170) -> 0.2020791555 | R162: 1 | S162: =IF(ISERROR(O162),NA(),Fund!L170) -> 40869 | T162: =IF(Fund!O170="",NA(),Fund!O170) -> 0.1028921664 | U162: =IF(ISERROR(Q162),NA(),Benchmark!L170) -> 40870 | V162: =IF(Benchmark!O170="",NA(),Benchmark!O170) -> 0.03749643266 | W162: 1 | X162: 39044 | Y162: =IF(Fund!O170="",NA(),Fund!O170) -> 0.1028921664 | Z162: 39045 | AA162: =IF(Benchmark!O170="",NA(),Benchmark!O170) -> 0.03749643266 | AB162: =Benchmark!Y170 -> 0.2978776938
J163: =IF(Fund!A171="",NA(),IF(Fund!A171<startdate,NA(),Fund!A171)) -> 39045 | K163: =IF(J163=0,NA(),Fund!B171/fundnorm) -> 1.112026075 | L163: =IF(Benchmark!A171="",NA(),IF(Benchmark!A171<startdate,NA(),Benchmark!A171)) -> 39048 | M163: =IF(L163=0,NA(),Benchmark!B171/benchnorm) -> 1.125196252 | N163: =IF(ISERROR(O163),NA(),Fund!L171) -> 40870 | O163: =IF(Fund!I171="",NA(),Fund!I171) -> 0.6016764214 | P163: =IF(ISERROR(Q163),NA(),Benchmark!L171) -> 40875 | Q163: =IF(Benchmark!I171="",NA(),Benchmark!I171) -> 0.2344478694 | R163: 1 | S163: =IF(ISERROR(O163),NA(),Fund!L171) -> 40870 | T163: =IF(Fund!O171="",NA(),Fund!O171) -> 0.09879065156 | U163: =IF(ISERROR(Q163),NA(),Benchmark!L171) -> 40875 | V163: =IF(Benchmark!O171="",NA(),Benchmark!O171) -> 0.04297650158 | W163: 1 | X163: 39045 | Y163: =IF(Fund!O171="",NA(),Fund!O171) -> 0.09879065156 | Z163: 39050 | AA163: =IF(Benchmark!O171="",NA(),Benchmark!O171) -> 0.04297650158 | AB163: =Benchmark!Y171 -> 0.2979130447
J164: =IF(Fund!A172="",NA(),IF(Fund!A172<startdate,NA(),Fund!A172)) -> 39048 | K164: =IF(J164=0,NA(),Fund!B172/fundnorm) -> 1.116788173 | L164: =IF(Benchmark!A172="",NA(),IF(Benchmark!A172<startdate,NA(),Benchmark!A172)) -> 39049 | M164: =IF(L164=0,NA(),Benchmark!B172/benchnorm) -> 1.111468535 | N164: =IF(ISERROR(O164),NA(),Fund!L172) -> 40875 | O164: =IF(Fund!I172="",NA(),Fund!I172) -> 0.6509164636 | P164: =IF(ISERROR(Q164),NA(),Benchmark!L172) -> 40875 | Q164: =IF(Benchmark!I172="",NA(),Benchmark!I172) -> 0.249694501 | R164: 1 | S164: =IF(ISERROR(O164),NA(),Fund!L172) -> 40875 | T164: =IF(Fund!O172="",NA(),Fund!O172) -> 0.1053437293 | U164: =IF(ISERROR(Q164),NA(),Benchmark!L172) -> 40875 | V164: =IF(Benchmark!O172="",NA(),Benchmark!O172) -> 0.04556290805 | W164: 1 | X164: 39050 | Y164: =IF(Fund!O172="",NA(),Fund!O172) -> 0.1053437293 | Z164: 39050 | AA164: =IF(Benchmark!O172="",NA(),Benchmark!O172) -> 0.04556290805 | AB164: =Benchmark!Y172 -> 0.2979083313
J165: =IF(Fund!A173="",NA(),IF(Fund!A173<startdate,NA(),Fund!A173)) -> 39049 | K165: =IF(J165=0,NA(),Fund!B173/fundnorm) -> 1.105710456 | L165: =IF(Benchmark!A173="",NA(),IF(Benchmark!A173<startdate,NA(),Benchmark!A173)) -> 39050 | M165: =IF(L165=0,NA(),Benchmark!B173/benchnorm) -> 1.114012862 | N165: =IF(ISERROR(O165),NA(),Fund!L173) -> 40875 | O165: =IF(Fund!I173="",NA(),Fund!I173) -> 0.6674564038 | P165: =IF(ISERROR(Q165),NA(),Benchmark!L173) -> 40875 | Q165: =IF(Benchmark!I173="",NA(),Benchmark!I173) -> 0.2468402865 | R165: 1 | S165: =IF(ISERROR(O165),NA(),Fund!L173) -> 40875 | T165: =IF(Fund!O173="",NA(),Fund!O173) -> 0.1076092541 | U165: =IF(ISERROR(Q165),NA(),Benchmark!L173) -> 40875 | V165: =IF(Benchmark!O173="",NA(),Benchmark!O173) -> 0.04511038959 | W165: 1 | X165: 39050 | Y165: =IF(Fund!O173="",NA(),Fund!O173) -> 0.1076092541 | Z165: 39050 | AA165: =IF(Benchmark!O173="",NA(),Benchmark!O173) -> 0.04511038959 | AB165: =Benchmark!Y173 -> 0.2978731593
J166: =IF(Fund!A174="",NA(),IF(Fund!A174<startdate,NA(),Fund!A174)) -> 39050 | K166: =IF(J166=0,NA(),Fund!B174/fundnorm) -> 1.1078732 | L166: =IF(Benchmark!A174="",NA(),IF(Benchmark!A174<startdate,NA(),Benchmark!A174)) -> 39051 | M166: =IF(L166=0,NA(),Benchmark!B174/benchnorm) -> 1.115990606 | N166: =IF(ISERROR(O166),NA(),Fund!L174) -> 40875 | O166: =IF(Fund!I174="",NA(),Fund!I174) -> 0.6642012648 | P166: =IF(ISERROR(Q166),NA(),Benchmark!L174) -> 40876 | Q166: =IF(Benchmark!I174="",NA(),Benchmark!I174) -> 0.2331126205 | R166: 1 | S166: =IF(ISERROR(O166),NA(),Fund!L174) -> 40875 | T166: =IF(Fund!O174="",NA(),Fund!O174) -> 0.1072384775 | U166: =IF(ISERROR(Q166),NA(),Benchmark!L174) -> 40876 | V166: =IF(Benchmark!O174="",NA(),Benchmark!O174) -> 0.04279886186 | W166: 1 | X166: 39050 | Y166: =IF(Fund!O174="",NA(),Fund!O174) -> 0.1072384775 | Z166: 39051 | AA166: =IF(Benchmark!O174="",NA(),Benchmark!O174) -> 0.04279886186 | AB166: =Benchmark!Y174 -> 0.2978878419
J167: =IF(Fund!A175="",NA(),IF(Fund!A175<startdate,NA(),Fund!A175)) -> 39051 | K167: =IF(J167=0,NA(),Fund!B175/fundnorm) -> 1.111619926 | L167: =IF(Benchmark!A175="",NA(),IF(Benchmark!A175<startdate,NA(),Benchmark!A175)) -> 39052 | M167: =IF(L167=0,NA(),Benchmark!B175/benchnorm) -> 1.129072313 | N167: =IF(ISERROR(O167),NA(),Fund!L175) -> 40876 | O167: =IF(Fund!I175="",NA(),Fund!I175) -> 0.6388165767 | P167: =IF(ISERROR(Q167),NA(),Benchmark!L175) -> 40877 | Q167: =IF(Benchmark!I175="",NA(),Benchmark!I175) -> 0.2211446018 | R167: 1 | S167: =IF(ISERROR(O167),NA(),Fund!L175) -> 40876 | T167: =IF(Fund!O175="",NA(),Fund!O175) -> 0.1038398564 | U167: =IF(ISERROR(Q167),NA(),Benchmark!L175) -> 40877 | V167: =IF(Benchmark!O175="",NA(),Benchmark!O175) -> 0.04076677263 | W167: 1 | X167: 39051 | Y167: =IF(Fund!O175="",NA(),Fund!O175) -> 0.1038398564 | Z167: 39052 | AA167: =IF(Benchmark!O175="",NA(),Benchmark!O175) -> 0.04076677263 | AB167: =Benchmark!Y175 -> 0.2978874326
J168: =IF(Fund!A176="",NA(),IF(Fund!A176<startdate,NA(),Fund!A176)) -> 39052 | K168: =IF(J168=0,NA(),Fund!B176/fundnorm) -> 1.127002823 | L168: =IF(Benchmark!A176="",NA(),IF(Benchmark!A176<startdate,NA(),Benchmark!A176)) -> 39055 | M168: =IF(L168=0,NA(),Benchmark!B176/benchnorm) -> 1.133491129 | N168: =IF(ISERROR(O168),NA(),Fund!L176) -> 40877 | O168: =IF(Fund!I176="",NA(),Fund!I176) -> 0.6208173415 | P168: =IF(ISERROR(Q168),NA(),Benchmark!L176) -> 40882 | Q168: =IF(Benchmark!I176="",NA(),Benchmark!I176) -> 0.2631556819 | R168: 1 | S168: =IF(ISERROR(O168),NA(),Fund!L176) -> 40877 | T168: =IF(Fund!O176="",NA(),Fund!O176) -> 0.1014044225 | U168: =IF(ISERROR(Q168),NA(),Benchmark!L176) -> 40882 | V168: =IF(Benchmark!O176="",NA(),Benchmark!O176) -> 0.04777772725 | W168: 1 | X168: 39052 | Y168: =IF(Fund!O176="",NA(),Fund!O176) -> 0.1014044225 | Z168: 39057 | AA168: =IF(Benchmark!O176="",NA(),Benchmark!O176) -> 0.04777772725 | AB168: =Benchmark!Y176 -> 0.2978517772
J169: =IF(Fund!A177="",NA(),IF(Fund!A177<startdate,NA(),Fund!A177)) -> 39055 | K169: =IF(J169=0,NA(),Fund!B177/fundnorm) -> 1.127713584 | L169: =IF(Benchmark!A177="",NA(),IF(Benchmark!A177<startdate,NA(),Benchmark!A177)) -> 39056 | M169: =IF(L169=0,NA(),Benchmark!B177/benchnorm) -> 1.136043399 | N169: =IF(ISERROR(O169),NA(),Fund!L177) -> 40882 | O169: =IF(Fund!I177="",NA(),Fund!I177) -> 0.688882086 | P169: =IF(ISERROR(Q169),NA(),Benchmark!L177) -> 40882 | Q169: =IF(Benchmark!I177="",NA(),Benchmark!I177) -> 0.2603178376 | R169: 1 | S169: =IF(ISERROR(O169),NA(),Fund!L177) -> 40882 | T169: =IF(Fund!O177="",NA(),Fund!O177) -> 0.1103759229 | U169: =IF(ISERROR(Q169),NA(),Benchmark!L177) -> 40882 | V169: =IF(Benchmark!O177="",NA(),Benchmark!O177) -> 0.04733354151 | W169: 1 | X169: 39057 | Y169: =IF(Fund!O177="",NA(),Fund!O177) -> 0.1103759229 | Z169: 39057 | AA169: =IF(Benchmark!O177="",NA(),Benchmark!O177) -> 0.04733354151 | AB169: =Benchmark!Y177 -> 0.2978511254
J170: =IF(Fund!A178="",NA(),IF(Fund!A178<startdate,NA(),Fund!A178)) -> 39056 | K170: =IF(J170=0,NA(),Fund!B178/fundnorm) -> 1.129165567 | L170: =IF(Benchmark!A178="",NA(),IF(Benchmark!A178<startdate,NA(),Benchmark!A178)) -> 39057 | M170: =IF(L170=0,NA(),Benchmark!B178/benchnorm) -> 1.131680183 | N170: =IF(ISERROR(O170),NA(),Fund!L178) -> 40882 | O170: =IF(Fund!I178="",NA(),Fund!I178) -> 0.686710369 | P170: =IF(ISERROR(Q170),NA(),Benchmark!L178) -> 40882 | Q170: =IF(Benchmark!I178="",NA(),Benchmark!I178) -> 0.2651770194 | R170: 1 | S170: =IF(ISERROR(O170),NA(),Fund!L178) -> 40882 | T170: =IF(Fund!O178="",NA(),Fund!O178) -> 0.1101540148 | U170: =IF(ISERROR(Q170),NA(),Benchmark!L178) -> 40882 | V170: =IF(Benchmark!O178="",NA(),Benchmark!O178) -> 0.04816646278 | W170: 1 | X170: 39057 | Y170: =IF(Fund!O178="",NA(),Fund!O178) -> 0.1101540148 | Z170: 39057 | AA170: =IF(Benchmark!O178="",NA(),Benchmark!O178) -> 0.04816646278 | AB170: =Benchmark!Y178 -> 0.2978502331
J171: =IF(Fund!A179="",NA(),IF(Fund!A179<startdate,NA(),Fund!A179)) -> 39057 | K171: =IF(J171=0,NA(),Fund!B179/fundnorm) -> 1.125479764 | L171: =IF(Benchmark!A179="",NA(),IF(Benchmark!A179<startdate,NA(),Benchmark!A179)) -> 39062 | M171: =IF(L171=0,NA(),Benchmark!B179/benchnorm) -> 1.087198142 | N171: =IF(ISERROR(O171),NA(),Fund!L179) -> 40882 | O171: =IF(Fund!I179="",NA(),Fund!I179) -> 0.6922341309 | P171: =IF(ISERROR(Q171),NA(),Benchmark!L179) -> 40889 | Q171: =IF(Benchmark!I179="",NA(),Benchmark!I179) -> 0.2481577448 | R171: 1 | S171: =IF(ISERROR(O171),NA(),Fund!L179) -> 40882 | T171: =IF(Fund!O179="",NA(),Fund!O179) -> 0.1109438002 | U171: =IF(ISERROR(Q171),NA(),Benchmark!L179) -> 40889 | V171: =IF(Benchmark!O179="",NA(),Benchmark!O179) -> 0.04528042376 | W171: 1 | X171: 39057 | Y171: =IF(Fund!O179="",NA(),Fund!O179) -> 0.1109438002 | Z171: 39064 | AA171: =IF(Benchmark!O179="",NA(),Benchmark!O179) -> 0.04528042376 | AB171: =Benchmark!Y179 -> 0.2979374239
J172: =IF(Fund!A180="",NA(),IF(Fund!A180<startdate,NA(),Fund!A180)) -> 39058 | K172: =IF(J172=0,NA(),Fund!B180/fundnorm) -> 1.124484698 | L172: =IF(Benchmark!A180="",NA(),IF(Benchmark!A180<startdate,NA(),Benchmark!A180)) -> 39063 | M172: =IF(L172=0,NA(),Benchmark!B180/benchnorm) -> 1.045196888 | N172: =IF(ISERROR(O172),NA(),Fund!L180) -> 40884 | O172: =IF(Fund!I180="",NA(),Fund!I180) -> 0.6971357882 | P172: =IF(ISERROR(Q172),NA(),Benchmark!L180) -> 40889 | Q172: =IF(Benchmark!I180="",NA(),Benchmark!I180) -> 0.2983149853 | R172: 1 | S172: =IF(ISERROR(O172),NA(),Fund!L180) -> 40884 | T172: =IF(Fund!O180="",NA(),Fund!O180) -> 0.1115222394 | U172: =IF(ISERROR(Q172),NA(),Benchmark!L180) -> 40889 | V172: =IF(Benchmark!O180="",NA(),Benchmark!O180) -> 0.05357048213 | W172: 1 | X172: 39059 | Y172: =IF(Fund!O180="",NA(),Fund!O180) -> 0.1115222394 | Z172: 39064 | AA172: =IF(Benchmark!O180="",NA(),Benchmark!O180) -> 0.05357048213 | AB172: =Benchmark!Y180 -> 0.2973779853
J173: =IF(Fund!A181="",NA(),IF(Fund!A181<startdate,NA(),Fund!A181)) -> 39059 | K173: =IF(J173=0,NA(),Fund!B181/fundnorm) -> 1.111477773 | L173: =IF(Benchmark!A181="",NA(),IF(Benchmark!A181<startdate,NA(),Benchmark!A181)) -> 39064 | M173: =IF(L173=0,NA(),Benchmark!B181/benchnorm) -> 1.064574547 | N173: =IF(ISERROR(O173),NA(),Fund!L181) -> 40884 | O173: =IF(Fund!I181="",NA(),Fund!I181) -> 0.7169963002 | P173: =IF(ISERROR(Q173),NA(),Benchmark!L181) -> 40889 | Q173: =IF(Benchmark!I181="",NA(),Benchmark!I181) -> 0.2746827227 | R173: 1 | S173: =IF(ISERROR(O173),NA(),Fund!L181) -> 40884 | T173: =IF(Fund!O181="",NA(),Fund!O181) -> 0.1141761839 | U173: =IF(ISERROR(Q173),NA(),Benchmark!L181) -> 40889 | V173: =IF(Benchmark!O181="",NA(),Benchmark!O181) -> 0.04973679483 | W173: 1 | X173: 39059 | Y173: =IF(Fund!O181="",NA(),Fund!O181) -> 0.1141761839 | Z173: 39064 | AA173: =IF(Benchmark!O181="",NA(),Benchmark!O181) -> 0.04973679483 | AB173: =Benchmark!Y181 -> 0.296804053
J174: =IF(Fund!A182="",NA(),IF(Fund!A182<startdate,NA(),Fund!A182)) -> 39062 | K174: =IF(J174=0,NA(),Fund!B182/fundnorm) -> 1.080579981 | L174: =IF(Benchmark!A182="",NA(),IF(Benchmark!A182<startdate,NA(),Benchmark!A182)) -> 39065 | M174: =IF(L174=0,NA(),Benchmark!B182/benchnorm) -> 1.089721289 | N174: =IF(ISERROR(O174),NA(),Fund!L182) -> 40889 | O174: =IF(Fund!I182="",NA(),Fund!I182) -> 0.6672398564 | P174: =IF(ISERROR(Q174),NA(),Benchmark!L182) -> 40890 | Q174: =IF(Benchmark!I182="",NA(),Benchmark!I182) -> 0.2505982881 | R174: 1 | S174: =IF(ISERROR(O174),NA(),Fund!L182) -> 40889 | T174: =IF(Fund!O182="",NA(),Fund!O182) -> 0.1075185597 | U174: =IF(ISERROR(Q174),NA(),Benchmark!L182) -> 40890 | V174: =IF(Benchmark!O182="",NA(),Benchmark!O182) -> 0.04573962986 | W174: 1 | X174: 39064 | Y174: =IF(Fund!O182="",NA(),Fund!O182) -> 0.1075185597 | Z174: 39065 | AA174: =IF(Benchmark!O182="",NA(),Benchmark!O182) -> 0.04573962986 | AB174: =Benchmark!Y182 -> 0.2967620049
J175: =IF(Fund!A183="",NA(),IF(Fund!A183<startdate,NA(),Fund!A183)) -> 39063 | K175: =IF(J175=0,NA(),Fund!B183/fundnorm) -> 1.045884694 | L175: =IF(Benchmark!A183="",NA(),IF(Benchmark!A183<startdate,NA(),Benchmark!A183)) -> 39066 | M175: =IF(L175=0,NA(),Benchmark!B183/benchnorm) -> 1.100899384 | N175: =IF(ISERROR(O175),NA(),Fund!L183) -> 40889 | O175: =IF(Fund!I183="",NA(),Fund!I183) -> 0.7225474492 | P175: =IF(ISERROR(Q175),NA(),Benchmark!L183) -> 40891 | Q175: =IF(Benchmark!I183="",NA(),Benchmark!I183) -> 0.2278716635 | R175: 1 | S175: =IF(ISERROR(O175),NA(),Fund!L183) -> 40889 | T175: =IF(Fund!O183="",NA(),Fund!O183) -> 0.1148292959 | U175: =IF(ISERROR(Q175),NA(),Benchmark!L183) -> 40891 | V175: =IF(Benchmark!O183="",NA(),Benchmark!O183) -> 0.04191093147 | W175: 1 | X175: 39064 | Y175: =IF(Fund!O183="",NA(),Fund!O183) -> 0.1148292959 | Z175: 39066 | AA175: =IF(Benchmark!O183="",NA(),Benchmark!O183) -> 0.04191093147 | AB175: =Benchmark!Y183 -> 0.2965979404
J176: =IF(Fund!A184="",NA(),IF(Fund!A184<startdate,NA(),Fund!A184)) -> 39064 | K176: =IF(J176=0,NA(),Fund!B184/fundnorm) -> 1.06475032 | L176: =IF(Benchmark!A184="",NA(),IF(Benchmark!A184<startdate,NA(),Benchmark!A184)) -> 39069 | M176: =IF(L176=0,NA(),Benchmark!B184/benchnorm) -> 1.106784961 | N176: =IF(ISERROR(O176),NA(),Fund!L184) -> 40889 | O176: =IF(Fund!I184="",NA(),Fund!I184) -> 0.6920267397 | P176: =IF(ISERROR(Q176),NA(),Benchmark!L184) -> 40896 | Q176: =IF(Benchmark!I184="",NA(),Benchmark!I184) -> 0.1779487891 | R176: 1 | S176: =IF(ISERROR(O176),NA(),Fund!L184) -> 40889 | T176: =IF(Fund!O184="",NA(),Fund!O184) -> 0.1109165728 | U176: =IF(ISERROR(Q176),NA(),Benchmark!L184) -> 40896 | V176: =IF(Benchmark!O184="",NA(),Benchmark!O184) -> 0.03326022327 | W176: 1 | X176: 39064 | Y176: =IF(Fund!O184="",NA(),Fund!O184) -> 0.1109165728 | Z176: 39071 | AA176: =IF(Benchmark!O184="",NA(),Benchmark!O184) -> 0.03326022327 | AB176: =Benchmark!Y184 -> 0.2965612334
J177: =IF(Fund!A185="",NA(),IF(Fund!A185<startdate,NA(),Fund!A185)) -> 39065 | K177: =IF(J177=0,NA(),Fund!B185/fundnorm) -> 1.089251264 | L177: =IF(Benchmark!A185="",NA(),IF(Benchmark!A185<startdate,NA(),Benchmark!A185)) -> 39070 | M177: =IF(L177=0,NA(),Benchmark!B185/benchnorm) -> 1.082083012 | N177: =IF(ISERROR(O177),NA(),Fund!L185) -> 40890 | O177: =IF(Fund!I185="",NA(),Fund!I185) -> 0.6636339908 | P177: =IF(ISERROR(Q177),NA(),Benchmark!L185) -> 40896 | Q177: =IF(Benchmark!I185="",NA(),Benchmark!I185) -> 0.2048391753 | R177: 1 | S177: =IF(ISERROR(O177),NA(),Fund!L185) -> 40890 | T177: =IF(Fund!O185="",NA(),Fund!O185) -> 0.1071629822 | U177: =IF(ISERROR(Q177),NA(),Benchmark!L185) -> 40896 | V177: =IF(Benchmark!O185="",NA(),Benchmark!O185) -> 0.03795123994 | W177: 1 | X177: 39065 | Y177: =IF(Fund!O185="",NA(),Fund!O185) -> 0.1071629822 | Z177: 39071 | AA177: =IF(Benchmark!O185="",NA(),Benchmark!O185) -> 0.03795123994 | AB177: =Benchmark!Y185 -> 0.2965669344
J178: =IF(Fund!A186="",NA(),IF(Fund!A186<startdate,NA(),Fund!A186)) -> 39066 | K178: =IF(J178=0,NA(),Fund!B186/fundnorm) -> 1.098277928 | L178: =IF(Benchmark!A186="",NA(),IF(Benchmark!A186<startdate,NA(),Benchmark!A186)) -> 39071 | M178: =IF(L178=0,NA(),Benchmark!B186/benchnorm) -> 1.076973177 | N178: =IF(ISERROR(O178),NA(),Fund!L186) -> 40891 | O178: =IF(Fund!I186="",NA(),Fund!I186) -> 0.6359913096 | P178: =IF(ISERROR(Q178),NA(),Benchmark!L186) -> 40896 | Q178: =IF(Benchmark!I186="",NA(),Benchmark!I186) -> 0.2105556867 | R178: 1 | S178: =IF(ISERROR(O178),NA(),Fund!L186) -> 40891 | T178: =IF(Fund!O186="",NA(),Fund!O186) -> 0.1034589946 | U178: =IF(ISERROR(Q178),NA(),Benchmark!L186) -> 40896 | V178: =IF(Benchmark!O186="",NA(),Benchmark!O186) -> 0.0389555186 | W178: 1 | X178: 39066 | Y178: =IF(Fund!O186="",NA(),Fund!O186) -> 0.1034589946 | Z178: 39071 | AA178: =IF(Benchmark!O186="",NA(),Benchmark!O186) -> 0.0389555186 | AB178: =Benchmark!Y186 -> 0.2963988034
J179: =IF(Fund!A187="",NA(),IF(Fund!A187<startdate,NA(),Fund!A187)) -> 39069 | K179: =IF(J179=0,NA(),Fund!B187/fundnorm) -> 1.103283715 | L179: =IF(Benchmark!A187="",NA(),IF(Benchmark!A187<startdate,NA(),Benchmark!A187)) -> 39072 | M179: =IF(L179=0,NA(),Benchmark!B187/benchnorm) -> 1.080989561 | N179: =IF(ISERROR(O179),NA(),Fund!L187) -> 40896 | O179: =IF(Fund!I187="",NA(),Fund!I187) -> 0.5735610816 | P179: =IF(ISERROR(Q179),NA(),Benchmark!L187) -> 40897 | Q179: =IF(Benchmark!I187="",NA(),Benchmark!I187) -> 0.1860698077 | R179: 1 | S179: =IF(ISERROR(O179),NA(),Fund!L187) -> 40896 | T179: =IF(Fund!O187="",NA(),Fund!O187) -> 0.09479704201 | U179: =IF(ISERROR(Q179),NA(),Benchmark!L187) -> 40897 | V179: =IF(Benchmark!O187="",NA(),Benchmark!O187) -> 0.03471811116 | W179: 1 | X179: 39071 | Y179: =IF(Fund!O187="",NA(),Fund!O187) -> 0.09479704201 | Z179: 39072 | AA179: =IF(Benchmark!O187="",NA(),Benchmark!O187) -> 0.03471811116 | AB179: =Benchmark!Y187 -> 0.2963995743
J180: =IF(Fund!A188="",NA(),IF(Fund!A188<startdate,NA(),Fund!A188)) -> 39070 | K180: =IF(J180=0,NA(),Fund!B188/fundnorm) -> 1.078193855 | L180: =IF(Benchmark!A188="",NA(),IF(Benchmark!A188<startdate,NA(),Benchmark!A188)) -> 39073 | M180: =IF(L180=0,NA(),Benchmark!B188/benchnorm) -> 1.091918783 | N180: =IF(ISERROR(O180),NA(),Fund!L188) -> 40896 | O180: =IF(Fund!I188="",NA(),Fund!I188) -> 0.6101782704 | P180: =IF(ISERROR(Q180),NA(),Benchmark!L188) -> 40898 | Q180: =IF(Benchmark!I188="",NA(),Benchmark!I188) -> 0.2062964786 | R180: 1 | S180: =IF(ISERROR(O180),NA(),Fund!L188) -> 40896 | T180: =IF(Fund!O188="",NA(),Fund!O188) -> 0.09989729524 | U180: =IF(ISERROR(Q180),NA(),Benchmark!L188) -> 40898 | V180: =IF(Benchmark!O188="",NA(),Benchmark!O188) -> 0.03822339475 | W180: 1 | X180: 39071 | Y180: =IF(Fund!O188="",NA(),Fund!O188) -> 0.09989729524 | Z180: 39073 | AA180: =IF(Benchmark!O188="",NA(),Benchmark!O188) -> 0.03822339475 | AB180: =Benchmark!Y188 -> 0.2964809407
J181: =IF(Fund!A189="",NA(),IF(Fund!A189<startdate,NA(),Fund!A189)) -> 39071 | K181: =IF(J181=0,NA(),Fund!B189/fundnorm) -> 1.074629897 | L181: =IF(Benchmark!A189="",NA(),IF(Benchmark!A189<startdate,NA(),Benchmark!A189)) -> 39077 | M181: =IF(L181=0,NA(),Benchmark!B189/benchnorm) -> 1.110070611 | N181: =IF(ISERROR(O181),NA(),Fund!L189) -> 40896 | O181: =IF(Fund!I189="",NA(),Fund!I189) -> 0.6155183491 | P181: =IF(ISERROR(Q181),NA(),Benchmark!L189) -> 40903 | Q181: =IF(Benchmark!I189="",NA(),Benchmark!I189) -> 0.2070826685 | R181: 1 | S181: =IF(ISERROR(O181),NA(),Fund!L189) -> 40896 | T181: =IF(Fund!O189="",NA(),Fund!O189) -> 0.1006833017 | U181: =IF(ISERROR(Q181),NA(),Benchmark!L189) -> 40903 | V181: =IF(Benchmark!O189="",NA(),Benchmark!O189) -> 0.03833728731 | W181: 1 | X181: 39071 | Y181: =IF(Fund!O189="",NA(),Fund!O189) -> 0.1006833017 | Z181: 39078 | AA181: =IF(Benchmark!O189="",NA(),Benchmark!O189) -> 0.03833728731 | AB181: =Benchmark!Y189 -> 0.296463771
J182: =IF(Fund!A190="",NA(),IF(Fund!A190<startdate,NA(),Fund!A190)) -> 39072 | K182: =IF(J182=0,NA(),Fund!B190/fundnorm) -> 1.078214162 | L182: =IF(Benchmark!A190="",NA(),IF(Benchmark!A190<startdate,NA(),Benchmark!A190)) -> 39078 | M182: =IF(L182=0,NA(),Benchmark!B190/benchnorm) -> 1.121156041 | N182: =IF(ISERROR(O182),NA(),Fund!L190) -> 40897 | O182: =IF(Fund!I190="",NA(),Fund!I190) -> 0.5825744663 | P182: =IF(ISERROR(Q182),NA(),Benchmark!L190) -> 40903 | Q182: =IF(Benchmark!I190="",NA(),Benchmark!I190) -> 0.1951476395 | R182: 1 | S182: =IF(ISERROR(O182),NA(),Fund!L190) -> 40897 | T182: =IF(Fund!O190="",NA(),Fund!O190) -> 0.0961571753 | U182: =IF(ISERROR(Q182),NA(),Benchmark!L190) -> 40903 | V182: =IF(Benchmark!O190="",NA(),Benchmark!O190) -> 0.03629716933 | W182: 1 | X182: 39072 | Y182: =IF(Fund!O190="",NA(),Fund!O190) -> 0.0961571753 | Z182: 39078 | AA182: =IF(Benchmark!O190="",NA(),Benchmark!O190) -> 0.03629716933 | AB182: =Benchmark!Y190 -> 0.2964682934
J183: =IF(Fund!A191="",NA(),IF(Fund!A191<startdate,NA(),Fund!A191)) -> 39073 | K183: =IF(J183=0,NA(),Fund!B191/fundnorm) -> 1.08872327 | L183: =IF(Benchmark!A191="",NA(),IF(Benchmark!A191<startdate,NA(),Benchmark!A191)) -> 39079 | M183: =IF(L183=0,NA(),Benchmark!B191/benchnorm) -> 1.120936291 | N183: =IF(ISERROR(O183),NA(),Fund!L191) -> 40898 | O183: =IF(Fund!I191="",NA(),Fund!I191) -> 0.61119712 | P183: =IF(ISERROR(Q183),NA(),Benchmark!L191) -> 40904 | Q183: =IF(Benchmark!I191="",NA(),Benchmark!I191) -> 0.1877717706 | R183: 1 | S183: =IF(ISERROR(O183),NA(),Fund!L191) -> 40898 | T183: =IF(Fund!O191="",NA(),Fund!O191) -> 0.1000938475 | U183: =IF(ISERROR(Q183),NA(),Benchmark!L191) -> 40904 | V183: =IF(Benchmark!O191="",NA(),Benchmark!O191) -> 0.0350148946 | W183: 1 | X183: 39073 | Y183: =IF(Fund!O191="",NA(),Fund!O191) -> 0.1000938475 | Z183: 39079 | AA183: =IF(Benchmark!O191="",NA(),Benchmark!O191) -> 0.0350148946 | AB183: =Benchmark!Y191 -> 0.2964381634
J184: =IF(Fund!A192="",NA(),IF(Fund!A192<startdate,NA(),Fund!A192)) -> 39077 | K184: =IF(J184=0,NA(),Fund!B192/fundnorm) -> 1.105781532 | L184: =IF(Benchmark!A192="",NA(),IF(Benchmark!A192<startdate,NA(),Benchmark!A192)) -> 39080 | M184: =IF(L184=0,NA(),Benchmark!B192/benchnorm) -> 1.123152318 | N184: =IF(ISERROR(O184),NA(),Fund!L192) -> 40903 | O184: =IF(Fund!I192="",NA(),Fund!I192) -> 0.609931683 | P184: =IF(ISERROR(Q184),NA(),Benchmark!L192) -> 40905 | Q184: =IF(Benchmark!I192="",NA(),Benchmark!I192) -> 0.1737927198 | R184: 1 | S184: =IF(ISERROR(O184),NA(),Fund!L192) -> 40903 | T184: =IF(Fund!O192="",NA(),Fund!O192) -> 0.09986361861 | U184: =IF(ISERROR(Q184),NA(),Benchmark!L192) -> 40905 | V184: =IF(Benchmark!O192="",NA(),Benchmark!O192) -> 0.03256709874 | W184: 1 | X184: 39078 | Y184: =IF(Fund!O192="",NA(),Fund!O192) -> 0.09986361861 | Z184: 39080 | AA184: =IF(Benchmark!O192="",NA(),Benchmark!O192) -> 0.03256709874 | AB184: =Benchmark!Y192 -> 0.2964824004
J185: =IF(Fund!A193="",NA(),IF(Fund!A193<startdate,NA(),Fund!A193)) -> 39078 | K185: =IF(J185=0,NA(),Fund!B193/fundnorm) -> 1.114229434 | L185: =IF(Benchmark!A193="",NA(),IF(Benchmark!A193<startdate,NA(),Benchmark!A193)) -> 39084 | M185: =IF(L185=0,NA(),Benchmark!B193/benchnorm) -> 1.132736568 | N185: =IF(ISERROR(O185),NA(),Fund!L193) -> 40903 | O185: =IF(Fund!I193="",NA(),Fund!I193) -> 0.5977254502 | P185: =IF(ISERROR(Q185),NA(),Benchmark!L193) -> 40910 | Q185: =IF(Benchmark!I193="",NA(),Benchmark!I193) -> 0.1505756852 | R185: 1 | S185: =IF(ISERROR(O185),NA(),Fund!L193) -> 40903 | T185: =IF(Fund!O193="",NA(),Fund!O193) -> 0.09824802279 | U185: =IF(ISERROR(Q185),NA(),Benchmark!L193) -> 40910 | V185: =IF(Benchmark!O193="",NA(),Benchmark!O193) -> 0.02843385637 | W185: 1 | X185: 39078 | Y185: =IF(Fund!O193="",NA(),Fund!O193) -> 0.09824802279 | Z185: 39085 | AA185: =IF(Benchmark!O193="",NA(),Benchmark!O193) -> 0.02843385637 | AB185: =Benchmark!Y193 -> 0.2964919986
J186: =IF(Fund!A194="",NA(),IF(Fund!A194<startdate,NA(),Fund!A194)) -> 39079 | K186: =IF(J186=0,NA(),Fund!B194/fundnorm) -> 1.114117743 | L186: =IF(Benchmark!A194="",NA(),IF(Benchmark!A194<startdate,NA(),Benchmark!A194)) -> 39085 | M186: =IF(L186=0,NA(),Benchmark!B194/benchnorm) -> 1.13941642 | N186: =IF(ISERROR(O186),NA(),Fund!L194) -> 40904 | O186: =IF(Fund!I194="",NA(),Fund!I194) -> 0.5841330599 | P186: =IF(ISERROR(Q186),NA(),Benchmark!L194) -> 40910 | Q186: =IF(Benchmark!I194="",NA(),Benchmark!I194) -> 0.1438304121 | R186: 1 | S186: =IF(ISERROR(O186),NA(),Fund!L194) -> 40904 | T186: =IF(Fund!O194="",NA(),Fund!O194) -> 0.09637300372 | U186: =IF(ISERROR(Q186),NA(),Benchmark!L194) -> 40910 | V186: =IF(Benchmark!O194="",NA(),Benchmark!O194) -> 0.02724095881 | W186: 1 | X186: 39079 | Y186: =IF(Fund!O194="",NA(),Fund!O194) -> 0.09637300372 | Z186: 39085 | AA186: =IF(Benchmark!O194="",NA(),Benchmark!O194) -> 0.02724095881 | AB186: =Benchmark!Y194 -> 0.2964711394
J187: =IF(Fund!A195="",NA(),IF(Fund!A195<startdate,NA(),Fund!A195)) -> 39080 | K187: =IF(J187=0,NA(),Fund!B195/fundnorm) -> 1.116148488 | L187: =IF(Benchmark!A195="",NA(),IF(Benchmark!A195<startdate,NA(),Benchmark!A195)) -> 39086 | M187: =IF(L187=0,NA(),Benchmark!B195/benchnorm) -> 1.134375422 | N187: =IF(ISERROR(O187),NA(),Fund!L195) -> 40905 | O187: =IF(Fund!I195="",NA(),Fund!I195) -> 0.5659313168 | P187: =IF(ISERROR(Q187),NA(),Benchmark!L195) -> 40911 | Q187: =IF(Benchmark!I195="",NA(),Benchmark!I195) -> 0.1802888038 | R187: 1 | S187: =IF(ISERROR(O187),NA(),Fund!L195) -> 40905 | T187: =IF(Fund!O195="",NA(),Fund!O195) -> 0.09384186566 | U187: =IF(ISERROR(Q187),NA(),Benchmark!L195) -> 40911 | V187: =IF(Benchmark!O195="",NA(),Benchmark!O195) -> 0.03370747864 | W187: 1 | X187: 39080 | Y187: =IF(Fund!O195="",NA(),Fund!O195) -> 0.09384186566 | Z187: 39086 | AA187: =IF(Benchmark!O195="",NA(),Benchmark!O195) -> 0.03370747864 | AB187: =Benchmark!Y195 -> 0.2965084403
J188: =IF(Fund!A196="",NA(),IF(Fund!A196<startdate,NA(),Fund!A196)) -> 39084 | K188: =IF(J188=0,NA(),Fund!B196/fundnorm) -> 1.125591455 | L188: =IF(Benchmark!A196="",NA(),IF(Benchmark!A196<startdate,NA(),Benchmark!A196)) -> 39087 | M188: =IF(L188=0,NA(),Benchmark!B196/benchnorm) -> 1.133491129 | N188: =IF(ISERROR(O188),NA(),Fund!L196) -> 40910 | O188: =IF(Fund!I196="",NA(),Fund!I196) -> 0.5452708493 | P188: =IF(ISERROR(Q188),NA(),Benchmark!L196) -> 40912 | Q188: =IF(Benchmark!I196="",NA(),Benchmark!I196) -> 0.1793760204 | R188: 1 | S188: =IF(ISERROR(O188),NA(),Fund!L196) -> 40910 | T188: =IF(Fund!O196="",NA(),Fund!O196) -> 0.09088813961 | U188: =IF(ISERROR(Q188),NA(),Benchmark!L196) -> 40912 | V188: =IF(Benchmark!O196="",NA(),Benchmark!O196) -> 0.0335475415 | W188: 1 | X188: 39085 | Y188: =IF(Fund!O196="",NA(),Fund!O196) -> 0.09088813961 | Z188: 39087 | AA188: =IF(Benchmark!O196="",NA(),Benchmark!O196) -> 0.0335475415 | AB188: =Benchmark!Y196 -> 0.2965245609
J189: =IF(Fund!A197="",NA(),IF(Fund!A197<startdate,NA(),Fund!A197)) -> 39085 | K189: =IF(J189=0,NA(),Fund!B197/fundnorm) -> 1.129196028 | L189: =IF(Benchmark!A197="",NA(),IF(Benchmark!A197<startdate,NA(),Benchmark!A197)) -> 39090 | M189: =IF(L189=0,NA(),Benchmark!B197/benchnorm) -> 1.120404127 | N189: =IF(ISERROR(O189),NA(),Fund!L197) -> 40910 | O189: =IF(Fund!I197="",NA(),Fund!I197) -> 0.5403380991 | P189: =IF(ISERROR(Q189),NA(),Benchmark!L197) -> 40915 | Q189: =IF(Benchmark!I197="",NA(),Benchmark!I197) -> 0.1943688265 | R189: 1 | S189: =IF(ISERROR(O189),NA(),Fund!L197) -> 40910 | T189: =IF(Fund!O197="",NA(),Fund!O197) -> 0.09024275839 | U189: =IF(ISERROR(Q189),NA(),Benchmark!L197) -> 40915 | V189: =IF(Benchmark!O197="",NA(),Benchmark!O197) -> 0.0361620754 | W189: 1 | X189: 39085 | Y189: =IF(Fund!O197="",NA(),Fund!O197) -> 0.09024275839 | Z189: 39090 | AA189: =IF(Benchmark!O197="",NA(),Benchmark!O197) -> 0.0361620754 | AB189: =Benchmark!Y197 -> 0.2965742488
J190: =IF(Fund!A198="",NA(),IF(Fund!A198<startdate,NA(),Fund!A198)) -> 39086 | K190: =IF(J190=0,NA(),Fund!B198/fundnorm) -> 1.125398534 | L190: =IF(Benchmark!A198="",NA(),IF(Benchmark!A198<startdate,NA(),Benchmark!A198)) -> 39091 | M190: =IF(L190=0,NA(),Benchmark!B198/benchnorm) -> 1.112633471 | N190: =IF(ISERROR(O190),NA(),Fund!L198) -> 40911 | O190: =IF(Fund!I198="",NA(),Fund!I198) -> 0.5903587282 | P190: =IF(ISERROR(Q190),NA(),Benchmark!L198) -> 40917 | Q190: =IF(Benchmark!I198="",NA(),Benchmark!I198) -> 0.2038739307 | R190: 1 | S190: =IF(ISERROR(O190),NA(),Fund!L198) -> 40911 | T190: =IF(Fund!O198="",NA(),Fund!O198) -> 0.09723339677 | U190: =IF(ISERROR(Q190),NA(),Benchmark!L198) -> 40917 | V190: =IF(Benchmark!O198="",NA(),Benchmark!O198) -> 0.03778496683 | W190: 1 | X190: 39086 | Y190: =IF(Fund!O198="",NA(),Fund!O198) -> 0.09723339677 | Z190: 39092 | AA190: =IF(Benchmark!O198="",NA(),Benchmark!O198) -> 0.03778496683 | AB190: =Benchmark!Y198 -> 0.2966988265
J191: =IF(Fund!A199="",NA(),IF(Fund!A199<startdate,NA(),Fund!A199)) -> 39087 | K191: =IF(J191=0,NA(),Fund!B199/fundnorm) -> 1.124728388 | L191: =IF(Benchmark!A199="",NA(),IF(Benchmark!A199<startdate,NA(),Benchmark!A199)) -> 39092 | M191: =IF(L191=0,NA(),Benchmark!B199/benchnorm) -> 1.095760426 | N191: =IF(ISERROR(O191),NA(),Fund!L199) -> 40912 | O191: =IF(Fund!I199="",NA(),Fund!I199) -> 0.590683398 | P191: =IF(ISERROR(Q191),NA(),Benchmark!L199) -> 40917 | Q191: =IF(Benchmark!I199="",NA(),Benchmark!I199) -> 0.2224117602 | R191: 1 | S191: =IF(ISERROR(O191),NA(),Fund!L199) -> 40912 | T191: =IF(Fund!O199="",NA(),Fund!O199) -> 0.09727819562 | U191: =IF(ISERROR(Q191),NA(),Benchmark!L199) -> 40917 | V191: =IF(Benchmark!O199="",NA(),Benchmark!O199) -> 0.04098267853 | W191: 1 | X191: 39087 | Y191: =IF(Fund!O199="",NA(),Fund!O199) -> 0.09727819562 | Z191: 39092 | AA191: =IF(Benchmark!O199="",NA(),Benchmark!O199) -> 0.04098267853 | AB191: =Benchmark!Y199 -> 0.2967899074
J192: =IF(Fund!A200="",NA(),IF(Fund!A200<startdate,NA(),Fund!A200)) -> 39090 | K192: =IF(J192=0,NA(),Fund!B200/fundnorm) -> 1.110299941 | L192: =IF(Benchmark!A200="",NA(),IF(Benchmark!A200<startdate,NA(),Benchmark!A200)) -> 39093 | M192: =IF(L192=0,NA(),Benchmark!B200/benchnorm) -> 1.11954631 | N192: =IF(ISERROR(O192),NA(),Fund!L200) -> 40917 | O192: =IF(Fund!I200="",NA(),Fund!I200) -> 0.6060869327 | P192: =IF(ISERROR(Q192),NA(),Benchmark!L200) -> 40918 | Q192: =IF(Benchmark!I200="",NA(),Benchmark!I200) -> 0.2236198611 | R192: 1 | S192: =IF(ISERROR(O192),NA(),Fund!L200) -> 40917 | T192: =IF(Fund!O200="",NA(),Fund!O200) -> 0.0992810905 | U192: =IF(ISERROR(Q192),NA(),Benchmark!L200) -> 40918 | V192: =IF(Benchmark!O200="",NA(),Benchmark!O200) -> 0.04118835628 | W192: 1 | X192: 39092 | Y192: =IF(Fund!O200="",NA(),Fund!O200) -> 0.0992810905 | Z192: 39093 | AA192: =IF(Benchmark!O200="",NA(),Benchmark!O200) -> 0.04118835628 | AB192: =Benchmark!Y200 -> 0.2967399144
J193: =IF(Fund!A201="",NA(),IF(Fund!A201<startdate,NA(),Fund!A201)) -> 39091 | K193: =IF(J193=0,NA(),Fund!B201/fundnorm) -> 1.104644315 | L193: =IF(Benchmark!A201="",NA(),IF(Benchmark!A201<startdate,NA(),Benchmark!A201)) -> 39094 | M193: =IF(L193=0,NA(),Benchmark!B201/benchnorm) -> 1.146067148 | N193: =IF(ISERROR(O193),NA(),Fund!L201) -> 40917 | O193: =IF(Fund!I201="",NA(),Fund!I201) -> 0.6143098757 | P193: =IF(ISERROR(Q193),NA(),Benchmark!L201) -> 40919 | Q193: =IF(Benchmark!I201="",NA(),Benchmark!I201) -> 0.2016642295 | R193: 1 | S193: =IF(ISERROR(O193),NA(),Fund!L201) -> 40917 | T193: =IF(Fund!O201="",NA(),Fund!O201) -> 0.1004608572 | U193: =IF(ISERROR(Q193),NA(),Benchmark!L201) -> 40919 | V193: =IF(Benchmark!O201="",NA(),Benchmark!O201) -> 0.0374247998 | W193: 1 | X193: 39092 | Y193: =IF(Fund!O201="",NA(),Fund!O201) -> 0.1004608572 | Z193: 39094 | AA193: =IF(Benchmark!O201="",NA(),Benchmark!O201) -> 0.0374247998 | AB193: =Benchmark!Y201 -> 0.296688211
J194: =IF(Fund!A202="",NA(),IF(Fund!A202<startdate,NA(),Fund!A202)) -> 39092 | K194: =IF(J194=0,NA(),Fund!B202/fundnorm) -> 1.09482566 | L194: =IF(Benchmark!A202="",NA(),IF(Benchmark!A202<startdate,NA(),Benchmark!A202)) -> 39097 | M194: =IF(L194=0,NA(),Benchmark!B202/benchnorm) -> 1.154017839 | N194: =IF(ISERROR(O194),NA(),Fund!L202) -> 40917 | O194: =IF(Fund!I202="",NA(),Fund!I202) -> 0.628787387 | P194: =IF(ISERROR(Q194),NA(),Benchmark!L202) -> 40924 | Q194: =IF(Benchmark!I202="",NA(),Benchmark!I202) -> 0.2020849967 | R194: =IF(ISERROR(Q194+O194),0,IF(O194>Q194,1,0)) -> 1 | S194: =IF(ISERROR(O194),NA(),Fund!L202) -> 40917 | T194: =IF(Fund!O202="",NA(),Fund!O202) -> 0.1024854839 | U194: =IF(ISERROR(Q194),NA(),Benchmark!L202) -> 40924 | V194: =IF(Benchmark!O202="",NA(),Benchmark!O202) -> 0.03745563924 | W194: 1 | X194: =IF(ISERROR(O194),NA(),S194-interval) -> 39092 | Y194: =IF(Fund!O202="",NA(),Fund!O202) -> 0.1024854839 | Z194: =IF(ISERROR(Q194),NA(), U194-interval) -> 39099 | AA194: =IF(Benchmark!O202="",NA(),Benchmark!O202) -> 0.03745563924 | AB194: =Benchmark!Y202 -> 0.2964864788
J195: =IF(Fund!A203="",NA(),IF(Fund!A203<startdate,NA(),Fund!A203)) -> 39093 | K195: =IF(J195=0,NA(),Fund!B203/fundnorm) -> 1.11438174 | L195: =IF(Benchmark!A203="",NA(),IF(Benchmark!A203<startdate,NA(),Benchmark!A203)) -> 39098 | M195: =IF(L195=0,NA(),Benchmark!B203/benchnorm) -> 1.154362025 | N195: =IF(ISERROR(O195),NA(),Fund!L203) -> 40918 | O195: =IF(Fund!I203="",NA(),Fund!I203) -> 0.6339349983 | P195: =IF(ISERROR(Q195),NA(),Benchmark!L203) -> 40924 | Q195: =IF(Benchmark!I203="",NA(),Benchmark!I203) -> 0.2017265817 | R195: 1 | S195: =IF(ISERROR(O195),NA(),Fund!L203) -> 40918 | T195: =IF(Fund!O203="",NA(),Fund!O203) -> 0.1031814635 | U195: =IF(ISERROR(Q195),NA(),Benchmark!L203) -> 40924 | V195: =IF(Benchmark!O203="",NA(),Benchmark!O203) -> 0.03741468489 | W195: =IF(ISERROR(T195+V195),0,IF(T195>V195,1,0)) -> 1 | X195: 39093 | Y195: =IF(Fund!O203="",NA(),Fund!O203) -> 0.1031814635 | Z195: 39099 | AA195: =IF(Benchmark!O203="",NA(),Benchmark!O203) -> 0.03741468489 | AB195: =Benchmark!Y203 -> 0.2965153974
J196: =IF(Fund!A204="",NA(),IF(Fund!A204<startdate,NA(),Fund!A204)) -> 39094 | K196: =IF(J196=0,NA(),Fund!B204/fundnorm) -> 1.140030055 | L196: =IF(Benchmark!A204="",NA(),IF(Benchmark!A204<startdate,NA(),Benchmark!A204)) -> 39099 | M196: =IF(L196=0,NA(),Benchmark!B204/benchnorm) -> 1.157856835 | N196: =IF(ISERROR(O196),NA(),Fund!L204) -> 40919 | O196: =IF(Fund!I204="",NA(),Fund!I204) -> 0.6048790046 | P196: =IF(ISERROR(Q196),NA(),Benchmark!L204) -> 40924 | Q196: =IF(Benchmark!I204="",NA(),Benchmark!I204) -> 0.1980993584 | R196: 1 | S196: =IF(ISERROR(O196),NA(),Fund!L204) -> 40919 | T196: =IF(Fund!O204="",NA(),Fund!O204) -> 0.09922971129 | U196: =IF(ISERROR(Q196),NA(),Benchmark!L204) -> 40924 | V196: =IF(Benchmark!O204="",NA(),Benchmark!O204) -> 0.03680854142 | W196: 1 | X196: 39094 | Y196: =IF(Fund!O204="",NA(),Fund!O204) -> 0.09922971129 | Z196: 39099 | AA196: =IF(Benchmark!O204="",NA(),Benchmark!O204) -> 0.03680854142 | AB196: =Benchmark!Y204 -> 0.2965550721
J197: =IF(Fund!A205="",NA(),IF(Fund!A205<startdate,NA(),Fund!A205)) -> 39097 | K197: =IF(J197=0,NA(),Fund!B205/fundnorm) -> 1.146071523 | L197: =IF(Benchmark!A205="",NA(),IF(Benchmark!A205<startdate,NA(),Benchmark!A205)) -> 39100 | M197: =IF(L197=0,NA(),Benchmark!B205/benchnorm) -> 1.1642481 | N197: =IF(ISERROR(O197),NA(),Fund!L205) -> 40924 | O197: =IF(Fund!I205="",NA(),Fund!I205) -> 0.6124725353 | P197: =IF(ISERROR(Q197),NA(),Benchmark!L205) -> 40925 | Q197: =IF(Benchmark!I205="",NA(),Benchmark!I205) -> 0.2122981762 | R197: 1 | S197: =IF(ISERROR(O197),NA(),Fund!L205) -> 40924 | T197: =IF(Fund!O205="",NA(),Fund!O205) -> 0.100152868 | U197: =IF(ISERROR(Q197),NA(),Benchmark!L205) -> 40925 | V197: =IF(Benchmark!O205="",NA(),Benchmark!O205) -> 0.03925444186 | W197: 1 | X197: 39099 | Y197: =IF(Fund!O205="",NA(),Fund!O205) -> 0.100152868 | Z197: 39100 | AA197: =IF(Benchmark!O205="",NA(),Benchmark!O205) -> 0.03925444186 | AB197: =Benchmark!Y205 -> 0.2965523813
J198: =IF(Fund!A206="",NA(),IF(Fund!A206<startdate,NA(),Fund!A206)) -> 39098 | K198: =IF(J198=0,NA(),Fund!B206/fundnorm) -> 1.145919217 | L198: =IF(Benchmark!A206="",NA(),IF(Benchmark!A206<startdate,NA(),Benchmark!A206)) -> 39101 | M198: =IF(L198=0,NA(),Benchmark!B206/benchnorm) -> 1.158296333 | N198: =IF(ISERROR(O198),NA(),Fund!L206) -> 40924 | O198: =IF(Fund!I206="",NA(),Fund!I206) -> 0.6126868515 | P198: =IF(ISERROR(Q198),NA(),Benchmark!L206) -> 40926 | Q198: =IF(Benchmark!I206="",NA(),Benchmark!I206) -> 0.2128450349 | R198: 1 | S198: =IF(ISERROR(O198),NA(),Fund!L206) -> 40924 | T198: =IF(Fund!O206="",NA(),Fund!O206) -> 0.1002396047 | U198: =IF(ISERROR(Q198),NA(),Benchmark!L206) -> 40926 | V198: =IF(Benchmark!O206="",NA(),Benchmark!O206) -> 0.03934818804 | W198: 1 | X198: 39099 | Y198: =IF(Fund!O206="",NA(),Fund!O206) -> 0.1002396047 | Z198: 39101 | AA198: =IF(Benchmark!O206="",NA(),Benchmark!O206) -> 0.03934818804 | AB198: =Benchmark!Y206 -> 0.2967250363
J199: =IF(Fund!A207="",NA(),IF(Fund!A207<startdate,NA(),Fund!A207)) -> 39099 | K199: =IF(J199=0,NA(),Fund!B207/fundnorm) -> 1.148041346 | L199: =IF(Benchmark!A207="",NA(),IF(Benchmark!A207<startdate,NA(),Benchmark!A207)) -> 39104 | M199: =IF(L199=0,NA(),Benchmark!B207/benchnorm) -> 1.161216617 | N199: =IF(ISERROR(O199),NA(),Fund!L207) -> 40924 | O199: =IF(Fund!I207="",NA(),Fund!I207) -> 0.6097058355 | P199: =IF(ISERROR(Q199),NA(),Benchmark!L207) -> 40931 | Q199: =IF(Benchmark!I207="",NA(),Benchmark!I207) -> 0.2319018685 | R199: 1 | S199: =IF(ISERROR(O199),NA(),Fund!L207) -> 40924 | T199: =IF(Fund!O207="",NA(),Fund!O207) -> 0.09989013076 | U199: =IF(ISERROR(Q199),NA(),Benchmark!L207) -> 40931 | V199: =IF(Benchmark!O207="",NA(),Benchmark!O207) -> 0.04254640043 | W199: 1 | X199: 39099 | Y199: =IF(Fund!O207="",NA(),Fund!O207) -> 0.09989013076 | Z199: 39106 | AA199: =IF(Benchmark!O207="",NA(),Benchmark!O207) -> 0.04254640043 | AB199: =Benchmark!Y207 -> 0.2968319501
J200: =IF(Fund!A208="",NA(),IF(Fund!A208<startdate,NA(),Fund!A208)) -> 39100 | K200: =IF(J200=0,NA(),Fund!B208/fundnorm) -> 1.155382491 | L200: =IF(Benchmark!A208="",NA(),IF(Benchmark!A208<startdate,NA(),Benchmark!A208)) -> 39105 | M200: =IF(L200=0,NA(),Benchmark!B208/benchnorm) -> 1.148487039 | N200: =IF(ISERROR(O200),NA(),Fund!L208) -> 40925 | O200: =IF(Fund!I208="",NA(),Fund!I208) -> 0.6274244435 | P200: =IF(ISERROR(Q200),NA(),Benchmark!L208) -> 40931 | Q200: =IF(Benchmark!I208="",NA(),Benchmark!I208) -> 0.2455559987 | R200: 1 | S200: =IF(ISERROR(O200),NA(),Fund!L208) -> 40925 | T200: =IF(Fund!O208="",NA(),Fund!O208) -> 0.1023009121 | U200: =IF(ISERROR(Q200),NA(),Benchmark!L208) -> 40931 | V200: =IF(Benchmark!O208="",NA(),Benchmark!O208) -> 0.04486987293 | W200: 1 | X200: 39100 | Y200: =IF(Fund!O208="",NA(),Fund!O208) -> 0.1023009121 | Z200: 39106 | AA200: =IF(Benchmark!O208="",NA(),Benchmark!O208) -> 0.04486987293 | AB200: =Benchmark!Y208 -> 0.296877552
... 2050 more rows

Sheet NAV AMFI (hidden)
A1: Loading ...
B3: NAV - History
B8: HDFC Mutual Fund
B9: HDFC Top 100 Fund
B10: HDFC Top 100 Fund - Growth Option
E11: Date | F11: Net Asset Value | G11: Repurchase Price | H11: Sale Price
E12: 38810 | F12: 98.486 | G12: 98.486 | H12: 100.702
E13: 38811 | F13: 98.904 | G13: 98.904 | H13: 101.129
E14: 38812 | F14: 99.529 | G14: 99.529 | H14: 101.768
E15: 38814 | F15: 98.213 | G15: 98.213 | H15: 100.423
E16: 38817 | F16: 98.535 | G16: 98.535 | H16: 100.752
E17: 38819 | F17: 96.006 | G17: 96.006 | H17: 98.166
E18: 38820 | F18: 94.911 | G18: 94.911 | H18: 97.046
E19: 38824 | F19: 96.768 | G19: 96.768 | H19: 98.945
E20: 38825 | F20: 98.788 | G20: 98.788 | H20: 101.011
E21: 38826 | F21: 98.563 | G21: 98.563 | H21: 100.781
E22: 38827 | F22: 99.324 | G22: 99.324 | H22: 101.559
E23: 38828 | F23: 99.317 | G23: 99.317 | H23: 101.552
E24: 38831 | F24: 98.947 | G24: 98.947 | H24: 101.173
E25: 38832 | F25: 96.936 | G25: 96.936 | H25: 99.117
E26: 38833 | F26: 99.034 | G26: 99.034 | H26: 101.262
E27: 38834 | F27: 98.395 | G27: 98.395 | H27: 100.609
E28: 38835 | F28: 98.534 | G28: 98.534 | H28: 100.751
E29: 38839 | F29: 101.43 | G29: 101.43 | H29: 103.712
E30: 38840 | F30: 102.158 | G30: 102.158 | H30: 104.457
E31: 38841 | F31: 102.405 | G31: 102.405 | H31: 104.709
E32: 38842 | F32: 102.529 | G32: 102.529 | H32: 104.836
E33: 38845 | F33: 103.379 | G33: 103.379 | H33: 105.705
E34: 38846 | F34: 104.162 | G34: 104.162 | H34: 106.506
E35: 38847 | F35: 104.441 | G35: 104.441 | H35: 106.791
E36: 38848 | F36: 102.996 | G36: 102.996 | H36: 105.313
E37: 38849 | F37: 101.771 | G37: 101.771 | H37: 104.061
E38: 38852 | F38: 98.26 | G38: 98.26 | H38: 100.471
E39: 38853 | F39: 98.223 | G39: 98.223 | H39: 100.433
E40: 38854 | F40: 101.087 | G40: 101.087 | H40: 103.361
E41: 38855 | F41: 94.535 | G41: 94.535 | H41: 96.662
E42: 38856 | F42: 91.068 | G42: 91.068 | H42: 93.117
E43: 38859 | F43: 86.814 | G43: 86.814 | H43: 88.767
E44: 38860 | F44: 88.08 | G44: 88.08 | H44: 90.062
E45: 38861 | F45: 88.08 | G45: 88.08 | H45: 90.062
E46: 38862 | F46: 89.486 | G46: 89.486 | H46: 91.499
E47: 38863 | F47: 90.23 | G47: 90.23 | H47: 92.26
E48: 38866 | F48: 90.415 | G48: 90.415 | H48: 92.449
E49: 38867 | F49: 87.333 | G49: 87.333 | H49: 89.298
E50: 38868 | F50: 87.333 | G50: 87.333 | H50: 89.298
E51: 38869 | F51: 84.905 | G51: 84.905 | H51: 86.815
E52: 38870 | F52: 87.3 | G52: 87.3 | H52: 89.264
E53: 38873 | F53: 85.359 | G53: 85.359 | H53: 87.28
E54: 38874 | F54: 83.281 | G54: 83.281 | H54: 85.155
E55: 38875 | F55: 80.601 | G55: 80.601 | H55: 82.415
E56: 38876 | F56: 76.666 | G56: 76.666 | H56: 78.391
E57: 38877 | F57: 80.271 | G57: 80.271 | H57: 82.077
E58: 38880 | F58: 78.378 | G58: 78.378 | H58: 80.142
E59: 38881 | F59: 75.111 | G59: 75.111 | H59: 76.801
E60: 38882 | F60: 73.82 | G60: 73.82 | H60: 75.481
E61: 38883 | F61: 77.964 | G61: 77.964 | H61: 79.718
E62: 38884 | F62: 80.785 | G62: 80.785 | H62: 82.603
E63: 38887 | F63: 81.63 | G63: 81.63 | H63: 83.467
E64: 38888 | F64: 80.516 | G64: 80.516 | H64: 82.328
E65: 38889 | F65: 82.157 | G65: 82.157 | H65: 84.006
E66: 38890 | F66: 83.738 | G66: 83.738 | H66: 85.622
E67: 38891 | F67: 84.539 | G67: 84.539 | H67: 86.441
E68: 38894 | F68: 81.646 | G68: 81.646 | H68: 83.483
E69: 38895 | F69: 82.231 | G69: 82.231 | H69: 84.081
E70: 38896 | F70: 82.257 | G70: 82.257 | H70: 84.108
E71: 38897 | F71: 82.676 | G71: 82.676 | H71: 84.536
E72: 38898 | F72: 85.834 | G72: 85.834 | H72: 87.765
E73: 38901 | F73: 86.3 | G73: 86.3 | H73: 88.242
E74: 38902 | F74: 86.154 | G74: 86.154 | H74: 88.092
E75: 38903 | F75: 87.57 | G75: 87.57 | H75: 89.54
E76: 38904 | F76: 86.887 | G76: 86.887 | H76: 88.842
E77: 38905 | F77: 85.114 | G77: 85.114 | H77: 87.029
E78: 38908 | F78: 86.61 | G78: 86.61 | H78: 88.559
E79: 38909 | F79: 86.197 | G79: 86.197 | H79: 88.136
E80: 38910 | F80: 87.846 | G80: 87.846 | H80: 89.823
E81: 38911 | F81: 87.242 | G81: 87.242 | H81: 89.205
E82: 38912 | F82: 86.415 | G82: 86.415 | H82: 88.359
E83: 38915 | F83: 83.789 | G83: 83.789 | H83: 85.674
E84: 38916 | F84: 83.367 | G84: 83.367 | H84: 85.243
E85: 38917 | F85: 81.59 | G85: 81.59 | H85: 83.426
E86: 38918 | F86: 83.671 | G86: 83.671 | H86: 85.554
E87: 38919 | F87: 81.975 | G87: 81.975 | H87: 83.819
E88: 38922 | F88: 82.662 | G88: 82.662 | H88: 84.522
E89: 38923 | F89: 84.06 | G89: 84.06 | H89: 85.951
E90: 38924 | F90: 86.049 | G90: 86.049 | H90: 87.985
E91: 38925 | F91: 87.133 | G91: 87.133 | H91: 89.093
E92: 38926 | F92: 86.673 | G92: 86.673 | H92: 88.623
E93: 38929 | F93: 87.441 | G93: 87.441 | H93: 89.408
E94: 38930 | F94: 87.295 | G94: 87.295 | H94: 89.259
E95: 38931 | F95: 88.127 | G95: 88.127 | H95: 90.11
E96: 38932 | F96: 88.413 | G96: 88.413 | H96: 90.402
E97: 38933 | F97: 87.927 | G97: 87.927 | H97: 89.905
E98: 38936 | F98: 87.612 | G98: 87.612 | H98: 89.583
E99: 38937 | F99: 88.997 | G99: 88.997 | H99: 90.999
E100: 38938 | F100: 90.291 | G100: 90.291 | H100: 92.323
E101: 38939 | F101: 90.561 | G101: 90.561 | H101: 92.599
E102: 38940 | F102: 90.894 | G102: 90.894 | H102: 92.939
E103: 38943 | F103: 92.13 | G103: 92.13 | H103: 94.203
E104: 38945 | F104: 93.397 | G104: 93.397 | H104: 95.498
E105: 38946 | F105: 93.322 | G105: 93.322 | H105: 95.422
E106: 38947 | F106: 93.532 | G106: 93.532 | H106: 95.636
E107: 38950 | F107: 93.984 | G107: 93.984 | H107: 96.099
E108: 38951 | F108: 93.561 | G108: 93.561 | H108: 95.666
E109: 38952 | F109: 92.983 | G109: 92.983 | H109: 95.075
E110: 38953 | F110: 93.852 | G110: 93.852 | H110: 95.964
E111: 38954 | F111: 94.519 | G111: 94.519 | H111: 96.646
E112: 38957 | F112: 94.835 | G112: 94.835 | H112: 96.969
E113: 38958 | F113: 95.636 | G113: 95.636 | H113: 97.788
E114: 38959 | F114: 96.088 | G114: 96.088 | H114: 98.25
E115: 38960 | F115: 95.571 | G115: 95.571 | H115: 97.721
E116: 38961 | F116: 96.306 | G116: 96.306 | H116: 98.473
E117: 38964 | F117: 97.503 | G117: 97.503 | H117: 99.697
E118: 38965 | F118: 97.6 | G118: 97.6 | H118: 99.796
E119: 38966 | F119: 97.962 | G119: 97.962 | H119: 100.166
E120: 38967 | F120: 97.445 | G120: 97.445 | H120: 99.638
E121: 38968 | F121: 98.158 | G121: 98.158 | H121: 100.367
E122: 38971 | F122: 95.727 | G122: 95.727 | H122: 97.881
E123: 38972 | F123: 96.539 | G123: 96.539 | H123: 98.711
E124: 38973 | F124: 98.193 | G124: 98.193 | H124: 100.402
E125: 38974 | F125: 98.659 | G125: 98.659 | H125: 100.879
E126: 38975 | F126: 98.894 | G126: 98.894 | H126: 101.119
E127: 38978 | F127: 99.186 | G127: 99.186 | H127: 101.418
E128: 38979 | F128: 98.054 | G128: 98.054 | H128: 100.26
E129: 38980 | F129: 98.767 | G129: 98.767 | H129: 100.989
E130: 38981 | F130: 99.78 | G130: 99.78 | H130: 102.025
E131: 38982 | F131: 99.519 | G131: 99.519 | H131: 101.758
E132: 38985 | F132: 99.135 | G132: 99.135 | H132: 101.366
E133: 38986 | F133: 100.118 | G133: 100.118 | H133: 102.371
E134: 38987 | F134: 100.573 | G134: 100.573 | H134: 102.836
E135: 38988 | F135: 100.392 | G135: 100.392 | H135: 102.651
E136: 38989 | F136: 100.852 | G136: 100.852 | H136: 103.121
E137: 38993 | F137: 100.218 | G137: 100.218 | H137: 102.473
E138: 38994 | F138: 99.169 | G138: 99.169 | H138: 101.4
E139: 38995 | F139: 100.542 | G139: 100.542 | H139: 102.804
E140: 38996 | F140: 100.809 | G140: 100.809 | H140: 103.077
E141: 38999 | F141: 101.233 | G141: 101.233 | H141: 103.511
E142: 39000 | F142: 101.285 | G142: 101.285 | H142: 103.564
E143: 39001 | F143: 100.776 | G143: 100.776 | H143: 103.043
E144: 39002 | F144: 102.098 | G144: 102.098 | H144: 104.395
E145: 39003 | F145: 102.982 | G145: 102.982 | H145: 105.299
E146: 39006 | F146: 103.805 | G146: 103.805 | H146: 106.141
E147: 39007 | F147: 103.467 | G147: 103.467 | H147: 105.795
E148: 39008 | F148: 103.128 | G148: 103.128 | H148: 105.448
E149: 39009 | F149: 102.238 | G149: 102.238 | H149: 104.538
E150: 39010 | F150: 102.447 | G150: 102.447 | H150: 104.752
E151: 39013 | F151: 102.175 | G151: 102.175 | H151: 104.474
E152: 39016 | F152: 102.746 | G152: 102.746 | H152: 105.058
E153: 39017 | F153: 104.608 | G153: 104.608 | H153: 106.962
E154: 39020 | F154: 105.079 | G154: 105.079 | H154: 107.443
E155: 39021 | F155: 105.011 | G155: 105.011 | H155: 107.374
E156: 39022 | F156: 105.66 | G156: 105.66 | H156: 108.037
E157: 39023 | F157: 106.394 | G157: 106.394 | H157: 108.788
E158: 39024 | F158: 106.678 | G158: 106.678 | H158: 109.078
E159: 39027 | F159: 106.738 | G159: 106.738 | H159: 109.14
E160: 39028 | F160: 106.511 | G160: 106.511 | H160: 108.907
E161: 39029 | F161: 105.753 | G161: 105.753 | H161: 108.132
E162: 39030 | F162: 106.209 | G162: 106.209 | H162: 108.599
E163: 39031 | F163: 106.958 | G163: 106.958 | H163: 109.365
E164: 39034 | F164: 107.829 | G164: 107.829 | H164: 110.255
E165: 39035 | F165: 108.075 | G165: 108.075 | H165: 110.507
E166: 39036 | F166: 108.153 | G166: 108.153 | H166: 110.586
E167: 39037 | F167: 107.957 | G167: 107.957 | H167: 110.386
E168: 39038 | F168: 107.282 | G168: 107.282 | H168: 109.696
E169: 39041 | F169: 107.099 | G169: 107.099 | H169: 109.509
E170: 39042 | F170: 108.605 | G170: 108.605 | H170: 111.049
E171: 39043 | F171: 109.551 | G171: 109.551 | H171: 112.016
E172: 39044 | F172: 109.55 | G172: 109.55 | H172: 112.015
E173: 39045 | F173: 109.519 | G173: 109.519 | H173: 111.983
E174: 39048 | F174: 109.988 | G174: 109.988 | H174: 112.463
E175: 39049 | F175: 108.897 | G175: 108.897 | H175: 111.347
E176: 39050 | F176: 109.11 | G176: 109.11 | H176: 111.565
E177: 39051 | F177: 109.479 | G177: 109.479 | H177: 111.942
E178: 39052 | F178: 110.994 | G178: 110.994 | H178: 113.491
E179: 39055 | F179: 111.064 | G179: 111.064 | H179: 113.563
E180: 39056 | F180: 111.207 | G180: 111.207 | H180: 113.709
E181: 39057 | F181: 110.844 | G181: 110.844 | H181: 113.338
E182: 39058 | F182: 110.746 | G182: 110.746 | H182: 113.238
E183: 39059 | F183: 109.465 | G183: 109.465 | H183: 111.928
E184: 39062 | F184: 106.422 | G184: 106.422 | H184: 108.816
E185: 39063 | F185: 103.005 | G185: 103.005 | H185: 105.323
E186: 39064 | F186: 104.863 | G186: 104.863 | H186: 107.222
E187: 39065 | F187: 107.276 | G187: 107.276 | H187: 109.69
E188: 39066 | F188: 108.165 | G188: 108.165 | H188: 110.599
E189: 39069 | F189: 108.658 | G189: 108.658 | H189: 111.103
E190: 39070 | F190: 106.187 | G190: 106.187 | H190: 108.576
E191: 39071 | F191: 105.836 | G191: 105.836 | H191: 108.217
E192: 39072 | F192: 106.189 | G192: 106.189 | H192: 108.578
E193: 39073 | F193: 107.224 | G193: 107.224 | H193: 109.637
E194: 39077 | F194: 108.904 | G194: 108.904 | H194: 111.354
E195: 39078 | F195: 109.736 | G195: 109.736 | H195: 112.205
E196: 39079 | F196: 109.725 | G196: 109.725 | H196: 112.194
E197: 39080 | F197: 109.925 | G197: 109.925 | H197: 112.398
E198: 39084 | F198: 110.855 | G198: 110.855 | H198: 113.349
E199: 39085 | F199: 111.21 | G199: 111.21 | H199: 113.712
E200: 39086 | F200: 110.836 | G200: 110.836 | H200: 113.33
E201: 39087 | F201: 110.77 | G201: 110.77 | H201: 113.262
E202: 39090 | F202: 109.349 | G202: 109.349 | H202: 111.809
E203: 39091 | F203: 108.792 | G203: 108.792 | H203: 111.24
E204: 39092 | F204: 107.825 | G204: 107.825 | H204: 110.251
E205: 39093 | F205: 109.751 | G205: 109.751 | H205: 112.22
... 3020 more rows

Sheet Index (hidden)

Sheet Normalized NAV movement

Sheet Rolling Returns
A1: If the rolling returns graph is blank or is weird, please check the interval (step 6; inputs page) and change it suitably
T8: Graph will take several seconds to
T9: update. Please wait!
C27: Rolling Return | E27: Interval | F27: =Inputs!H13 -> 1825 | G27: Days | H27: Or | I27: =F27/365 -> 5 | J27: Years

Sheet Rolling Risk
A1: If the rolling returns graph is blank or is weird, please check the interval (step 6; inputs page) and change it suitably
T8: Graph will take several seconds to
T9: update. Please wait!
C27: Rolling Risk | E27: Interval | G27: =Inputs!H13 -> 1825 | H27: Days | I27: Or | J27: =G27/365 -> 5 | K27: Years

Sheet Add new AMFI Record
A1: If the you are unable to locate your fund in the input sheets you can it to the datebase by performing the following steps | S1: Scheme Name | T1: Scheme Code | X1: Aditya Birla Sun Life | Y1: 3
R2: =IF(ISNUMBER(SEARCH($A$7,S2)),MAX($R$1:R1)+1,0) -> 0 | S2: Aditya Birla Sun Life Active Debt Multi Manager FoF Scheme - Direct Plan - Dividend Option | T2: 131897 | V2: =IFERROR(VLOOKUP(ROWS($V$2:V2),R2:$S$10000,2,0),"") -> YES Liquid Fund- Direct plan-Daily Dividend Option | X2: Axis | Y2: 53
A3: Step 1: | R3: =IF(ISNUMBER(SEARCH($A$7,S3)),MAX($R$1:R2)+1,0) -> 0 | S3: Aditya Birla Sun Life Active Debt Multi Manager FoF Scheme - Direct Plan - Growth Option | T3: 131898 | V3: =IFERROR(VLOOKUP(ROWS($V$2:V3),R3:$S$10000,2,0),"") -> YES Liquid Fund- Direct plan-Fortnightly Dividend Option | X3: BARODA | Y3: 4
R4: =IF(ISNUMBER(SEARCH($A$7,S4)),MAX($R$1:R3)+1,0) -> 0 | S4: Aditya Birla Sun Life Active Debt Multi Manager FoF Scheme - Regular Plan - Dividend Option | T4: 131895 | V4: =IFERROR(VLOOKUP(ROWS($V$2:V4),R4:$S$10000,2,0),"") -> YES Liquid Fund- Direct plan-Growth Option | X4: BNP PARIBAS | Y4: 59
R5: =IF(ISNUMBER(SEARCH($A$7,S5)),MAX($R$1:R4)+1,0) -> 0 | S5: Aditya Birla Sun Life Active Debt Multi Manager FoF Scheme - Regular Plan - Growth Option | T5: 131896 | V5: =IFERROR(VLOOKUP(ROWS($V$2:V5),R5:$S$10000,2,0),"") -> YES Liquid Fund- Direct plan-Monthly Dividend Option | X5: BOI AXA | Y5: 46
A6: Step 2: | B6: Enter the name of the fund which you would like add to the records in order to retrieve historical NAV from the AMFI database | R6: =IF(ISNUMBER(SEARCH($A$7,S6)),MAX($R$1:R5)+1,0) -> 0 | S6: Aditya Birla Sun Life Arbitrage Fund - Dividend - Direct Plan | T6: 119525 | V6: =IFERROR(VLOOKUP(ROWS($V$2:V6),R6:$S$10000,2,0),"") -> YES Liquid Fund- Direct plan-Weekly Dividend Option | X6: Canara Robeco | Y6: 32
A7: YES | C7: Please use exact name. Do not abbreviate | R7: =IF(ISNUMBER(SEARCH($A$7,S7)),MAX($R$1:R6)+1,0) -> 0 | S7: Aditya Birla Sun Life Arbitrage Fund - Growth - Direct Plan | T7: 119526 | V7: =IFERROR(VLOOKUP(ROWS($V$2:V7),R7:$S$10000,2,0),"") -> YES Liquid Fund- Regular plan-Daily Dividend Option | X7: DHFL Pramerica | Y7: 58
R8: =IF(ISNUMBER(SEARCH($A$7,S8)),MAX($R$1:R7)+1,0) -> 0 | S8: Aditya BIRLA SUN LIFE ARBITRAGE FUND - REGULAR PLAN - GROWTH | T8: 112088 | V8: =IFERROR(VLOOKUP(ROWS($V$2:V8),R8:$S$10000,2,0),"") -> YES Liquid Fund- Regular plan-Fortnightly Dividend Option | X8: DSP | Y8: 6
A9: Step 3: | B9: Choose from the scheme names from this list | R9: =IF(ISNUMBER(SEARCH($A$7,S9)),MAX($R$1:R8)+1,0) -> 0 | S9: Aditya Birla Sun Life Arbitrage Fund Dividend Regular Plan | T9: 112087 | V9: =IFERROR(VLOOKUP(ROWS($V$2:V9),R9:$S$10000,2,0),"") -> YES Liquid Fund- Regular plan-Growth Option | X9: Edelweiss | Y9: 47
B10: YES Liquid Fund- Direct plan-Daily Dividend Option | R10: =IF(ISNUMBER(SEARCH($A$7,S10)),MAX($R$1:R9)+1,0) -> 0 | S10: Aditya Birla Sun Life Asset Allocator Multi Manager FoF Scheme - Direct Plan - Dividend Option | T10: 131866 | V10: =IFERROR(VLOOKUP(ROWS($V$2:V10),R10:$S$10000,2,0),"") -> YES Liquid Fund- Regular plan-Monthly Dividend Option | X10: Essel | Y10: 54
R11: =IF(ISNUMBER(SEARCH($A$7,S11)),MAX($R$1:R10)+1,0) -> 0 | S11: Aditya Birla Sun Life Asset Allocator Multi Manager FoF Scheme - Direct Plan - Growth Option | T11: 131865 | V11: =IFERROR(VLOOKUP(ROWS($V$2:V11),R11:$S$10000,2,0),"") -> YES Liquid Fund- Regular plan-Weekly Dividend Option | X11: Franklin | Y11: 27
R12: =IF(ISNUMBER(SEARCH($A$7,S12)),MAX($R$1:R11)+1,0) -> 0 | S12: Aditya Birla Sun Life Asset Allocator Multi Manager FoF Scheme - Regular Plan - Dividend Option | T12: 131863 | V12: =IFERROR(VLOOKUP(ROWS($V$2:V12),R12:$S$10000,2,0),"") ->  | X12: HDFC | Y12: 9
B13: Choose AMC | R13: =IF(ISNUMBER(SEARCH($A$7,S13)),MAX($R$1:R12)+1,0) -> 0 | S13: Aditya Birla Sun Life Asset Allocator Multi Manager FoF Scheme - Regular Plan - Growth Option | T13: 131864 | V13: =IFERROR(VLOOKUP(ROWS($V$2:V13),R13:$S$10000,2,0),"") ->  | X13: HSBC | Y13: 37
A14: Step 4: | B14: YES | C14: Ensure it matches with the fund else you will get an error | R14: =IF(ISNUMBER(SEARCH($A$7,S14)),MAX($R$1:R13)+1,0) -> 0 | S14: ADITYA BIRLA SUN LIFE BAL BHAVISHYA YOJNA WEALTH PLAN DIRECT DIVIDEND | T14: 146408 | V14: =IFERROR(VLOOKUP(ROWS($V$2:V14),R14:$S$10000,2,0),"") ->  | X14: ICICI | Y14: 20
C15: when you try to create a holding with this fund. | R15: =IF(ISNUMBER(SEARCH($A$7,S15)),MAX($R$1:R14)+1,0) -> 0 | S15: ADITYA BIRLA SUN LIFE BAL BHAVISHYA YOJNA WEALTH PLAN DIRECT GROWTH | T15: 146407 | V15: =IFERROR(VLOOKUP(ROWS($V$2:V15),R15:$S$10000,2,0),"") ->  | X15: IDBI | Y15: 57
A16: Why should I choose the AMC after I have chosen the fund? | C16: AMFI Scheme codes for this fund is | G16: =INDEX(S2:T10000,MATCH(B10,S2:S10000,0),2) -> 145969 | R16: =IF(ISNUMBER(SEARCH($A$7,S16)),MAX($R$1:R15)+1,0) -> 0 | S16: ADITYA BIRLA SUN LIFE BAL BHAVISHYA YOJNA WEALTH PLAN REGULAR DIVIDEND | T16: 146405 | V16: =IFERROR(VLOOKUP(ROWS($V$2:V16),R16:$S$10000,2,0),"") ->  | X16: IDFC | Y16: 48
A17: Because AMFI uses a scheme code and an AMC code to retrieve NAV history. | C17: AMC scheme code is | G17: =INDEX(X1:Y65,MATCH(B14,X1:X65,0),2) -> 71 | R17: =IF(ISNUMBER(SEARCH($A$7,S17)),MAX($R$1:R16)+1,0) -> 0 | S17: ADITYA BIRLA SUN LIFE BAL BHAVISHYA YOJNA WEALTH PLAN REGULAR GROWTH | T17: 146409 | V17: =IFERROR(VLOOKUP(ROWS($V$2:V17),R17:$S$10000,2,0),"") ->  | X17: IIFL | Y17: 62
R18: =IF(ISNUMBER(SEARCH($A$7,S18)),MAX($R$1:R17)+1,0) -> 0 | S18: Aditya Birla Sun Life Balanced Advantage Fund - Direct Plan - Dividend Option | T18: 131671 | V18: =IFERROR(VLOOKUP(ROWS($V$2:V18),R18:$S$10000,2,0),"") ->  | X18: Indiabulls | Y18: 63
A19: Step 5: | R19: =IF(ISNUMBER(SEARCH($A$7,S19)),MAX($R$1:R18)+1,0) -> 0 | S19: Aditya Birla Sun Life Balanced Advantage Fund - Direct Plan - Growth Option | T19: 131670 | V19: =IFERROR(VLOOKUP(ROWS($V$2:V19),R19:$S$10000,2,0),"") ->  | X19: Invesco | Y19: 42
R20: =IF(ISNUMBER(SEARCH($A$7,S20)),MAX($R$1:R19)+1,0) -> 0 | S20: Aditya Birla Sun Life Balanced Advantage Fund - Regular Plan - Dividend Option | T20: 131665 | V20: =IFERROR(VLOOKUP(ROWS($V$2:V20),R20:$S$10000,2,0),"") ->  | X20: JM | Y20: 16
R21: =IF(ISNUMBER(SEARCH($A$7,S21)),MAX($R$1:R20)+1,0) -> 0 | S21: Aditya Birla Sun Life Balanced Advantage Fund - Regular Plan - Growth Option | T21: 131666 | V21: =IFERROR(VLOOKUP(ROWS($V$2:V21),R21:$S$10000,2,0),"") ->  | X21: Kotak | Y21: 17
R22: =IF(ISNUMBER(SEARCH($A$7,S22)),MAX($R$1:R21)+1,0) -> 0 | S22: Aditya Birla Sun Life Banking & PSU Debt Fund - Direct Plan-Dividend | T22: 119551 | V22: =IFERROR(VLOOKUP(ROWS($V$2:V22),R22:$S$10000,2,0),"") ->  | X22: L&T | Y22: 56
R23: =IF(ISNUMBER(SEARCH($A$7,S23)),MAX($R$1:R22)+1,0) -> 0 | S23: Aditya Birla Sun Life Banking & PSU Debt Fund - Direct Plan-Monthly Dividend | T23: 119552 | V23: =IFERROR(VLOOKUP(ROWS($V$2:V23),R23:$S$10000,2,0),"") ->  | X23: LIC | Y23: 18
R24: =IF(ISNUMBER(SEARCH($A$7,S24)),MAX($R$1:R23)+1,0) -> 0 | S24: Aditya Birla Sun Life Banking & PSU Debt Fund - Direct Plan-Quarterly Dividend | T24: 119553 | V24: =IFERROR(VLOOKUP(ROWS($V$2:V24),R24:$S$10000,2,0),"") ->  | X24: Mahindra | Y24: 69
R25: =IF(ISNUMBER(SEARCH($A$7,S25)),MAX($R$1:R24)+1,0) -> 0 | S25: Aditya Birla Sun Life Banking & PSU Debt Fund - Regular Plan-Dividend | T25: 108272 | V25: =IFERROR(VLOOKUP(ROWS($V$2:V25),R25:$S$10000,2,0),"") ->  | X25: Mirae Asset | Y25: 45
R26: =IF(ISNUMBER(SEARCH($A$7,S26)),MAX($R$1:R25)+1,0) -> 0 | S26: Aditya Birla Sun Life Banking & PSU Debt Fund - Regular Plan-Growth | T26: 108273 | V26: =IFERROR(VLOOKUP(ROWS($V$2:V26),R26:$S$10000,2,0),"") ->  | X26: Motilal Oswal | Y26: 55
R27: =IF(ISNUMBER(SEARCH($A$7,S27)),MAX($R$1:R26)+1,0) -> 0 | S27: Aditya Birla Sun Life Banking & PSU Debt Fund - Regular Plan-Monthly Dividend | T27: 110282 | V27: =IFERROR(VLOOKUP(ROWS($V$2:V27),R27:$S$10000,2,0),"") ->  | X27: Parag Parikh | Y27: 64
R28: =IF(ISNUMBER(SEARCH($A$7,S28)),MAX($R$1:R27)+1,0) -> 0 | S28: Aditya Birla Sun Life Banking & PSU Debt Fund - Regular Plan-Quarterly Dividend | T28: 108274 | V28: =IFERROR(VLOOKUP(ROWS($V$2:V28),R28:$S$10000,2,0),"") ->  | X28: Principal | Y28: 10
R29: =IF(ISNUMBER(SEARCH($A$7,S29)),MAX($R$1:R28)+1,0) -> 0 | S29: Aditya Birla Sun Life Banking & PSU Debt Fund - Retail Plan-Growth | T29: 103176 | V29: =IFERROR(VLOOKUP(ROWS($V$2:V29),R29:$S$10000,2,0),"") ->  | X29: Quant | Y29: 13
R30: =IF(ISNUMBER(SEARCH($A$7,S30)),MAX($R$1:R29)+1,0) -> 0 | S30: Aditya Birla Sun Life Banking & PSU Debt Fund - Retail Plan-Monthly Dividend | T30: 110490 | V30: =IFERROR(VLOOKUP(ROWS($V$2:V30),R30:$S$10000,2,0),"") ->  | X30: Quantum | Y30: 41
R31: =IF(ISNUMBER(SEARCH($A$7,S31)),MAX($R$1:R30)+1,0) -> 0 | S31: Aditya Birla Sun Life Banking & PSU Debt Fund - Retail Plan-Quarterly Dividend | T31: 106157 | V31: =IFERROR(VLOOKUP(ROWS($V$2:V31),R31:$S$10000,2,0),"") ->  | X31: Reliance | Y31: 21
R32: =IF(ISNUMBER(SEARCH($A$7,S32)),MAX($R$1:R31)+1,0) -> 0 | S32: Aditya Birla Sun Life Banking & PSU Debt Fund- Direct Plan-Growth | T32: 119550 | V32: =IFERROR(VLOOKUP(ROWS($V$2:V32),R32:$S$10000,2,0),"") ->  | X32: Sahara | Y32: 35
R33: =IF(ISNUMBER(SEARCH($A$7,S33)),MAX($R$1:R32)+1,0) -> 0 | S33: Aditya Birla Sun Life Banking and Financial Services Fund - Direct Plan - Dividend | T33: 125598 | V33: =IFERROR(VLOOKUP(ROWS($V$2:V33),R33:$S$10000,2,0),"") ->  | X33: SBI | Y33: 22
R34: =IF(ISNUMBER(SEARCH($A$7,S34)),MAX($R$1:R33)+1,0) -> 0 | S34: Aditya Birla Sun Life Banking and Financial Services Fund - Direct Plan - Growth | T34: 125597 | V34: =IFERROR(VLOOKUP(ROWS($V$2:V34),R34:$S$10000,2,0),"") ->  | X34: Shriram | Y34: 67
R35: =IF(ISNUMBER(SEARCH($A$7,S35)),MAX($R$1:R34)+1,0) -> 0 | S35: Aditya Birla Sun Life Banking and Financial Services Fund - Regular Plan - Dividend | T35: 125596 | V35: =IFERROR(VLOOKUP(ROWS($V$2:V35),R35:$S$10000,2,0),"") ->  | X35: Sundaram | Y35: 33
R36: =IF(ISNUMBER(SEARCH($A$7,S36)),MAX($R$1:R35)+1,0) -> 0 | S36: Aditya Birla Sun Life Banking and Financial Services Fund - Regular Plan - Growth | T36: 125595 | V36: =IFERROR(VLOOKUP(ROWS($V$2:V36),R36:$S$10000,2,0),"") ->  | X36: Tata | Y36: 25
R37: =IF(ISNUMBER(SEARCH($A$7,S37)),MAX($R$1:R36)+1,0) -> 0 | S37: Aditya Birla Sun Life Commodity Equities Fund - Global Agri Plan - Dividend - Direct Plan | T37: 119575 | V37: =IFERROR(VLOOKUP(ROWS($V$2:V37),R37:$S$10000,2,0),"") ->  | X37: Taurus | Y37: 26
R38: =IF(ISNUMBER(SEARCH($A$7,S38)),MAX($R$1:R37)+1,0) -> 0 | S38: Aditya Birla Sun Life Commodity Equities Fund - Global Agri Plan - Dividend - Regular Plan | T38: 111348 | V38: =IFERROR(VLOOKUP(ROWS($V$2:V38),R38:$S$10000,2,0),"") ->  | X38: Union | Y38: 61
R39: =IF(ISNUMBER(SEARCH($A$7,S39)),MAX($R$1:R38)+1,0) -> 0 | S39: Aditya Birla Sun Life Commodity Equities Fund - Global Agri Plan - Growth - Direct Plan | T39: 119576 | V39: =IFERROR(VLOOKUP(ROWS($V$2:V39),R39:$S$10000,2,0),"") ->  | X39: UTI | Y39: 28
R40: =IF(ISNUMBER(SEARCH($A$7,S40)),MAX($R$1:R39)+1,0) -> 0 | S40: Aditya Birla Sun Life Commodity Equities Fund - Global Agri Plan - Growth - Regular Plan | T40: 111349 | V40: =IFERROR(VLOOKUP(ROWS($V$2:V40),R40:$S$10000,2,0),"") ->  | X40: YES | Y40: 71
R41: =IF(ISNUMBER(SEARCH($A$7,S41)),MAX($R$1:R40)+1,0) -> 0 | S41: Aditya Birla Sun Life Corporate Bond Fund - Dividend - Direct Plan | T41: 124832 | V41: =IFERROR(VLOOKUP(ROWS($V$2:V41),R41:$S$10000,2,0),"") -> 
R42: =IF(ISNUMBER(SEARCH($A$7,S42)),MAX($R$1:R41)+1,0) -> 0 | S42: Aditya Birla Sun Life Corporate Bond Fund - Dividend - Regular Plan | T42: 124833 | V42: =IFERROR(VLOOKUP(ROWS($V$2:V42),R42:$S$10000,2,0),"") -> 
R43: =IF(ISNUMBER(SEARCH($A$7,S43)),MAX($R$1:R42)+1,0) -> 0 | S43: Aditya Birla Sun Life Corporate Bond Fund - Growth - Direct Plan | T43: 119533 | V43: =IFERROR(VLOOKUP(ROWS($V$2:V43),R43:$S$10000,2,0),"") -> 
R44: =IF(ISNUMBER(SEARCH($A$7,S44)),MAX($R$1:R43)+1,0) -> 0 | S44: Aditya Birla Sun Life Corporate Bond Fund - Growth - Regular Plan | T44: 103178 | V44: =IFERROR(VLOOKUP(ROWS($V$2:V44),R44:$S$10000,2,0),"") -> 
R45: =IF(ISNUMBER(SEARCH($A$7,S45)),MAX($R$1:R44)+1,0) -> 0 | S45: Aditya Birla Sun Life Corporate Bond Fund - Monthly Dividend - Direct Plan | T45: 119532 | V45: =IFERROR(VLOOKUP(ROWS($V$2:V45),R45:$S$10000,2,0),"") -> 
R46: =IF(ISNUMBER(SEARCH($A$7,S46)),MAX($R$1:R45)+1,0) -> 0 | S46: Aditya Birla Sun Life Corporate Bond Fund - Monthly Dividend - Regular Plan | T46: 103183 | V46: =IFERROR(VLOOKUP(ROWS($V$2:V46),R46:$S$10000,2,0),"") -> 
R47: =IF(ISNUMBER(SEARCH($A$7,S47)),MAX($R$1:R46)+1,0) -> 0 | S47: Aditya Birla Sun Life Credit Risk Fund - Direct Plan - Bonus | T47: 134388 | V47: =IFERROR(VLOOKUP(ROWS($V$2:V47),R47:$S$10000,2,0),"") -> 
R48: =IF(ISNUMBER(SEARCH($A$7,S48)),MAX($R$1:R47)+1,0) -> 0 | S48: Aditya Birla Sun Life Credit Risk Fund - Direct Plan - Dividend | T48: 134385 | V48: =IFERROR(VLOOKUP(ROWS($V$2:V48),R48:$S$10000,2,0),"") -> 
R49: =IF(ISNUMBER(SEARCH($A$7,S49)),MAX($R$1:R48)+1,0) -> 0 | S49: Aditya Birla Sun Life Credit Risk Fund - Direct Plan - Growth | T49: 134387 | V49: =IFERROR(VLOOKUP(ROWS($V$2:V49),R49:$S$10000,2,0),"") -> 
R50: =IF(ISNUMBER(SEARCH($A$7,S50)),MAX($R$1:R49)+1,0) -> 0 | S50: Aditya Birla Sun Life Credit Risk Fund - Regular Plan - Bonus | T50: 134384 | V50: =IFERROR(VLOOKUP(ROWS($V$2:V50),R50:$S$10000,2,0),"") -> 
R51: =IF(ISNUMBER(SEARCH($A$7,S51)),MAX($R$1:R50)+1,0) -> 0 | S51: Aditya Birla Sun Life Credit Risk Fund - Regular Plan - Dividend | T51: 134386 | V51: =IFERROR(VLOOKUP(ROWS($V$2:V51),R51:$S$10000,2,0),"") -> 
R52: =IF(ISNUMBER(SEARCH($A$7,S52)),MAX($R$1:R51)+1,0) -> 0 | S52: Aditya Birla Sun Life Credit Risk Fund - Regular Plan - Growth | T52: 134383 | V52: =IFERROR(VLOOKUP(ROWS($V$2:V52),R52:$S$10000,2,0),"") -> 
R53: =IF(ISNUMBER(SEARCH($A$7,S53)),MAX($R$1:R52)+1,0) -> 0 | S53: Aditya Birla Sun Life Digital India Fund - Dividend - Direct Plan | T53: 120538 | V53: =IFERROR(VLOOKUP(ROWS($V$2:V53),R53:$S$10000,2,0),"") -> 
R54: =IF(ISNUMBER(SEARCH($A$7,S54)),MAX($R$1:R53)+1,0) -> 0 | S54: Aditya Birla Sun Life Digital India Fund - Dividend - Regular Plan | T54: 103167 | V54: =IFERROR(VLOOKUP(ROWS($V$2:V54),R54:$S$10000,2,0),"") -> 
R55: =IF(ISNUMBER(SEARCH($A$7,S55)),MAX($R$1:R54)+1,0) -> 0 | S55: Aditya Birla Sun Life Digital India Fund - Growth - Direct Plan | T55: 120539 | V55: =IFERROR(VLOOKUP(ROWS($V$2:V55),R55:$S$10000,2,0),"") -> 
R56: =IF(ISNUMBER(SEARCH($A$7,S56)),MAX($R$1:R55)+1,0) -> 0 | S56: Aditya Birla Sun Life Digital India Fund - Growth - Regular Plan | T56: 103168 | V56: =IFERROR(VLOOKUP(ROWS($V$2:V56),R56:$S$10000,2,0),"") -> 
R57: =IF(ISNUMBER(SEARCH($A$7,S57)),MAX($R$1:R56)+1,0) -> 0 | S57: Aditya Birla Sun Life Dividend Yield Fund - Dividend - Direct Plan | T57: 119506 | V57: =IFERROR(VLOOKUP(ROWS($V$2:V57),R57:$S$10000,2,0),"") -> 
R58: =IF(ISNUMBER(SEARCH($A$7,S58)),MAX($R$1:R57)+1,0) -> 0 | S58: Aditya Birla Sun Life Dividend Yield Fund - Dividend - Regular Plan | T58: 101737 | V58: =IFERROR(VLOOKUP(ROWS($V$2:V58),R58:$S$10000,2,0),"") -> 
R59: =IF(ISNUMBER(SEARCH($A$7,S59)),MAX($R$1:R58)+1,0) -> 0 | S59: Aditya Birla Sun Life Dividend Yield Fund - Growth - Direct Plan | T59: 119507 | V59: =IFERROR(VLOOKUP(ROWS($V$2:V59),R59:$S$10000,2,0),"") -> 
R60: =IF(ISNUMBER(SEARCH($A$7,S60)),MAX($R$1:R59)+1,0) -> 0 | S60: Aditya Birla Sun Life Dividend Yield Fund - Growth - Regular Plan | T60: 101738 | V60: =IFERROR(VLOOKUP(ROWS($V$2:V60),R60:$S$10000,2,0),"") -> 
R61: =IF(ISNUMBER(SEARCH($A$7,S61)),MAX($R$1:R60)+1,0) -> 0 | S61: Aditya Birla Sun Life Dynamic Bond Fund - Direct Plan - Dividend | T61: 132918 | V61: =IFERROR(VLOOKUP(ROWS($V$2:V61),R61:$S$10000,2,0),"") -> 
R62: =IF(ISNUMBER(SEARCH($A$7,S62)),MAX($R$1:R61)+1,0) -> 0 | S62: Aditya Birla Sun Life Dynamic Bond Fund - Growth - Direct Plan | T62: 119505 | V62: =IFERROR(VLOOKUP(ROWS($V$2:V62),R62:$S$10000,2,0),"") -> 
R63: =IF(ISNUMBER(SEARCH($A$7,S63)),MAX($R$1:R62)+1,0) -> 0 | S63: Aditya Birla Sun Life Dynamic Bond Fund - Growth - Regular Plan | T63: 102767 | V63: =IFERROR(VLOOKUP(ROWS($V$2:V63),R63:$S$10000,2,0),"") -> 
R64: =IF(ISNUMBER(SEARCH($A$7,S64)),MAX($R$1:R63)+1,0) -> 0 | S64: Aditya Birla Sun Life Dynamic Bond Fund - Monthly Dividend - Direct Plan | T64: 119503 | V64: =IFERROR(VLOOKUP(ROWS($V$2:V64),R64:$S$10000,2,0),"") -> 
R65: =IF(ISNUMBER(SEARCH($A$7,S65)),MAX($R$1:R64)+1,0) -> 0 | S65: Aditya Birla Sun Life Dynamic Bond Fund - Monthly Dividend - Regular Plan | T65: 111521 | V65: =IFERROR(VLOOKUP(ROWS($V$2:V65),R65:$S$10000,2,0),"") -> 
R66: =IF(ISNUMBER(SEARCH($A$7,S66)),MAX($R$1:R65)+1,0) -> 0 | S66: Aditya Birla Sun Life Dynamic Bond Fund - Quarterly Dividend - Direct Plan | T66: 119502 | V66: =IFERROR(VLOOKUP(ROWS($V$2:V66),R66:$S$10000,2,0),"") -> 
R67: =IF(ISNUMBER(SEARCH($A$7,S67)),MAX($R$1:R66)+1,0) -> 0 | S67: Aditya Birla Sun Life Dynamic Bond Fund - Quarterly Dividend - Regular Plan | T67: 102766 | V67: =IFERROR(VLOOKUP(ROWS($V$2:V67),R67:$S$10000,2,0),"") -> 
R68: =IF(ISNUMBER(SEARCH($A$7,S68)),MAX($R$1:R67)+1,0) -> 0 | S68: Aditya Birla Sun Life Dynamic Bond Fund - Regular Plan - Dividend | T68: 132917 | V68: =IFERROR(VLOOKUP(ROWS($V$2:V68),R68:$S$10000,2,0),"") -> 
R69: =IF(ISNUMBER(SEARCH($A$7,S69)),MAX($R$1:R68)+1,0) -> 0 | S69: Aditya Birla Sun Life Dynamic Bond Fund-Discipline Advantage Plan-Growth | T69: 111848 | V69: =IFERROR(VLOOKUP(ROWS($V$2:V69),R69:$S$10000,2,0),"") -> 
R70: =IF(ISNUMBER(SEARCH($A$7,S70)),MAX($R$1:R69)+1,0) -> 0 | S70: Aditya Birla Sun Life Equity Advantage Fund - Dividend - Direct Plan | T70: 119433 | V70: =IFERROR(VLOOKUP(ROWS($V$2:V70),R70:$S$10000,2,0),"") -> 
R71: =IF(ISNUMBER(SEARCH($A$7,S71)),MAX($R$1:R70)+1,0) -> 0 | S71: Aditya Birla Sun Life Equity Advantage Fund - Growth - Direct Plan | T71: 119436 | V71: =IFERROR(VLOOKUP(ROWS($V$2:V71),R71:$S$10000,2,0),"") -> 
R72: =IF(ISNUMBER(SEARCH($A$7,S72)),MAX($R$1:R71)+1,0) -> 0 | S72: Aditya Birla Sun Life Equity Advantage Fund - Regular Growth | T72: 100033 | V72: =IFERROR(VLOOKUP(ROWS($V$2:V72),R72:$S$10000,2,0),"") -> 
R73: =IF(ISNUMBER(SEARCH($A$7,S73)),MAX($R$1:R72)+1,0) -> 0 | S73: Aditya Birla Sun Life Equity Advantage Fund -Regular Dividend | T73: 100034 | V73: =IFERROR(VLOOKUP(ROWS($V$2:V73),R73:$S$10000,2,0),"") -> 
R74: =IF(ISNUMBER(SEARCH($A$7,S74)),MAX($R$1:R73)+1,0) -> 0 | S74: Aditya Birla Sun Life Equity Fund - Dividend - Direct Plan | T74: 120565 | V74: =IFERROR(VLOOKUP(ROWS($V$2:V74),R74:$S$10000,2,0),"") -> 
R75: =IF(ISNUMBER(SEARCH($A$7,S75)),MAX($R$1:R74)+1,0) -> 0 | S75: Aditya Birla Sun Life Equity Fund - Dividend - Regular Plan | T75: 103165 | V75: =IFERROR(VLOOKUP(ROWS($V$2:V75),R75:$S$10000,2,0),"") -> 
R76: =IF(ISNUMBER(SEARCH($A$7,S76)),MAX($R$1:R75)+1,0) -> 0 | S76: Aditya Birla Sun Life Equity Fund - Growth - Direct Plan | T76: 120564 | V76: =IFERROR(VLOOKUP(ROWS($V$2:V76),R76:$S$10000,2,0),"") -> 
R77: =IF(ISNUMBER(SEARCH($A$7,S77)),MAX($R$1:R76)+1,0) -> 0 | S77: Aditya Birla Sun Life Equity Fund - Growth - Regular Plan | T77: 103166 | V77: =IFERROR(VLOOKUP(ROWS($V$2:V77),R77:$S$10000,2,0),"") -> 
R78: =IF(ISNUMBER(SEARCH($A$7,S78)),MAX($R$1:R77)+1,0) -> 0 | S78: Aditya Birla Sun Life Equity Hybrid'95 Fund - Direct Plan-Dividend | T78: 120518 | V78: =IFERROR(VLOOKUP(ROWS($V$2:V78),R78:$S$10000,2,0),"") -> 
R79: =IF(ISNUMBER(SEARCH($A$7,S79)),MAX($R$1:R78)+1,0) -> 0 | S79: Aditya Birla Sun Life Equity Hybrid'95 Fund - Direct Plan-Growth | T79: 120517 | V79: =IFERROR(VLOOKUP(ROWS($V$2:V79),R79:$S$10000,2,0),"") -> 
R80: =IF(ISNUMBER(SEARCH($A$7,S80)),MAX($R$1:R79)+1,0) -> 0 | S80: Aditya Birla Sun Life Equity Hybrid'95 Fund - Regular Plan-Dividend | T80: 103154 | V80: =IFERROR(VLOOKUP(ROWS($V$2:V80),R80:$S$10000,2,0),"") -> 
R81: =IF(ISNUMBER(SEARCH($A$7,S81)),MAX($R$1:R80)+1,0) -> 0 | S81: Aditya Birla Sun Life Equity Hybrid'95 Fund - Regular Plan-Growth | T81: 103155 | V81: =IFERROR(VLOOKUP(ROWS($V$2:V81),R81:$S$10000,2,0),"") -> 
R82: =IF(ISNUMBER(SEARCH($A$7,S82)),MAX($R$1:R81)+1,0) -> 0 | S82: Aditya Birla Sun Life Equity Savings Fund - Direct Plan - Dividend | T82: 132996 | V82: =IFERROR(VLOOKUP(ROWS($V$2:V82),R82:$S$10000,2,0),"") -> 
R83: =IF(ISNUMBER(SEARCH($A$7,S83)),MAX($R$1:R82)+1,0) -> 0 | S83: Aditya Birla Sun Life Equity Savings Fund - Direct Plan - Growth | T83: 132995 | V83: =IFERROR(VLOOKUP(ROWS($V$2:V83),R83:$S$10000,2,0),"") -> 
R84: =IF(ISNUMBER(SEARCH($A$7,S84)),MAX($R$1:R83)+1,0) -> 0 | S84: Aditya Birla Sun Life Equity Savings Fund - Regular Plan - Dividend | T84: 132997 | V84: =IFERROR(VLOOKUP(ROWS($V$2:V84),R84:$S$10000,2,0),"") -> 
R85: =IF(ISNUMBER(SEARCH($A$7,S85)),MAX($R$1:R84)+1,0) -> 0 | S85: Aditya Birla Sun Life Equity Savings Fund - Regular Plan - Growth | T85: 132998 | V85: =IFERROR(VLOOKUP(ROWS($V$2:V85),R85:$S$10000,2,0),"") -> 
R86: =IF(ISNUMBER(SEARCH($A$7,S86)),MAX($R$1:R85)+1,0) -> 0 | S86: Aditya Birla Sun Life Financial Planning Fund - Aggressive Plan - Direct Plan - Dividend Option | T86: 132187 | V86: =IFERROR(VLOOKUP(ROWS($V$2:V86),R86:$S$10000,2,0),"") -> 
R87: =IF(ISNUMBER(SEARCH($A$7,S87)),MAX($R$1:R86)+1,0) -> 0 | S87: Aditya Birla Sun Life Financial Planning Fund - Aggressive Plan - Direct Plan - Growth Option | T87: 132186 | V87: =IFERROR(VLOOKUP(ROWS($V$2:V87),R87:$S$10000,2,0),"") -> 
R88: =IF(ISNUMBER(SEARCH($A$7,S88)),MAX($R$1:R87)+1,0) -> 0 | S88: Aditya Birla Sun Life Financial Planning Fund - Aggressive Plan - Regular Plan - Dividend Option | T88: 132181 | V88: =IFERROR(VLOOKUP(ROWS($V$2:V88),R88:$S$10000,2,0),"") -> 
R89: =IF(ISNUMBER(SEARCH($A$7,S89)),MAX($R$1:R88)+1,0) -> 0 | S89: Aditya Birla Sun Life Financial Planning Fund - Aggressive Plan - Regular Plan - Growth Option | T89: 132180 | V89: =IFERROR(VLOOKUP(ROWS($V$2:V89),R89:$S$10000,2,0),"") -> 
R90: =IF(ISNUMBER(SEARCH($A$7,S90)),MAX($R$1:R89)+1,0) -> 0 | S90: Aditya Birla Sun Life Financial Planning Fund - Conservative Plan - Direct Plan - Dividend Option | T90: 132184 | V90: =IFERROR(VLOOKUP(ROWS($V$2:V90),R90:$S$10000,2,0),"") -> 
R91: =IF(ISNUMBER(SEARCH($A$7,S91)),MAX($R$1:R90)+1,0) -> 0 | S91: Aditya Birla Sun Life Financial Planning Fund - Conservative Plan - Direct Plan - Growth Option | T91: 132183 | V91: =IFERROR(VLOOKUP(ROWS($V$2:V91),R91:$S$10000,2,0),"") -> 
R92: =IF(ISNUMBER(SEARCH($A$7,S92)),MAX($R$1:R91)+1,0) -> 0 | S92: Aditya Birla Sun Life Financial Planning Fund - Conservative Plan - Regular Plan - Dividend Option | T92: 132179 | V92: =IFERROR(VLOOKUP(ROWS($V$2:V92),R92:$S$10000,2,0),"") -> 
R93: =IF(ISNUMBER(SEARCH($A$7,S93)),MAX($R$1:R92)+1,0) -> 0 | S93: Aditya Birla Sun life Financial Planning Fund - Conservative Plan - Regular Plan - Growth Option | T93: 132178 | V93: =IFERROR(VLOOKUP(ROWS($V$2:V93),R93:$S$10000,2,0),"") -> 
R94: =IF(ISNUMBER(SEARCH($A$7,S94)),MAX($R$1:R93)+1,0) -> 0 | S94: Aditya Birla Sun Life Financial Planning Fund - Prudent Plan - Direct Plan - Dividend Option | T94: 132189 | V94: =IFERROR(VLOOKUP(ROWS($V$2:V94),R94:$S$10000,2,0),"") -> 
R95: =IF(ISNUMBER(SEARCH($A$7,S95)),MAX($R$1:R94)+1,0) -> 0 | S95: Aditya Birla Sun Life Financial Planning Fund - Prudent Plan - Direct Plan - Growth Option | T95: 132185 | V95: =IFERROR(VLOOKUP(ROWS($V$2:V95),R95:$S$10000,2,0),"") -> 
R96: =IF(ISNUMBER(SEARCH($A$7,S96)),MAX($R$1:R95)+1,0) -> 0 | S96: Aditya Birla Sun Life Financial Planning Fund - Prudent Plan - Regular Plan - Dividend Option | T96: 132175 | V96: =IFERROR(VLOOKUP(ROWS($V$2:V96),R96:$S$10000,2,0),"") -> 
R97: =IF(ISNUMBER(SEARCH($A$7,S97)),MAX($R$1:R96)+1,0) -> 0 | S97: Aditya Birla Sun Life Financial Planning Fund - Prudent Plan - Regular Plan - Growth Option | T97: 132174 | V97: =IFERROR(VLOOKUP(ROWS($V$2:V97),R97:$S$10000,2,0),"") -> 
R98: =IF(ISNUMBER(SEARCH($A$7,S98)),MAX($R$1:R97)+1,0) -> 0 | S98: Aditya Birla Sun Life Floating Rate Fund-Direct Plan-Daily Dividend | T98: 122645 | V98: =IFERROR(VLOOKUP(ROWS($V$2:V98),R98:$S$10000,2,0),"") -> 
R99: =IF(ISNUMBER(SEARCH($A$7,S99)),MAX($R$1:R98)+1,0) -> 0 | S99: Aditya Birla Sun Life Floating Rate Fund-Direct Plan-Growth | T99: 122646 | V99: =IFERROR(VLOOKUP(ROWS($V$2:V99),R99:$S$10000,2,0),"") -> 
R100: =IF(ISNUMBER(SEARCH($A$7,S100)),MAX($R$1:R99)+1,0) -> 0 | S100: Aditya Birla Sun Life Floating Rate Fund-Direct Plan-Weekly Dividend | T100: 122648 | V100: =IFERROR(VLOOKUP(ROWS($V$2:V100),R100:$S$10000,2,0),"") -> 
R101: =IF(ISNUMBER(SEARCH($A$7,S101)),MAX($R$1:R100)+1,0) -> 0 | S101: Aditya Birla Sun Life Floating Rate Fund-Regular Plan-Daily Dividend | T101: 122643 | V101: =IFERROR(VLOOKUP(ROWS($V$2:V101),R101:$S$10000,2,0),"") -> 
R102: =IF(ISNUMBER(SEARCH($A$7,S102)),MAX($R$1:R101)+1,0) -> 0 | S102: Aditya Birla Sun Life Floating Rate Fund-Regular Plan-Growth | T102: 122644 | V102: =IFERROR(VLOOKUP(ROWS($V$2:V102),R102:$S$10000,2,0),"") -> 
R103: =IF(ISNUMBER(SEARCH($A$7,S103)),MAX($R$1:R102)+1,0) -> 0 | S103: Aditya Birla Sun Life Floating Rate Fund-Regular Plan-Weekly Dividend | T103: 122647 | V103: =IFERROR(VLOOKUP(ROWS($V$2:V103),R103:$S$10000,2,0),"") -> 
R104: =IF(ISNUMBER(SEARCH($A$7,S104)),MAX($R$1:R103)+1,0) -> 0 | S104: Aditya Birla Sun Life Floating Rate Fund-Retail Plan-Growth | T104: 122650 | V104: =IFERROR(VLOOKUP(ROWS($V$2:V104),R104:$S$10000,2,0),"") -> 
R105: =IF(ISNUMBER(SEARCH($A$7,S105)),MAX($R$1:R104)+1,0) -> 0 | S105: Aditya Birla Sun Life Floating Rate Fund-Retail Plan-Weekly Dividend | T105: 122649 | V105: =IFERROR(VLOOKUP(ROWS($V$2:V105),R105:$S$10000,2,0),"") -> 
R106: =IF(ISNUMBER(SEARCH($A$7,S106)),MAX($R$1:R105)+1,0) -> 0 | S106: Aditya Birla Sun Life Focused Equity Fund - Dividend - Direct Plan | T106: 119563 | V106: =IFERROR(VLOOKUP(ROWS($V$2:V106),R106:$S$10000,2,0),"") -> 
R107: =IF(ISNUMBER(SEARCH($A$7,S107)),MAX($R$1:R106)+1,0) -> 0 | S107: Aditya Birla Sun Life Focused Equity Fund - Growth - Direct Plan | T107: 119564 | V107: =IFERROR(VLOOKUP(ROWS($V$2:V107),R107:$S$10000,2,0),"") -> 
R108: =IF(ISNUMBER(SEARCH($A$7,S108)),MAX($R$1:R107)+1,0) -> 0 | S108: Aditya Birla Sun Life Focused Equity Fund -Dividend Option | T108: 103308 | V108: =IFERROR(VLOOKUP(ROWS($V$2:V108),R108:$S$10000,2,0),"") -> 
R109: =IF(ISNUMBER(SEARCH($A$7,S109)),MAX($R$1:R108)+1,0) -> 0 | S109: Aditya Birla Sun Life Focused Equity Fund -Growth Option | T109: 103309 | V109: =IFERROR(VLOOKUP(ROWS($V$2:V109),R109:$S$10000,2,0),"") -> 
R110: =IF(ISNUMBER(SEARCH($A$7,S110)),MAX($R$1:R109)+1,0) -> 0 | S110: Aditya Birla Sun Life Frontline Equity Fund - Dividend - Direct Plan | T110: 119527 | V110: =IFERROR(VLOOKUP(ROWS($V$2:V110),R110:$S$10000,2,0),"") -> 
R111: =IF(ISNUMBER(SEARCH($A$7,S111)),MAX($R$1:R110)+1,0) -> 0 | S111: Aditya Birla Sun Life Frontline Equity Fund - Growth - Direct Plan | T111: 119528 | V111: =IFERROR(VLOOKUP(ROWS($V$2:V111),R111:$S$10000,2,0),"") -> 
R112: =IF(ISNUMBER(SEARCH($A$7,S112)),MAX($R$1:R111)+1,0) -> 0 | S112: Aditya Birla Sun Life Frontline Equity Fund-Dividend | T112: 103173 | V112: =IFERROR(VLOOKUP(ROWS($V$2:V112),R112:$S$10000,2,0),"") -> 
R113: =IF(ISNUMBER(SEARCH($A$7,S113)),MAX($R$1:R112)+1,0) -> 0 | S113: Aditya Birla Sun Life Frontline Equity Fund-Growth | T113: 103174 | V113: =IFERROR(VLOOKUP(ROWS($V$2:V113),R113:$S$10000,2,0),"") -> 
R114: =IF(ISNUMBER(SEARCH($A$7,S114)),MAX($R$1:R113)+1,0) -> 0 | S114: Aditya Birla Sun Life Gilt Plus-Regular Plan (Annual Dividend) | T114: 100062 | V114: =IFERROR(VLOOKUP(ROWS($V$2:V114),R114:$S$10000,2,0),"") -> 
R115: =IF(ISNUMBER(SEARCH($A$7,S115)),MAX($R$1:R114)+1,0) -> 0 | S115: Aditya Birla Sun Life Global Commodities Fund - Direct Plan - Dividend Option | T115: 132141 | V115: =IFERROR(VLOOKUP(ROWS($V$2:V115),R115:$S$10000,2,0),"") -> 
R116: =IF(ISNUMBER(SEARCH($A$7,S116)),MAX($R$1:R115)+1,0) -> 0 | S116: Aditya Birla Sun Life Global Commodities Fund - Direct plan - Growth Option | T116: 132140 | V116: =IFERROR(VLOOKUP(ROWS($V$2:V116),R116:$S$10000,2,0),"") -> 
R117: =IF(ISNUMBER(SEARCH($A$7,S117)),MAX($R$1:R116)+1,0) -> 0 | S117: Aditya Birla Sun Life Global Commodities Fund - Regular Plan - Dividend Option | T117: 132139 | V117: =IFERROR(VLOOKUP(ROWS($V$2:V117),R117:$S$10000,2,0),"") -> 
R118: =IF(ISNUMBER(SEARCH($A$7,S118)),MAX($R$1:R117)+1,0) -> 0 | S118: Aditya Birla SUn Life Global Commodities Fund - Regular Plan - Growth Option | T118: 132138 | V118: =IFERROR(VLOOKUP(ROWS($V$2:V118),R118:$S$10000,2,0),"") -> 
R119: =IF(ISNUMBER(SEARCH($A$7,S119)),MAX($R$1:R118)+1,0) -> 0 | S119: Aditya Birla Sun Life Global Real Estate Fund - Retail Plan - Direct Plan - Dividend Option | T119: 132010 | V119: =IFERROR(VLOOKUP(ROWS($V$2:V119),R119:$S$10000,2,0),"") -> 
R120: =IF(ISNUMBER(SEARCH($A$7,S120)),MAX($R$1:R119)+1,0) -> 0 | S120: Aditya Birla Sun Life Global Real Estate Fund - Retail Plan - Direct Plan - Growth Option | T120: 132009 | V120: =IFERROR(VLOOKUP(ROWS($V$2:V120),R120:$S$10000,2,0),"") -> 
R121: =IF(ISNUMBER(SEARCH($A$7,S121)),MAX($R$1:R120)+1,0) -> 0 | S121: Aditya Birla Sun Life Global Real Estate Fund - Retail Plan - Regular Plan - Dividend Option | T121: 132003 | V121: =IFERROR(VLOOKUP(ROWS($V$2:V121),R121:$S$10000,2,0),"") -> 
R122: =IF(ISNUMBER(SEARCH($A$7,S122)),MAX($R$1:R121)+1,0) -> 0 | S122: Aditya Birla Sun Life Global Real Estate Fund - Retail Plan - Regular Plan - Growth Option | T122: 132005 | V122: =IFERROR(VLOOKUP(ROWS($V$2:V122),R122:$S$10000,2,0),"") -> 
R123: =IF(ISNUMBER(SEARCH($A$7,S123)),MAX($R$1:R122)+1,0) -> 0 | S123: Aditya Birla Sun Life Gold ETF | T123: 115127 | V123: =IFERROR(VLOOKUP(ROWS($V$2:V123),R123:$S$10000,2,0),"") -> 
R124: =IF(ISNUMBER(SEARCH($A$7,S124)),MAX($R$1:R123)+1,0) -> 0 | S124: Aditya Birla Sun Life Gold Fund - Dividend - Direct Plan | T124: 120545 | V124: =IFERROR(VLOOKUP(ROWS($V$2:V124),R124:$S$10000,2,0),"") -> 
R125: =IF(ISNUMBER(SEARCH($A$7,S125)),MAX($R$1:R124)+1,0) -> 0 | S125: Aditya Birla Sun Life Gold Fund - Growth - Direct Plan | T125: 120546 | V125: =IFERROR(VLOOKUP(ROWS($V$2:V125),R125:$S$10000,2,0),"") -> 
R126: =IF(ISNUMBER(SEARCH($A$7,S126)),MAX($R$1:R125)+1,0) -> 0 | S126: Aditya Birla Sun Life Gold Fund-Dividend | T126: 116795 | V126: =IFERROR(VLOOKUP(ROWS($V$2:V126),R126:$S$10000,2,0),"") -> 
R127: =IF(ISNUMBER(SEARCH($A$7,S127)),MAX($R$1:R126)+1,0) -> 0 | S127: Aditya Birla Sun Life Gold Fund-Growth | T127: 116796 | V127: =IFERROR(VLOOKUP(ROWS($V$2:V127),R127:$S$10000,2,0),"") -> 
R128: =IF(ISNUMBER(SEARCH($A$7,S128)),MAX($R$1:R127)+1,0) -> 0 | S128: Aditya Birla Sun Life Govenment Securities Fund - Quarterly Dividend - Direct Plan | T128: 119606 | V128: =IFERROR(VLOOKUP(ROWS($V$2:V128),R128:$S$10000,2,0),"") -> 
R129: =IF(ISNUMBER(SEARCH($A$7,S129)),MAX($R$1:R128)+1,0) -> 0 | S129: Aditya Birla Sun Life Government Securities Fund - Growth - Regular Plan | T129: 100058 | V129: =IFERROR(VLOOKUP(ROWS($V$2:V129),R129:$S$10000,2,0),"") -> 
R130: =IF(ISNUMBER(SEARCH($A$7,S130)),MAX($R$1:R129)+1,0) -> 0 | S130: Aditya Birla Sun Life Government Securities Fund - Growth - Direct Plan | T130: 119605 | V130: =IFERROR(VLOOKUP(ROWS($V$2:V130),R130:$S$10000,2,0),"") -> 
R131: =IF(ISNUMBER(SEARCH($A$7,S131)),MAX($R$1:R130)+1,0) -> 0 | S131: Aditya Birla Sun Life Government Securities Fund - Quarterly Dividend - Regular Plan | T131: 100057 | V131: =IFERROR(VLOOKUP(ROWS($V$2:V131),R131:$S$10000,2,0),"") -> 
R132: =IF(ISNUMBER(SEARCH($A$7,S132)),MAX($R$1:R131)+1,0) -> 0 | S132: Aditya Birla Sun Life Income Fund - Dividend - Direct Plan | T132: 133446 | V132: =IFERROR(VLOOKUP(ROWS($V$2:V132),R132:$S$10000,2,0),"") -> 
R133: =IF(ISNUMBER(SEARCH($A$7,S133)),MAX($R$1:R132)+1,0) -> 0 | S133: Aditya Birla Sun Life Income Fund - Dividend - Regular Plan | T133: 133445 | V133: =IFERROR(VLOOKUP(ROWS($V$2:V133),R133:$S$10000,2,0),"") -> 
R134: =IF(ISNUMBER(SEARCH($A$7,S134)),MAX($R$1:R133)+1,0) -> 0 | S134: Aditya Birla Sun Life Income Fund - Growth - Direct Plan | T134: 119657 | V134: =IFERROR(VLOOKUP(ROWS($V$2:V134),R134:$S$10000,2,0),"") -> 
R135: =IF(ISNUMBER(SEARCH($A$7,S135)),MAX($R$1:R134)+1,0) -> 0 | S135: Aditya Birla Sun Life Income Fund - Growth - Regular Plan | T135: 100038 | V135: =IFERROR(VLOOKUP(ROWS($V$2:V135),R135:$S$10000,2,0),"") -> 
R136: =IF(ISNUMBER(SEARCH($A$7,S136)),MAX($R$1:R135)+1,0) -> 0 | S136: Aditya Birla Sun Life Income Fund - Quarterly Dividend - Direct Plan | T136: 119655 | V136: =IFERROR(VLOOKUP(ROWS($V$2:V136),R136:$S$10000,2,0),"") -> 
R137: =IF(ISNUMBER(SEARCH($A$7,S137)),MAX($R$1:R136)+1,0) -> 0 | S137: Aditya Birla Sun Life Income Fund - Quarterly Dividend - Regular Plan | T137: 100037 | V137: =IFERROR(VLOOKUP(ROWS($V$2:V137),R137:$S$10000,2,0),"") -> 
R138: =IF(ISNUMBER(SEARCH($A$7,S138)),MAX($R$1:R137)+1,0) -> 0 | S138: Aditya Birla Sun Life Income Fund (Discipline Advantage Plan) | T138: 111777 | V138: =IFERROR(VLOOKUP(ROWS($V$2:V138),R138:$S$10000,2,0),"") -> 
R139: =IF(ISNUMBER(SEARCH($A$7,S139)),MAX($R$1:R138)+1,0) -> 0 | S139: Aditya Birla Sun Life Income Fund-Plan A(Dividend) | T139: 103177 | V139: =IFERROR(VLOOKUP(ROWS($V$2:V139),R139:$S$10000,2,0),"") -> 
